Workbook

Sheet Info
D1: -1 | E1: 0 | F1: 1 | G1: 2 | H1: 3 | I1: 4 | J1: 5 | K1: 6 | L1: 7 | M1: 8 | N1: 9 | O1: 10 | P1: 11 | Q1: 12 | R1: 13 | S1: 14 | T1: 15 | Y1: =IF(OR(Z3="",Z4=""),"※ 市町村（左側）から順に選択してください","") -> ※ 市町村（左側）から順に選択してください | AD1: ｖ | AK1: v
V2: 表示行 | W2: 旧市町村数 | X2: 市町村行 | Y2: 参照シート、セル | Z2: check | AA2: 表示名 | AD2: 表示行 | AE2: 集落数 | AF2: 旧市町村行 | AG2: 参照シート | AH2: check | AK2: 表示行 | AL2: 集落数 | AM2: 旧市町村行 | AN2: 参照シート | AO2: check
D3: 県名 | G3: 市町村名 | J3: 旧市町村名 | V3: =IF(M4="",-1,IFERROR(MATCH(M4,OFFSET(集落2010,1,0,ROWS(集落2010),1),0)-1,3000))+AF3 -> 5 | W3: =COUNTIF('2010年'!B:B,Info!G4)-1 -> -1 | X3: =IF(G4="",6,MATCH(G4,'2010年'!B:B,0)) -> 6 | Y3: '2010年'!$A$1 | Z3: =OFFSET(INDIRECT(Y3),V3,1)&OFFSET(INDIRECT(Y3),V3,2)&OFFSET(INDIRECT(Y3),V3,3) ->  | AA3: =IF(OR(ISERROR(G4),ISERROR(J4),ISERROR(M4)),"表示できません",IF(G4&J4&M4="",D4,IF(M4<>"",M4,IF(J4<>"",IF($G$4=$J$4,"（旧）","")&$J$4,IF(J4<>"",J4,G4))))) -> 山梨県 | AD3: =IF(M4="",-1,IFERROR(MATCH(M4,OFFSET(集落2010,1,0,ROWS(集落2010),1),0)-1,999))+AF3 -> 5 | AE3: =COUNTIF('2010年'!C:C,Info!J4)-1 -> -1 | AF3: =IF(J4="",X3,MATCH(J4,'2010年'!C:C,0)) -> 6 | AG3: '2010年'!$A$1 | AH3: =OFFSET(INDIRECT(AG3),AD3,1)&OFFSET(INDIRECT(AG3),AD3,2)&OFFSET(INDIRECT(AG3),AD3,3) ->  | AI3: =IF(OR(ISERROR(AJ3),ISERROR(AL3)),"表示できません",IF(V4<>"",V4,IF(R4<>"",IF($G$4=$J$4,"（旧）","")&$J$4,IF(O4<>"",O4,L4)))) -> 5 | AK3: =IF(M4="",-1,IFERROR(MATCH(M4,OFFSET(集落2010,1,0,ROWS(集落2010),1),0)-1,999))+AM3 -> 5 | AL3: =COUNTIF('2010年'!C:C,Info!J4)-1 -> -1 | AM3: =IF(J4="",X3,MATCH(J4,'2010年'!C:C,0)) -> 6 | AN3: '2010年'!$A$1 | AO3: =OFFSET(INDIRECT(AN3),AK3,1)&OFFSET(INDIRECT(AN3),AK3,2)&OFFSET(INDIRECT(AN3),AK3,3) ->  | AP3: =IF(OR(ISERROR(AQ3),ISERROR(AS3)),"表示できません",IF(AC4<>"",AC4,IF(Y4<>"",IF($G$4=$J$4,"（旧）","")&$J$4,IF(V4<>"",V4,S4)))) -> （旧）
D4: 山梨県 | V4: =IF(M4="",-1,IFERROR(MATCH(M4,OFFSET(集落2015,1,0,ROWS(集落2015),1),0)-1,3000))+AF4 -> 5 | W4: =COUNTIF('2015年'!B:B,Info!G4)-1 -> -1 | X4: =IF(G4="",6,MATCH(G4,'2015年'!B:B,0)) -> 6 | Y4: '2015年'!$A$1 | Z4: =OFFSET(INDIRECT(Y4),V4,1)&OFFSET(INDIRECT(Y4),V4,2)&OFFSET(INDIRECT(Y4),V4,3) ->  | AD4: =IF(M4="",-1,IFERROR(MATCH(M4,OFFSET(集落2015,1,0,ROWS(集落2015),1),0)-1,999))+AF4 -> 5 | AE4: =COUNTIF('2015年'!C:C,Info!J4)-1 -> -1 | AF4: =IF(J4="",X3,MATCH(J4,'2015年'!C:C,0)) -> 6 | AG4: '2015年'!$A$1 | AH4: =OFFSET(INDIRECT(AG4),AD4,1)&OFFSET(INDIRECT(AG4),AD4,2)&OFFSET(INDIRECT(AG4),AD4,3) ->  | AK4: =IF(M4="",-1,IFERROR(MATCH(M4,OFFSET(集落2015,1,0,ROWS(集落2015),1),0)-1,999))+AM4 -> 5 | AL4: =COUNTIF('2015年'!C:C,Info!J4)-1 -> -1 | AM4: =IF(J4="",X4,MATCH(J4,'2010年'!C:C,0)) -> 6 | AN4: '2015年'!$A$1 | AO4: =OFFSET(INDIRECT(AN4),AK4,1)&OFFSET(INDIRECT(AN4),AK4,2)&OFFSET(INDIRECT(AN4),AK4,3) -> 
C6: ="総農家数" -> 総農家数 | G6: =IFERROR("◎ "&W11&IF(LEFT(R8,1)="県","の総農家に占める割合は "&TEXT(G13,"0.0")&"% で、"&D4&"（"&TEXT(G14,"0.0")&"%） "&X13,"は "&TEXT(G12,"#,###戸 で ")&W13&"、"&"総農家の "&TEXT(G13,"0.0")&"% を占める"),"") -> ◎ 販売農家は 17,020戸 で 3,023戸（15.1%） 減少、総農家の 52.3% を占める
K7: 単位：戸 | L7: 《主副業別割合》
F8: 総農家 | L8: =" "&IF(AND(LEFT(R8,1)<>"県",G4=""),D4,IF(LEFT(R8,1)="県",D12,$AA$3)) -> 山梨県 | R8: 前回との比較
G9: 販売 農家 | K9: 自給的農家 | R9: ="外円："&IF(AND(LEFT(R8,1)="県",G4=""),D4,IF(LEFT(R8,1)="県",$AA$3,"2015年"))&CHAR(10)&"内円："&IF(LEFT(R8,1)="県",$D$4,"2010年") -> 外円：2015年 内円：2010年
H10: 主業 農家 | I10: 準主業 農家 | J10: 副業的 農家 | V10: 列番号 | W10: 概要 | Y10: 凡例 | AC10: 内円
D11: 2010年 | F11: =IFERROR(OFFSET(INDIRECT($Y$3),$V$3,$V11+E$1),"nc") -> 36,805 | G11: =IFERROR(OFFSET(INDIRECT($Y$3),$V$3,$V11+F$1),"nc") -> 20,043 | H11: =IFERROR(OFFSET(INDIRECT($Y$3),$V$3,$V11+G$1),"nc") -> 4,789 | I11: =IFERROR(OFFSET(INDIRECT($Y$3),$V$3,$V11+I$1),"nc") -> 4,301 | J11: =IFERROR(OFFSET(INDIRECT($Y$3),$V$3,$V11+K$1),"nc") -> 10,953 | K11: =IFERROR(OFFSET(INDIRECT($Y$3),$V$3,$V11+L$1),"nc") -> 16,762 | V11: =CELL("col",'2010年'!E6)-1 -> 4 | W11: 販売農家 | X11: 対県 | Y11: 主業農家 | Z11: 準主業農家 | AA11: 副業的農家 | AB11: 自給的農家 | AC11: =IF(LEFT(R8,1)="県",2,-1) -> -1
D12: 2015年 | F12: =IFERROR(OFFSET(INDIRECT($Y$4),$V$4,$V12+E$1),"nc") -> 32,543 | G12: =IFERROR(OFFSET(INDIRECT($Y$4),$V$4,$V12+F$1),"nc") -> 17,020 | H12: =IFERROR(OFFSET(INDIRECT($Y$4),$V$4,$V12+G$1),"nc") -> 3,891 | I12: =IFERROR(OFFSET(INDIRECT($Y$4),$V$4,$V12+I$1),"nc") -> 3,133 | J12: =IFERROR(OFFSET(INDIRECT($Y$4),$V$4,$V12+K$1),"nc") -> 9,996 | K12: =IFERROR(OFFSET(INDIRECT($Y$4),$V$4,$V12+L$1),"nc") -> 15,523 | V12: =CELL("col",'2015年'!E6)-1 -> 4 | W12: =G12/G11-1 -> -0.1508257247 | X12: =G13-G14 -> 0.0
E13: 構成比(%) | F13: =IF(OR(AND(ISTEXT($F12),$F12<>"X",$F12<>"-"),AND(ISTEXT(F12),F12<>"X",F12<>"-")),"nc",IF(OR($F12="X",F12="X"),"X",IF(ROUND(SUM($F12),0)=0,"nc",SUM(F12)/$F12%))) -> 100.0 | G13: =IF(OR(AND(ISTEXT($F12),$F12<>"X",$F12<>"-"),AND(ISTEXT(G12),G12<>"X",G12<>"-")),"nc",IF(OR($F12="X",G12="X"),"X",IF(ROUND(SUM($F12),0)=0,"nc",SUM(G12)/$F12%))) -> 52.3 | H13: =IF(OR(AND(ISTEXT($F12),$F12<>"X",$F12<>"-"),AND(ISTEXT(H12),H12<>"X",H12<>"-")),"nc",IF(OR($F12="X",H12="X"),"X",IF(ROUND(SUM($F12),0)=0,"nc",SUM(H12)/$F12%))) -> 12.0 | I13: 9.6 | J13: =IF(OR(AND(ISTEXT($F12),$F12<>"X",$F12<>"-"),AND(ISTEXT(J12),J12<>"X",J12<>"-")),"nc",IF(OR($F12="X",J12="X"),"X",IF(ROUND(SUM($F12),0)=0,"nc",SUM(J12)/$F12%))) -> 30.7 | K13: 47.7 | W13: =IF(W12=0,"変化なし",TEXT(ABS(G12-G11),"#,##0")&"戸（"&TEXT(ABS(W12),"0.0%")&"） "&IF(W12>0,"増加","減少")) -> 3,023戸（15.1%） 減少 | X13: =IF(X12=0,"と同率である","を"&TEXT(ABS(X12),"#,##0.0")&"ポイント "&IF(X12>0,"上回る","下回る")) -> と同率である
E14: 県計 構成比(%) | F14: 100.0 | G14: =IFERROR(OFFSET(INDIRECT($Y$4),5,$V$12+F1)/OFFSET(INDIRECT($Y$4),5,V12)*100,"nc") -> 52.3 | H14: =IFERROR(OFFSET(INDIRECT($Y$4),5,$V$12+G1)/OFFSET(INDIRECT($Y$4),5,V12)*100,"nc") -> 12.0 | I14: =IFERROR(OFFSET(INDIRECT($Y$4),5,$V$12+I1)/OFFSET(INDIRECT($Y$4),5,V12)*100,"nc") -> 9.6 | J14: =IFERROR(OFFSET(INDIRECT($Y$4),5,$V$12+K1)/OFFSET(INDIRECT($Y$4),5,V12)*100,"nc") -> 30.7 | K14: =IFERROR(OFFSET(INDIRECT($Y$4),5,$V$12+L1)/OFFSET(INDIRECT($Y$4),5,V12)*100,"nc") -> 47.7
D15: =IFERROR("《参考》"&G4&"の総農家数の全国順位："&TEXT(OFFSET(#REF!,MATCH(Info!G4,#REF!,0),0),"#,##0")&"位","") -> 
C18: 基幹的農業従事者数
D19: =IFERROR(IF(RIGHT(C18,4)="ください","","◎ "&C18&"は "&TEXT(F23,"#,##0人 で ")&W24&IFERROR("、平均年齢 "&TEXT(S23,"0.0歳は")&IF(LEFT(R28,1)="県","県平均","2010年")&X24,"")),"") -> ◎ 基幹的農業従事者数は 24,157人 で 4,156人（14.7%） 減少、平均年齢 69.2歳は2010年を 0.6歳上回る
S20: 単位：人
F21: 計 | G21: 15～39歳 | H21: 40～44 | I21: 45～49 | J21: 50～54 | K21: 55～59 | L21: 60～64 | M21: 65～69 | N21: 70～74 | O21: 75～79 | P21: 80～84 | Q21: 85歳以上 | R21: 65歳以上 | S21: 平均 年齢 （歳） | V21: 列番号 | W21: 概要 | Y21: 縦棒 左 | Z21: 縦棒 右 | AA21: 凡例
D22: 2010年 | F22: =IFERROR(OFFSET(INDIRECT($Y$3),$V$3,V23-1),"nc") -> 28,313 | G22: =IFERROR(IF(COUNTIF(OFFSET(INDIRECT($Y$3),$V$3,V23,1,5),"@")>0,"@",IF(COUNTIF(OFFSET(INDIRECT($Y$3),$V$3,V23,1,5),"X")>0,"X",SUM(OFFSET(INDIRECT($Y$3),$V$3,V23,1,5)))),"nc") -> 703 | H22: =IFERROR(OFFSET(INDIRECT($Y$3),$V$3,$V23+J$1),"nc") -> 445 | I22: =IFERROR(OFFSET(INDIRECT($Y$3),$V$3,$V23+K$1),"nc") -> 699 | J22: 1,369 | K22: 2,305 | L22: 3,563 | M22: 4,488 | N22: 4,937 | O22: 4,863 | P22: 3,421 | Q22: 1,520 | R22: =IF(COUNTIF(M22:Q22,"@"),"@",(IF(COUNTIF(M22:Q22,"X"),"X",SUM(M22:Q22)))) -> 19,229 | S22: =IFERROR(OFFSET(INDIRECT($Y$3),$V$3,V23+15),"nc") -> 68.6 | V22: =IF(C18="農業従事者数",1,IF(C18="農業就業人口",2,IF(C18="基幹的農業従事者数",3,ERROR.TYPE(5)))) -> 3 | W22: 人数 | X22: 平均年齢 | Y22: =IF(LEFT(R28,1)="県",3,-1) -> -1 | Z22: =IF(LEFT(R28,1)="県",1,0) -> 0 | AA22: =IF(LEFT(R28,1)="県",$D$4,$D22) -> 2010年
D23: 2015年 | F23: =IFERROR(OFFSET(INDIRECT($Y$4),$V$4,$V24-1),"nc") -> 24,157 | G23: =IFERROR(IF(COUNTIF(OFFSET(INDIRECT($Y$4),$V$4,$V24,1,5),"X")>0,"X",SUM(OFFSET(INDIRECT($Y$4),$V$4,$V24,1,5))),"nc") -> 678 | H23: =IFERROR(OFFSET(INDIRECT($Y$4),$V$4,$V24+5),"nc") -> 433 | I23: =IFERROR(OFFSET(INDIRECT($Y$4),$V$4,$V24+6),"nc") -> 581 | J23: =IFERROR(OFFSET(INDIRECT($Y$4),$V$4,$V24+7),"nc") -> 875 | K23: =IFERROR(OFFSET(INDIRECT($Y$4),$V$4,$V24+8),"nc") -> 1,601 | L23: =IFERROR(OFFSET(INDIRECT($Y$4),$V$4,$V24+9),"nc") -> 2,957 | M23: =IFERROR(OFFSET(INDIRECT($Y$4),$V$4,$V24+10),"nc") -> 4,034 | N23: =IFERROR(OFFSET(INDIRECT($Y$4),$V$4,$V24+11),"nc") -> 4,233 | O23: =IFERROR(OFFSET(INDIRECT($Y$4),$V$4,$V24+12),"nc") -> 3,958 | P23: =IFERROR(OFFSET(INDIRECT($Y$4),$V$4,$V24+13),"nc") -> 3,009 | Q23: =IFERROR(OFFSET(INDIRECT($Y$4),$V$4,$V24+14),"nc") -> 1,798 | R23: =IF(COUNTIF(M23:Q23,"X"),"X",SUM(M23:Q23)) -> 17,032 | S23: =IFERROR(OFFSET(INDIRECT($Y$4),$V$4,$V24+15),"nc") -> 69.2 | V23: =IFERROR(CHOOSE(V22,CELL("col",'2010年'!N6),CELL("col",'2010年'!AG6),CELL("col",'2010年'!AZ6))-1,555) -> 51 | W23: =F23/F22-1 -> -0.1467876947 | X23: =S23-IF(LEFT(R28,1)="県",S26,S22) -> 0.6 | AA23: =IF(AND(LEFT(R28,1)="県",G4=""),D4,IF(LEFT(R28,1)="県",AA3,D23)) -> 2015年
E24: 構成比(%) | F24: =IF(OR(AND(ISTEXT($F23),$F23<>"X",$F23<>"-"),AND(ISTEXT(F23),F23<>"X",F23<>"-")),"nc",IF(OR($F23="X",F23="X"),"X",IF(ROUND(SUM($F23),0)=0,"nc",SUM(F23)/$F23%))) -> 100.0 | G24: 2.8 | H24: 1.8 | I24: 2.4 | J24: 3.6 | K24: 6.6 | L24: 12.2 | M24: 16.7 | N24: 17.5 | O24: 16.4 | P24: 12.5 | Q24: 7.4 | R24: 70.5 | V24: =IFERROR(CHOOSE(V22,CELL("col",'2015年'!N6),CELL("col",'2015年'!AG6),CELL("col",'2015年'!AZ6))-1,555) -> 51 | W24: =IF(W23=0,"変化なし",TEXT(ABS(F23-F22),"#,##0人")&"（"&TEXT(ABS(W23),"0.0%")&"） "&IF(W23>0,"増加","減少")) -> 4,156人（14.7%） 減少 | X24: =IF(X23=0,"と同じである","を "&TEXT(ABS(X23),"0.0歳")&IF(X23>0,"上回る","下回る")) -> を 0.6歳上回る
E25: 2015年 | F25: =IFERROR(OFFSET(INDIRECT($Y$4),5,V24-1),"nc") -> 24,157 | G25: =IFERROR(SUM(OFFSET(INDIRECT($Y$4),5,V24,1,5)),"nc") -> 678 | H25: =IFERROR(OFFSET(INDIRECT($Y$4),5,V24+5),"nc") -> 433 | I25: =IFERROR(OFFSET(INDIRECT($Y$4),5,V24+6),"nc") -> 581 | J25: =IFERROR(OFFSET(INDIRECT($Y$4),5,V24+7),"nc") -> 875 | K25: =IFERROR(OFFSET(INDIRECT($Y$4),5,V24+8),"nc") -> 1,601 | L25: =IFERROR(OFFSET(INDIRECT($Y$4),5,V24+9),"nc") -> 2,957 | M25: =IFERROR(OFFSET(INDIRECT($Y$4),5,V24+10),"nc") -> 4,034 | N25: =IFERROR(OFFSET(INDIRECT($Y$4),5,V24+11),"nc") -> 4,233 | O25: =IFERROR(OFFSET(INDIRECT($Y$4),5,V24+12),"nc") -> 3,958 | P25: =IFERROR(OFFSET(INDIRECT($Y$4),5,V24+13),"nc") -> 3,009 | Q25: =IFERROR(OFFSET(INDIRECT($Y$4),5,V24+14),"nc") -> 1,798 | R25: =SUM(M25:Q25) -> 17,032
E26: 県計 構成比(%) | F26: 100.0 | G26: =IFERROR(ROUND(G25/$F25*100,1),"nc") -> 2.8 | H26: =IFERROR(ROUND(H25/$F25*100,1),"nc") -> 1.8 | I26: 2.4 | J26: 3.6 | K26: 6.6 | L26: 12.2 | M26: 16.7 | N26: 17.5 | O26: 16.4 | P26: 12.5 | Q26: 7.4 | R26: 70.5 | S26: =IFERROR(OFFSET(INDIRECT($Y$4),5,V24+15),"nc") -> 69.2
D27: =IF(LEFT(R28,1)="県","（％）","（人）") -> （人） | G27: ="《年齢階層別"&C18&IF(LEFT(R28,1)="県","割合","")&"》 "&IF(AND(LEFT(R28,1)<>"県",G4=""),D4,IF(LEFT(R28,1)="県",D23,AA3)) -> 《年齢階層別基幹的農業従事者数》 山梨県
R28: 前回との比較
C41: 後継者がいる農家数（販売農家）
D42: =IFERROR(" ◎ 後継者がいる農家数の割合は "&TEXT(H51,"0.0")&"％（"&TEXT(H50,"#,##0")&"戸）で、"&IF(LEFT(Z48,1)="県","県平均の "&TEXT(H52,"0.0"),"2010年の "&TEXT(H48,"0.0"))&"％"&AB49,"") -> ◎ 後継者がいる農家数の割合は 45.8％（7,787戸）で、県平均の 45.8％と同率である
D43: =IFERROR(IF(LEFT(Z49,1)="県","県平均の "&TEXT(H52,"0.0")," 2010年の "&TEXT(H48,"0.0"))&"％"&AB47,"") -> 2010年の 54.3％ を 8.6ポイント 下回る
H44: 単位：戸 | J44: ="《後継者のいる農家数"&IF(LEFT(Z49,1)="県","割合","")&"》 "&IF(AND(LEFT(Z49,1)<>"県",G4=""),D4,IF(LEFT(Z49,1)="県","2015年",AA3)) -> 《後継者のいる農家数》 山梨県 | P44: ="《後継者のいる農家数"&IF(LEFT(Z48,1)="県","割合","")&"》 "&IF(AND(LEFT(Z48,1)<>"県",M4=""),J4,IF(LEFT(Z48,1)="県","2015年",AA3)) -> 《後継者のいる農家数割合》 2015年
H45: 計 | V45: 列番号 | W45: 2015年 | X45: 2010年 | Y45: 縦棒左 | Z45: 縦棒右 | AA45: 凡例 | AB45: 差
D46: 2010年 | E46: 農家数 | H46: =IFERROR(OFFSET(INDIRECT($Y$3),$V$3,X46-1),"nc") -> 20,043 | V46: 農家数 | W46: =CELL("col",'2015年'!BS6)-1 -> 70 | X46: =CELL("col",'2010年'!BS6)-1 -> 70 | Y46: 1 | Z46: 0 | AA46: =IF(LEFT(Z49,1)="県",$D$4,$D46) -> 2010年 | AB46: =H51-IF(LEFT(Z49,1)="県",H52,H48) -> -8.57613797784821
G47: 後継者がいる農家数 | H47: =IFERROR(OFFSET(INDIRECT(Y3),V3,X47-1),"nc") -> 10,889 | V47: 後継者有 | W47: =CELL("col",'2015年'!CI5)-1 -> 86 | X47: =CELL("col",'2010年'!CI5)-1 -> 86 | Y47: -4 | Z47: -1 | AA47: =IF(AND(LEFT(Z49,1)="県",G4=""),D4,IF(LEFT(Z49,1)="県",AA3,D49)) -> 2015年 | AB47: =IF(AB46=0,"と同率である"," を "&TEXT(ABS(AB46),"0.0")&"ポイント "&IF(AB46>0,"上回る","下回る")) -> を 8.6ポイント 下回る
G48: 割合(%) | H48: =IF(OR(AND(ISTEXT(H46),H46<>"X",H46<>"-"),AND(ISTEXT(H47),H47<>"X",H47<>"-")),"nc",IF(OR(H46="X",H47="X"),"X",IF(ROUND(SUM(H46),0)=0,"nc",SUM(H47)/H46%))) -> 54.3 | Z48: 県との比較 | AA48: =IF(LEFT(Z48,1)="県",$D$4,$D46) -> 山梨県 | AB48: =H51-IF(LEFT(Z48,1)="県",H52,H48) -> 0.00000000000000
D49: 2015年 | E49: 農家数 | H49: =IFERROR(OFFSET(INDIRECT($Y$4),$V$4,W46-1),"nc") -> 17,020 | Z49: 前回との比較 | AA49: =AA3 -> 山梨県 | AB49: =IF(AB48=0,"と同率である"," を "&TEXT(ABS(AB48),"0.0")&"ポイント "&IF(AB48>0,"上回る","下回る")) -> と同率である
G50: 後継者がいる農家数 | H50: =IFERROR(OFFSET(INDIRECT($Y$4),$V$4,$W47-1),"nc") -> 7,787
G51: 割合(%) | H51: =IF(OR(AND(ISTEXT(H49),H49<>"X",H49<>"-"),AND(ISTEXT(H50),H50<>"X",H50<>"-")),"nc",IF(OR(H49="X",H50="X"),"X",IF(ROUND(SUM(H49),0)=0,"nc",SUM(H50)/H49%))) -> 45.8
D52: 県計 | G52: 後継者がいる割合(%) | H52: =IFERROR(OFFSET(INDIRECT($Y$4),5,$W$47-1)/OFFSET(INDIRECT($Y$4),5,$W$46-1)*100,"nc") -> 45.8
D73: =IFERROR(" ◎ 一世代家族経営の割合は "&TEXT(G79/100,"0.0%")&"（"&TEXT(G78,"#,##0")&"戸）で、"&IF(LEFT(R75,1)="県","県平均の "&TEXT(G80/100,"0.0%"),"2010年の "&TEXT(G77/F77,"0.0%"))&W78,"") -> 
L74: 単位：戸
F75: 計 | G75: 一世代家族 経営 | J75: 二世代家族 経営 | L75: 三世代家族 経営 | R75: 前回との比較
H76: 一人家族経営 | I76: 夫婦家族経営 | K76: 親子家族経営 | V76: 列番号 | W76: 県、前回との差 | X76: グラフ用 | Y76: 一世代 | Z76: 二世代 | AA76: 三世代
D77: 2010年 | F77: =IFERROR(OFFSET(INDIRECT($Y$3),$V$3,$V77),"nc") -> nc | G77: =IFERROR(OFFSET(INDIRECT($Y$3),$V$3,$V$77+F1),"nc") -> nc | H77: nc | I77: nc | J77: nc | K77: nc | L77: nc | V77: =CELL("col",#REF!)-1 ->  | W77: =IF(LEFT(R75,1)="県",G79-G80,G79-G77/F77*100) ->  | X77: =IF(LEFT($R$75,1)="県",AA3,D77) -> 2010年 | Y77: =IF(LEFT($R$75,1)="県",G79,G77/F77*100) ->  | Z77: =IF(LEFT($R$75,1)="県",J79,J77/F77*100) ->  | AA77: =IF(LEFT($R$75,1)="県",L79,L77/F77*100) -> 
D78: 2015年 | F78: =IFERROR(OFFSET(INDIRECT($Y$4),$V$4,$V78),"nc") -> 0 | G78: =IFERROR(SUM(OFFSET(INDIRECT($Y$4),$V$4,$V$78+F1)),"nc") -> 0 | H78: 0 | I78: 0 | J78: 0 | K78: 0 | L78: 0 | V78: =CELL("col",'2015年'!CV6)-1 -> 99 | W78: =IF(W77=0," と同率である"," を "&TEXT(ABS(W77),"0.0")&"ポイント "&IF(W77>0,"上回る","下回る")) ->  | X78: =IF(LEFT($R$75,1)="県",D4,D78) -> 2015年 | Y78: =IF(LEFT($R$75,1)="県",G80,G79) -> nc | Z78: =IF(LEFT($R$75,1)="県",J80,J79) -> nc | AA78: =IF(LEFT($R$75,1)="県",L80,L79) -> nc
E79: 構成比(%) | F79: =IF(OR(AND(ISTEXT($F78),$F78<>"X",$F78<>"-"),AND(ISTEXT(F78),F78<>"X",F78<>"-")),"nc",IF(OR($F78="X",F78="X"),"X",IF(ROUND(SUM($F78),0)=0,"nc",SUM(F78)/$F78%))) -> nc | G79: nc | H79: nc | I79: nc | J79: nc | K79: nc | L79: nc
E80: 県計 構成比(%) | F80: 100.0 | G80: =IFERROR(OFFSET(INDIRECT($Y$4),5,$V$78+F1)/OFFSET(INDIRECT($Y$4),5,$V$78)%,"nc") -> nc | H80: nc | I80: nc | J80: nc | K80: nc | L80: nc
C84: 過去１年間の生活の主な状態別世帯員数（計）
D85: =IFERROR(" ◎ 「自営農業が主」の割合は "&TEXT(H91/100,"0.0%")&"（"&TEXT(H90,"#,###")&"戸）で、"&IF(LEFT(R87,1)="県"," 県平均"&"の "&TEXT(H93/100,"0.0%")&W90,"2010年の "&TEXT(H89/F89,"0.0%")&X90),"") -> ◎ 「自営農業が主」の割合は 46.9%（24,157戸）で、2010年の 43.4% を 3.5ポイント 上回る
M86: 単位：人 | N86: =" 《主な状態別世帯員数割合》 " -> 《主な状態別世帯員数割合》
F87: 計 | G87: 主に仕事 | K87: 主に 家事・育児 | L87: 学生 | M87: その他 | N87: =" "&IF(AND(LEFT(R87,1)<>"県",G4=""),D4,IF(LEFT(R87,1)="県",D90,AA3)) -> 山梨県 | R87: 前回との比較 | W87: 自営農業の増減 | Y87: 凡例用 | AE87: 内円
G88: 小計 | H88: 自営農業が主 | I88: 勤務が主 | J88: 農業以外の自営が主 | R88: ="外円："&IF(AND(LEFT(R87,1)="県",G4=""),D4,IF(LEFT(R87,1)="県",$AA$3,"2015年"))&CHAR(10)&"内円："&IF(LEFT(R87,1)="県",$D$4,"2010年") -> 外円：2015年 内円：2010年 | V88: 列番号 | W88: 県 | X88: 前回 | Y88: 自営農業 | Z88: 勤務 | AA88: 農業以外の自営 | AB88: 家事・育児 | AC88: 学生 | AD88: その他 | AE88: offset 行数
A89: 15 | D89: 2010年 | F89: =IFERROR(OFFSET(INDIRECT($Y$3),$V$3,$V95-1),"nc") -> 65,171 | G89: =IFERROR(OFFSET(INDIRECT($Y$3),$V$3,$V95),"nc") -> 49,831 | H89: =IFERROR(OFFSET(INDIRECT($Y$3),$V$3,$V95+1),"nc") -> 28,314 | I89: =IFERROR(OFFSET(INDIRECT($Y$3),$V$3,$V95+2),"nc") -> 19,694 | J89: =IFERROR(OFFSET(INDIRECT($Y$3),$V$3,$V95+3),"nc") -> 1,823 | K89: =IFERROR(OFFSET(INDIRECT($Y$3),$V$3,$V95+4),"nc") -> 5,791 | L89: =IFERROR(OFFSET(INDIRECT($Y$3),$V$3,$V95+5),"nc") -> 4,713 | M89: =IFERROR(OFFSET(INDIRECT($Y$3),$V$3,$V95+6),"nc") -> 4,836 | V89: =CELL("col",'2010年'!DC6)-1 -> 106 | W89: =H91-H93 -> 0.00 | X89: =H91-H89/F89*100 -> 3.488432012 | AE89: =IF(LEFT(R87,1)="県",2,-1) -> -1
D90: 2015年 | F90: =IFERROR(OFFSET(INDIRECT($Y$4),$V$4,$V96-1),"nc") -> 51,470 | G90: =IFERROR((OFFSET(INDIRECT($Y$4),$V$4,$V96)),"nc") -> 40,581 | H90: =IFERROR((OFFSET(INDIRECT($Y$4),$V$4,$V96+1)),"nc") -> 24,157 | I90: =IFERROR((OFFSET(INDIRECT($Y$4),$V$4,$V96+2)),"nc") -> 14,700 | J90: =IFERROR((OFFSET(INDIRECT($Y$4),$V$4,$V96+3)),"nc") -> 1,724 | K90: =IFERROR((OFFSET(INDIRECT($Y$4),$V$4,$V96+4)),"nc") -> 3,737 | L90: =IFERROR((OFFSET(INDIRECT($Y$4),$V$4,$V96+5)),"nc") -> 3,103 | M90: =IFERROR((OFFSET(INDIRECT($Y$4),$V$4,$V96+6)),"nc") -> 4,049 | V90: =CELL("col",'2015年'!DC6)-1 -> 106 | W90: =" "&IF(W89=0,"と同率である"," を "&TEXT(ABS(W89),"0.0")&"ポイント "&IF(W89>0,"上回る","下回る")) -> と同率である | X90: =IF(X89=0,"と同率である"," を "&TEXT(ABS(X89),"0.0")&"ポイント "&IF(X89>0,"上回る","下回る")) -> を 3.5ポイント 上回る
E91: 構成比(%) | F91: =IF(OR(AND(ISTEXT($F90),$F90<>"X",$F90<>"-"),AND(ISTEXT(F90),F90<>"X",F90<>"-")),"nc",IF(OR($F90="X",F90="X"),"X",IF(ROUND(SUM($F90),0)=0,"nc",SUM(F90)/$F90%))) -> 100.0 | G91: 78.8 | H91: 46.9 | I91: 28.6 | J91: 3.3 | K91: 7.3 | L91: 6.0 | M91: 7.9
E92: 県計 実数 | F92: =IFERROR(OFFSET(INDIRECT($Y$4),5,V96-1),"nc") -> 51,470 | G92: =IFERROR(OFFSET(INDIRECT($Y$4),5,$V$96),"nc") -> 40,581 | H92: =IFERROR(OFFSET(INDIRECT($Y$4),5,V96+1),"nc") -> 24,157 | I92: =IFERROR(OFFSET(INDIRECT($Y$4),5,V96+2),"nc") -> 14,700 | J92: =IFERROR(OFFSET(INDIRECT($Y$4),5,V96+3),"nc") -> 1,724 | K92: =IFERROR(OFFSET(INDIRECT($Y$4),5,V96+4),"nc") -> 3,737 | L92: =IFERROR(OFFSET(INDIRECT($Y$4),5,V96+5),"nc") -> 3,103 | M92: =IFERROR(OFFSET(INDIRECT($Y$4),5,V96+6),"nc") -> 4,049
E93: 県計 構成比(%) | F93: 100.0 | G93: =IFERROR(OFFSET(INDIRECT($Y$4),5,$V$96)/OFFSET(INDIRECT($Y$4),5,$V$96-1)*100,"nc") -> 78.8 | H93: =IFERROR(OFFSET(INDIRECT($Y$4),5,$V$96+F1)/OFFSET(INDIRECT($Y$4),5,$V$96-1)*100,"nc") -> 46.9 | I93: 28.6 | J93: 3.3 | K93: 7.3 | L93: 6.0 | M93: 7.9 | V93: 列番号 | W93: 概要 | Y93: 縦棒 左 | Z93: 縦棒 右 | AA93: 凡例
V94: =IF(C84="過去１年間の生活の主な状態別世帯員数（計）",1,IF(C84="過去１年間の生活の主な状態別世帯員数（男）",2,IF(C84="過去１年間の生活の主な状態別世帯員数（女）",3,ERROR.TYPE(5)))) -> 1 | W94: 人数 | X94: 平均年齢 | Y94: =IF(LEFT(R100,1)="県",3,-1) -> -1 | Z94: =IF(LEFT(R100,1)="県",1,0) -> 0 | AA94: =IF(LEFT(R100,1)="県",$D$4,$D94) -> 0
V95: =IFERROR(CHOOSE(V94,CELL("col",'2010年'!DD6),CELL("col",'2010年'!EG6),CELL("col",'2010年'!EO6))-1,555) -> 107 | W95: =F95/F94-1 ->  | X95: =S95-IF(LEFT(R100,1)="県",S98,S94) -> 0.0 | AA95: =IF(LEFT(R100,1)="県",AA75,D95) -> 0
V96: =IFERROR(CHOOSE(V94,CELL("col",'2015年'!DD6),CELL("col",'2015年'!EG6),CELL("col",'2015年'!EO6))-1,555) -> 107 | W96: =IF(W95=0,"変化なし",TEXT(ABS(F95-F94),"#,##0人")&"（"&TEXT(ABS(W95),"0.0%")&"） "&IF(W95>0,"増加","減少")) ->  | X96: =IF(X95=0,"と同じである","を "&TEXT(ABS(X95),"0.0歳")&IF(X95>0,"上回る","下回る")) -> と同じである
C98: 農産物販売金額１位の部門別農家数（販売のあった農家）
D99: =IF(AA105="",""," ◎ "&AA105&"（"&TEXT(Z105,"0.0")&"%） が最も多く、次いで"&SUBSTITUTE(AA106&AA107,"」「","」、「")&"の順で、この"&DBCS(COUNTIF(AB103:AN103,"<4"))&"部門で全体の "&TEXT(Z104,"0.0")&"% を占める") -> ◎ 「果樹類」（65.7%） が最も多く、次いで「稲作」、「露地野菜」の順で、この３部門で全体の 95.5% を占める
S100: 単位：戸
F101: 計 | G101: 稲作 | H101: 麦類作 | I101: 雑穀・ いも類・ 豆類 | J101: 工芸農作物 | K101: 野菜類 | M101: 果樹類 | N101: 花き・ 花木 | O101: その他の作物 | P101: 酪農 | Q101: 肉用牛 | R101: 養豚 | S101: 養鶏
K102: 露地 | L102: 施設 | O102: その他の作物 | P102: 畜産 | V102: 列番号 | W102: offset行数 | Y102: 凡例 | Z102: 上位 | AB102: 稲作 | AC102: 麦類作 | AD102: 雑穀・ いも類・ 豆類 | AE102: 工芸 農作物 | AF102: 露地 野菜 | AG102: 施設 野菜 | AH102: 果樹類 | AI102: 花き・ 花木 | AJ102: その他 の作物 | AK102: 酪農 | AL102: 肉用牛 | AM102: 養豚 | AN102: 養鶏
D103: 2010年 | F103: =IFERROR(OFFSET(INDIRECT($Y$3),$V$3,$V103),"nc") -> 18,061 | G103: =IFERROR(OFFSET(INDIRECT($Y$3),$V$3,$V103+F$1),"nc") -> 4,207 | H103: 4 | I103: 149 | J103: 96 | K103: 1,204 | L103: 304 | M103: 11,679 | N103: 195 | O103: 52 | P103: =IFERROR(OFFSET(INDIRECT($Y$3),$V$3,$V103+O$1),"nc") -> 82 | Q103: =IFERROR(OFFSET(INDIRECT($Y$3),$V$3,$V103+P$1),"nc") -> 37 | R103: =IFERROR(OFFSET(INDIRECT($Y$3),$V$3,$V103+Q$1),"nc") -> 16 | S103: =IFERROR(OFFSET(INDIRECT($Y$3),$V$3,$V103+R$1),"nc") -> 24 | V103: =CELL("col",'2010年'!DK6)-1 -> 114 | W103: 縦棒左 | X103: 縦棒右 | Y103: =IF(LEFT(R108,1)="県",D4,D103) -> 2010年 | Z103: ３品目計 | AA103: 順位 | AB103: =IFERROR(RANK(G104,$G$104:$S$104,0),99) -> 2 | AC103: 13 | AD103: 6 | AE103: 7 | AF103: 3 | AG103: 4 | AH103: 1 | AI103: 5 | AJ103: 10 | AK103: 8 | AL103: 9 | AM103: 12 | AN103: 11
D104: 2015年 | F104: =IFERROR(OFFSET(INDIRECT($Y$4),$V$4,V104),"nc") -> 15,488 | G104: =IFERROR(OFFSET(INDIRECT($Y$4),$V$4,$V104+F1),"nc") -> 3,548 | H104: 10 | I104: 109 | J104: 64 | K104: 1,070 | L104: 220 | M104: 10,180 | N104: 134 | O104: 26 | P104: =IFERROR(OFFSET(INDIRECT($Y$4),$V$4,$V104+O1),"nc") -> 60 | Q104: =IFERROR(OFFSET(INDIRECT($Y$4),$V$4,$V104+P1),"nc") -> 28 | R104: =IFERROR(OFFSET(INDIRECT($Y$4),$V$4,$V104+Q1),"nc") -> 11 | S104: =IFERROR(OFFSET(INDIRECT($Y$4),$V$4,$V104+R1),"nc") -> 19 | V104: =CELL("col",'2015年'!DK6)-1 -> 114 | W104: =IF(LEFT(R108,1)="県",2,-1) -> -1 | X104: =IF(LEFT(R108,1)="県",1,0) -> 0 | Y104: =IF(AND(LEFT(R108,1)="県",G4=""),D4,IF(LEFT(R108,1)="県",AA3,D104)) -> 2015年 | Z104: =SUM(AB104:AN104) -> 95.54493802 | AA104: ％ | AB104: =IF(AB103<4,G104/$F$104%,0) -> 22.90805785 | AC104: =IF(AC103<4,H104/$F$104%,0) -> 0 | AD104: =IF(AD103<4,I104/$F$104%,0) -> 0 | AE104: 0 | AF104: 6.90857438 | AG104: 0 | AH104: 65.72830579 | AI104: 0 | AJ104: 0 | AK104: 0 | AL104: 0 | AM104: 0 | AN104: 0
E105: 構成比(%) | F105: =IF(OR(AND(ISTEXT($F104),$F104<>"X",$F104<>"-"),AND(ISTEXT(F104),F104<>"X",F104<>"-")),"nc",IF(OR($F104="X",F104="X"),"X",IF(ROUND(SUM($F104),0)=0,"nc",SUM(F104)/$F104%))) -> 100.0 | G105: 22.9 | H105: 0.1 | I105: 0.7 | J105: 0.4 | K105: 6.9 | L105: 1.4 | M105: 65.7 | N105: 0.9 | O105: 0.2 | P105: 0.4 | Q105: 0.2 | R105: 0.1 | S105: 0.1 | Y105: １位 | Z105: =SUMIF($AB$103:$AN$103,1,AB104:AN104) -> 65.72830579 | AA105: =SUBSTITUTE(AB105&AC105&AD105&AE105&AF105&AG105&AH105&AI105&AJ105&AK105&AL105&AM105&AN105,"」「","」と「") -> 「果樹類」 | AB105: =IF(AB103=1,"「"&CLEAN(AB102)&"」","") ->  | AH105: 「果樹類」
E106: 県計 構成比(%) | F106: 100.0 | G106: =IFERROR(IF(OFFSET(INDIRECT($Y$4),5,$V$104+F1)="-","-",ROUND(OFFSET(INDIRECT($Y$4),5,$V$104+F1)/OFFSET(INDIRECT($Y$4),5,$V$104)*100,1)),"nc") -> 22.9 | H106: =IFERROR(IF(OFFSET(INDIRECT($Y$4),5,$V$104+G1)="-","-",ROUND(OFFSET(INDIRECT($Y$4),5,$V$104+G1)/OFFSET(INDIRECT($Y$4),5,$V$104)*100,1)),"nc") -> 0.1 | I106: =IFERROR(IF(OFFSET(INDIRECT($Y$4),5,$V$104+H1)="-","-",ROUND(OFFSET(INDIRECT($Y$4),5,$V$104+H1)/OFFSET(INDIRECT($Y$4),5,$V$104)*100,1)),"nc") -> 0.7 | J106: =IFERROR(IF(OFFSET(INDIRECT($Y$4),5,$V$104+I1)="-","-",ROUND(OFFSET(INDIRECT($Y$4),5,$V$104+I1)/OFFSET(INDIRECT($Y$4),5,$V$104)*100,1)),"nc") -> 0.4 | K106: =IFERROR(IF(OFFSET(INDIRECT($Y$4),5,$V$104+J1)="-","-",ROUND(OFFSET(INDIRECT($Y$4),5,$V$104+J1)/OFFSET(INDIRECT($Y$4),5,$V$104)*100,1)),"nc") -> 6.9 | L106: 1.4 | M106: 65.7 | N106: 0.9 | O106: 0.2 | P106: =IFERROR(IF(OFFSET(INDIRECT($Y$4),5,$V$104+O1)="-","-",ROUND(OFFSET(INDIRECT($Y$4),5,$V$104+O1)/OFFSET(INDIRECT($Y$4),5,$V$104)*100,1)),"nc") -> 0.4 | Q106: =IFERROR(IF(OFFSET(INDIRECT($Y$4),5,$V$104+P1)="-","-",ROUND(OFFSET(INDIRECT($Y$4),5,$V$104+P1)/OFFSET(INDIRECT($Y$4),5,$V$104)*100,1)),"nc") -> 0.2 | R106: =IFERROR(IF(OFFSET(INDIRECT($Y$4),5,$V$104+Q1)="-","-",ROUND(OFFSET(INDIRECT($Y$4),5,$V$104+Q1)/OFFSET(INDIRECT($Y$4),5,$V$104)*100,1)),"nc") -> 0.1 | S106: =IFERROR(IF(OFFSET(INDIRECT($Y$4),5,$V$104+R1)="-","-",ROUND(OFFSET(INDIRECT($Y$4),5,$V$104+R1)/OFFSET(INDIRECT($Y$4),5,$V$104)*100,1)),"nc") -> 0.1 | Y106: ２位 | Z106: =SUMIF($AB$103:$AN$103,2,$AB$104:$AN$104) -> 22.90805785 | AA106: =SUBSTITUTE(AB106&AC106&AD106&AE106&AF106&AG106&AH106&AI106&AJ106&AK106&AL106&AM106&AN106,"」「","」と「") -> 「稲作」 | AB106: =IF(AB103=2,"「"&CLEAN(AB102)&"」","") -> 「稲作」
D107: =IF(LEFT(R108,1)="県","（％）","（戸）") -> （戸） | H107: ="《農産物販売金額１位の部門別農家数"&IF(LEFT(R108,1)="県","割合","")&"》 "&IF(AND(LEFT(R108,1)<>"県",G4=""),D4,IF(LEFT(R108,1)="県","2015年",AA3)) -> 《農産物販売金額１位の部門別農家数》 山梨県 | Y107: ３位 | Z107: =SUMIF($AB$103:$AN$103,3,$AB$104:$AN$104) -> 6.90857438 | AA107: =SUBSTITUTE(AB107&AC107&AD107&AE107&AF107&AG107&AH107&AI107&AJ107&AK107&AL107&AM107&AN107,"」「","」と「") -> 「露地野菜」 | AB107: =IF(AB103=3,"「"&CLEAN(AB102)&"」","") ->  | AF107: 「露地野菜」
R108: 前回との比較
C121: 経営耕地面積（販売農家） | I121: =IFERROR(" ◎ 経営耕地面積は "&IF(G126=G125,"変化なし",TEXT(ABS(G126-G125),"#,##0")&"ha（"&TEXT(ABS(G126/G125-1),"0.0%"&"） "))&IF(F126=F125,"",IF(G126<G125,"減少","増加"))&"、１戸当たりでは "&IF(X125=0,"変動無し",TEXT(ABS(X125),"0.00")&"ha "&IF(X125>0,"増加","減少")),"") -> ◎ 経営耕地面積は 1,834ha（12.3%) 減少、１戸当たりでは 0.03ha 増加
D122: =AA3 -> 山梨県 | K122: 単位：ha
F123: 経 営 耕 地 のある農家数 | G123: 経 営 耕 地 面 積 | K123: １戸当たり経営耕地面積
H124: 田 | I124: 畑 （樹園地を除く） | J124: 樹園地 | V124: 列番号 | W124: 凡例用 | X124: １戸当たり増減
D125: 2010年 | F125: =IFERROR(OFFSET(INDIRECT($Y$3),$V$3,V125),"nc") -> 20,017 | G125: =IFERROR(ROUND(OFFSET(INDIRECT($Y$3),$V$3,$V$125+F1)/100,0),OFFSET(INDIRECT($Y$3),$V$3,$V$125+F1)) -> 14,910 | H125: =IFERROR(ROUND(OFFSET(INDIRECT($Y$3),$V$3,$V$125+G1)/100,0),OFFSET(INDIRECT($Y$3),$V$3,$V$125+G1)) -> 4,387 | I125: =IFERROR(ROUND(OFFSET(INDIRECT($Y$3),$V$3,$V$125+H1)/100,0),OFFSET(INDIRECT($Y$3),$V$3,$V$125+H1)) -> 2,546 | J125: =IFERROR(ROUND(OFFSET(INDIRECT($Y$3),$V$3,$V$125+I1)/100,0),OFFSET(INDIRECT($Y$3),$V$3,$V$125+I1)) -> 7,977 | K125: =IF(OR(AND(ISTEXT($F125),$F125<>"X",$F125<>"-"),AND(ISTEXT(G125),G125<>"X",G125<>"-")),"nc",IF(OR($F125="X",G125="X"),"X",IF(ROUND(SUM($F125),0)=0,"nc",ROUND(SUM(G125)/$F125,2)))) -> 0.74 | V125: =CELL("col",'2010年'!EA6)-1 -> 130 | W125: 田 | X125: =K126-K125 -> 0.03
D126: 2015年 | F126: =IFERROR(OFFSET(INDIRECT($Y$4),$V$4,$V126),"nc") -> 16,987 | G126: =IFERROR(ROUND(OFFSET(INDIRECT($Y$4),$V$4,$V126+F1)/100,0),OFFSET(INDIRECT($Y$4),$V$4,$V126+F1)) -> 13,076 | H126: =IFERROR(ROUND(OFFSET(INDIRECT($Y$4),$V$4,$V126+G1)/100,0),OFFSET(INDIRECT($Y$4),$V$4,$V126+G1)) -> 3,837 | I126: =IFERROR(ROUND(OFFSET(INDIRECT($Y$4),$V$4,$V126+H1)/100,0),OFFSET(INDIRECT($Y$4),$V$4,$V126+H1)) -> 2,194 | J126: =IFERROR(ROUND(OFFSET(INDIRECT($Y$4),$V$4,$V126+I1)/100,0),OFFSET(INDIRECT($Y$4),$V$4,$V126+I1)) -> 7,045 | K126: =IF(OR(AND(ISTEXT($F126),$F126<>"X",$F126<>"-"),AND(ISTEXT(G126),G126<>"X",G126<>"-")),"nc",IF(OR($F126="X",G126="X"),"X",IF(ROUND(SUM($F126),0)=0,"nc",ROUND(SUM(G126)/$F126,2)))) -> 0.77 | V126: =CELL("col",'2015年'!EA6)-1 -> 130 | W126: 畑
E127: 構成比(%) | G127: =IF(OR(AND(ISTEXT($G126),$G126<>"X",$G126<>"-"),AND(ISTEXT(G126),G126<>"X",G126<>"-")),"nc",IF(OR($G126="X",G126="X"),"X",IF(ROUND(SUM($G126),0)=0,"nc",SUM(G126)/$G126%))) -> 100.0 | H127: =IF(OR(AND(ISTEXT($G126),$G126<>"X",$G126<>"-"),AND(ISTEXT(H126),H126<>"X",H126<>"-")),"nc",IF(OR($G126="X",H126="X"),"X",IF(ROUND(SUM($G126),0)=0,"nc",SUM(H126)/$G126%))) -> 29.3 | I127: 16.8 | J127: 53.9 | W127: 樹園地
E128: 県計 構成比(%) | G128: 100.0 | H128: =IFERROR(ROUND(OFFSET(INDIRECT($Y$4),5,$V$126+G1)/OFFSET(INDIRECT($Y$4),5,$V$126+1)*100,1),"nc") -> 29.3 | I128: =IFERROR(ROUND(OFFSET(INDIRECT($Y$4),5,$V$126+H1)/OFFSET(INDIRECT($Y$4),5,$V$126+1)*100,1),"nc") -> 16.8 | J128: =IFERROR(ROUND(OFFSET(INDIRECT($Y$4),5,$V$126+I1)/OFFSET(INDIRECT($Y$4),5,$V$126+1)*100,1),"nc") -> 53.9 | K128: =IFERROR(OFFSET(INDIRECT($Y$4),5,V126+1)/OFFSET(INDIRECT($Y$4),5,V126)/100,"nc") -> 0.77
D129: =IFERROR("《参考》"&G4&"の経営耕地面積の全国順位："&TEXT(OFFSET(#REF!,MATCH(Info!G4,#REF!,0),0),"#,##0")&"位","") -> 

Sheet 元データ (hidden)
A1: 注意事項 | C1: ･･･ | D1: 空欄追記:『調査外(湖､無人島等)』 | Z1: 別紙 2 | AB1: 市区町村名 | AC1: 旧市区町村 | AD1: 農業集落
C2: ･･･ | D2: 全角変換:『2-1』⇒『2-1』 | K2: =IF(AB2=0,"",AB2) ->  | S2: =IF(AC2=0,"",AC2) ->  | AA2: 山梨県 | AB2: =Info!G4 -> 0 | AC2: =Info!J4 -> 0 | AD2: =Info!M4 -> 0
K3: 市町村 | Q3: 旧市区町村 | V3: 農業集落
A4: 農業集落 | B4: 県 | C4: 市区町村 | D4: 旧市区町村 | E4: 農業集落 | F4: 県名 | G4: 市町村名 | H4: 旧市町村名 | I4: 農業集落名 | K4: 判定１ | O4: 抽出１ | Q4: 判定2 | S4: 抽出2 | V4: 抽出3 | Z4: 通し | AA4: 都県名 | AB4: 市区町村名 | AC4: 旧区市町村名 | AD4: 農業集落名
A5: ｺｰﾄﾞ | B5: 番号 | C5: 番号 | D5: 番号 | E5: 番号 | K5: 判定 | L5: 市区町村名 | M5: 連番 | N5: 補記 | O5: 抽出 | P5: 名 | Q5: 判定 | R5: 名 | S5: 抽出 | T5: 旧区市町村名 | U5: 連番 | V5: 抽出 | W5: 農業集落名 | X5: 連番 | Z5: №
Z6: 0
A7: 1900000000 | B7: 19 | C7: 000 | D7: 00 | E7: 000 | F7: 山梨県 | K7: =IF(AND($C7>0,$H7=""),"ﾘｽﾄ１","") ->  | L7: =IF(K7="ﾘｽﾄ１",G7,"") ->  | M7: =IF(K7="","",COUNTIF($K7:K$7,"ﾘｽﾄ１")) ->  | N7: =IF(AND(D7=0,E7>0),"同一区","") ->  | O7: =IF(AND(EXACT($K$2,G7),H7>0),"該当１","") ->  | P7: =IF(O7="該当１",G7,"") ->  | Q7: =IF(O7="該当１","ﾘｽﾄ2","") ->  | R7: =IF(Q7="ﾘｽﾄ2",H7,"") ->  | S7: =IF(AND(Q7="ﾘｽﾄ2",OR(I7=0,AND(N7="同一区",E7=1))),"該当２","") ->  | T7: =IF(S7="該当２",H7,"") ->  | U7: =IF(S7="","",COUNTIF($S$7:S7,"該当２")) ->  | V7: =IF(AND($S$2=H7,E7>0,E7<998),"該当３","") ->  | W7: =IF(V7="該当３",I7,"") ->  | X7: =IF(V7="","",COUNTIF($V7:V$7,"該当３")) ->  | Z7: 1 | AA7: 山梨県 | AB7: 甲府市 | AC7: =IF($Z7>MAX($U$7:$U$1919),"",INDEX($T$7:$T$1919,MATCH($Z7,$U$7:$U$1919,0),MATCH($AC$4,$T$5:$U$5,0))) ->  | AD7: =IF($Z7>MAX($X$7:$X$1919),"",INDEX($W$7:$W$1919,MATCH($Z7,$X$7:$X$1919,0),MATCH($AD$4,$W$5:$X$5,0))) -> 
A8: 1920100000 | B8: 19 | C8: 201 | D8: 00 | E8: 000 | F8: 山梨県 | G8: 甲府市 | K8: ﾘｽﾄ１ | L8: 甲府市 | M8: =IF(K8="","",COUNTIF($K$7:K8,"ﾘｽﾄ１")) -> 1 | O8: =IF(AND(EXACT($K$2,G8),H8>0),"該当１","") ->  | U8: =IF(S8="","",COUNTIF($S$7:S8,"該当２")) ->  | X8: =IF(V8="","",COUNTIF($V$7:V8,"該当３")) ->  | Z8: 2 | AB8: 富士吉田市
A9: 1920101000 | B9: 19 | C9: 201 | D9: 01 | E9: 000 | F9: 山梨県 | G9: 甲府市 | H9: 甲府市 | M9: =IF(K9="","",COUNTIF($K$7:K9,"ﾘｽﾄ１")) ->  | O9: =IF(AND(EXACT($K$2,G9),H9>0),"該当１","") ->  | U9: =IF(S9="","",COUNTIF($S$7:S9,"該当２")) ->  | X9: =IF(V9="","",COUNTIF($V$7:V9,"該当３")) ->  | Z9: 3 | AB9: 都留市
A10: 1920101001 | B10: 19 | C10: 201 | D10: 01 | E10: 001 | F10: 山梨県 | G10: 甲府市 | H10: 甲府市 | I10: 飯田 | M10: =IF(K10="","",COUNTIF($K$7:K10,"ﾘｽﾄ１")) ->  | U10: =IF(S10="","",COUNTIF($S$7:S10,"該当２")) ->  | X10: =IF(V10="","",COUNTIF($V$7:V10,"該当３")) ->  | Z10: 4 | AB10: 山梨市
A11: 1920101002 | B11: 19 | C11: 201 | D11: 01 | E11: 002 | F11: 山梨県 | G11: 甲府市 | H11: 甲府市 | I11: 住吉本町（１） | M11: =IF(K11="","",COUNTIF($K$7:K11,"ﾘｽﾄ１")) ->  | U11: =IF(S11="","",COUNTIF($S$7:S11,"該当２")) ->  | X11: =IF(V11="","",COUNTIF($V$7:V11,"該当３")) ->  | Z11: 5 | AB11: 大月市
A12: 1920101003 | B12: 19 | C12: 201 | D12: 01 | E12: 003 | F12: 山梨県 | G12: 甲府市 | H12: 甲府市 | I12: 住吉本町（２） | M12: =IF(K12="","",COUNTIF($K$7:K12,"ﾘｽﾄ１")) ->  | U12: =IF(S12="","",COUNTIF($S$7:S12,"該当２")) ->  | X12: =IF(V12="","",COUNTIF($V$7:V12,"該当３")) ->  | Z12: 6 | AB12: 韮崎市
A13: 1920101004 | B13: 19 | C13: 201 | D13: 01 | E13: 004 | F13: 山梨県 | G13: 甲府市 | H13: 甲府市 | I13: 住吉本町（３） | M13: =IF(K13="","",COUNTIF($K$7:K13,"ﾘｽﾄ１")) ->  | U13: =IF(S13="","",COUNTIF($S$7:S13,"該当２")) ->  | X13: =IF(V13="","",COUNTIF($V$7:V13,"該当３")) ->  | Z13: 7 | AB13: 南アルプス市
A14: 1920101005 | B14: 19 | C14: 201 | D14: 01 | E14: 005 | F14: 山梨県 | G14: 甲府市 | H14: 甲府市 | I14: 愛宕 | M14: =IF(K14="","",COUNTIF($K$7:K14,"ﾘｽﾄ１")) ->  | U14: =IF(S14="","",COUNTIF($S$7:S14,"該当２")) ->  | X14: =IF(V14="","",COUNTIF($V$7:V14,"該当３")) ->  | Z14: 8 | AB14: 北杜市
A15: 1920101006 | B15: 19 | C15: 201 | D15: 01 | E15: 006 | F15: 山梨県 | G15: 甲府市 | H15: 甲府市 | I15: 市街地 | M15: =IF(K15="","",COUNTIF($K$7:K15,"ﾘｽﾄ１")) ->  | U15: =IF(S15="","",COUNTIF($S$7:S15,"該当２")) ->  | X15: =IF(V15="","",COUNTIF($V$7:V15,"該当３")) ->  | Z15: 9 | AB15: 甲斐市
A16: 1920101007 | B16: 19 | C16: 201 | D16: 01 | E16: 007 | F16: 山梨県 | G16: 甲府市 | H16: 甲府市 | I16: 城北東 | M16: =IF(K16="","",COUNTIF($K$7:K16,"ﾘｽﾄ１")) ->  | U16: =IF(S16="","",COUNTIF($S$7:S16,"該当２")) ->  | X16: =IF(V16="","",COUNTIF($V$7:V16,"該当３")) ->  | Z16: 10 | AB16: 笛吹市
A17: 1920101008 | B17: 19 | C17: 201 | D17: 01 | E17: 008 | F17: 山梨県 | G17: 甲府市 | H17: 甲府市 | I17: 城北西 | M17: =IF(K17="","",COUNTIF($K$7:K17,"ﾘｽﾄ１")) ->  | U17: =IF(S17="","",COUNTIF($S$7:S17,"該当２")) ->  | X17: =IF(V17="","",COUNTIF($V$7:V17,"該当３")) ->  | Z17: 11 | AB17: 上野原市
A18: 1920101009 | B18: 19 | C18: 201 | D18: 01 | E18: 009 | F18: 山梨県 | G18: 甲府市 | H18: 甲府市 | I18: 南口北 | M18: =IF(K18="","",COUNTIF($K$7:K18,"ﾘｽﾄ１")) ->  | U18: =IF(S18="","",COUNTIF($S$7:S18,"該当２")) ->  | X18: =IF(V18="","",COUNTIF($V$7:V18,"該当３")) ->  | Z18: 12 | AB18: 甲州市
A19: 1920101010 | B19: 19 | C19: 201 | D19: 01 | E19: 010 | F19: 山梨県 | G19: 甲府市 | H19: 甲府市 | I19: 朝気北 | M19: =IF(K19="","",COUNTIF($K$7:K19,"ﾘｽﾄ１")) ->  | U19: =IF(S19="","",COUNTIF($S$7:S19,"該当２")) ->  | X19: =IF(V19="","",COUNTIF($V$7:V19,"該当３")) ->  | Z19: 13 | AB19: 中央市
A20: 1920101011 | B20: 19 | C20: 201 | D20: 01 | E20: 011 | F20: 山梨県 | G20: 甲府市 | H20: 甲府市 | I20: 朝気南 | M20: =IF(K20="","",COUNTIF($K$7:K20,"ﾘｽﾄ１")) ->  | U20: =IF(S20="","",COUNTIF($S$7:S20,"該当２")) ->  | X20: =IF(V20="","",COUNTIF($V$7:V20,"該当３")) ->  | Z20: 14 | AB20: 市川三郷町
A21: 1920101012 | B21: 19 | C21: 201 | D21: 01 | E21: 012 | F21: 山梨県 | G21: 甲府市 | H21: 甲府市 | I21: 南口南 | M21: =IF(K21="","",COUNTIF($K$7:K21,"ﾘｽﾄ１")) ->  | U21: =IF(S21="","",COUNTIF($S$7:S21,"該当２")) ->  | X21: =IF(V21="","",COUNTIF($V$7:V21,"該当３")) ->  | Z21: 15 | AB21: 早川町
A22: 1920101013 | B22: 19 | C22: 201 | D22: 01 | E22: 013 | F22: 山梨県 | G22: 甲府市 | H22: 甲府市 | I22: 伊勢北中 | M22: =IF(K22="","",COUNTIF($K$7:K22,"ﾘｽﾄ１")) ->  | U22: =IF(S22="","",COUNTIF($S$7:S22,"該当２")) ->  | X22: =IF(V22="","",COUNTIF($V$7:V22,"該当３")) ->  | Z22: 16 | AB22: 身延町
A23: 1920101014 | B23: 19 | C23: 201 | D23: 01 | E23: 014 | F23: 山梨県 | G23: 甲府市 | H23: 甲府市 | I23: 伊勢南 | M23: =IF(K23="","",COUNTIF($K$7:K23,"ﾘｽﾄ１")) ->  | U23: =IF(S23="","",COUNTIF($S$7:S23,"該当２")) ->  | X23: =IF(V23="","",COUNTIF($V$7:V23,"該当３")) ->  | Z23: 17 | AB23: 南部町
A24: 1920101015 | B24: 19 | C24: 201 | D24: 01 | E24: 015 | F24: 山梨県 | G24: 甲府市 | H24: 甲府市 | I24: 城西北 | M24: =IF(K24="","",COUNTIF($K$7:K24,"ﾘｽﾄ１")) ->  | U24: =IF(S24="","",COUNTIF($S$7:S24,"該当２")) ->  | X24: =IF(V24="","",COUNTIF($V$7:V24,"該当３")) ->  | Z24: 18 | AB24: 富士川町
A25: 1920101016 | B25: 19 | C25: 201 | D25: 01 | E25: 016 | F25: 山梨県 | G25: 甲府市 | H25: 甲府市 | I25: 緑が丘 | M25: =IF(K25="","",COUNTIF($K$7:K25,"ﾘｽﾄ１")) ->  | U25: =IF(S25="","",COUNTIF($S$7:S25,"該当２")) ->  | X25: =IF(V25="","",COUNTIF($V$7:V25,"該当３")) ->  | Z25: 19 | AB25: 昭和町
A26: 1920101017 | B26: 19 | C26: 201 | D26: 01 | E26: 017 | F26: 山梨県 | G26: 甲府市 | H26: 甲府市 | I26: 岩窪 | M26: =IF(K26="","",COUNTIF($K$7:K26,"ﾘｽﾄ１")) ->  | U26: =IF(S26="","",COUNTIF($S$7:S26,"該当２")) ->  | X26: =IF(V26="","",COUNTIF($V$7:V26,"該当３")) ->  | Z26: 20 | AB26: 道志村
A27: 1920101018 | B27: 19 | C27: 201 | D27: 01 | E27: 018 | F27: 山梨県 | G27: 甲府市 | H27: 甲府市 | I27: 和田 | M27: =IF(K27="","",COUNTIF($K$7:K27,"ﾘｽﾄ１")) ->  | U27: =IF(S27="","",COUNTIF($S$7:S27,"該当２")) ->  | X27: =IF(V27="","",COUNTIF($V$7:V27,"該当３")) ->  | Z27: 21 | AB27: 西桂町
A28: 1920101019 | B28: 19 | C28: 201 | D28: 01 | E28: 019 | F28: 山梨県 | G28: 甲府市 | H28: 甲府市 | I28: 小松 | M28: =IF(K28="","",COUNTIF($K$7:K28,"ﾘｽﾄ１")) ->  | U28: =IF(S28="","",COUNTIF($S$7:S28,"該当２")) ->  | X28: =IF(V28="","",COUNTIF($V$7:V28,"該当３")) ->  | Z28: 22 | AB28: 忍野村
A29: 1920101020 | B29: 19 | C29: 201 | D29: 01 | E29: 020 | F29: 山梨県 | G29: 甲府市 | H29: 甲府市 | I29: 塚原 | M29: =IF(K29="","",COUNTIF($K$7:K29,"ﾘｽﾄ１")) ->  | U29: =IF(S29="","",COUNTIF($S$7:S29,"該当２")) ->  | X29: =IF(V29="","",COUNTIF($V$7:V29,"該当３")) ->  | Z29: 23 | AB29: 山中湖村
A30: 1920101021 | B30: 19 | C30: 201 | D30: 01 | E30: 021 | F30: 山梨県 | G30: 甲府市 | H30: 甲府市 | I30: 下積翠寺 | M30: =IF(K30="","",COUNTIF($K$7:K30,"ﾘｽﾄ１")) ->  | U30: =IF(S30="","",COUNTIF($S$7:S30,"該当２")) ->  | X30: =IF(V30="","",COUNTIF($V$7:V30,"該当３")) ->  | Z30: 24 | AB30: 鳴沢村
A31: 1920101022 | B31: 19 | C31: 201 | D31: 01 | E31: 022 | F31: 山梨県 | G31: 甲府市 | H31: 甲府市 | I31: 上積翠寺 | M31: =IF(K31="","",COUNTIF($K$7:K31,"ﾘｽﾄ１")) ->  | U31: =IF(S31="","",COUNTIF($S$7:S31,"該当２")) ->  | X31: =IF(V31="","",COUNTIF($V$7:V31,"該当３")) ->  | Z31: 25 | AB31: 富士河口湖町
A32: 1920101023 | B32: 19 | C32: 201 | D32: 01 | E32: 023 | F32: 山梨県 | G32: 甲府市 | H32: 甲府市 | I32: 相川南部 | M32: =IF(K32="","",COUNTIF($K$7:K32,"ﾘｽﾄ１")) ->  | U32: =IF(S32="","",COUNTIF($S$7:S32,"該当２")) ->  | X32: =IF(V32="","",COUNTIF($V$7:V32,"該当３")) ->  | Z32: 26 | AB32: 小菅村
A33: 1920101024 | B33: 19 | C33: 201 | D33: 01 | E33: 024 | F33: 山梨県 | G33: 甲府市 | H33: 甲府市 | I33: 日影 | M33: =IF(K33="","",COUNTIF($K$7:K33,"ﾘｽﾄ１")) ->  | U33: =IF(S33="","",COUNTIF($S$7:S33,"該当２")) ->  | X33: =IF(V33="","",COUNTIF($V$7:V33,"該当３")) ->  | Z33: 27 | AB33: 丹波山村
A34: 1920101025 | B34: 19 | C34: 201 | D34: 01 | E34: 025 | F34: 山梨県 | G34: 甲府市 | H34: 甲府市 | I34: 塩部 | M34: =IF(K34="","",COUNTIF($K$7:K34,"ﾘｽﾄ１")) ->  | U34: =IF(S34="","",COUNTIF($S$7:S34,"該当２")) ->  | X34: =IF(V34="","",COUNTIF($V$7:V34,"該当３")) ->  | Z34: 28
A35: 1920101026 | B35: 19 | C35: 201 | D35: 01 | E35: 026 | F35: 山梨県 | G35: 甲府市 | H35: 甲府市 | I35: 湯村 | M35: =IF(K35="","",COUNTIF($K$7:K35,"ﾘｽﾄ１")) ->  | U35: =IF(S35="","",COUNTIF($S$7:S35,"該当２")) ->  | X35: =IF(V35="","",COUNTIF($V$7:V35,"該当３")) ->  | Z35: 29
A36: 1920101027 | B36: 19 | C36: 201 | D36: 01 | E36: 027 | F36: 山梨県 | G36: 甲府市 | H36: 甲府市 | I36: 千塚 | M36: =IF(K36="","",COUNTIF($K$7:K36,"ﾘｽﾄ１")) ->  | U36: =IF(S36="","",COUNTIF($S$7:S36,"該当２")) ->  | X36: =IF(V36="","",COUNTIF($V$7:V36,"該当３")) ->  | Z36: 30
A37: 1920101028 | B37: 19 | C37: 201 | D37: 01 | E37: 028 | F37: 山梨県 | G37: 甲府市 | H37: 甲府市 | I37: 山宮 | M37: =IF(K37="","",COUNTIF($K$7:K37,"ﾘｽﾄ１")) ->  | U37: =IF(S37="","",COUNTIF($S$7:S37,"該当２")) ->  | X37: =IF(V37="","",COUNTIF($V$7:V37,"該当３")) ->  | Z37: 31
A38: 1920101029 | B38: 19 | C38: 201 | D38: 01 | E38: 029 | F38: 山梨県 | G38: 甲府市 | H38: 甲府市 | I38: 羽黒 | M38: =IF(K38="","",COUNTIF($K$7:K38,"ﾘｽﾄ１")) ->  | U38: =IF(S38="","",COUNTIF($S$7:S38,"該当２")) ->  | X38: =IF(V38="","",COUNTIF($V$7:V38,"該当３")) ->  | Z38: 32
A39: 1920101030 | B39: 19 | C39: 201 | D39: 01 | E39: 030 | F39: 山梨県 | G39: 甲府市 | H39: 甲府市 | I39: 下河原 | M39: =IF(K39="","",COUNTIF($K$7:K39,"ﾘｽﾄ１")) ->  | U39: =IF(S39="","",COUNTIF($S$7:S39,"該当２")) ->  | X39: =IF(V39="","",COUNTIF($V$7:V39,"該当３")) ->  | Z39: 33 | AD39: =IF($Z39>MAX($X$7:$X$1919),"",INDEX($W$7:$W$1919,MATCH($Z39,$X$7:$X$1919,0),MATCH($AD$4,$W$5:$X$5,0))) -> 
A40: 1920101031 | B40: 19 | C40: 201 | D40: 01 | E40: 031 | F40: 山梨県 | G40: 甲府市 | H40: 甲府市 | I40: 富竹 | M40: =IF(K40="","",COUNTIF($K$7:K40,"ﾘｽﾄ１")) ->  | U40: =IF(S40="","",COUNTIF($S$7:S40,"該当２")) ->  | X40: =IF(V40="","",COUNTIF($V$7:V40,"該当３")) ->  | Z40: 34
A41: 1920101032 | B41: 19 | C41: 201 | D41: 01 | E41: 032 | F41: 山梨県 | G41: 甲府市 | H41: 甲府市 | I41: 徳行 | M41: =IF(K41="","",COUNTIF($K$7:K41,"ﾘｽﾄ１")) ->  | U41: =IF(S41="","",COUNTIF($S$7:S41,"該当２")) ->  | X41: =IF(V41="","",COUNTIF($V$7:V41,"該当３")) ->  | Z41: 35
A42: 1920101033 | B42: 19 | C42: 201 | D42: 01 | E42: 033 | F42: 山梨県 | G42: 甲府市 | H42: 甲府市 | I42: 上石田 | M42: =IF(K42="","",COUNTIF($K$7:K42,"ﾘｽﾄ１")) ->  | U42: =IF(S42="","",COUNTIF($S$7:S42,"該当２")) ->  | X42: =IF(V42="","",COUNTIF($V$7:V42,"該当３")) ->  | Z42: 36
A43: 1920101034 | B43: 19 | C43: 201 | D43: 01 | E43: 034 | F43: 山梨県 | G43: 甲府市 | H43: 甲府市 | I43: 酒折 | M43: =IF(K43="","",COUNTIF($K$7:K43,"ﾘｽﾄ１")) ->  | U43: =IF(S43="","",COUNTIF($S$7:S43,"該当２")) ->  | X43: =IF(V43="","",COUNTIF($V$7:V43,"該当３")) ->  | Z43: 37
A44: 1920101035 | B44: 19 | C44: 201 | D44: 01 | E44: 035 | F44: 山梨県 | G44: 甲府市 | H44: 甲府市 | I44: 西山 | M44: =IF(K44="","",COUNTIF($K$7:K44,"ﾘｽﾄ１")) ->  | U44: =IF(S44="","",COUNTIF($S$7:S44,"該当２")) ->  | X44: =IF(V44="","",COUNTIF($V$7:V44,"該当３")) ->  | Z44: 38
A45: 1920101036 | B45: 19 | C45: 201 | D45: 01 | E45: 036 | F45: 山梨県 | G45: 甲府市 | H45: 甲府市 | I45: 東光寺東 | M45: =IF(K45="","",COUNTIF($K$7:K45,"ﾘｽﾄ１")) ->  | U45: =IF(S45="","",COUNTIF($S$7:S45,"該当２")) ->  | X45: =IF(V45="","",COUNTIF($V$7:V45,"該当３")) ->  | Z45: 39
A46: 1920101037 | B46: 19 | C46: 201 | D46: 01 | E46: 037 | F46: 山梨県 | G46: 甲府市 | H46: 甲府市 | I46: 善光寺 | M46: =IF(K46="","",COUNTIF($K$7:K46,"ﾘｽﾄ１")) ->  | U46: =IF(S46="","",COUNTIF($S$7:S46,"該当２")) ->  | X46: =IF(V46="","",COUNTIF($V$7:V46,"該当３")) ->  | Z46: 40
A47: 1920101038 | B47: 19 | C47: 201 | D47: 01 | E47: 038 | F47: 山梨県 | G47: 甲府市 | H47: 甲府市 | I47: 城東 | M47: =IF(K47="","",COUNTIF($K$7:K47,"ﾘｽﾄ１")) ->  | U47: =IF(S47="","",COUNTIF($S$7:S47,"該当２")) ->  | X47: =IF(V47="","",COUNTIF($V$7:V47,"該当３")) ->  | Z47: 41
A48: 1920101039 | B48: 19 | C48: 201 | D48: 01 | E48: 039 | F48: 山梨県 | G48: 甲府市 | H48: 甲府市 | I48: 北原 | M48: =IF(K48="","",COUNTIF($K$7:K48,"ﾘｽﾄ１")) ->  | U48: =IF(S48="","",COUNTIF($S$7:S48,"該当２")) ->  | X48: =IF(V48="","",COUNTIF($V$7:V48,"該当３")) ->  | Z48: 42
A49: 1920101040 | B49: 19 | C49: 201 | D49: 01 | E49: 040 | F49: 山梨県 | G49: 甲府市 | H49: 甲府市 | I49: 金竹 | M49: =IF(K49="","",COUNTIF($K$7:K49,"ﾘｽﾄ１")) ->  | U49: =IF(S49="","",COUNTIF($S$7:S49,"該当２")) ->  | X49: =IF(V49="","",COUNTIF($V$7:V49,"該当３")) ->  | Z49: 43
A50: 1920101041 | B50: 19 | C50: 201 | D50: 01 | E50: 041 | F50: 山梨県 | G50: 甲府市 | H50: 甲府市 | I50: 長松寺 | M50: =IF(K50="","",COUNTIF($K$7:K50,"ﾘｽﾄ１")) ->  | U50: =IF(S50="","",COUNTIF($S$7:S50,"該当２")) ->  | X50: =IF(V50="","",COUNTIF($V$7:V50,"該当３")) ->  | Z50: 44
A51: 1920101042 | B51: 19 | C51: 201 | D51: 01 | E51: 042 | F51: 山梨県 | G51: 甲府市 | H51: 甲府市 | I51: 新田 | M51: =IF(K51="","",COUNTIF($K$7:K51,"ﾘｽﾄ１")) ->  | U51: =IF(S51="","",COUNTIF($S$7:S51,"該当２")) ->  | X51: =IF(V51="","",COUNTIF($V$7:V51,"該当３")) ->  | Z51: 45
A52: 1920101043 | B52: 19 | C52: 201 | D52: 01 | E52: 043 | F52: 山梨県 | G52: 甲府市 | H52: 甲府市 | I52: 下飯田 | M52: =IF(K52="","",COUNTIF($K$7:K52,"ﾘｽﾄ１")) ->  | U52: =IF(S52="","",COUNTIF($S$7:S52,"該当２")) ->  | X52: =IF(V52="","",COUNTIF($V$7:V52,"該当３")) ->  | Z52: 46
A53: 1920101044 | B53: 19 | C53: 201 | D53: 01 | E53: 044 | F53: 山梨県 | G53: 甲府市 | H53: 甲府市 | I53: 中村 | M53: =IF(K53="","",COUNTIF($K$7:K53,"ﾘｽﾄ１")) ->  | U53: =IF(S53="","",COUNTIF($S$7:S53,"該当２")) ->  | X53: =IF(V53="","",COUNTIF($V$7:V53,"該当３")) ->  | Z53: 47
A54: 1920101045 | B54: 19 | C54: 201 | D54: 01 | E54: 045 | F54: 山梨県 | G54: 甲府市 | H54: 甲府市 | I54: 荒川 | M54: =IF(K54="","",COUNTIF($K$7:K54,"ﾘｽﾄ１")) ->  | U54: =IF(S54="","",COUNTIF($S$7:S54,"該当２")) ->  | X54: =IF(V54="","",COUNTIF($V$7:V54,"該当３")) ->  | Z54: 48
A55: 1920101046 | B55: 19 | C55: 201 | D55: 01 | E55: 046 | F55: 山梨県 | G55: 甲府市 | H55: 甲府市 | I55: 下石田 | M55: =IF(K55="","",COUNTIF($K$7:K55,"ﾘｽﾄ１")) ->  | U55: =IF(S55="","",COUNTIF($S$7:S55,"該当２")) ->  | X55: =IF(V55="","",COUNTIF($V$7:V55,"該当３")) ->  | Z55: 49
A56: 1920101047 | B56: 19 | C56: 201 | D56: 01 | E56: 047 | F56: 山梨県 | G56: 甲府市 | H56: 甲府市 | I56: 上小河原 | M56: =IF(K56="","",COUNTIF($K$7:K56,"ﾘｽﾄ１")) ->  | U56: =IF(S56="","",COUNTIF($S$7:S56,"該当２")) ->  | X56: =IF(V56="","",COUNTIF($V$7:V56,"該当３")) ->  | Z56: 50
A57: 1920101048 | B57: 19 | C57: 201 | D57: 01 | E57: 048 | F57: 山梨県 | G57: 甲府市 | H57: 甲府市 | I57: 上条新居 | M57: =IF(K57="","",COUNTIF($K$7:K57,"ﾘｽﾄ１")) ->  | U57: =IF(S57="","",COUNTIF($S$7:S57,"該当２")) ->  | X57: =IF(V57="","",COUNTIF($V$7:V57,"該当３")) ->  | Z57: 51
A58: 1920101049 | B58: 19 | C58: 201 | D58: 01 | E58: 049 | F58: 山梨県 | G58: 甲府市 | H58: 甲府市 | I58: 古上条 | M58: =IF(K58="","",COUNTIF($K$7:K58,"ﾘｽﾄ１")) ->  | U58: =IF(S58="","",COUNTIF($S$7:S58,"該当２")) ->  | X58: =IF(V58="","",COUNTIF($V$7:V58,"該当３")) ->  | Z58: 52
A59: 1920101050 | B59: 19 | C59: 201 | D59: 01 | E59: 050 | F59: 山梨県 | G59: 甲府市 | H59: 甲府市 | I59: 後屋 | M59: =IF(K59="","",COUNTIF($K$7:K59,"ﾘｽﾄ１")) ->  | U59: =IF(S59="","",COUNTIF($S$7:S59,"該当２")) ->  | X59: =IF(V59="","",COUNTIF($V$7:V59,"該当３")) -> 
A60: 1920101051 | B60: 19 | C60: 201 | D60: 01 | E60: 051 | F60: 山梨県 | G60: 甲府市 | H60: 甲府市 | I60: 高畑 | M60: =IF(K60="","",COUNTIF($K$7:K60,"ﾘｽﾄ１")) ->  | U60: =IF(S60="","",COUNTIF($S$7:S60,"該当２")) ->  | X60: =IF(V60="","",COUNTIF($V$7:V60,"該当３")) -> 
A61: 1920102000 | B61: 19 | C61: 201 | D61: 02 | E61: 000 | F61: 山梨県 | G61: 甲府市 | H61: 山城村 | M61: =IF(K61="","",COUNTIF($K$7:K61,"ﾘｽﾄ１")) ->  | U61: =IF(S61="","",COUNTIF($S$7:S61,"該当２")) ->  | X61: =IF(V61="","",COUNTIF($V$7:V61,"該当３")) -> 
A62: 1920102001 | B62: 19 | C62: 201 | D62: 02 | E62: 001 | F62: 山梨県 | G62: 甲府市 | H62: 山城村 | I62: 上今井 | M62: =IF(K62="","",COUNTIF($K$7:K62,"ﾘｽﾄ１")) ->  | U62: =IF(S62="","",COUNTIF($S$7:S62,"該当２")) ->  | X62: =IF(V62="","",COUNTIF($V$7:V62,"該当３")) -> 
A63: 1920102002 | B63: 19 | C63: 201 | D63: 02 | E63: 002 | F63: 山梨県 | G63: 甲府市 | H63: 山城村 | I63: 小瀬 | M63: =IF(K63="","",COUNTIF($K$7:K63,"ﾘｽﾄ１")) ->  | U63: =IF(S63="","",COUNTIF($S$7:S63,"該当２")) ->  | X63: =IF(V63="","",COUNTIF($V$7:V63,"該当３")) -> 
A64: 1920102003 | B64: 19 | C64: 201 | D64: 02 | E64: 003 | F64: 山梨県 | G64: 甲府市 | H64: 山城村 | I64: 下鍛冶屋 | M64: =IF(K64="","",COUNTIF($K$7:K64,"ﾘｽﾄ１")) ->  | U64: =IF(S64="","",COUNTIF($S$7:S64,"該当２")) ->  | X64: =IF(V64="","",COUNTIF($V$7:V64,"該当３")) -> 
A65: 1920102004 | B65: 19 | C65: 201 | D65: 02 | E65: 004 | F65: 山梨県 | G65: 甲府市 | H65: 山城村 | I65: 落合 | M65: =IF(K65="","",COUNTIF($K$7:K65,"ﾘｽﾄ１")) ->  | U65: =IF(S65="","",COUNTIF($S$7:S65,"該当２")) ->  | X65: =IF(V65="","",COUNTIF($V$7:V65,"該当３")) -> 
A66: 1920102005 | B66: 19 | C66: 201 | D66: 02 | E66: 005 | F66: 山梨県 | G66: 甲府市 | H66: 山城村 | I66: 西油川 | M66: =IF(K66="","",COUNTIF($K$7:K66,"ﾘｽﾄ１")) ->  | U66: =IF(S66="","",COUNTIF($S$7:S66,"該当２")) ->  | X66: =IF(V66="","",COUNTIF($V$7:V66,"該当３")) -> 
A67: 1920103000 | B67: 19 | C67: 201 | D67: 03 | E67: 000 | F67: 山梨県 | G67: 甲府市 | H67: 住吉村 | M67: =IF(K67="","",COUNTIF($K$7:K67,"ﾘｽﾄ１")) ->  | U67: =IF(S67="","",COUNTIF($S$7:S67,"該当２")) ->  | X67: =IF(V67="","",COUNTIF($V$7:V67,"該当３")) -> 
A68: 1920103001 | B68: 19 | C68: 201 | D68: 03 | E68: 001 | F68: 山梨県 | G68: 甲府市 | H68: 住吉村 | I68: 中小河原 | M68: =IF(K68="","",COUNTIF($K$7:K68,"ﾘｽﾄ１")) ->  | U68: =IF(S68="","",COUNTIF($S$7:S68,"該当２")) ->  | X68: =IF(V68="","",COUNTIF($V$7:V68,"該当３")) -> 
A69: 1920103002 | B69: 19 | C69: 201 | D69: 03 | E69: 002 | F69: 山梨県 | G69: 甲府市 | H69: 住吉村 | I69: 下小河原 | M69: =IF(K69="","",COUNTIF($K$7:K69,"ﾘｽﾄ１")) ->  | U69: =IF(S69="","",COUNTIF($S$7:S69,"該当２")) ->  | X69: =IF(V69="","",COUNTIF($V$7:V69,"該当３")) -> 
A70: 1920103003 | B70: 19 | C70: 201 | D70: 03 | E70: 003 | F70: 山梨県 | G70: 甲府市 | H70: 住吉村 | I70: 上 | M70: =IF(K70="","",COUNTIF($K$7:K70,"ﾘｽﾄ１")) ->  | U70: =IF(S70="","",COUNTIF($S$7:S70,"該当２")) ->  | X70: =IF(V70="","",COUNTIF($V$7:V70,"該当３")) -> 
A71: 1920103004 | B71: 19 | C71: 201 | D71: 03 | E71: 004 | F71: 山梨県 | G71: 甲府市 | H71: 住吉村 | I71: 上増坪 | M71: =IF(K71="","",COUNTIF($K$7:K71,"ﾘｽﾄ１")) ->  | U71: =IF(S71="","",COUNTIF($S$7:S71,"該当２")) ->  | X71: =IF(V71="","",COUNTIF($V$7:V71,"該当３")) -> 
A72: 1920103005 | B72: 19 | C72: 201 | D72: 03 | E72: 005 | F72: 山梨県 | G72: 甲府市 | H72: 住吉村 | I72: 中増坪 | M72: =IF(K72="","",COUNTIF($K$7:K72,"ﾘｽﾄ１")) ->  | P72: =IF(O72="該当１",G72,"") ->  | Q72: =IF(O72="該当１","ﾘｽﾄ2","") ->  | R72: =IF(Q72="ﾘｽﾄ2",H72,"") ->  | T72: =IF(S72="該当２",H72,"") ->  | U72: =IF(S72="","",COUNTIF($S$7:S72,"該当２")) ->  | V72: =IF(AND($S$2=H72,E72>0,E72<998),"該当３","") ->  | W72: =IF(V72="該当３",I72,"") ->  | X72: =IF(V72="","",COUNTIF($V$7:V72,"該当３")) -> 
A73: 1920103006 | B73: 19 | C73: 201 | D73: 03 | E73: 006 | F73: 山梨県 | G73: 甲府市 | H73: 住吉村 | I73: 下増坪 | K73: =IF(AND($C73>0,$H73=""),"ﾘｽﾄ１","") ->  | L73: =IF(K73="ﾘｽﾄ１",G73,"") ->  | M73: =IF(K73="","",COUNTIF($K$7:K73,"ﾘｽﾄ１")) ->  | N73: =IF(AND(D73=0,E73>0),"同一区","") ->  | O73: =IF(AND(EXACT($K$2,G73),H73>0),"該当１","") ->  | S73: =IF(AND(Q73="ﾘｽﾄ2",OR(I73=0,AND(N73="同一区",E73=1))),"該当２","") ->  | U73: =IF(S73="","",COUNTIF($S$7:S73,"該当２")) ->  | X73: =IF(V73="","",COUNTIF($V$7:V73,"該当３")) -> 
A74: 1920104000 | B74: 19 | C74: 201 | D74: 04 | E74: 000 | F74: 山梨県 | G74: 甲府市 | H74: 朝井村 | M74: =IF(K74="","",COUNTIF($K$7:K74,"ﾘｽﾄ１")) ->  | U74: =IF(S74="","",COUNTIF($S$7:S74,"該当２")) ->  | X74: =IF(V74="","",COUNTIF($V$7:V74,"該当３")) -> 
A75: 1920104001 | B75: 19 | C75: 201 | D75: 04 | E75: 001 | F75: 山梨県 | G75: 甲府市 | H75: 朝井村 | I75: 小曲 | M75: =IF(K75="","",COUNTIF($K$7:K75,"ﾘｽﾄ１")) ->  | U75: =IF(S75="","",COUNTIF($S$7:S75,"該当２")) ->  | X75: =IF(V75="","",COUNTIF($V$7:V75,"該当３")) -> 
A76: 1920104002 | B76: 19 | C76: 201 | D76: 04 | E76: 002 | F76: 山梨県 | G76: 甲府市 | H76: 朝井村 | I76: 下今井 | M76: =IF(K76="","",COUNTIF($K$7:K76,"ﾘｽﾄ１")) ->  | U76: =IF(S76="","",COUNTIF($S$7:S76,"該当２")) ->  | X76: =IF(V76="","",COUNTIF($V$7:V76,"該当３")) -> 
A77: 1920104003 | B77: 19 | C77: 201 | D77: 04 | E77: 003 | F77: 山梨県 | G77: 甲府市 | H77: 朝井村 | I77: 東下条 | M77: =IF(K77="","",COUNTIF($K$7:K77,"ﾘｽﾄ１")) ->  | U77: =IF(S77="","",COUNTIF($S$7:S77,"該当２")) ->  | X77: =IF(V77="","",COUNTIF($V$7:V77,"該当３")) -> 
A78: 1920104004 | B78: 19 | C78: 201 | D78: 04 | E78: 004 | F78: 山梨県 | G78: 甲府市 | H78: 朝井村 | I78: 中 | M78: =IF(K78="","",COUNTIF($K$7:K78,"ﾘｽﾄ１")) ->  | U78: =IF(S78="","",COUNTIF($S$7:S78,"該当２")) ->  | X78: =IF(V78="","",COUNTIF($V$7:V78,"該当３")) -> 
A79: 1920105000 | B79: 19 | C79: 201 | D79: 05 | E79: 000 | F79: 山梨県 | G79: 甲府市 | H79: 玉諸村 | M79: =IF(K79="","",COUNTIF($K$7:K79,"ﾘｽﾄ１")) ->  | U79: =IF(S79="","",COUNTIF($S$7:S79,"該当２")) ->  | X79: =IF(V79="","",COUNTIF($V$7:V79,"該当３")) -> 
A80: 1920105001 | B80: 19 | C80: 201 | D80: 05 | E80: 001 | F80: 山梨県 | G80: 甲府市 | H80: 玉諸村 | I80: 蓬沢 | M80: =IF(K80="","",COUNTIF($K$7:K80,"ﾘｽﾄ１")) ->  | U80: =IF(S80="","",COUNTIF($S$7:S80,"該当２")) ->  | X80: =IF(V80="","",COUNTIF($V$7:V80,"該当３")) -> 
A81: 1920105002 | B81: 19 | C81: 201 | D81: 05 | E81: 002 | F81: 山梨県 | G81: 甲府市 | H81: 玉諸村 | I81: 西高橋 | M81: =IF(K81="","",COUNTIF($K$7:K81,"ﾘｽﾄ１")) ->  | U81: =IF(S81="","",COUNTIF($S$7:S81,"該当２")) ->  | X81: =IF(V81="","",COUNTIF($V$7:V81,"該当３")) -> 
A82: 1920105003 | B82: 19 | C82: 201 | D82: 05 | E82: 003 | F82: 山梨県 | G82: 甲府市 | H82: 玉諸村 | I82: 七沢 | M82: =IF(K82="","",COUNTIF($K$7:K82,"ﾘｽﾄ１")) ->  | U82: =IF(S82="","",COUNTIF($S$7:S82,"該当２")) ->  | X82: =IF(V82="","",COUNTIF($V$7:V82,"該当３")) -> 
A83: 1920105004 | B83: 19 | C83: 201 | D83: 05 | E83: 004 | F83: 山梨県 | G83: 甲府市 | H83: 玉諸村 | I83: 上阿原 | M83: =IF(K83="","",COUNTIF($K$7:K83,"ﾘｽﾄ１")) ->  | U83: =IF(S83="","",COUNTIF($S$7:S83,"該当２")) ->  | X83: =IF(V83="","",COUNTIF($V$7:V83,"該当３")) -> 
A84: 1920105005 | B84: 19 | C84: 201 | D84: 05 | E84: 005 | F84: 山梨県 | G84: 甲府市 | H84: 玉諸村 | I84: 向 | M84: =IF(K84="","",COUNTIF($K$7:K84,"ﾘｽﾄ１")) ->  | U84: =IF(S84="","",COUNTIF($S$7:S84,"該当２")) ->  | X84: =IF(V84="","",COUNTIF($V$7:V84,"該当３")) -> 
A85: 1920105006 | B85: 19 | C85: 201 | D85: 05 | E85: 006 | F85: 山梨県 | G85: 甲府市 | H85: 玉諸村 | I85: 国玉 | M85: =IF(K85="","",COUNTIF($K$7:K85,"ﾘｽﾄ１")) ->  | U85: =IF(S85="","",COUNTIF($S$7:S85,"該当２")) ->  | X85: =IF(V85="","",COUNTIF($V$7:V85,"該当３")) -> 
A86: 1920105007 | B86: 19 | C86: 201 | D86: 05 | E86: 007 | F86: 山梨県 | G86: 甲府市 | H86: 玉諸村 | I86: 里吉 | M86: =IF(K86="","",COUNTIF($K$7:K86,"ﾘｽﾄ１")) ->  | U86: =IF(S86="","",COUNTIF($S$7:S86,"該当２")) ->  | X86: =IF(V86="","",COUNTIF($V$7:V86,"該当３")) -> 
A87: 1920106000 | B87: 19 | C87: 201 | D87: 06 | E87: 000 | F87: 山梨県 | G87: 甲府市 | H87: 甲運村 | M87: =IF(K87="","",COUNTIF($K$7:K87,"ﾘｽﾄ１")) ->  | U87: =IF(S87="","",COUNTIF($S$7:S87,"該当２")) ->  | X87: =IF(V87="","",COUNTIF($V$7:V87,"該当３")) -> 
A88: 1920106001 | B88: 19 | C88: 201 | D88: 06 | E88: 001 | F88: 山梨県 | G88: 甲府市 | H88: 甲運村 | I88: 川田 | M88: =IF(K88="","",COUNTIF($K$7:K88,"ﾘｽﾄ１")) ->  | U88: =IF(S88="","",COUNTIF($S$7:S88,"該当２")) ->  | X88: =IF(V88="","",COUNTIF($V$7:V88,"該当３")) -> 
A89: 1920106002 | B89: 19 | C89: 201 | D89: 06 | E89: 002 | F89: 山梨県 | G89: 甲府市 | H89: 甲運村 | I89: 和戸 | M89: =IF(K89="","",COUNTIF($K$7:K89,"ﾘｽﾄ１")) ->  | U89: =IF(S89="","",COUNTIF($S$7:S89,"該当２")) ->  | X89: =IF(V89="","",COUNTIF($V$7:V89,"該当３")) -> 
A90: 1920106003 | B90: 19 | C90: 201 | D90: 06 | E90: 003 | F90: 山梨県 | G90: 甲府市 | H90: 甲運村 | I90: 横根 | M90: =IF(K90="","",COUNTIF($K$7:K90,"ﾘｽﾄ１")) ->  | U90: =IF(S90="","",COUNTIF($S$7:S90,"該当２")) ->  | X90: =IF(V90="","",COUNTIF($V$7:V90,"該当３")) -> 
A91: 1920106004 | B91: 19 | C91: 201 | D91: 06 | E91: 004 | F91: 山梨県 | G91: 甲府市 | H91: 甲運村 | I91: 桜井 | M91: =IF(K91="","",COUNTIF($K$7:K91,"ﾘｽﾄ１")) ->  | U91: =IF(S91="","",COUNTIF($S$7:S91,"該当２")) ->  | X91: =IF(V91="","",COUNTIF($V$7:V91,"該当３")) -> 
A92: 1920106005 | B92: 19 | C92: 201 | D92: 06 | E92: 005 | F92: 山梨県 | G92: 甲府市 | H92: 甲運村 | I92: 横根三ツ石 | M92: =IF(K92="","",COUNTIF($K$7:K92,"ﾘｽﾄ１")) ->  | U92: =IF(S92="","",COUNTIF($S$7:S92,"該当２")) ->  | X92: =IF(V92="","",COUNTIF($V$7:V92,"該当３")) -> 
A93: 1920107000 | B93: 19 | C93: 201 | D93: 07 | E93: 000 | F93: 山梨県 | G93: 甲府市 | H93: 千代田村 | M93: =IF(K93="","",COUNTIF($K$7:K93,"ﾘｽﾄ１")) ->  | U93: =IF(S93="","",COUNTIF($S$7:S93,"該当２")) ->  | X93: =IF(V93="","",COUNTIF($V$7:V93,"該当３")) -> 
A94: 1920107001 | B94: 19 | C94: 201 | D94: 07 | E94: 001 | F94: 山梨県 | G94: 甲府市 | H94: 千代田村 | I94: 上野 | M94: =IF(K94="","",COUNTIF($K$7:K94,"ﾘｽﾄ１")) ->  | U94: =IF(S94="","",COUNTIF($S$7:S94,"該当２")) ->  | X94: =IF(V94="","",COUNTIF($V$7:V94,"該当３")) -> 
A95: 1920107002 | B95: 19 | C95: 201 | D95: 07 | E95: 002 | F95: 山梨県 | G95: 甲府市 | H95: 千代田村 | I95: 平瀬 | M95: =IF(K95="","",COUNTIF($K$7:K95,"ﾘｽﾄ１")) ->  | U95: =IF(S95="","",COUNTIF($S$7:S95,"該当２")) ->  | X95: =IF(V95="","",COUNTIF($V$7:V95,"該当３")) -> 
A96: 1920107003 | B96: 19 | C96: 201 | D96: 07 | E96: 003 | F96: 山梨県 | G96: 甲府市 | H96: 千代田村 | I96: 下帯那 | M96: =IF(K96="","",COUNTIF($K$7:K96,"ﾘｽﾄ１")) ->  | U96: =IF(S96="","",COUNTIF($S$7:S96,"該当２")) ->  | X96: =IF(V96="","",COUNTIF($V$7:V96,"該当３")) -> 
A97: 1920107004 | B97: 19 | C97: 201 | D97: 07 | E97: 004 | F97: 山梨県 | G97: 甲府市 | H97: 千代田村 | I97: 上帯那 | M97: =IF(K97="","",COUNTIF($K$7:K97,"ﾘｽﾄ１")) ->  | U97: =IF(S97="","",COUNTIF($S$7:S97,"該当２")) ->  | X97: =IF(V97="","",COUNTIF($V$7:V97,"該当３")) -> 
A98: 1920108000 | B98: 19 | C98: 201 | D98: 08 | E98: 000 | F98: 山梨県 | G98: 甲府市 | H98: 能泉村 | M98: =IF(K98="","",COUNTIF($K$7:K98,"ﾘｽﾄ１")) ->  | U98: =IF(S98="","",COUNTIF($S$7:S98,"該当２")) ->  | X98: =IF(V98="","",COUNTIF($V$7:V98,"該当３")) -> 
A99: 1920108001 | B99: 19 | C99: 201 | D99: 08 | E99: 001 | F99: 山梨県 | G99: 甲府市 | H99: 能泉村 | I99: 塔岩，竹日向 | M99: =IF(K99="","",COUNTIF($K$7:K99,"ﾘｽﾄ１")) ->  | U99: =IF(S99="","",COUNTIF($S$7:S99,"該当２")) ->  | X99: =IF(V99="","",COUNTIF($V$7:V99,"該当３")) -> 
A100: 1920108002 | B100: 19 | C100: 201 | D100: 08 | E100: 002 | F100: 山梨県 | G100: 甲府市 | H100: 能泉村 | I100: 高成 | M100: =IF(K100="","",COUNTIF($K$7:K100,"ﾘｽﾄ１")) ->  | U100: =IF(S100="","",COUNTIF($S$7:S100,"該当２")) ->  | X100: =IF(V100="","",COUNTIF($V$7:V100,"該当３")) -> 
A101: 1920108003 | B101: 19 | C101: 201 | D101: 08 | E101: 003 | F101: 山梨県 | G101: 甲府市 | H101: 能泉村 | I101: 上川窪 | M101: =IF(K101="","",COUNTIF($K$7:K101,"ﾘｽﾄ１")) ->  | U101: =IF(S101="","",COUNTIF($S$7:S101,"該当２")) ->  | X101: =IF(V101="","",COUNTIF($V$7:V101,"該当３")) -> 
A102: 1920108004 | B102: 19 | C102: 201 | D102: 08 | E102: 004 | F102: 山梨県 | G102: 甲府市 | H102: 能泉村 | I102: 下川窪 | M102: =IF(K102="","",COUNTIF($K$7:K102,"ﾘｽﾄ１")) ->  | U102: =IF(S102="","",COUNTIF($S$7:S102,"該当２")) ->  | X102: =IF(V102="","",COUNTIF($V$7:V102,"該当３")) -> 
A103: 1920109000 | B103: 19 | C103: 201 | D103: 09 | E103: 000 | F103: 山梨県 | G103: 甲府市 | H103: 宮本村 | M103: =IF(K103="","",COUNTIF($K$7:K103,"ﾘｽﾄ１")) ->  | U103: =IF(S103="","",COUNTIF($S$7:S103,"該当２")) ->  | X103: =IF(V103="","",COUNTIF($V$7:V103,"該当３")) -> 
A104: 1920109001 | B104: 19 | C104: 201 | D104: 09 | E104: 001 | F104: 山梨県 | G104: 甲府市 | H104: 宮本村 | I104: 御岳 | M104: =IF(K104="","",COUNTIF($K$7:K104,"ﾘｽﾄ１")) ->  | U104: =IF(S104="","",COUNTIF($S$7:S104,"該当２")) ->  | X104: =IF(V104="","",COUNTIF($V$7:V104,"該当３")) -> 
A105: 1920109002 | B105: 19 | C105: 201 | D105: 09 | E105: 002 | F105: 山梨県 | G105: 甲府市 | H105: 宮本村 | I105: 高 | M105: =IF(K105="","",COUNTIF($K$7:K105,"ﾘｽﾄ１")) ->  | U105: =IF(S105="","",COUNTIF($S$7:S105,"該当２")) ->  | X105: =IF(V105="","",COUNTIF($V$7:V105,"該当３")) -> 
A106: 1920109003 | B106: 19 | C106: 201 | D106: 09 | E106: 003 | F106: 山梨県 | G106: 甲府市 | H106: 宮本村 | I106: 猪狩 | M106: =IF(K106="","",COUNTIF($K$7:K106,"ﾘｽﾄ１")) ->  | U106: =IF(S106="","",COUNTIF($S$7:S106,"該当２")) ->  | X106: =IF(V106="","",COUNTIF($V$7:V106,"該当３")) -> 
A107: 1920109004 | B107: 19 | C107: 201 | D107: 09 | E107: 004 | F107: 山梨県 | G107: 甲府市 | H107: 宮本村 | I107: 草鹿沢 | M107: =IF(K107="","",COUNTIF($K$7:K107,"ﾘｽﾄ１")) ->  | U107: =IF(S107="","",COUNTIF($S$7:S107,"該当２")) ->  | X107: =IF(V107="","",COUNTIF($V$7:V107,"該当３")) -> 
A108: 1920109005 | B108: 19 | C108: 201 | D108: 09 | E108: 005 | F108: 山梨県 | G108: 甲府市 | H108: 宮本村 | I108: 黒平 | M108: =IF(K108="","",COUNTIF($K$7:K108,"ﾘｽﾄ１")) ->  | U108: =IF(S108="","",COUNTIF($S$7:S108,"該当２")) ->  | X108: =IF(V108="","",COUNTIF($V$7:V108,"該当３")) -> 
A109: 1920110000 | B109: 19 | C109: 201 | D109: 10 | E109: 000 | F109: 山梨県 | G109: 甲府市 | H109: 大鎌田村 | M109: =IF(K109="","",COUNTIF($K$7:K109,"ﾘｽﾄ１")) ->  | U109: =IF(S109="","",COUNTIF($S$7:S109,"該当２")) ->  | X109: =IF(V109="","",COUNTIF($V$7:V109,"該当３")) -> 
A110: 1920110001 | B110: 19 | C110: 201 | D110: 10 | E110: 001 | F110: 山梨県 | G110: 甲府市 | H110: 大鎌田村 | I110: 窪中島 | M110: =IF(K110="","",COUNTIF($K$7:K110,"ﾘｽﾄ１")) ->  | U110: =IF(S110="","",COUNTIF($S$7:S110,"該当２")) ->  | X110: =IF(V110="","",COUNTIF($V$7:V110,"該当３")) -> 
A111: 1920110002 | B111: 19 | C111: 201 | D111: 10 | E111: 002 | F111: 山梨県 | G111: 甲府市 | H111: 大鎌田村 | I111: 円満寺 | M111: =IF(K111="","",COUNTIF($K$7:K111,"ﾘｽﾄ１")) ->  | U111: =IF(S111="","",COUNTIF($S$7:S111,"該当２")) ->  | X111: =IF(V111="","",COUNTIF($V$7:V111,"該当３")) -> 
A112: 1920110003 | B112: 19 | C112: 201 | D112: 10 | E112: 003 | F112: 山梨県 | G112: 甲府市 | H112: 大鎌田村 | I112: 二日市場 | M112: =IF(K112="","",COUNTIF($K$7:K112,"ﾘｽﾄ１")) ->  | U112: =IF(S112="","",COUNTIF($S$7:S112,"該当２")) ->  | X112: =IF(V112="","",COUNTIF($V$7:V112,"該当３")) -> 
A113: 1920110004 | B113: 19 | C113: 201 | D113: 10 | E113: 004 | F113: 山梨県 | G113: 甲府市 | H113: 大鎌田村 | I113: 中条 | M113: =IF(K113="","",COUNTIF($K$7:K113,"ﾘｽﾄ１")) ->  | U113: =IF(S113="","",COUNTIF($S$7:S113,"該当２")) ->  | X113: =IF(V113="","",COUNTIF($V$7:V113,"該当３")) -> 
A114: 1920110005 | B114: 19 | C114: 201 | D114: 10 | E114: 005 | F114: 山梨県 | G114: 甲府市 | H114: 大鎌田村 | I114: 関口 | M114: =IF(K114="","",COUNTIF($K$7:K114,"ﾘｽﾄ１")) ->  | U114: =IF(S114="","",COUNTIF($S$7:S114,"該当２")) ->  | X114: =IF(V114="","",COUNTIF($V$7:V114,"該当３")) -> 
A115: 1920110006 | B115: 19 | C115: 201 | D115: 10 | E115: 006 | F115: 山梨県 | G115: 甲府市 | H115: 大鎌田村 | I115: 古市場 | M115: =IF(K115="","",COUNTIF($K$7:K115,"ﾘｽﾄ１")) ->  | U115: =IF(S115="","",COUNTIF($S$7:S115,"該当２")) ->  | X115: =IF(V115="","",COUNTIF($V$7:V115,"該当３")) -> 
A116: 1920110007 | B116: 19 | C116: 201 | D116: 10 | E116: 007 | F116: 山梨県 | G116: 甲府市 | H116: 大鎌田村 | I116: 宮原 | M116: =IF(K116="","",COUNTIF($K$7:K116,"ﾘｽﾄ１")) ->  | U116: =IF(S116="","",COUNTIF($S$7:S116,"該当２")) ->  | X116: =IF(V116="","",COUNTIF($V$7:V116,"該当３")) -> 
A117: 1920110008 | B117: 19 | C117: 201 | D117: 10 | E117: 008 | F117: 山梨県 | G117: 甲府市 | H117: 大鎌田村 | I117: 堀之内 | M117: =IF(K117="","",COUNTIF($K$7:K117,"ﾘｽﾄ１")) ->  | U117: =IF(S117="","",COUNTIF($S$7:S117,"該当２")) ->  | X117: =IF(V117="","",COUNTIF($V$7:V117,"該当３")) -> 
A118: 1920110009 | B118: 19 | C118: 201 | D118: 10 | E118: 009 | F118: 山梨県 | G118: 甲府市 | H118: 大鎌田村 | I118: 高室 | M118: =IF(K118="","",COUNTIF($K$7:K118,"ﾘｽﾄ１")) ->  | U118: =IF(S118="","",COUNTIF($S$7:S118,"該当２")) ->  | X118: =IF(V118="","",COUNTIF($V$7:V118,"該当３")) -> 
A119: 1920111000 | B119: 19 | C119: 201 | D119: 11 | E119: 000 | F119: 山梨県 | G119: 甲府市 | H119: 二川村 | M119: =IF(K119="","",COUNTIF($K$7:K119,"ﾘｽﾄ１")) ->  | U119: =IF(S119="","",COUNTIF($S$7:S119,"該当２")) ->  | X119: =IF(V119="","",COUNTIF($V$7:V119,"該当３")) -> 
A120: 1920111001 | B120: 19 | C120: 201 | D120: 11 | E120: 001 | F120: 山梨県 | G120: 甲府市 | H120: 二川村 | I120: 西下条 | M120: =IF(K120="","",COUNTIF($K$7:K120,"ﾘｽﾄ１")) ->  | U120: =IF(S120="","",COUNTIF($S$7:S120,"該当２")) ->  | X120: =IF(V120="","",COUNTIF($V$7:V120,"該当３")) -> 
A121: 1920111002 | B121: 19 | C121: 201 | D121: 11 | E121: 002 | F121: 山梨県 | G121: 甲府市 | H121: 二川村 | I121: 大津 | M121: =IF(K121="","",COUNTIF($K$7:K121,"ﾘｽﾄ１")) ->  | U121: =IF(S121="","",COUNTIF($S$7:S121,"該当２")) ->  | X121: =IF(V121="","",COUNTIF($V$7:V121,"該当３")) -> 
A122: 1920112000 | B122: 19 | C122: 201 | D122: 12 | E122: 000 | F122: 山梨県 | G122: 甲府市 | H122: 柏村 | M122: =IF(K122="","",COUNTIF($K$7:K122,"ﾘｽﾄ１")) ->  | U122: =IF(S122="","",COUNTIF($S$7:S122,"該当２")) ->  | X122: =IF(V122="","",COUNTIF($V$7:V122,"該当３")) -> 
A123: 1920112001 | B123: 19 | C123: 201 | D123: 12 | E123: 001 | F123: 山梨県 | G123: 甲府市 | H123: 柏村 | I123: 下曽根 | M123: =IF(K123="","",COUNTIF($K$7:K123,"ﾘｽﾄ１")) ->  | U123: =IF(S123="","",COUNTIF($S$7:S123,"該当２")) ->  | X123: =IF(V123="","",COUNTIF($V$7:V123,"該当３")) -> 
A124: 1920112002 | B124: 19 | C124: 201 | D124: 12 | E124: 002 | F124: 山梨県 | G124: 甲府市 | H124: 柏村 | I124: 上曽根 | M124: =IF(K124="","",COUNTIF($K$7:K124,"ﾘｽﾄ１")) ->  | U124: =IF(S124="","",COUNTIF($S$7:S124,"該当２")) ->  | X124: =IF(V124="","",COUNTIF($V$7:V124,"該当３")) -> 
A125: 1920112003 | B125: 19 | C125: 201 | D125: 12 | E125: 003 | F125: 山梨県 | G125: 甲府市 | H125: 柏村 | I125: 白井 | M125: =IF(K125="","",COUNTIF($K$7:K125,"ﾘｽﾄ１")) ->  | U125: =IF(S125="","",COUNTIF($S$7:S125,"該当２")) ->  | X125: =IF(V125="","",COUNTIF($V$7:V125,"該当３")) -> 
A126: 1920113000 | B126: 19 | C126: 201 | D126: 13 | E126: 000 | F126: 山梨県 | G126: 甲府市 | H126: 右左口村 | M126: =IF(K126="","",COUNTIF($K$7:K126,"ﾘｽﾄ１")) ->  | U126: =IF(S126="","",COUNTIF($S$7:S126,"該当２")) ->  | X126: =IF(V126="","",COUNTIF($V$7:V126,"該当３")) -> 
A127: 1920113001 | B127: 19 | C127: 201 | D127: 13 | E127: 001 | F127: 山梨県 | G127: 甲府市 | H127: 右左口村 | I127: 松本 | M127: =IF(K127="","",COUNTIF($K$7:K127,"ﾘｽﾄ１")) ->  | U127: =IF(S127="","",COUNTIF($S$7:S127,"該当２")) ->  | X127: =IF(V127="","",COUNTIF($V$7:V127,"該当３")) -> 
A128: 1920113002 | B128: 19 | C128: 201 | D128: 13 | E128: 002 | F128: 山梨県 | G128: 甲府市 | H128: 右左口村 | I128: 佐久 | M128: =IF(K128="","",COUNTIF($K$7:K128,"ﾘｽﾄ１")) ->  | U128: =IF(S128="","",COUNTIF($S$7:S128,"該当２")) ->  | X128: =IF(V128="","",COUNTIF($V$7:V128,"該当３")) -> 
A129: 1920113003 | B129: 19 | C129: 201 | D129: 13 | E129: 003 | F129: 山梨県 | G129: 甲府市 | H129: 右左口村 | I129: 金沢 | M129: =IF(K129="","",COUNTIF($K$7:K129,"ﾘｽﾄ１")) ->  | U129: =IF(S129="","",COUNTIF($S$7:S129,"該当２")) ->  | X129: =IF(V129="","",COUNTIF($V$7:V129,"該当３")) -> 
A130: 1920113004 | B130: 19 | C130: 201 | D130: 13 | E130: 004 | F130: 山梨県 | G130: 甲府市 | H130: 右左口村 | I130: 向山 | M130: =IF(K130="","",COUNTIF($K$7:K130,"ﾘｽﾄ１")) ->  | U130: =IF(S130="","",COUNTIF($S$7:S130,"該当２")) ->  | X130: =IF(V130="","",COUNTIF($V$7:V130,"該当３")) -> 
A131: 1920113005 | B131: 19 | C131: 201 | D131: 13 | E131: 005 | F131: 山梨県 | G131: 甲府市 | H131: 右左口村 | I131: 中畑 | M131: =IF(K131="","",COUNTIF($K$7:K131,"ﾘｽﾄ１")) ->  | U131: =IF(S131="","",COUNTIF($S$7:S131,"該当２")) ->  | X131: =IF(V131="","",COUNTIF($V$7:V131,"該当３")) -> 
A132: 1920113006 | B132: 19 | C132: 201 | D132: 13 | E132: 006 | F132: 山梨県 | G132: 甲府市 | H132: 右左口村 | I132: 心経寺 | M132: =IF(K132="","",COUNTIF($K$7:K132,"ﾘｽﾄ１")) ->  | U132: =IF(S132="","",COUNTIF($S$7:S132,"該当２")) ->  | X132: =IF(V132="","",COUNTIF($V$7:V132,"該当３")) -> 
A133: 1920113007 | B133: 19 | C133: 201 | D133: 13 | E133: 007 | F133: 山梨県 | G133: 甲府市 | H133: 右左口村 | I133: 宿 | M133: =IF(K133="","",COUNTIF($K$7:K133,"ﾘｽﾄ１")) ->  | U133: =IF(S133="","",COUNTIF($S$7:S133,"該当２")) ->  | X133: =IF(V133="","",COUNTIF($V$7:V133,"該当３")) -> 
A134: 1920113008 | B134: 19 | C134: 201 | D134: 13 | E134: 008 | F134: 山梨県 | G134: 甲府市 | H134: 右左口村 | I134: 七覚 | M134: =IF(K134="","",COUNTIF($K$7:K134,"ﾘｽﾄ１")) ->  | U134: =IF(S134="","",COUNTIF($S$7:S134,"該当２")) ->  | X134: =IF(V134="","",COUNTIF($V$7:V134,"該当３")) -> 
A135: 1920113009 | B135: 19 | C135: 201 | D135: 13 | E135: 009 | F135: 山梨県 | G135: 甲府市 | H135: 右左口村 | I135: 善藤 | M135: =IF(K135="","",COUNTIF($K$7:K135,"ﾘｽﾄ１")) ->  | U135: =IF(S135="","",COUNTIF($S$7:S135,"該当２")) ->  | X135: =IF(V135="","",COUNTIF($V$7:V135,"該当３")) -> 
A136: 1920114000 | B136: 19 | C136: 201 | D136: 14 | E136: 000 | F136: 山梨県 | G136: 甲府市 | H136: 上九一色村2-1 | M136: =IF(K136="","",COUNTIF($K$7:K136,"ﾘｽﾄ１")) ->  | P136: =IF(O136="該当１",G136,"") ->  | Q136: =IF(O136="該当１","ﾘｽﾄ2","") ->  | R136: =IF(Q136="ﾘｽﾄ2",H136,"") ->  | T136: =IF(S136="該当２",H136,"") ->  | U136: =IF(S136="","",COUNTIF($S$7:S136,"該当２")) ->  | V136: =IF(AND($S$2=H136,E136>0,E136<998),"該当３","") ->  | W136: =IF(V136="該当３",I136,"") ->  | X136: =IF(V136="","",COUNTIF($V$7:V136,"該当３")) -> 
A137: 1920114001 | B137: 19 | C137: 201 | D137: 14 | E137: 001 | F137: 山梨県 | G137: 甲府市 | H137: 上九一色村2-1 | I137: 梯 | K137: =IF(AND($C137>0,$H137=""),"ﾘｽﾄ１","") ->  | L137: =IF(K137="ﾘｽﾄ１",G137,"") ->  | M137: =IF(K137="","",COUNTIF($K$7:K137,"ﾘｽﾄ１")) ->  | N137: =IF(AND(D137=0,E137>0),"同一区","") ->  | O137: =IF(AND(EXACT($K$2,G137),H137>0),"該当１","") ->  | S137: =IF(AND(Q137="ﾘｽﾄ2",OR(I137=0,AND(N137="同一区",E137=1))),"該当２","") ->  | U137: =IF(S137="","",COUNTIF($S$7:S137,"該当２")) ->  | X137: =IF(V137="","",COUNTIF($V$7:V137,"該当３")) -> 
A138: 1920114002 | B138: 19 | C138: 201 | D138: 14 | E138: 002 | F138: 山梨県 | G138: 甲府市 | H138: 上九一色村2-1 | I138: 飯田 | M138: =IF(K138="","",COUNTIF($K$7:K138,"ﾘｽﾄ１")) ->  | U138: =IF(S138="","",COUNTIF($S$7:S138,"該当２")) ->  | X138: =IF(V138="","",COUNTIF($V$7:V138,"該当３")) -> 
A139: 1920114003 | B139: 19 | C139: 201 | D139: 14 | E139: 003 | F139: 山梨県 | G139: 甲府市 | H139: 上九一色村2-1 | I139: 本郷 | M139: =IF(K139="","",COUNTIF($K$7:K139,"ﾘｽﾄ１")) ->  | U139: =IF(S139="","",COUNTIF($S$7:S139,"該当２")) ->  | X139: =IF(V139="","",COUNTIF($V$7:V139,"該当３")) -> 
A140: 1920114004 | B140: 19 | C140: 201 | D140: 14 | E140: 004 | F140: 山梨県 | G140: 甲府市 | H140: 上九一色村2-1 | I140: 平川 | M140: =IF(K140="","",COUNTIF($K$7:K140,"ﾘｽﾄ１")) ->  | U140: =IF(S140="","",COUNTIF($S$7:S140,"該当２")) ->  | X140: =IF(V140="","",COUNTIF($V$7:V140,"該当３")) -> 
A141: 1920114005 | B141: 19 | C141: 201 | D141: 14 | E141: 005 | F141: 山梨県 | G141: 甲府市 | H141: 上九一色村2-1 | I141: 入野 | M141: =IF(K141="","",COUNTIF($K$7:K141,"ﾘｽﾄ１")) ->  | U141: =IF(S141="","",COUNTIF($S$7:S141,"該当２")) ->  | X141: =IF(V141="","",COUNTIF($V$7:V141,"該当３")) -> 
A142: 1920200000 | B142: 19 | C142: 202 | D142: 00 | E142: 000 | F142: 山梨県 | G142: 富士吉田市 | K142: ﾘｽﾄ１ | L142: 富士吉田市 | M142: =IF(K142="","",COUNTIF($K$7:K142,"ﾘｽﾄ１")) -> 2 | U142: =IF(S142="","",COUNTIF($S$7:S142,"該当２")) ->  | X142: =IF(V142="","",COUNTIF($V$7:V142,"該当３")) -> 
A143: 1920201000 | B143: 19 | C143: 202 | D143: 01 | E143: 000 | F143: 山梨県 | G143: 富士吉田市 | H143: 下吉田町 | M143: =IF(K143="","",COUNTIF($K$7:K143,"ﾘｽﾄ１")) ->  | U143: =IF(S143="","",COUNTIF($S$7:S143,"該当２")) ->  | X143: =IF(V143="","",COUNTIF($V$7:V143,"該当３")) -> 
A144: 1920201001 | B144: 19 | C144: 202 | D144: 01 | E144: 001 | F144: 山梨県 | G144: 富士吉田市 | H144: 下吉田町 | I144: 下吉田横町 | M144: =IF(K144="","",COUNTIF($K$7:K144,"ﾘｽﾄ１")) ->  | U144: =IF(S144="","",COUNTIF($S$7:S144,"該当２")) ->  | X144: =IF(V144="","",COUNTIF($V$7:V144,"該当３")) -> 
A145: 1920201002 | B145: 19 | C145: 202 | D145: 01 | E145: 002 | F145: 山梨県 | G145: 富士吉田市 | H145: 下吉田町 | I145: 西町 | M145: =IF(K145="","",COUNTIF($K$7:K145,"ﾘｽﾄ１")) ->  | U145: =IF(S145="","",COUNTIF($S$7:S145,"該当２")) ->  | X145: =IF(V145="","",COUNTIF($V$7:V145,"該当３")) -> 
A146: 1920201003 | B146: 19 | C146: 202 | D146: 01 | E146: 003 | F146: 山梨県 | G146: 富士吉田市 | H146: 下吉田町 | I146: 本町，泉町 | M146: =IF(K146="","",COUNTIF($K$7:K146,"ﾘｽﾄ１")) ->  | U146: =IF(S146="","",COUNTIF($S$7:S146,"該当２")) ->  | X146: =IF(V146="","",COUNTIF($V$7:V146,"該当３")) -> 
A147: 1920201004 | B147: 19 | C147: 202 | D147: 01 | E147: 004 | F147: 山梨県 | G147: 富士吉田市 | H147: 下吉田町 | I147: しんや | M147: =IF(K147="","",COUNTIF($K$7:K147,"ﾘｽﾄ１")) ->  | U147: =IF(S147="","",COUNTIF($S$7:S147,"該当２")) ->  | X147: =IF(V147="","",COUNTIF($V$7:V147,"該当３")) -> 
A148: 1920201005 | B148: 19 | C148: 202 | D148: 01 | E148: 005 | F148: 山梨県 | G148: 富士吉田市 | H148: 下吉田町 | I148: 中央東 | M148: =IF(K148="","",COUNTIF($K$7:K148,"ﾘｽﾄ１")) ->  | U148: =IF(S148="","",COUNTIF($S$7:S148,"該当２")) ->  | X148: =IF(V148="","",COUNTIF($V$7:V148,"該当３")) -> 
A149: 1920201006 | B149: 19 | C149: 202 | D149: 01 | E149: 006 | F149: 山梨県 | G149: 富士吉田市 | H149: 下吉田町 | I149: 中央西北 | M149: =IF(K149="","",COUNTIF($K$7:K149,"ﾘｽﾄ１")) ->  | U149: =IF(S149="","",COUNTIF($S$7:S149,"該当２")) ->  | X149: =IF(V149="","",COUNTIF($V$7:V149,"該当３")) -> 
A150: 1920201007 | B150: 19 | C150: 202 | D150: 01 | E150: 007 | F150: 山梨県 | G150: 富士吉田市 | H150: 下吉田町 | I150: 幸町 | M150: =IF(K150="","",COUNTIF($K$7:K150,"ﾘｽﾄ１")) ->  | U150: =IF(S150="","",COUNTIF($S$7:S150,"該当２")) ->  | X150: =IF(V150="","",COUNTIF($V$7:V150,"該当３")) -> 
A151: 1920201008 | B151: 19 | C151: 202 | D151: 01 | E151: 008 | F151: 山梨県 | G151: 富士吉田市 | H151: 下吉田町 | I151: 下吉田上 | M151: =IF(K151="","",COUNTIF($K$7:K151,"ﾘｽﾄ１")) ->  | U151: =IF(S151="","",COUNTIF($S$7:S151,"該当２")) ->  | X151: =IF(V151="","",COUNTIF($V$7:V151,"該当３")) -> 
A152: 1920201009 | B152: 19 | C152: 202 | D152: 01 | E152: 009 | F152: 山梨県 | G152: 富士吉田市 | H152: 下吉田町 | I152: 新倉 | M152: =IF(K152="","",COUNTIF($K$7:K152,"ﾘｽﾄ１")) ->  | U152: =IF(S152="","",COUNTIF($S$7:S152,"該当２")) ->  | X152: =IF(V152="","",COUNTIF($V$7:V152,"該当３")) -> 
A153: 1920201010 | B153: 19 | C153: 202 | D153: 01 | E153: 010 | F153: 山梨県 | G153: 富士吉田市 | H153: 下吉田町 | I153: 浅間町 | M153: =IF(K153="","",COUNTIF($K$7:K153,"ﾘｽﾄ１")) ->  | U153: =IF(S153="","",COUNTIF($S$7:S153,"該当２")) ->  | X153: =IF(V153="","",COUNTIF($V$7:V153,"該当３")) -> 
A154: 1920201011 | B154: 19 | C154: 202 | D154: 01 | E154: 011 | F154: 山梨県 | G154: 富士吉田市 | H154: 下吉田町 | I154: 新町 | M154: =IF(K154="","",COUNTIF($K$7:K154,"ﾘｽﾄ１")) ->  | U154: =IF(S154="","",COUNTIF($S$7:S154,"該当２")) ->  | X154: =IF(V154="","",COUNTIF($V$7:V154,"該当３")) -> 
A155: 1920201012 | B155: 19 | C155: 202 | D155: 01 | E155: 012 | F155: 山梨県 | G155: 富士吉田市 | H155: 下吉田町 | I155: 宮下町 | M155: =IF(K155="","",COUNTIF($K$7:K155,"ﾘｽﾄ１")) ->  | U155: =IF(S155="","",COUNTIF($S$7:S155,"該当２")) ->  | X155: =IF(V155="","",COUNTIF($V$7:V155,"該当３")) -> 
A156: 1920201013 | B156: 19 | C156: 202 | D156: 01 | E156: 013 | F156: 山梨県 | G156: 富士吉田市 | H156: 下吉田町 | I156: 富士見町 | M156: =IF(K156="","",COUNTIF($K$7:K156,"ﾘｽﾄ１")) ->  | U156: =IF(S156="","",COUNTIF($S$7:S156,"該当２")) ->  | X156: =IF(V156="","",COUNTIF($V$7:V156,"該当３")) -> 
A157: 1920202000 | B157: 19 | C157: 202 | D157: 02 | E157: 000 | F157: 山梨県 | G157: 富士吉田市 | H157: 明見町 | M157: =IF(K157="","",COUNTIF($K$7:K157,"ﾘｽﾄ１")) ->  | U157: =IF(S157="","",COUNTIF($S$7:S157,"該当２")) ->  | X157: =IF(V157="","",COUNTIF($V$7:V157,"該当３")) -> 
A158: 1920202001 | B158: 19 | C158: 202 | D158: 02 | E158: 001 | F158: 山梨県 | G158: 富士吉田市 | H158: 明見町 | I158: 大明見 | M158: =IF(K158="","",COUNTIF($K$7:K158,"ﾘｽﾄ１")) ->  | U158: =IF(S158="","",COUNTIF($S$7:S158,"該当２")) ->  | X158: =IF(V158="","",COUNTIF($V$7:V158,"該当３")) -> 
A159: 1920202002 | B159: 19 | C159: 202 | D159: 02 | E159: 002 | F159: 山梨県 | G159: 富士吉田市 | H159: 明見町 | I159: 新田 | M159: =IF(K159="","",COUNTIF($K$7:K159,"ﾘｽﾄ１")) ->  | U159: =IF(S159="","",COUNTIF($S$7:S159,"該当２")) ->  | X159: =IF(V159="","",COUNTIF($V$7:V159,"該当３")) -> 
A160: 1920202003 | B160: 19 | C160: 202 | D160: 02 | E160: 003 | F160: 山梨県 | G160: 富士吉田市 | H160: 明見町 | I160: 古屋 | M160: =IF(K160="","",COUNTIF($K$7:K160,"ﾘｽﾄ１")) ->  | U160: =IF(S160="","",COUNTIF($S$7:S160,"該当２")) ->  | X160: =IF(V160="","",COUNTIF($V$7:V160,"該当３")) -> 
A161: 1920203000 | B161: 19 | C161: 202 | D161: 03 | E161: 000 | F161: 山梨県 | G161: 富士吉田市 | H161: 富士上吉田町 | M161: =IF(K161="","",COUNTIF($K$7:K161,"ﾘｽﾄ１")) ->  | U161: =IF(S161="","",COUNTIF($S$7:S161,"該当２")) ->  | X161: =IF(V161="","",COUNTIF($V$7:V161,"該当３")) -> 
A162: 1920203001 | B162: 19 | C162: 202 | D162: 03 | E162: 001 | F162: 山梨県 | G162: 富士吉田市 | H162: 富士上吉田町 | I162: 新屋 | M162: =IF(K162="","",COUNTIF($K$7:K162,"ﾘｽﾄ１")) ->  | U162: =IF(S162="","",COUNTIF($S$7:S162,"該当２")) ->  | X162: =IF(V162="","",COUNTIF($V$7:V162,"該当３")) -> 
A163: 1920203002 | B163: 19 | C163: 202 | D163: 03 | E163: 002 | F163: 山梨県 | G163: 富士吉田市 | H163: 富士上吉田町 | I163: 上吉田 | M163: =IF(K163="","",COUNTIF($K$7:K163,"ﾘｽﾄ１")) ->  | U163: =IF(S163="","",COUNTIF($S$7:S163,"該当２")) ->  | X163: =IF(V163="","",COUNTIF($V$7:V163,"該当３")) -> 
A164: 1920203003 | B164: 19 | C164: 202 | D164: 03 | E164: 003 | F164: 山梨県 | G164: 富士吉田市 | H164: 富士上吉田町 | I164: 松山 | M164: =IF(K164="","",COUNTIF($K$7:K164,"ﾘｽﾄ１")) ->  | U164: =IF(S164="","",COUNTIF($S$7:S164,"該当２")) ->  | X164: =IF(V164="","",COUNTIF($V$7:V164,"該当３")) -> 
A165: 1920204000 | B165: 19 | C165: 202 | D165: 04 | E165: 000 | F165: 山梨県 | G165: 富士吉田市 | H165: 西桂村２－２ | M165: =IF(K165="","",COUNTIF($K$7:K165,"ﾘｽﾄ１")) ->  | U165: =IF(S165="","",COUNTIF($S$7:S165,"該当２")) ->  | X165: =IF(V165="","",COUNTIF($V$7:V165,"該当３")) -> 
A166: 1920204001 | B166: 19 | C166: 202 | D166: 04 | E166: 001 | F166: 山梨県 | G166: 富士吉田市 | H166: 西桂村２－２ | I166: 白糸町 | M166: =IF(K166="","",COUNTIF($K$7:K166,"ﾘｽﾄ１")) ->  | U166: =IF(S166="","",COUNTIF($S$7:S166,"該当２")) ->  | X166: =IF(V166="","",COUNTIF($V$7:V166,"該当３")) -> 
A167: 1920204002 | B167: 19 | C167: 202 | D167: 04 | E167: 002 | F167: 山梨県 | G167: 富士吉田市 | H167: 西桂村２－２ | I167: 寿町 | M167: =IF(K167="","",COUNTIF($K$7:K167,"ﾘｽﾄ１")) ->  | U167: =IF(S167="","",COUNTIF($S$7:S167,"該当２")) ->  | X167: =IF(V167="","",COUNTIF($V$7:V167,"該当３")) -> 
A168: 1920400000 | B168: 19 | C168: 204 | D168: 00 | E168: 000 | F168: 山梨県 | G168: 都留市 | K168: ﾘｽﾄ１ | L168: 都留市 | M168: =IF(K168="","",COUNTIF($K$7:K168,"ﾘｽﾄ１")) -> 3 | U168: =IF(S168="","",COUNTIF($S$7:S168,"該当２")) ->  | X168: =IF(V168="","",COUNTIF($V$7:V168,"該当３")) -> 
A169: 1920401000 | B169: 19 | C169: 204 | D169: 01 | E169: 000 | F169: 山梨県 | G169: 都留市 | H169: 谷村町 | M169: =IF(K169="","",COUNTIF($K$7:K169,"ﾘｽﾄ１")) ->  | U169: =IF(S169="","",COUNTIF($S$7:S169,"該当２")) ->  | X169: =IF(V169="","",COUNTIF($V$7:V169,"該当３")) -> 
A170: 1920401001 | B170: 19 | C170: 204 | D170: 01 | E170: 001 | F170: 山梨県 | G170: 都留市 | H170: 谷村町 | I170: 田原 | M170: =IF(K170="","",COUNTIF($K$7:K170,"ﾘｽﾄ１")) ->  | U170: =IF(S170="","",COUNTIF($S$7:S170,"該当２")) ->  | X170: =IF(V170="","",COUNTIF($V$7:V170,"該当３")) -> 
A171: 1920401002 | B171: 19 | C171: 204 | D171: 01 | E171: 002 | F171: 山梨県 | G171: 都留市 | H171: 谷村町 | I171: 上町 | M171: =IF(K171="","",COUNTIF($K$7:K171,"ﾘｽﾄ１")) ->  | U171: =IF(S171="","",COUNTIF($S$7:S171,"該当２")) ->  | X171: =IF(V171="","",COUNTIF($V$7:V171,"該当３")) -> 
A172: 1920401003 | B172: 19 | C172: 204 | D172: 01 | E172: 003 | F172: 山梨県 | G172: 都留市 | H172: 谷村町 | I172: 上天 | M172: =IF(K172="","",COUNTIF($K$7:K172,"ﾘｽﾄ１")) ->  | U172: =IF(S172="","",COUNTIF($S$7:S172,"該当２")) ->  | X172: =IF(V172="","",COUNTIF($V$7:V172,"該当３")) -> 
A173: 1920401004 | B173: 19 | C173: 204 | D173: 01 | E173: 004 | F173: 山梨県 | G173: 都留市 | H173: 谷村町 | I173: 下天 | M173: =IF(K173="","",COUNTIF($K$7:K173,"ﾘｽﾄ１")) ->  | U173: =IF(S173="","",COUNTIF($S$7:S173,"該当２")) ->  | X173: =IF(V173="","",COUNTIF($V$7:V173,"該当３")) -> 
A174: 1920401005 | B174: 19 | C174: 204 | D174: 01 | E174: 005 | F174: 山梨県 | G174: 都留市 | H174: 谷村町 | I174: 下谷第一 | M174: =IF(K174="","",COUNTIF($K$7:K174,"ﾘｽﾄ１")) ->  | U174: =IF(S174="","",COUNTIF($S$7:S174,"該当２")) ->  | X174: =IF(V174="","",COUNTIF($V$7:V174,"該当３")) -> 
A175: 1920401006 | B175: 19 | C175: 204 | D175: 01 | E175: 006 | F175: 山梨県 | G175: 都留市 | H175: 谷村町 | I175: 下谷第二 | M175: =IF(K175="","",COUNTIF($K$7:K175,"ﾘｽﾄ１")) ->  | U175: =IF(S175="","",COUNTIF($S$7:S175,"該当２")) ->  | X175: =IF(V175="","",COUNTIF($V$7:V175,"該当３")) -> 
A176: 1920401007 | B176: 19 | C176: 204 | D176: 01 | E176: 007 | F176: 山梨県 | G176: 都留市 | H176: 谷村町 | I176: 下谷第三 | M176: =IF(K176="","",COUNTIF($K$7:K176,"ﾘｽﾄ１")) ->  | U176: =IF(S176="","",COUNTIF($S$7:S176,"該当２")) ->  | X176: =IF(V176="","",COUNTIF($V$7:V176,"該当３")) -> 
A177: 1920401008 | B177: 19 | C177: 204 | D177: 01 | E177: 008 | F177: 山梨県 | G177: 都留市 | H177: 谷村町 | I177: 下谷第四 | M177: =IF(K177="","",COUNTIF($K$7:K177,"ﾘｽﾄ１")) ->  | U177: =IF(S177="","",COUNTIF($S$7:S177,"該当２")) ->  | X177: =IF(V177="","",COUNTIF($V$7:V177,"該当３")) -> 
A178: 1920401009 | B178: 19 | C178: 204 | D178: 01 | E178: 009 | F178: 山梨県 | G178: 都留市 | H178: 谷村町 | I178: 羽根子 | M178: =IF(K178="","",COUNTIF($K$7:K178,"ﾘｽﾄ１")) ->  | U178: =IF(S178="","",COUNTIF($S$7:S178,"該当２")) ->  | X178: =IF(V178="","",COUNTIF($V$7:V178,"該当３")) -> 
A179: 1920401010 | B179: 19 | C179: 204 | D179: 01 | E179: 010 | F179: 山梨県 | G179: 都留市 | H179: 谷村町 | I179: 法能 | M179: =IF(K179="","",COUNTIF($K$7:K179,"ﾘｽﾄ１")) ->  | U179: =IF(S179="","",COUNTIF($S$7:S179,"該当２")) ->  | X179: =IF(V179="","",COUNTIF($V$7:V179,"該当３")) -> 
A180: 1920401011 | B180: 19 | C180: 204 | D180: 01 | E180: 011 | F180: 山梨県 | G180: 都留市 | H180: 谷村町 | I180: 宮原 | M180: =IF(K180="","",COUNTIF($K$7:K180,"ﾘｽﾄ１")) ->  | U180: =IF(S180="","",COUNTIF($S$7:S180,"該当２")) ->  | X180: =IF(V180="","",COUNTIF($V$7:V180,"該当３")) -> 
A181: 1920401012 | B181: 19 | C181: 204 | D181: 01 | E181: 012 | F181: 山梨県 | G181: 都留市 | H181: 谷村町 | I181: 引の田 | M181: =IF(K181="","",COUNTIF($K$7:K181,"ﾘｽﾄ１")) ->  | U181: =IF(S181="","",COUNTIF($S$7:S181,"該当２")) ->  | X181: =IF(V181="","",COUNTIF($V$7:V181,"該当３")) -> 
A182: 1920401013 | B182: 19 | C182: 204 | D182: 01 | E182: 013 | F182: 山梨県 | G182: 都留市 | H182: 谷村町 | I182: 玉川 | M182: =IF(K182="","",COUNTIF($K$7:K182,"ﾘｽﾄ１")) ->  | U182: =IF(S182="","",COUNTIF($S$7:S182,"該当２")) ->  | X182: =IF(V182="","",COUNTIF($V$7:V182,"該当３")) -> 
A183: 1920401014 | B183: 19 | C183: 204 | D183: 01 | E183: 014 | F183: 山梨県 | G183: 都留市 | H183: 谷村町 | I183: 戸沢 | M183: =IF(K183="","",COUNTIF($K$7:K183,"ﾘｽﾄ１")) ->  | U183: =IF(S183="","",COUNTIF($S$7:S183,"該当２")) ->  | X183: =IF(V183="","",COUNTIF($V$7:V183,"該当３")) -> 
A184: 1920401015 | B184: 19 | C184: 204 | D184: 01 | E184: 015 | F184: 山梨県 | G184: 都留市 | H184: 谷村町 | I184: 熊井戸 | M184: =IF(K184="","",COUNTIF($K$7:K184,"ﾘｽﾄ１")) ->  | U184: =IF(S184="","",COUNTIF($S$7:S184,"該当２")) ->  | X184: =IF(V184="","",COUNTIF($V$7:V184,"該当３")) -> 
A185: 1920401016 | B185: 19 | C185: 204 | D185: 01 | E185: 016 | F185: 山梨県 | G185: 都留市 | H185: 谷村町 | I185: 小野 | M185: =IF(K185="","",COUNTIF($K$7:K185,"ﾘｽﾄ１")) ->  | U185: =IF(S185="","",COUNTIF($S$7:S185,"該当２")) ->  | X185: =IF(V185="","",COUNTIF($V$7:V185,"該当３")) -> 
A186: 1920401017 | B186: 19 | C186: 204 | D186: 01 | E186: 017 | F186: 山梨県 | G186: 都留市 | H186: 谷村町 | I186: 大津 | M186: =IF(K186="","",COUNTIF($K$7:K186,"ﾘｽﾄ１")) ->  | U186: =IF(S186="","",COUNTIF($S$7:S186,"該当２")) ->  | X186: =IF(V186="","",COUNTIF($V$7:V186,"該当３")) -> 
A187: 1920401018 | B187: 19 | C187: 204 | D187: 01 | E187: 018 | F187: 山梨県 | G187: 都留市 | H187: 谷村町 | I187: 細野 | M187: =IF(K187="","",COUNTIF($K$7:K187,"ﾘｽﾄ１")) ->  | U187: =IF(S187="","",COUNTIF($S$7:S187,"該当２")) ->  | X187: =IF(V187="","",COUNTIF($V$7:V187,"該当３")) -> 
A188: 1920401019 | B188: 19 | C188: 204 | D188: 01 | E188: 019 | F188: 山梨県 | G188: 都留市 | H188: 谷村町 | I188: 菅野 | M188: =IF(K188="","",COUNTIF($K$7:K188,"ﾘｽﾄ１")) ->  | U188: =IF(S188="","",COUNTIF($S$7:S188,"該当２")) ->  | X188: =IF(V188="","",COUNTIF($V$7:V188,"該当３")) -> 
A189: 1920402000 | B189: 19 | C189: 204 | D189: 02 | E189: 000 | F189: 山梨県 | G189: 都留市 | H189: 宝村 | M189: =IF(K189="","",COUNTIF($K$7:K189,"ﾘｽﾄ１")) ->  | U189: =IF(S189="","",COUNTIF($S$7:S189,"該当２")) ->  | X189: =IF(V189="","",COUNTIF($V$7:V189,"該当３")) -> 
A190: 1920402001 | B190: 19 | C190: 204 | D190: 02 | E190: 001 | F190: 山梨県 | G190: 都留市 | H190: 宝村 | I190: 川棚 | M190: =IF(K190="","",COUNTIF($K$7:K190,"ﾘｽﾄ１")) ->  | U190: =IF(S190="","",COUNTIF($S$7:S190,"該当２")) ->  | X190: =IF(V190="","",COUNTIF($V$7:V190,"該当３")) -> 
A191: 1920402002 | B191: 19 | C191: 204 | D191: 02 | E191: 002 | F191: 山梨県 | G191: 都留市 | H191: 宝村 | I191: 厚原 | M191: =IF(K191="","",COUNTIF($K$7:K191,"ﾘｽﾄ１")) ->  | U191: =IF(S191="","",COUNTIF($S$7:S191,"該当２")) ->  | X191: =IF(V191="","",COUNTIF($V$7:V191,"該当３")) -> 
A192: 1920402003 | B192: 19 | C192: 204 | D192: 02 | E192: 003 | F192: 山梨県 | G192: 都留市 | H192: 宝村 | I192: 平栗 | M192: =IF(K192="","",COUNTIF($K$7:K192,"ﾘｽﾄ１")) ->  | U192: =IF(S192="","",COUNTIF($S$7:S192,"該当２")) ->  | X192: =IF(V192="","",COUNTIF($V$7:V192,"該当３")) -> 
A193: 1920402004 | B193: 19 | C193: 204 | D193: 02 | E193: 004 | F193: 山梨県 | G193: 都留市 | H193: 宝村 | I193: 加畑 | M193: =IF(K193="","",COUNTIF($K$7:K193,"ﾘｽﾄ１")) ->  | U193: =IF(S193="","",COUNTIF($S$7:S193,"該当２")) ->  | X193: =IF(V193="","",COUNTIF($V$7:V193,"該当３")) -> 
A194: 1920402005 | B194: 19 | C194: 204 | D194: 02 | E194: 005 | F194: 山梨県 | G194: 都留市 | H194: 宝村 | I194: 金井 | M194: =IF(K194="","",COUNTIF($K$7:K194,"ﾘｽﾄ１")) ->  | U194: =IF(S194="","",COUNTIF($S$7:S194,"該当２")) ->  | X194: =IF(V194="","",COUNTIF($V$7:V194,"該当３")) -> 
A195: 1920402006 | B195: 19 | C195: 204 | D195: 02 | E195: 006 | F195: 山梨県 | G195: 都留市 | H195: 宝村 | I195: 中津森 | M195: =IF(K195="","",COUNTIF($K$7:K195,"ﾘｽﾄ１")) ->  | U195: =IF(S195="","",COUNTIF($S$7:S195,"該当２")) ->  | X195: =IF(V195="","",COUNTIF($V$7:V195,"該当３")) -> 
A196: 1920402007 | B196: 19 | C196: 204 | D196: 02 | E196: 007 | F196: 山梨県 | G196: 都留市 | H196: 宝村 | I196: 下大幡 | M196: =IF(K196="","",COUNTIF($K$7:K196,"ﾘｽﾄ１")) ->  | U196: =IF(S196="","",COUNTIF($S$7:S196,"該当２")) ->  | X196: =IF(V196="","",COUNTIF($V$7:V196,"該当３")) -> 
A197: 1920402008 | B197: 19 | C197: 204 | D197: 02 | E197: 008 | F197: 山梨県 | G197: 都留市 | H197: 宝村 | I197: 上大幡 | M197: =IF(K197="","",COUNTIF($K$7:K197,"ﾘｽﾄ１")) ->  | U197: =IF(S197="","",COUNTIF($S$7:S197,"該当２")) ->  | X197: =IF(V197="","",COUNTIF($V$7:V197,"該当３")) -> 
A198: 1920402009 | B198: 19 | C198: 204 | D198: 02 | E198: 009 | F198: 山梨県 | G198: 都留市 | H198: 宝村 | I198: 高畑 | M198: =IF(K198="","",COUNTIF($K$7:K198,"ﾘｽﾄ１")) ->  | U198: =IF(S198="","",COUNTIF($S$7:S198,"該当２")) ->  | X198: =IF(V198="","",COUNTIF($V$7:V198,"該当３")) -> 
A199: 1920403000 | B199: 19 | C199: 204 | D199: 03 | E199: 000 | F199: 山梨県 | G199: 都留市 | H199: 禾生村 | M199: =IF(K199="","",COUNTIF($K$7:K199,"ﾘｽﾄ１")) ->  | U199: =IF(S199="","",COUNTIF($S$7:S199,"該当２")) ->  | X199: =IF(V199="","",COUNTIF($V$7:V199,"該当３")) -> 
A200: 1920403001 | B200: 19 | C200: 204 | D200: 03 | E200: 001 | F200: 山梨県 | G200: 都留市 | H200: 禾生村 | I200: 四日市場 | M200: =IF(K200="","",COUNTIF($K$7:K200,"ﾘｽﾄ１")) ->  | P200: =IF(O200="該当１",G200,"") ->  | Q200: =IF(O200="該当１","ﾘｽﾄ2","") ->  | R200: =IF(Q200="ﾘｽﾄ2",H200,"") ->  | T200: =IF(S200="該当２",H200,"") ->  | U200: =IF(S200="","",COUNTIF($S$7:S200,"該当２")) ->  | V200: =IF(AND($S$2=H200,E200>0,E200<998),"該当３","") ->  | W200: =IF(V200="該当３",I200,"") ->  | X200: =IF(V200="","",COUNTIF($V$7:V200,"該当３")) -> 
... 1719 more rows

Sheet 2010年 (hidden)
A1: 都道府県名（支庁名） | B1: 市区町村名 | C1: 旧市区町村名 | D1: 農業集落名 | E1: 総農家数 | M1: （７）年齢別の農業従事者数（自営農業に従事した世帯員数）男女計 | AC1: 農業従事者の平均年齢 | AF1: 年齢別の農業就業人口（自営農業に主として従事した世帯員数）男女計 | AV1: 農業就業人口 | AY1: （11）年齢別の基幹的農業従事者数（自営農業に主として従事した世帯員のうち仕事が主の世帯員数）男女計 | BO1: 基幹的農業従事者 平均年齢 | BR1: （２）年齢別の経営者数男女計 | CH1: ウ後継者がいる経営者 | CV1: 家族経営構成別農家数 | DC1: （６）過去１年間の生活の主な状態別世帯員数 | DH1: 男女計 | DK1: （４）農産物販売金額１位の部門別農家数 | EA1: （１）経営耕地の状況 | EF1: （６）過去１年間の生活の主な状態別世帯員数(男) | EN1: （６）過去１年間の生活の主な状態別世帯員数(女)
F2: 販売農家数 | L2: 自給的農家 | M2: 計 | N2: 15～19歳 | O2: 20～24 | P2: 25～29 | Q2: 30～34 | R2: 35～39 | S2: 40～44 | T2: 45～49 | U2: 50～54 | V2: 55～59 | W2: 60～64 | X2: 65～69 | Y2: 70～74 | Z2: 75～79 | AA2: 80～84 | AB2: 85歳以上 | AC2: 男女計 | AD2: 男 | AE2: 女 | AF2: 計 | AG2: 15～19歳 | AH2: 20～24 | AI2: 25～29 | AJ2: 30～34 | AK2: 35～39 | AL2: 40～44 | AM2: 45～49 | AN2: 50～54 | AO2: 55～59 | AP2: 60～64 | AQ2: 65～69 | AR2: 70～74 | AS2: 75～79 | AT2: 80～84 | AU2: 85歳以上 | AY2: 計 | AZ2: 15～19歳 | BA2: 20～24 | BB2: 25～29 | BC2: 30～34 | BD2: 35～39 | BE2: 40～44 | BF2: 45～49 | BG2: 50～54 | BH2: 55～59 | BI2: 60～64 | BJ2: 65～69 | BK2: 70～74 | BL2: 75～79 | BM2: 80～84 | BN2: 85歳以上 | BR2: 計 | BS2: 15～19歳 | BT2: 20～24 | BU2: 25～29 | BV2: 30～34 | BW2: 35～39 | BX2: 40～44 | BY2: 45～49 | BZ2: 50～54 | CA2: 55～59 | CB2: 60～64 | CC2: 65～69 | CD2: 70～74 | CE2: 75～79 | CF2: 80～84 | CG2: 85歳以上 | CH2: 計 | CI2: 30歳未満 | CJ2: 30～34 | CK2: 35～39 | CL2: 40～44 | CM2: 45～49 | CN2: 50～54 | CO2: 55～59 | CP2: 60～64 | CQ2: 65～69 | CR2: 70～74 | CS2: 75～79 | CT2: 80～84 | CU2: 85歳以上 | DD2: 主に仕事 | DN2: 雑穀・ | EA2: 経営耕地 のある 農家数 | EB2: 経営耕地 総面積 | EC2: 田 | ED2: 畑（樹園地を除く） | EE2: 樹園地 | EF2: 計 | EG2: 主に仕事 | EK2: 主に家事 ・育児 | EL2: 学生 | EM2: その他 | EN2: 計 | EO2: 主に仕事 | ES2: 主に家事 ・育児 | ET2: 学生 | EU2: その他
G3: 主業農家 | I3: 準主業農家 | K3: 副業的農家 | AV3: 男女計の 平均年齢 | AW3: 男の 平均年齢 | AX3: 女の 平均年齢 | BO3: 男女計 | BP3: 男 | BQ3: 女 | DC3: 計 | DD3: 小計 | DE3: 自営農業 が主 | DF3: 勤務が主 | DG3: 農業以外の | DH3: 主に家事 ・育児 | DI3: 学生 | DJ3: その他 | DK3: 計 | DL3: 稲作 | DM3: 麦類作 | DN3: いも類 | DO3: 工芸農作物 | DP3: 露地野菜 | DQ3: 施設野菜 | DR3: 果樹類 | DS3: 花き・花木 | DT3: その他の 作物 | DU3: 酪農 | DV3: 肉用牛 | DW3: 養豚 | DX3: 養鶏 | DY3: 養蚕 | DZ3: その他の 畜産 | EG3: 小計 | EH3: 自営農業 が主 | EI3: 勤務が主 | EJ3: 農業以外の 自営業が主 | EO3: 小計 | EP3: 自営農業 が主 | EQ3: 勤務が主 | ER3: 農業以外の 自営業が主
H4: 65歳未満の農業専従者がいる | J4: 65歳未満の農業専従者がいる | DG4: 自営業が主 | DN4: ・豆類
A6: 山梨県 | E6: 36,805 | F6: 20,043 | G6: 4,789 | H6: 4,177 | I6: 4,301 | J6: 1,811 | K6: 10,953 | L6: 16,762 | M6: 51,920 | N6: 979 | O6: 1,282 | P6: 1,450 | Q6: 1,494 | R6: 1,958 | S6: 2,488 | T6: 3,212 | U6: 4,196 | V6: 5,391 | W6: 5,708 | X6: 5,751 | Y6: 5,859 | Z6: 5,643 | AA6: 4,211 | AB6: 2,298 | AC6: 60.2 | AD6: 59.3 | AE6: 61.2 | AF6: 33,271 | AG6: 372 | AH6: 181 | AI6: 183 | AJ6: 282 | AK6: 473 | AL6: 627 | AM6: 911 | AN6: 1,577 | AO6: 2,562 | AP6: 3,946 | AQ6: 4,963 | AR6: 5,479 | AS6: 5,448 | AT6: 4,079 | AU6: 2,188 | AV6: 67.8 | AW6: 68.2 | AX6: 67.4 | AY6: 28,313 | AZ6: 1 | BA6: 46 | BB6: 122 | BC6: 197 | BD6: 337 | BE6: 445 | BF6: 699 | BG6: 1,369 | BH6: 2,305 | BI6: 3,563 | BJ6: 4,488 | BK6: 4,937 | BL6: 4,863 | BM6: 3,421 | BN6: 1,520 | BO6: 68.6 | BP6: 68.9 | BQ6: 68.2 | BR6: 20,043 | BS6: - | BT6: 2 | BU6: 10 | BV6: 38 | BW6: 133 | BX6: 326 | BY6: 710 | BZ6: 1,435 | CA6: 2,366 | CB6: 2,921 | CC6: 2,913 | CD6: 3,107 | CE6: 2,990 | CF6: 2,148 | CG6: 944 | CH6: 10,889 | CI6: - | CJ6: 2 | CK6: 8 | CL6: 52 | CM6: 193 | CN6: 544 | CO6: 1,088 | CP6: 1,466 | CQ6: 1,624 | CR6: 1,796 | CS6: 1,900 | CT6: 1,498 | CU6: 718 | DC6: 65,171 | DD6: 49,831 | DE6: 28,314 | DF6: 19,694 | DG6: 1,823 | DH6: 5,791 | DI6: 4,713 | DJ6: 4,836 | DK6: 18,061 | DL6: 4,207 | DM6: 4 | DN6: 149 | DO6: 96 | DP6: 1,204 | DQ6: 304 | DR6: 11,679 | DS6: 195 | DT6: 52 | DU6: 82 | DV6: 37 | DW6: 16 | DX6: 24 | DY6: 8 | DZ6: 4 | EA6: 20,017 | EB6: 1,490,982 | EC6: 438,731 | ED6: 254,576 | EE6: 797,675 | EF6: 32,259 | EG6: 28,026 | EH6: 15,542 | EI6: 11,281 | EJ6: 1,203 | EK6: 83 | EL6: 2,520 | EM6: 1,630 | EN6: 32,912 | EO6: 21,805 | EP6: 12,772 | EQ6: 8,413 | ER6: 620 | ES6: 5,708 | ET6: 2,193 | EU6: 3,206
A7: 山梨県 | B7: 甲府市 | E7: 2,399 | F7: 1,290 | G7: 326 | H7: 276 | I7: 341 | J7: 142 | K7: 623 | L7: 1,109 | M7: 3,523 | N7: 70 | O7: 101 | P7: 126 | Q7: 106 | R7: 134 | S7: 155 | T7: 211 | U7: 297 | V7: 381 | W7: 393 | X7: 377 | Y7: 374 | Z7: 370 | AA7: 301 | AB7: 127 | AC7: 59.4 | AD7: 58.5 | AE7: 60.5 | AF7: 2,299 | AG7: 32 | AH7: 20 | AI7: 12 | AJ7: 20 | AK7: 34 | AL7: 35 | AM7: 65 | AN7: 118 | AO7: 186 | AP7: 308 | AQ7: 332 | AR7: 358 | AS7: 360 | AT7: 296 | AU7: 123 | AV7: 67.1 | AW7: 67.9 | AX7: 66.4 | AY7: 1,924 | AZ7: - | BA7: 3 | BB7: 9 | BC7: 14 | BD7: 23 | BE7: 22 | BF7: 42 | BG7: 94 | BH7: 164 | BI7: 280 | BJ7: 302 | BK7: 321 | BL7: 321 | BM7: 241 | BN7: 88 | BO7: 68.4 | BP7: 69.0 | BQ7: 67.6 | BR7: 1,290 | BS7: - | BT7: - | BU7: 3 | BV7: - | BW7: 12 | BX7: 18 | BY7: 44 | BZ7: 92 | CA7: 156 | CB7: 194 | CC7: 193 | CD7: 189 | CE7: 187 | CF7: 143 | CG7: 59 | CH7: 674 | CI7: - | CJ7: - | CK7: - | CL7: 5 | CM7: 13 | CN7: 33 | CO7: 72 | CP7: 92 | CQ7: 105 | CR7: 96 | CS7: 113 | CT7: 100 | CU7: 45 | DC7: 4,251 | DD7: 3,237 | DE7: 1,924 | DF7: 1,199 | DG7: 114 | DH7: 364 | DI7: 303 | DJ7: 347 | DK7: 1,172 | DL7: 151 | DM7: - | DN7: - | DO7: - | DP7: 267 | DQ7: 30 | DR7: 705 | DS7: 9 | DT7: 4 | DU7: - | DV7: 1 | DW7: 4 | DX7: - | DY7: - | DZ7: 1 | EA7: 1,289 | EB7: 90,543 | EC7: 28,678 | ED7: 16,698 | EE7: 45,167 | EF7: 2,089 | EG7: 1,836 | EH7: 1,022 | EI7: 737 | EJ7: 77 | EK7: 2 | EL7: 150 | EM7: 101 | EN7: 2,162 | EO7: 1,401 | EP7: 902 | EQ7: 462 | ER7: 37 | ES7: 362 | ET7: 153 | EU7: 246
A8: 山梨県 | B8: 甲府市 | C8: 甲府市 | E8: 709 | F8: 196 | G8: 46 | H8: 36 | I8: 32 | J8: 18 | K8: 118 | L8: 513 | M8: 514 | N8: 11 | O8: 14 | P8: 17 | Q8: 7 | R8: 17 | S8: 16 | T8: 28 | U8: 43 | V8: 57 | W8: 58 | X8: 69 | Y8: 52 | Z8: 59 | AA8: 43 | AB8: 23 | AC8: 61.0 | AD8: 59.5 | AE8: 62.6 | AF8: 335 | AG8: 3 | AH8: 4 | AI8: 2 | AJ8: 3 | AK8: 5 | AL8: 2 | AM8: 11 | AN8: 22 | AO8: 23 | AP8: 43 | AQ8: 54 | AR8: 45 | AS8: 54 | AT8: 41 | AU8: 23 | AV8: 67.5 | AW8: 68.7 | AX8: 66.3 | AY8: 260 | AZ8: - | BA8: 1 | BB8: 1 | BC8: 2 | BD8: 3 | BE8: 1 | BF8: 5 | BG8: 18 | BH8: 18 | BI8: 38 | BJ8: 44 | BK8: 36 | BL8: 46 | BM8: 33 | BN8: 14 | BO8: 68.6 | BP8: 70.0 | BQ8: 66.6 | BR8: 196 | BS8: - | BT8: - | BU8: - | BV8: - | BW8: - | BX8: 1 | BY8: 2 | BZ8: 11 | CA8: 21 | CB8: 27 | CC8: 37 | CD8: 25 | CE8: 33 | CF8: 26 | CG8: 13 | CH8: 124 | CI8: - | CJ8: - | CK8: - | CL8: 1 | CM8: 1 | CN8: 5 | CO8: 13 | CP8: 13 | CQ8: 26 | CR8: 14 | CS8: 21 | CT8: 20 | CU8: 10 | DC8: 624 | DD8: 446 | DE8: 260 | DF8: 160 | DG8: 26 | DH8: 72 | DI8: 49 | DJ8: 57 | DK8: 165 | DL8: 44 | DM8: - | DN8: - | DO8: - | DP8: 13 | DQ8: 1 | DR8: 103 | DS8: 3 | DT8: - | DU8: - | DV8: - | DW8: - | DX8: - | DY8: - | DZ8: 1 | EA8: 196 | EB8: 10,236 | EC8: 3,378 | ED8: 1,284 | EE8: 5,574 | EF8: 305 | EG8: 269 | EH8: 149 | EI8: 105 | EJ8: 15 | EK8: - | EL8: 27 | EM8: 9 | EN8: 319 | EO8: 177 | EP8: 111 | EQ8: 55 | ER8: 11 | ES8: 72 | ET8: 22 | EU8: 48
A9: 山梨県 | B9: 甲府市 | C9: 甲府市 | D9: 飯田 | E9: 9 | F9: 1 | G9: x | H9: x | I9: x | J9: x | K9: x | L9: 8 | M9: x | N9: x | O9: x | P9: x | Q9: x | R9: x | S9: x | T9: x | U9: x | V9: x | W9: x | X9: x | Y9: x | Z9: x | AA9: x | AB9: x | AC9: 58.3 | AD9: 55.0 | AE9: 65.0 | AF9: x | AG9: x | AH9: x | AI9: x | AJ9: x | AK9: x | AL9: x | AM9: x | AN9: x | AO9: x | AP9: x | AQ9: x | AR9: x | AS9: x | AT9: x | AU9: x | AV9: 66.5 | AW9: 68.0 | AX9: 65.0 | AY9: x | AZ9: x | BA9: x | BB9: x | BC9: x | BD9: x | BE9: x | BF9: x | BG9: x | BH9: x | BI9: x | BJ9: x | BK9: x | BL9: x | BM9: x | BN9: x | BO9: 68.0 | BP9: 68.0 | BQ9: … | BR9: 1 | BS9: - | BT9: - | BU9: - | BV9: - | BW9: - | BX9: - | BY9: - | BZ9: - | CA9: - | CB9: - | CC9: 1 | CD9: - | CE9: - | CF9: - | CG9: - | CH9: 1 | CI9: - | CJ9: - | CK9: - | CL9: - | CM9: - | CN9: - | CO9: - | CP9: - | CQ9: 1 | CR9: - | CS9: - | CT9: - | CU9: - | DC9: 3 | DD9: 2 | DE9: 1 | DF9: 1 | DG9: - | DH9: 1 | DI9: - | DJ9: - | DK9: 1 | DL9: - | DM9: - | DN9: - | DO9: - | DP9: 1 | DQ9: - | DR9: - | DS9: - | DT9: - | DU9: - | DV9: - | DW9: - | DX9: - | DY9: - | DZ9: - | EA9: 1 | EB9: 55 | EC9: - | ED9: 30 | EE9: 25 | EF9: 2 | EG9: 2 | EH9: 1 | EI9: 1 | EJ9: - | EK9: - | EL9: - | EM9: - | EN9: 1 | EO9: - | EP9: - | EQ9: - | ER9: - | ES9: 1 | ET9: - | EU9: -
A10: 山梨県 | B10: 甲府市 | C10: 甲府市 | D10: 住吉本町（１） | E10: 3 | F10: - | G10: - | H10: - | I10: - | J10: - | K10: - | L10: 3 | M10: - | N10: - | O10: - | P10: - | Q10: - | R10: - | S10: - | T10: - | U10: - | V10: - | W10: - | X10: - | Y10: - | Z10: - | AA10: - | AB10: - | AC10: … | AD10: … | AE10: … | AF10: - | AG10: - | AH10: - | AI10: - | AJ10: - | AK10: - | AL10: - | AM10: - | AN10: - | AO10: - | AP10: - | AQ10: - | AR10: - | AS10: - | AT10: - | AU10: - | AV10: … | AW10: … | AX10: … | AY10: - | AZ10: - | BA10: - | BB10: - | BC10: - | BD10: - | BE10: - | BF10: - | BG10: - | BH10: - | BI10: - | BJ10: - | BK10: - | BL10: - | BM10: - | BN10: - | BO10: … | BP10: … | BQ10: … | BR10: - | BS10: - | BT10: - | BU10: - | BV10: - | BW10: - | BX10: - | BY10: - | BZ10: - | CA10: - | CB10: - | CC10: - | CD10: - | CE10: - | CF10: - | CG10: - | CH10: - | CI10: - | CJ10: - | CK10: - | CL10: - | CM10: - | CN10: - | CO10: - | CP10: - | CQ10: - | CR10: - | CS10: - | CT10: - | CU10: - | DC10: - | DD10: - | DE10: - | DF10: - | DG10: - | DH10: - | DI10: - | DJ10: - | DK10: - | DL10: - | DM10: - | DN10: - | DO10: - | DP10: - | DQ10: - | DR10: - | DS10: - | DT10: - | DU10: - | DV10: - | DW10: - | DX10: - | DY10: - | DZ10: - | EA10: - | EB10: - | EC10: - | ED10: - | EE10: - | EF10: - | EG10: - | EH10: - | EI10: - | EJ10: - | EK10: - | EL10: - | EM10: - | EN10: - | EO10: - | EP10: - | EQ10: - | ER10: - | ES10: - | ET10: - | EU10: -
A11: 山梨県 | B11: 甲府市 | C11: 甲府市 | D11: 住吉本町（２） | E11: 2 | F11: - | G11: - | H11: - | I11: - | J11: - | K11: - | L11: 2 | M11: - | N11: - | O11: - | P11: - | Q11: - | R11: - | S11: - | T11: - | U11: - | V11: - | W11: - | X11: - | Y11: - | Z11: - | AA11: - | AB11: - | AC11: … | AD11: … | AE11: … | AF11: - | AG11: - | AH11: - | AI11: - | AJ11: - | AK11: - | AL11: - | AM11: - | AN11: - | AO11: - | AP11: - | AQ11: - | AR11: - | AS11: - | AT11: - | AU11: - | AV11: … | AW11: … | AX11: … | AY11: - | AZ11: - | BA11: - | BB11: - | BC11: - | BD11: - | BE11: - | BF11: - | BG11: - | BH11: - | BI11: - | BJ11: - | BK11: - | BL11: - | BM11: - | BN11: - | BO11: … | BP11: … | BQ11: … | BR11: - | BS11: - | BT11: - | BU11: - | BV11: - | BW11: - | BX11: - | BY11: - | BZ11: - | CA11: - | CB11: - | CC11: - | CD11: - | CE11: - | CF11: - | CG11: - | CH11: - | CI11: - | CJ11: - | CK11: - | CL11: - | CM11: - | CN11: - | CO11: - | CP11: - | CQ11: - | CR11: - | CS11: - | CT11: - | CU11: - | DC11: - | DD11: - | DE11: - | DF11: - | DG11: - | DH11: - | DI11: - | DJ11: - | DK11: - | DL11: - | DM11: - | DN11: - | DO11: - | DP11: - | DQ11: - | DR11: - | DS11: - | DT11: - | DU11: - | DV11: - | DW11: - | DX11: - | DY11: - | DZ11: - | EA11: - | EB11: - | EC11: - | ED11: - | EE11: - | EF11: - | EG11: - | EH11: - | EI11: - | EJ11: - | EK11: - | EL11: - | EM11: - | EN11: - | EO11: - | EP11: - | EQ11: - | ER11: - | ES11: - | ET11: - | EU11: -
A12: 山梨県 | B12: 甲府市 | C12: 甲府市 | D12: 住吉本町（３） | E12: 3 | F12: 1 | G12: x | H12: x | I12: x | J12: x | K12: x | L12: 2 | M12: x | N12: x | O12: x | P12: x | Q12: x | R12: x | S12: x | T12: x | U12: x | V12: x | W12: x | X12: x | Y12: x | Z12: x | AA12: x | AB12: x | AC12: 58.7 | AD12: 63.5 | AE12: 49.0 | AF12: x | AG12: x | AH12: x | AI12: x | AJ12: x | AK12: x | AL12: x | AM12: x | AN12: x | AO12: x | AP12: x | AQ12: x | AR12: x | AS12: x | AT12: x | AU12: x | AV12: 63.5 | AW12: 78.0 | AX12: 49.0 | AY12: x | AZ12: x | BA12: x | BB12: x | BC12: x | BD12: x | BE12: x | BF12: x | BG12: x | BH12: x | BI12: x | BJ12: x | BK12: x | BL12: x | BM12: x | BN12: x | BO12: 78.0 | BP12: 78.0 | BQ12: … | BR12: 1 | BS12: - | BT12: - | BU12: - | BV12: - | BW12: - | BX12: - | BY12: - | BZ12: - | CA12: - | CB12: - | CC12: - | CD12: - | CE12: 1 | CF12: - | CG12: - | CH12: 1 | CI12: - | CJ12: - | CK12: - | CL12: - | CM12: - | CN12: - | CO12: - | CP12: - | CQ12: - | CR12: - | CS12: 1 | CT12: - | CU12: - | DC12: 6 | DD12: 2 | DE12: 1 | DF12: 1 | DG12: - | DH12: 1 | DI12: 3 | DJ12: - | DK12: - | DL12: - | DM12: - | DN12: - | DO12: - | DP12: - | DQ12: - | DR12: - | DS12: - | DT12: - | DU12: - | DV12: - | DW12: - | DX12: - | DY12: - | DZ12: - | EA12: 1 | EB12: 43 | EC12: 28 | ED12: 15 | EE12: - | EF12: 4 | EG12: 2 | EH12: 1 | EI12: 1 | EJ12: - | EK12: - | EL12: 2 | EM12: - | EN12: 2 | EO12: - | EP12: - | EQ12: - | ER12: - | ES12: 1 | ET12: 1 | EU12: -
A13: 山梨県 | B13: 甲府市 | C13: 甲府市 | D13: 愛宕 | E13: 2 | F13: - | G13: - | H13: - | I13: - | J13: - | K13: - | L13: 2 | M13: - | N13: - | O13: - | P13: - | Q13: - | R13: - | S13: - | T13: - | U13: - | V13: - | W13: - | X13: - | Y13: - | Z13: - | AA13: - | AB13: - | AC13: … | AD13: … | AE13: … | AF13: - | AG13: - | AH13: - | AI13: - | AJ13: - | AK13: - | AL13: - | AM13: - | AN13: - | AO13: - | AP13: - | AQ13: - | AR13: - | AS13: - | AT13: - | AU13: - | AV13: … | AW13: … | AX13: … | AY13: - | AZ13: - | BA13: - | BB13: - | BC13: - | BD13: - | BE13: - | BF13: - | BG13: - | BH13: - | BI13: - | BJ13: - | BK13: - | BL13: - | BM13: - | BN13: - | BO13: … | BP13: … | BQ13: … | BR13: - | BS13: - | BT13: - | BU13: - | BV13: - | BW13: - | BX13: - | BY13: - | BZ13: - | CA13: - | CB13: - | CC13: - | CD13: - | CE13: - | CF13: - | CG13: - | CH13: - | CI13: - | CJ13: - | CK13: - | CL13: - | CM13: - | CN13: - | CO13: - | CP13: - | CQ13: - | CR13: - | CS13: - | CT13: - | CU13: - | DC13: - | DD13: - | DE13: - | DF13: - | DG13: - | DH13: - | DI13: - | DJ13: - | DK13: - | DL13: - | DM13: - | DN13: - | DO13: - | DP13: - | DQ13: - | DR13: - | DS13: - | DT13: - | DU13: - | DV13: - | DW13: - | DX13: - | DY13: - | DZ13: - | EA13: - | EB13: - | EC13: - | ED13: - | EE13: - | EF13: - | EG13: - | EH13: - | EI13: - | EJ13: - | EK13: - | EL13: - | EM13: - | EN13: - | EO13: - | EP13: - | EQ13: - | ER13: - | ES13: - | ET13: - | EU13: -
A14: 山梨県 | B14: 甲府市 | C14: 甲府市 | D14: 市街地 | E14: 1 | F14: - | G14: - | H14: - | I14: - | J14: - | K14: - | L14: 1 | M14: - | N14: - | O14: - | P14: - | Q14: - | R14: - | S14: - | T14: - | U14: - | V14: - | W14: - | X14: - | Y14: - | Z14: - | AA14: - | AB14: - | AC14: … | AD14: … | AE14: … | AF14: - | AG14: - | AH14: - | AI14: - | AJ14: - | AK14: - | AL14: - | AM14: - | AN14: - | AO14: - | AP14: - | AQ14: - | AR14: - | AS14: - | AT14: - | AU14: - | AV14: … | AW14: … | AX14: … | AY14: - | AZ14: - | BA14: - | BB14: - | BC14: - | BD14: - | BE14: - | BF14: - | BG14: - | BH14: - | BI14: - | BJ14: - | BK14: - | BL14: - | BM14: - | BN14: - | BO14: … | BP14: … | BQ14: … | BR14: - | BS14: - | BT14: - | BU14: - | BV14: - | BW14: - | BX14: - | BY14: - | BZ14: - | CA14: - | CB14: - | CC14: - | CD14: - | CE14: - | CF14: - | CG14: - | CH14: - | CI14: - | CJ14: - | CK14: - | CL14: - | CM14: - | CN14: - | CO14: - | CP14: - | CQ14: - | CR14: - | CS14: - | CT14: - | CU14: - | DC14: - | DD14: - | DE14: - | DF14: - | DG14: - | DH14: - | DI14: - | DJ14: - | DK14: - | DL14: - | DM14: - | DN14: - | DO14: - | DP14: - | DQ14: - | DR14: - | DS14: - | DT14: - | DU14: - | DV14: - | DW14: - | DX14: - | DY14: - | DZ14: - | EA14: - | EB14: - | EC14: - | ED14: - | EE14: - | EF14: - | EG14: - | EH14: - | EI14: - | EJ14: - | EK14: - | EL14: - | EM14: - | EN14: - | EO14: - | EP14: - | EQ14: - | ER14: - | ES14: - | ET14: - | EU14: -
A15: 山梨県 | B15: 甲府市 | C15: 甲府市 | D15: 城北東 | E15: - | F15: - | G15: - | H15: - | I15: - | J15: - | K15: - | L15: - | M15: - | N15: - | O15: - | P15: - | Q15: - | R15: - | S15: - | T15: - | U15: - | V15: - | W15: - | X15: - | Y15: - | Z15: - | AA15: - | AB15: - | AC15: … | AD15: … | AE15: … | AF15: - | AG15: - | AH15: - | AI15: - | AJ15: - | AK15: - | AL15: - | AM15: - | AN15: - | AO15: - | AP15: - | AQ15: - | AR15: - | AS15: - | AT15: - | AU15: - | AV15: … | AW15: … | AX15: … | AY15: - | AZ15: - | BA15: - | BB15: - | BC15: - | BD15: - | BE15: - | BF15: - | BG15: - | BH15: - | BI15: - | BJ15: - | BK15: - | BL15: - | BM15: - | BN15: - | BO15: … | BP15: … | BQ15: … | BR15: - | BS15: - | BT15: - | BU15: - | BV15: - | BW15: - | BX15: - | BY15: - | BZ15: - | CA15: - | CB15: - | CC15: - | CD15: - | CE15: - | CF15: - | CG15: - | CH15: - | CI15: - | CJ15: - | CK15: - | CL15: - | CM15: - | CN15: - | CO15: - | CP15: - | CQ15: - | CR15: - | CS15: - | CT15: - | CU15: - | DC15: - | DD15: - | DE15: - | DF15: - | DG15: - | DH15: - | DI15: - | DJ15: - | DK15: - | DL15: - | DM15: - | DN15: - | DO15: - | DP15: - | DQ15: - | DR15: - | DS15: - | DT15: - | DU15: - | DV15: - | DW15: - | DX15: - | DY15: - | DZ15: - | EA15: - | EB15: - | EC15: - | ED15: - | EE15: - | EF15: - | EG15: - | EH15: - | EI15: - | EJ15: - | EK15: - | EL15: - | EM15: - | EN15: - | EO15: - | EP15: - | EQ15: - | ER15: - | ES15: - | ET15: - | EU15: -
A16: 山梨県 | B16: 甲府市 | C16: 甲府市 | D16: 城北西 | E16: - | F16: - | G16: - | H16: - | I16: - | J16: - | K16: - | L16: - | M16: - | N16: - | O16: - | P16: - | Q16: - | R16: - | S16: - | T16: - | U16: - | V16: - | W16: - | X16: - | Y16: - | Z16: - | AA16: - | AB16: - | AC16: … | AD16: … | AE16: … | AF16: - | AG16: - | AH16: - | AI16: - | AJ16: - | AK16: - | AL16: - | AM16: - | AN16: - | AO16: - | AP16: - | AQ16: - | AR16: - | AS16: - | AT16: - | AU16: - | AV16: … | AW16: … | AX16: … | AY16: - | AZ16: - | BA16: - | BB16: - | BC16: - | BD16: - | BE16: - | BF16: - | BG16: - | BH16: - | BI16: - | BJ16: - | BK16: - | BL16: - | BM16: - | BN16: - | BO16: … | BP16: … | BQ16: … | BR16: - | BS16: - | BT16: - | BU16: - | BV16: - | BW16: - | BX16: - | BY16: - | BZ16: - | CA16: - | CB16: - | CC16: - | CD16: - | CE16: - | CF16: - | CG16: - | CH16: - | CI16: - | CJ16: - | CK16: - | CL16: - | CM16: - | CN16: - | CO16: - | CP16: - | CQ16: - | CR16: - | CS16: - | CT16: - | CU16: - | DC16: - | DD16: - | DE16: - | DF16: - | DG16: - | DH16: - | DI16: - | DJ16: - | DK16: - | DL16: - | DM16: - | DN16: - | DO16: - | DP16: - | DQ16: - | DR16: - | DS16: - | DT16: - | DU16: - | DV16: - | DW16: - | DX16: - | DY16: - | DZ16: - | EA16: - | EB16: - | EC16: - | ED16: - | EE16: - | EF16: - | EG16: - | EH16: - | EI16: - | EJ16: - | EK16: - | EL16: - | EM16: - | EN16: - | EO16: - | EP16: - | EQ16: - | ER16: - | ES16: - | ET16: - | EU16: -
A17: 山梨県 | B17: 甲府市 | C17: 甲府市 | D17: 南口北 | E17: - | F17: - | G17: - | H17: - | I17: - | J17: - | K17: - | L17: - | M17: - | N17: - | O17: - | P17: - | Q17: - | R17: - | S17: - | T17: - | U17: - | V17: - | W17: - | X17: - | Y17: - | Z17: - | AA17: - | AB17: - | AC17: … | AD17: … | AE17: … | AF17: - | AG17: - | AH17: - | AI17: - | AJ17: - | AK17: - | AL17: - | AM17: - | AN17: - | AO17: - | AP17: - | AQ17: - | AR17: - | AS17: - | AT17: - | AU17: - | AV17: … | AW17: … | AX17: … | AY17: - | AZ17: - | BA17: - | BB17: - | BC17: - | BD17: - | BE17: - | BF17: - | BG17: - | BH17: - | BI17: - | BJ17: - | BK17: - | BL17: - | BM17: - | BN17: - | BO17: … | BP17: … | BQ17: … | BR17: - | BS17: - | BT17: - | BU17: - | BV17: - | BW17: - | BX17: - | BY17: - | BZ17: - | CA17: - | CB17: - | CC17: - | CD17: - | CE17: - | CF17: - | CG17: - | CH17: - | CI17: - | CJ17: - | CK17: - | CL17: - | CM17: - | CN17: - | CO17: - | CP17: - | CQ17: - | CR17: - | CS17: - | CT17: - | CU17: - | DC17: - | DD17: - | DE17: - | DF17: - | DG17: - | DH17: - | DI17: - | DJ17: - | DK17: - | DL17: - | DM17: - | DN17: - | DO17: - | DP17: - | DQ17: - | DR17: - | DS17: - | DT17: - | DU17: - | DV17: - | DW17: - | DX17: - | DY17: - | DZ17: - | EA17: - | EB17: - | EC17: - | ED17: - | EE17: - | EF17: - | EG17: - | EH17: - | EI17: - | EJ17: - | EK17: - | EL17: - | EM17: - | EN17: - | EO17: - | EP17: - | EQ17: - | ER17: - | ES17: - | ET17: - | EU17: -
A18: 山梨県 | B18: 甲府市 | C18: 甲府市 | D18: 朝気北 | E18: - | F18: - | G18: - | H18: - | I18: - | J18: - | K18: - | L18: - | M18: - | N18: - | O18: - | P18: - | Q18: - | R18: - | S18: - | T18: - | U18: - | V18: - | W18: - | X18: - | Y18: - | Z18: - | AA18: - | AB18: - | AC18: … | AD18: … | AE18: … | AF18: - | AG18: - | AH18: - | AI18: - | AJ18: - | AK18: - | AL18: - | AM18: - | AN18: - | AO18: - | AP18: - | AQ18: - | AR18: - | AS18: - | AT18: - | AU18: - | AV18: … | AW18: … | AX18: … | AY18: - | AZ18: - | BA18: - | BB18: - | BC18: - | BD18: - | BE18: - | BF18: - | BG18: - | BH18: - | BI18: - | BJ18: - | BK18: - | BL18: - | BM18: - | BN18: - | BO18: … | BP18: … | BQ18: … | BR18: - | BS18: - | BT18: - | BU18: - | BV18: - | BW18: - | BX18: - | BY18: - | BZ18: - | CA18: - | CB18: - | CC18: - | CD18: - | CE18: - | CF18: - | CG18: - | CH18: - | CI18: - | CJ18: - | CK18: - | CL18: - | CM18: - | CN18: - | CO18: - | CP18: - | CQ18: - | CR18: - | CS18: - | CT18: - | CU18: - | DC18: - | DD18: - | DE18: - | DF18: - | DG18: - | DH18: - | DI18: - | DJ18: - | DK18: - | DL18: - | DM18: - | DN18: - | DO18: - | DP18: - | DQ18: - | DR18: - | DS18: - | DT18: - | DU18: - | DV18: - | DW18: - | DX18: - | DY18: - | DZ18: - | EA18: - | EB18: - | EC18: - | ED18: - | EE18: - | EF18: - | EG18: - | EH18: - | EI18: - | EJ18: - | EK18: - | EL18: - | EM18: - | EN18: - | EO18: - | EP18: - | EQ18: - | ER18: - | ES18: - | ET18: - | EU18: -
A19: 山梨県 | B19: 甲府市 | C19: 甲府市 | D19: 朝気南 | E19: 6 | F19: 2 | G19: x | H19: x | I19: x | J19: x | K19: x | L19: 4 | M19: x | N19: x | O19: x | P19: x | Q19: x | R19: x | S19: x | T19: x | U19: x | V19: x | W19: x | X19: x | Y19: x | Z19: x | AA19: x | AB19: x | AC19: 60.0 | AD19: 61.0 | AE19: 57.0 | AF19: x | AG19: x | AH19: x | AI19: x | AJ19: x | AK19: x | AL19: x | AM19: x | AN19: x | AO19: x | AP19: x | AQ19: x | AR19: x | AS19: x | AT19: x | AU19: x | AV19: 61.0 | AW19: 63.0 | AX19: 57.0 | AY19: x | AZ19: x | BA19: x | BB19: x | BC19: x | BD19: x | BE19: x | BF19: x | BG19: x | BH19: x | BI19: x | BJ19: x | BK19: x | BL19: x | BM19: x | BN19: x | BO19: 63.0 | BP19: 63.0 | BQ19: … | BR19: 2 | BS19: - | BT19: - | BU19: - | BV19: - | BW19: - | BX19: - | BY19: - | BZ19: - | CA19: 1 | CB19: - | CC19: - | CD19: - | CE19: 1 | CF19: - | CG19: - | CH19: 2 | CI19: - | CJ19: - | CK19: - | CL19: - | CM19: - | CN19: - | CO19: 1 | CP19: - | CQ19: - | CR19: - | CS19: 1 | CT19: - | CU19: - | DC19: 6 | DD19: 4 | DE19: 2 | DF19: 1 | DG19: 1 | DH19: 1 | DI19: 1 | DJ19: - | DK19: 2 | DL19: - | DM19: - | DN19: - | DO19: - | DP19: - | DQ19: - | DR19: 1 | DS19: 1 | DT19: - | DU19: - | DV19: - | DW19: - | DX19: - | DY19: - | DZ19: - | EA19: 2 | EB19: 90 | EC19: - | ED19: 60 | EE19: 30 | EF19: 4 | EG19: 4 | EH19: 2 | EI19: 1 | EJ19: 1 | EK19: - | EL19: - | EM19: - | EN19: 2 | EO19: - | EP19: - | EQ19: - | ER19: - | ES19: 1 | ET19: 1 | EU19: -
A20: 山梨県 | B20: 甲府市 | C20: 甲府市 | D20: 南口南 | E20: - | F20: - | G20: - | H20: - | I20: - | J20: - | K20: - | L20: - | M20: - | N20: - | O20: - | P20: - | Q20: - | R20: - | S20: - | T20: - | U20: - | V20: - | W20: - | X20: - | Y20: - | Z20: - | AA20: - | AB20: - | AC20: … | AD20: … | AE20: … | AF20: - | AG20: - | AH20: - | AI20: - | AJ20: - | AK20: - | AL20: - | AM20: - | AN20: - | AO20: - | AP20: - | AQ20: - | AR20: - | AS20: - | AT20: - | AU20: - | AV20: … | AW20: … | AX20: … | AY20: - | AZ20: - | BA20: - | BB20: - | BC20: - | BD20: - | BE20: - | BF20: - | BG20: - | BH20: - | BI20: - | BJ20: - | BK20: - | BL20: - | BM20: - | BN20: - | BO20: … | BP20: … | BQ20: … | BR20: - | BS20: - | BT20: - | BU20: - | BV20: - | BW20: - | BX20: - | BY20: - | BZ20: - | CA20: - | CB20: - | CC20: - | CD20: - | CE20: - | CF20: - | CG20: - | CH20: - | CI20: - | CJ20: - | CK20: - | CL20: - | CM20: - | CN20: - | CO20: - | CP20: - | CQ20: - | CR20: - | CS20: - | CT20: - | CU20: - | DC20: - | DD20: - | DE20: - | DF20: - | DG20: - | DH20: - | DI20: - | DJ20: - | DK20: - | DL20: - | DM20: - | DN20: - | DO20: - | DP20: - | DQ20: - | DR20: - | DS20: - | DT20: - | DU20: - | DV20: - | DW20: - | DX20: - | DY20: - | DZ20: - | EA20: - | EB20: - | EC20: - | ED20: - | EE20: - | EF20: - | EG20: - | EH20: - | EI20: - | EJ20: - | EK20: - | EL20: - | EM20: - | EN20: - | EO20: - | EP20: - | EQ20: - | ER20: - | ES20: - | ET20: - | EU20: -
A21: 山梨県 | B21: 甲府市 | C21: 甲府市 | D21: 伊勢北中 | E21: 1 | F21: - | G21: - | H21: - | I21: - | J21: - | K21: - | L21: 1 | M21: - | N21: - | O21: - | P21: - | Q21: - | R21: - | S21: - | T21: - | U21: - | V21: - | W21: - | X21: - | Y21: - | Z21: - | AA21: - | AB21: - | AC21: … | AD21: … | AE21: … | AF21: - | AG21: - | AH21: - | AI21: - | AJ21: - | AK21: - | AL21: - | AM21: - | AN21: - | AO21: - | AP21: - | AQ21: - | AR21: - | AS21: - | AT21: - | AU21: - | AV21: … | AW21: … | AX21: … | AY21: - | AZ21: - | BA21: - | BB21: - | BC21: - | BD21: - | BE21: - | BF21: - | BG21: - | BH21: - | BI21: - | BJ21: - | BK21: - | BL21: - | BM21: - | BN21: - | BO21: … | BP21: … | BQ21: … | BR21: - | BS21: - | BT21: - | BU21: - | BV21: - | BW21: - | BX21: - | BY21: - | BZ21: - | CA21: - | CB21: - | CC21: - | CD21: - | CE21: - | CF21: - | CG21: - | CH21: - | CI21: - | CJ21: - | CK21: - | CL21: - | CM21: - | CN21: - | CO21: - | CP21: - | CQ21: - | CR21: - | CS21: - | CT21: - | CU21: - | DC21: - | DD21: - | DE21: - | DF21: - | DG21: - | DH21: - | DI21: - | DJ21: - | DK21: - | DL21: - | DM21: - | DN21: - | DO21: - | DP21: - | DQ21: - | DR21: - | DS21: - | DT21: - | DU21: - | DV21: - | DW21: - | DX21: - | DY21: - | DZ21: - | EA21: - | EB21: - | EC21: - | ED21: - | EE21: - | EF21: - | EG21: - | EH21: - | EI21: - | EJ21: - | EK21: - | EL21: - | EM21: - | EN21: - | EO21: - | EP21: - | EQ21: - | ER21: - | ES21: - | ET21: - | EU21: -
A22: 山梨県 | B22: 甲府市 | C22: 甲府市 | D22: 伊勢南 | E22: 1 | F22: - | G22: - | H22: - | I22: - | J22: - | K22: - | L22: 1 | M22: - | N22: - | O22: - | P22: - | Q22: - | R22: - | S22: - | T22: - | U22: - | V22: - | W22: - | X22: - | Y22: - | Z22: - | AA22: - | AB22: - | AC22: … | AD22: … | AE22: … | AF22: - | AG22: - | AH22: - | AI22: - | AJ22: - | AK22: - | AL22: - | AM22: - | AN22: - | AO22: - | AP22: - | AQ22: - | AR22: - | AS22: - | AT22: - | AU22: - | AV22: … | AW22: … | AX22: … | AY22: - | AZ22: - | BA22: - | BB22: - | BC22: - | BD22: - | BE22: - | BF22: - | BG22: - | BH22: - | BI22: - | BJ22: - | BK22: - | BL22: - | BM22: - | BN22: - | BO22: … | BP22: … | BQ22: … | BR22: - | BS22: - | BT22: - | BU22: - | BV22: - | BW22: - | BX22: - | BY22: - | BZ22: - | CA22: - | CB22: - | CC22: - | CD22: - | CE22: - | CF22: - | CG22: - | CH22: - | CI22: - | CJ22: - | CK22: - | CL22: - | CM22: - | CN22: - | CO22: - | CP22: - | CQ22: - | CR22: - | CS22: - | CT22: - | CU22: - | DC22: - | DD22: - | DE22: - | DF22: - | DG22: - | DH22: - | DI22: - | DJ22: - | DK22: - | DL22: - | DM22: - | DN22: - | DO22: - | DP22: - | DQ22: - | DR22: - | DS22: - | DT22: - | DU22: - | DV22: - | DW22: - | DX22: - | DY22: - | DZ22: - | EA22: - | EB22: - | EC22: - | ED22: - | EE22: - | EF22: - | EG22: - | EH22: - | EI22: - | EJ22: - | EK22: - | EL22: - | EM22: - | EN22: - | EO22: - | EP22: - | EQ22: - | ER22: - | ES22: - | ET22: - | EU22: -
A23: 山梨県 | B23: 甲府市 | C23: 甲府市 | D23: 城西北 | E23: - | F23: - | G23: - | H23: - | I23: - | J23: - | K23: - | L23: - | M23: - | N23: - | O23: - | P23: - | Q23: - | R23: - | S23: - | T23: - | U23: - | V23: - | W23: - | X23: - | Y23: - | Z23: - | AA23: - | AB23: - | AC23: … | AD23: … | AE23: … | AF23: - | AG23: - | AH23: - | AI23: - | AJ23: - | AK23: - | AL23: - | AM23: - | AN23: - | AO23: - | AP23: - | AQ23: - | AR23: - | AS23: - | AT23: - | AU23: - | AV23: … | AW23: … | AX23: … | AY23: - | AZ23: - | BA23: - | BB23: - | BC23: - | BD23: - | BE23: - | BF23: - | BG23: - | BH23: - | BI23: - | BJ23: - | BK23: - | BL23: - | BM23: - | BN23: - | BO23: … | BP23: … | BQ23: … | BR23: - | BS23: - | BT23: - | BU23: - | BV23: - | BW23: - | BX23: - | BY23: - | BZ23: - | CA23: - | CB23: - | CC23: - | CD23: - | CE23: - | CF23: - | CG23: - | CH23: - | CI23: - | CJ23: - | CK23: - | CL23: - | CM23: - | CN23: - | CO23: - | CP23: - | CQ23: - | CR23: - | CS23: - | CT23: - | CU23: - | DC23: - | DD23: - | DE23: - | DF23: - | DG23: - | DH23: - | DI23: - | DJ23: - | DK23: - | DL23: - | DM23: - | DN23: - | DO23: - | DP23: - | DQ23: - | DR23: - | DS23: - | DT23: - | DU23: - | DV23: - | DW23: - | DX23: - | DY23: - | DZ23: - | EA23: - | EB23: - | EC23: - | ED23: - | EE23: - | EF23: - | EG23: - | EH23: - | EI23: - | EJ23: - | EK23: - | EL23: - | EM23: - | EN23: - | EO23: - | EP23: - | EQ23: - | ER23: - | ES23: - | ET23: - | EU23: -
A24: 山梨県 | B24: 甲府市 | C24: 甲府市 | D24: 緑が丘 | E24: 2 | F24: 1 | G24: x | H24: x | I24: x | J24: x | K24: x | L24: 1 | M24: x | N24: x | O24: x | P24: x | Q24: x | R24: x | S24: x | T24: x | U24: x | V24: x | W24: x | X24: x | Y24: x | Z24: x | AA24: x | AB24: x | AC24: 51.0 | AD24: 53.0 | AE24: 49.0 | AF24: x | AG24: x | AH24: x | AI24: x | AJ24: x | AK24: x | AL24: x | AM24: x | AN24: x | AO24: x | AP24: x | AQ24: x | AR24: x | AS24: x | AT24: x | AU24: x | AV24: … | AW24: … | AX24: … | AY24: x | AZ24: x | BA24: x | BB24: x | BC24: x | BD24: x | BE24: x | BF24: x | BG24: x | BH24: x | BI24: x | BJ24: x | BK24: x | BL24: x | BM24: x | BN24: x | BO24: … | BP24: … | BQ24: … | BR24: 1 | BS24: - | BT24: - | BU24: - | BV24: - | BW24: - | BX24: - | BY24: - | BZ24: 1 | CA24: - | CB24: - | CC24: - | CD24: - | CE24: - | CF24: - | CG24: - | CH24: - | CI24: - | CJ24: - | CK24: - | CL24: - | CM24: - | CN24: - | CO24: - | CP24: - | CQ24: - | CR24: - | CS24: - | CT24: - | CU24: - | DC24: 2 | DD24: 2 | DE24: - | DF24: 2 | DG24: - | DH24: - | DI24: - | DJ24: - | DK24: 1 | DL24: 1 | DM24: - | DN24: - | DO24: - | DP24: - | DQ24: - | DR24: - | DS24: - | DT24: - | DU24: - | DV24: - | DW24: - | DX24: - | DY24: - | DZ24: - | EA24: 1 | EB24: 35 | EC24: 15 | ED24: 20 | EE24: - | EF24: 1 | EG24: 1 | EH24: - | EI24: 1 | EJ24: - | EK24: - | EL24: - | EM24: - | EN24: 1 | EO24: 1 | EP24: - | EQ24: 1 | ER24: - | ES24: - | ET24: - | EU24: -
A25: 山梨県 | B25: 甲府市 | C25: 甲府市 | D25: 岩窪 | E25: 19 | F25: 1 | G25: x | H25: x | I25: x | J25: x | K25: x | L25: 18 | M25: x | N25: x | O25: x | P25: x | Q25: x | R25: x | S25: x | T25: x | U25: x | V25: x | W25: x | X25: x | Y25: x | Z25: x | AA25: x | AB25: x | AC25: 51.0 | AD25: 48.0 | AE25: 57.0 | AF25: x | AG25: x | AH25: x | AI25: x | AJ25: x | AK25: x | AL25: x | AM25: x | AN25: x | AO25: x | AP25: x | AQ25: x | AR25: x | AS25: x | AT25: x | AU25: x | AV25: 57.0 | AW25: … | AX25: 57.0 | AY25: x | AZ25: x | BA25: x | BB25: x | BC25: x | BD25: x | BE25: x | BF25: x | BG25: x | BH25: x | BI25: x | BJ25: x | BK25: x | BL25: x | BM25: x | BN25: x | BO25: … | BP25: … | BQ25: … | BR25: 1 | BS25: - | BT25: - | BU25: - | BV25: - | BW25: - | BX25: - | BY25: - | BZ25: - | CA25: - | CB25: 1 | CC25: - | CD25: - | CE25: - | CF25: - | CG25: - | CH25: 1 | CI25: - | CJ25: - | CK25: - | CL25: - | CM25: - | CN25: - | CO25: - | CP25: 1 | CQ25: - | CR25: - | CS25: - | CT25: - | CU25: - | DC25: 4 | DD25: 2 | DE25: - | DF25: 2 | DG25: - | DH25: 1 | DI25: - | DJ25: 1 | DK25: - | DL25: - | DM25: - | DN25: - | DO25: - | DP25: - | DQ25: - | DR25: - | DS25: - | DT25: - | DU25: - | DV25: - | DW25: - | DX25: - | DY25: - | DZ25: - | EA25: 1 | EB25: 34 | EC25: 13 | ED25: 4 | EE25: 17 | EF25: 2 | EG25: 2 | EH25: - | EI25: 2 | EJ25: - | EK25: - | EL25: - | EM25: - | EN25: 2 | EO25: - | EP25: - | EQ25: - | ER25: - | ES25: 1 | ET25: - | EU25: 1
A26: 山梨県 | B26: 甲府市 | C26: 甲府市 | D26: 和田 | E26: 21 | F26: 3 | G26: 1 | H26: 1 | I26: - | J26: - | K26: 2 | L26: 18 | M26: 7 | N26: - | O26: - | P26: - | Q26: - | R26: - | S26: - | T26: 1 | U26: - | V26: 1 | W26: 1 | X26: 1 | Y26: 2 | Z26: - | AA26: - | AB26: 1 | AC26: 66.0 | AD26: 59.3 | AE26: 71.0 | AF26: 5 | AG26: - | AH26: - | AI26: - | AJ26: - | AK26: - | AL26: - | AM26: 1 | AN26: - | AO26: - | AP26: - | AQ26: 1 | AR26: 2 | AS26: - | AT26: - | AU26: 1 | AV26: 69.2 | AW26: 59.0 | AX26: 76.0 | AY26: 4 | AZ26: - | BA26: - | BB26: - | BC26: - | BD26: - | BE26: - | BF26: 1 | BG26: - | BH26: - | BI26: - | BJ26: 1 | BK26: 2 | BL26: - | BM26: - | BN26: - | BO26: 64.8 | BP26: 59.0 | BQ26: 70.5 | BR26: 3 | BS26: - | BT26: - | BU26: - | BV26: - | BW26: - | BX26: - | BY26: 1 | BZ26: - | CA26: - | CB26: - | CC26: - | CD26: 1 | CE26: - | CF26: - | CG26: 1 | CH26: 2 | CI26: - | CJ26: - | CK26: - | CL26: - | CM26: - | CN26: - | CO26: - | CP26: - | CQ26: - | CR26: 1 | CS26: - | CT26: - | CU26: 1 | DC26: 7 | DD26: 6 | DE26: 4 | DF26: 2 | DG26: - | DH26: - | DI26: - | DJ26: 1 | DK26: 3 | DL26: - | DM26: - | DN26: - | DO26: - | DP26: 2 | DQ26: - | DR26: 1 | DS26: - | DT26: - | DU26: - | DV26: - | DW26: - | DX26: - | DY26: - | DZ26: - | EA26: 3 | EB26: 141 | EC26: 54 | ED26: 27 | EE26: 60 | EF26: 3 | EG26: 3 | EH26: 2 | EI26: 1 | EJ26: - | EK26: - | EL26: - | EM26: - | EN26: 4 | EO26: 3 | EP26: 2 | EQ26: 1 | ER26: - | ES26: - | ET26: - | EU26: 1
A27: 山梨県 | B27: 甲府市 | C27: 甲府市 | D27: 小松 | E27: 7 | F27: 2 | G27: x | H27: x | I27: x | J27: x | K27: x | L27: 5 | M27: x | N27: x | O27: x | P27: x | Q27: x | R27: x | S27: x | T27: x | U27: x | V27: x | W27: x | X27: x | Y27: x | Z27: x | AA27: x | AB27: x | AC27: 53.3 | AD27: 46.8 | AE27: 64.0 | AF27: x | AG27: x | AH27: x | AI27: x | AJ27: x | AK27: x | AL27: x | AM27: x | AN27: x | AO27: x | AP27: x | AQ27: x | AR27: x | AS27: x | AT27: x | AU27: x | AV27: 68.0 | AW27: 74.0 | AX27: 64.0 | AY27: x | AZ27: x | BA27: x | BB27: x | BC27: x | BD27: x | BE27: x | BF27: x | BG27: x | BH27: x | BI27: x | BJ27: x | BK27: x | BL27: x | BM27: x | BN27: x | BO27: 74.7 | BP27: 74.0 | BQ27: 76.0 | BR27: 2 | BS27: - | BT27: - | BU27: - | BV27: - | BW27: - | BX27: - | BY27: - | BZ27: - | CA27: - | CB27: - | CC27: - | CD27: 1 | CE27: 1 | CF27: - | CG27: - | CH27: 1 | CI27: - | CJ27: - | CK27: - | CL27: - | CM27: - | CN27: - | CO27: - | CP27: - | CQ27: - | CR27: - | CS27: 1 | CT27: - | CU27: - | DC27: 8 | DD27: 4 | DE27: 3 | DF27: 1 | DG27: - | DH27: 2 | DI27: 2 | DJ27: - | DK27: 2 | DL27: 1 | DM27: - | DN27: - | DO27: - | DP27: - | DQ27: - | DR27: 1 | DS27: - | DT27: - | DU27: - | DV27: - | DW27: - | DX27: - | DY27: - | DZ27: - | EA27: 2 | EB27: 75 | EC27: 30 | ED27: 15 | EE27: 30 | EF27: 5 | EG27: 3 | EH27: 2 | EI27: 1 | EJ27: - | EK27: - | EL27: 2 | EM27: - | EN27: 3 | EO27: 1 | EP27: 1 | EQ27: - | ER27: - | ES27: 2 | ET27: - | EU27: -
A28: 山梨県 | B28: 甲府市 | C28: 甲府市 | D28: 塚原 | E28: 58 | F28: 8 | G28: 1 | H28: - | I28: - | J28: - | K28: 7 | L28: 50 | M28: 17 | N28: - | O28: - | P28: - | Q28: - | R28: - | S28: - | T28: - | U28: 2 | V28: - | W28: 3 | X28: 5 | Y28: 2 | Z28: 2 | AA28: 3 | AB28: - | AC28: 68.8 | AD28: 69.3 | AE28: 68.1 | AF28: 11 | AG28: - | AH28: - | AI28: - | AJ28: - | AK28: - | AL28: - | AM28: - | AN28: 1 | AO28: - | AP28: 1 | AQ28: 2 | AR28: 2 | AS28: 2 | AT28: 3 | AU28: - | AV28: 71.8 | AW28: 73.8 | AX28: 69.4 | AY28: 7 | AZ28: - | BA28: - | BB28: - | BC28: - | BD28: - | BE28: - | BF28: - | BG28: 1 | BH28: - | BI28: 1 | BJ28: 1 | BK28: - | BL28: 1 | BM28: 3 | BN28: - | BO28: 72.0 | BP28: 73.5 | BQ28: 70.0 | BR28: 8 | BS28: - | BT28: - | BU28: - | BV28: - | BW28: - | BX28: - | BY28: - | BZ28: 1 | CA28: - | CB28: 1 | CC28: 2 | CD28: 1 | CE28: 1 | CF28: 2 | CG28: - | CH28: 7 | CI28: - | CJ28: - | CK28: - | CL28: - | CM28: - | CN28: 1 | CO28: - | CP28: 1 | CQ28: 2 | CR28: - | CS28: 1 | CT28: 2 | CU28: - | DC28: 23 | DD28: 13 | DE28: 7 | DF28: 5 | DG28: 1 | DH28: 3 | DI28: 3 | DJ28: 4 | DK28: 2 | DL28: - | DM28: - | DN28: - | DO28: - | DP28: - | DQ28: - | DR28: 2 | DS28: - | DT28: - | DU28: - | DV28: - | DW28: - | DX28: - | DY28: - | DZ28: - | EA28: 8 | EB28: 397 | EC28: 147 | ED28: 158 | EE28: 92 | EF28: 10 | EG28: 8 | EH28: 4 | EI28: 3 | EJ28: 1 | EK28: - | EL28: - | EM28: 2 | EN28: 13 | EO28: 5 | EP28: 3 | EQ28: 2 | ER28: - | ES28: 3 | ET28: 3 | EU28: 2
A29: 山梨県 | B29: 甲府市 | C29: 甲府市 | D29: 下積翠寺 | E29: 40 | F29: 1 | G29: x | H29: x | I29: x | J29: x | K29: x | L29: 39 | M29: x | N29: x | O29: x | P29: x | Q29: x | R29: x | S29: x | T29: x | U29: x | V29: x | W29: x | X29: x | Y29: x | Z29: x | AA29: x | AB29: x | AC29: 52.0 | AD29: 67.0 | AE29: 44.5 | AF29: x | AG29: x | AH29: x | AI29: x | AJ29: x | AK29: x | AL29: x | AM29: x | AN29: x | AO29: x | AP29: x | AQ29: x | AR29: x | AS29: x | AT29: x | AU29: x | AV29: 64.5 | AW29: 67.0 | AX29: 62.0 | AY29: x | AZ29: x | BA29: x | BB29: x | BC29: x | BD29: x | BE29: x | BF29: x | BG29: x | BH29: x | BI29: x | BJ29: x | BK29: x | BL29: x | BM29: x | BN29: x | BO29: 67.0 | BP29: 67.0 | BQ29: … | BR29: 1 | BS29: - | BT29: - | BU29: - | BV29: - | BW29: - | BX29: - | BY29: - | BZ29: - | CA29: - | CB29: - | CC29: 1 | CD29: - | CE29: - | CF29: - | CG29: - | CH29: 1 | CI29: - | CJ29: - | CK29: - | CL29: - | CM29: - | CN29: - | CO29: - | CP29: - | CQ29: 1 | CR29: - | CS29: - | CT29: - | CU29: - | DC29: 3 | DD29: 1 | DE29: 1 | DF29: - | DG29: - | DH29: 2 | DI29: - | DJ29: - | DK29: 1 | DL29: - | DM29: - | DN29: - | DO29: - | DP29: - | DQ29: - | DR29: 1 | DS29: - | DT29: - | DU29: - | DV29: - | DW29: - | DX29: - | DY29: - | DZ29: - | EA29: 1 | EB29: 32 | EC29: 23 | ED29: 1 | EE29: 8 | EF29: 1 | EG29: 1 | EH29: 1 | EI29: - | EJ29: - | EK29: - | EL29: - | EM29: - | EN29: 2 | EO29: - | EP29: - | EQ29: - | ER29: - | ES29: 2 | ET29: - | EU29: -
A30: 山梨県 | B30: 甲府市 | C30: 甲府市 | D30: 上積翠寺 | E30: 32 | F30: 5 | G30: - | H30: - | I30: - | J30: - | K30: 5 | L30: 27 | M30: 12 | N30: - | O30: - | P30: - | Q30: - | R30: - | S30: 2 | T30: - | U30: - | V30: - | W30: - | X30: 2 | Y30: 5 | Z30: 2 | AA30: - | AB30: 1 | AC30: 68.4 | AD30: 70.0 | AE30: 66.8 | AF30: 10 | AG30: - | AH30: - | AI30: - | AJ30: - | AK30: - | AL30: - | AM30: - | AN30: - | AO30: - | AP30: - | AQ30: 2 | AR30: 5 | AS30: 2 | AT30: - | AU30: 1 | AV30: 73.5 | AW30: 75.4 | AX30: 71.6 | AY30: 7 | AZ30: - | BA30: - | BB30: - | BC30: - | BD30: - | BE30: - | BF30: - | BG30: - | BH30: - | BI30: - | BJ30: 1 | BK30: 4 | BL30: 1 | BM30: - | BN30: 1 | BO30: 74.1 | BP30: 75.4 | BQ30: 71.0 | BR30: 5 | BS30: - | BT30: - | BU30: - | BV30: - | BW30: - | BX30: - | BY30: - | BZ30: - | CA30: - | CB30: - | CC30: - | CD30: 3 | CE30: 1 | CF30: - | CG30: 1 | CH30: 4 | CI30: - | CJ30: - | CK30: - | CL30: - | CM30: - | CN30: - | CO30: - | CP30: - | CQ30: - | CR30: 3 | CS30: - | CT30: - | CU30: 1 | DC30: 14 | DD30: 11 | DE30: 7 | DF30: 4 | DG30: - | DH30: 2 | DI30: - | DJ30: 1 | DK30: 3 | DL30: 2 | DM30: - | DN30: - | DO30: - | DP30: - | DQ30: - | DR30: - | DS30: - | DT30: - | DU30: - | DV30: - | DW30: - | DX30: - | DY30: - | DZ30: 1 | EA30: 5 | EB30: 195 | EC30: 119 | ED30: 46 | EE30: 30 | EF30: 8 | EG30: 8 | EH30: 5 | EI30: 3 | EJ30: - | EK30: - | EL30: - | EM30: - | EN30: 6 | EO30: 3 | EP30: 2 | EQ30: 1 | ER30: - | ES30: 2 | ET30: - | EU30: 1
A31: 山梨県 | B31: 甲府市 | C31: 甲府市 | D31: 相川南部 | E31: 9 | F31: 2 | G31: x | H31: x | I31: x | J31: x | K31: x | L31: 7 | M31: x | N31: x | O31: x | P31: x | Q31: x | R31: x | S31: x | T31: x | U31: x | V31: x | W31: x | X31: x | Y31: x | Z31: x | AA31: x | AB31: x | AC31: 46.9 | AD31: 45.3 | AE31: 48.0 | AF31: x | AG31: x | AH31: x | AI31: x | AJ31: x | AK31: x | AL31: x | AM31: x | AN31: x | AO31: x | AP31: x | AQ31: x | AR31: x | AS31: x | AT31: x | AU31: x | AV31: 69.0 | AW31: 75.0 | AX31: 66.0 | AY31: x | AZ31: x | BA31: x | BB31: x | BC31: x | BD31: x | BE31: x | BF31: x | BG31: x | BH31: x | BI31: x | BJ31: x | BK31: x | BL31: x | BM31: x | BN31: x | BO31: 59.0 | BP31: … | BQ31: 59.0 | BR31: 2 | BS31: - | BT31: - | BU31: - | BV31: - | BW31: - | BX31: - | BY31: - | BZ31: - | CA31: 1 | CB31: - | CC31: - | CD31: - | CE31: 1 | CF31: - | CG31: - | CH31: 1 | CI31: - | CJ31: - | CK31: - | CL31: - | CM31: - | CN31: - | CO31: - | CP31: - | CQ31: - | CR31: - | CS31: 1 | CT31: - | CU31: - | DC31: 7 | DD31: 2 | DE31: 1 | DF31: 1 | DG31: - | DH31: 1 | DI31: 2 | DJ31: 2 | DK31: 1 | DL31: 1 | DM31: - | DN31: - | DO31: - | DP31: - | DQ31: - | DR31: - | DS31: - | DT31: - | DU31: - | DV31: - | DW31: - | DX31: - | DY31: - | DZ31: - | EA31: 2 | EB31: 62 | EC31: 14 | ED31: 41 | EE31: 7 | EF31: 3 | EG31: 1 | EH31: - | EI31: 1 | EJ31: - | EK31: - | EL31: 1 | EM31: 1 | EN31: 4 | EO31: 1 | EP31: 1 | EQ31: - | ER31: - | ES31: 1 | ET31: 1 | EU31: 1
A32: 山梨県 | B32: 甲府市 | C32: 甲府市 | D32: 日影 | E32: 43 | F32: 1 | G32: x | H32: x | I32: x | J32: x | K32: x | L32: 42 | M32: x | N32: x | O32: x | P32: x | Q32: x | R32: x | S32: x | T32: x | U32: x | V32: x | W32: x | X32: x | Y32: x | Z32: x | AA32: x | AB32: x | AC32: 72.3 | AD32: 72.5 | AE32: 72.0 | AF32: x | AG32: x | AH32: x | AI32: x | AJ32: x | AK32: x | AL32: x | AM32: x | AN32: x | AO32: x | AP32: x | AQ32: x | AR32: x | AS32: x | AT32: x | AU32: x | AV32: 86.0 | AW32: 86.0 | AX32: 86.0 | AY32: x | AZ32: x | BA32: x | BB32: x | BC32: x | BD32: x | BE32: x | BF32: x | BG32: x | BH32: x | BI32: x | BJ32: x | BK32: x | BL32: x | BM32: x | BN32: x | BO32: 86.0 | BP32: 86.0 | BQ32: … | BR32: 1 | BS32: - | BT32: - | BU32: - | BV32: - | BW32: - | BX32: - | BY32: - | BZ32: - | CA32: - | CB32: - | CC32: - | CD32: - | CE32: - | CF32: - | CG32: 1 | CH32: 1 | CI32: - | CJ32: - | CK32: - | CL32: - | CM32: - | CN32: - | CO32: - | CP32: - | CQ32: - | CR32: - | CS32: - | CT32: - | CU32: 1 | DC32: 5 | DD32: 3 | DE32: 1 | DF32: 2 | DG32: - | DH32: 1 | DI32: - | DJ32: 1 | DK32: - | DL32: - | DM32: - | DN32: - | DO32: - | DP32: - | DQ32: - | DR32: - | DS32: - | DT32: - | DU32: - | DV32: - | DW32: - | DX32: - | DY32: - | DZ32: - | EA32: 1 | EB32: 35 | EC32: 15 | ED32: 20 | EE32: - | EF32: 2 | EG32: 2 | EH32: 1 | EI32: 1 | EJ32: - | EK32: - | EL32: - | EM32: - | EN32: 3 | EO32: 1 | EP32: - | EQ32: 1 | ER32: - | ES32: 1 | ET32: - | EU32: 1
A33: 山梨県 | B33: 甲府市 | C33: 甲府市 | D33: 塩部 | E33: - | F33: - | G33: - | H33: - | I33: - | J33: - | K33: - | L33: - | M33: - | N33: - | O33: - | P33: - | Q33: - | R33: - | S33: - | T33: - | U33: - | V33: - | W33: - | X33: - | Y33: - | Z33: - | AA33: - | AB33: - | AC33: … | AD33: … | AE33: … | AF33: - | AG33: - | AH33: - | AI33: - | AJ33: - | AK33: - | AL33: - | AM33: - | AN33: - | AO33: - | AP33: - | AQ33: - | AR33: - | AS33: - | AT33: - | AU33: - | AV33: … | AW33: … | AX33: … | AY33: - | AZ33: - | BA33: - | BB33: - | BC33: - | BD33: - | BE33: - | BF33: - | BG33: - | BH33: - | BI33: - | BJ33: - | BK33: - | BL33: - | BM33: - | BN33: - | BO33: … | BP33: … | BQ33: … | BR33: - | BS33: - | BT33: - | BU33: - | BV33: - | BW33: - | BX33: - | BY33: - | BZ33: - | CA33: - | CB33: - | CC33: - | CD33: - | CE33: - | CF33: - | CG33: - | CH33: - | CI33: - | CJ33: - | CK33: - | CL33: - | CM33: - | CN33: - | CO33: - | CP33: - | CQ33: - | CR33: - | CS33: - | CT33: - | CU33: - | DC33: - | DD33: - | DE33: - | DF33: - | DG33: - | DH33: - | DI33: - | DJ33: - | DK33: - | DL33: - | DM33: - | DN33: - | DO33: - | DP33: - | DQ33: - | DR33: - | DS33: - | DT33: - | DU33: - | DV33: - | DW33: - | DX33: - | DY33: - | DZ33: - | EA33: - | EB33: - | EC33: - | ED33: - | EE33: - | EF33: - | EG33: - | EH33: - | EI33: - | EJ33: - | EK33: - | EL33: - | EM33: - | EN33: - | EO33: - | EP33: - | EQ33: - | ER33: - | ES33: - | ET33: - | EU33: -
A34: 山梨県 | B34: 甲府市 | C34: 甲府市 | D34: 湯村 | E34: 3 | F34: - | G34: - | H34: - | I34: - | J34: - | K34: - | L34: 3 | M34: - | N34: - | O34: - | P34: - | Q34: - | R34: - | S34: - | T34: - | U34: - | V34: - | W34: - | X34: - | Y34: - | Z34: - | AA34: - | AB34: - | AC34: … | AD34: … | AE34: … | AF34: - | AG34: - | AH34: - | AI34: - | AJ34: - | AK34: - | AL34: - | AM34: - | AN34: - | AO34: - | AP34: - | AQ34: - | AR34: - | AS34: - | AT34: - | AU34: - | AV34: … | AW34: … | AX34: … | AY34: - | AZ34: - | BA34: - | BB34: - | BC34: - | BD34: - | BE34: - | BF34: - | BG34: - | BH34: - | BI34: - | BJ34: - | BK34: - | BL34: - | BM34: - | BN34: - | BO34: … | BP34: … | BQ34: … | BR34: - | BS34: - | BT34: - | BU34: - | BV34: - | BW34: - | BX34: - | BY34: - | BZ34: - | CA34: - | CB34: - | CC34: - | CD34: - | CE34: - | CF34: - | CG34: - | CH34: - | CI34: - | CJ34: - | CK34: - | CL34: - | CM34: - | CN34: - | CO34: - | CP34: - | CQ34: - | CR34: - | CS34: - | CT34: - | CU34: - | DC34: - | DD34: - | DE34: - | DF34: - | DG34: - | DH34: - | DI34: - | DJ34: - | DK34: - | DL34: - | DM34: - | DN34: - | DO34: - | DP34: - | DQ34: - | DR34: - | DS34: - | DT34: - | DU34: - | DV34: - | DW34: - | DX34: - | DY34: - | DZ34: - | EA34: - | EB34: - | EC34: - | ED34: - | EE34: - | EF34: - | EG34: - | EH34: - | EI34: - | EJ34: - | EK34: - | EL34: - | EM34: - | EN34: - | EO34: - | EP34: - | EQ34: - | ER34: - | ES34: - | ET34: - | EU34: -
A35: 山梨県 | B35: 甲府市 | C35: 甲府市 | D35: 千塚 | E35: 36 | F35: 7 | G35: - | H35: - | I35: - | J35: - | K35: 7 | L35: 29 | M35: 19 | N35: - | O35: - | P35: - | Q35: - | R35: - | S35: 1 | T35: 1 | U35: 3 | V35: 1 | W35: - | X35: 6 | Y35: 1 | Z35: 3 | AA35: 3 | AB35: - | AC35: 66.2 | AD35: 64.2 | AE35: 68.4 | AF35: 9 | AG35: - | AH35: - | AI35: - | AJ35: - | AK35: - | AL35: - | AM35: - | AN35: - | AO35: - | AP35: - | AQ35: 2 | AR35: 1 | AS35: 3 | AT35: 3 | AU35: - | AV35: 76.2 | AW35: 77.3 | AX35: 75.4 | AY35: 5 | AZ35: - | BA35: - | BB35: - | BC35: - | BD35: - | BE35: - | BF35: - | BG35: - | BH35: - | BI35: - | BJ35: 1 | BK35: - | BL35: 1 | BM35: 3 | BN35: - | BO35: 78.2 | BP35: 77.3 | BQ35: 82.0 | BR35: 7 | BS35: - | BT35: - | BU35: - | BV35: - | BW35: - | BX35: - | BY35: - | BZ35: - | CA35: - | CB35: - | CC35: 3 | CD35: - | CE35: 2 | CF35: 2 | CG35: - | CH35: 6 | CI35: - | CJ35: - | CK35: - | CL35: - | CM35: - | CN35: - | CO35: - | CP35: - | CQ35: 2 | CR35: - | CS35: 2 | CT35: 2 | CU35: - | DC35: 22 | DD35: 16 | DE35: 5 | DF35: 8 | DG35: 3 | DH35: 4 | DI35: - | DJ35: 2 | DK35: 6 | DL35: 4 | DM35: - | DN35: - | DO35: - | DP35: - | DQ35: - | DR35: 1 | DS35: 1 | DT35: - | DU35: - | DV35: - | DW35: - | DX35: - | DY35: - | DZ35: - | EA35: 7 | EB35: 304 | EC35: 181 | ED35: 90 | EE35: 33 | EF35: 10 | EG35: 10 | EH35: 4 | EI35: 5 | EJ35: 1 | EK35: - | EL35: - | EM35: - | EN35: 12 | EO35: 6 | EP35: 1 | EQ35: 3 | ER35: 2 | ES35: 4 | ET35: - | EU35: 2
A36: 山梨県 | B36: 甲府市 | C36: 甲府市 | D36: 山宮 | E36: 42 | F36: 12 | G36: 3 | H36: 3 | I36: 1 | J36: 1 | K36: 8 | L36: 30 | M36: 31 | N36: - | O36: - | P36: 1 | Q36: - | R36: 2 | S36: 1 | T36: 1 | U36: 1 | V36: 5 | W36: 2 | X36: 4 | Y36: 5 | Z36: 4 | AA36: 5 | AB36: - | AC36: 64.1 | AD36: 65.1 | AE36: 63.1 | AF36: 22 | AG36: - | AH36: - | AI36: - | AJ36: - | AK36: - | AL36: - | AM36: - | AN36: - | AO36: 5 | AP36: 2 | AQ36: 3 | AR36: 5 | AS36: 3 | AT36: 4 | AU36: - | AV36: 69.2 | AW36: 70.3 | AX36: 67.9 | AY36: 20 | AZ36: - | BA36: - | BB36: - | BC36: - | BD36: - | BE36: - | BF36: - | BG36: - | BH36: 5 | BI36: 2 | BJ36: 3 | BK36: 5 | BL36: 2 | BM36: 3 | BN36: - | BO36: 68.3 | BP36: 70.3 | BQ36: 65.3 | BR36: 12 | BS36: - | BT36: - | BU36: - | BV36: - | BW36: - | BX36: - | BY36: - | BZ36: - | CA36: 2 | CB36: 1 | CC36: 2 | CD36: 3 | CE36: 2 | CF36: 2 | CG36: - | CH36: 8 | CI36: - | CJ36: - | CK36: - | CL36: - | CM36: - | CN36: - | CO36: 1 | CP36: - | CQ36: 1 | CR36: 2 | CS36: 2 | CT36: 2 | CU36: - | DC36: 38 | DD36: 28 | DE36: 20 | DF36: 6 | DG36: 2 | DH36: 2 | DI36: 4 | DJ36: 4 | DK36: 11 | DL36: 2 | DM36: - | DN36: - | DO36: - | DP36: 1 | DQ36: - | DR36: 8 | DS36: - | DT36: - | DU36: - | DV36: - | DW36: - | DX36: - | DY36: - | DZ36: - | EA36: 12 | EB36: 597 | EC36: 156 | ED36: 41 | EE36: 400 | EF36: 20 | EG36: 17 | EH36: 12 | EI36: 4 | EJ36: 1 | EK36: - | EL36: 3 | EM36: - | EN36: 18 | EO36: 11 | EP36: 8 | EQ36: 2 | ER36: 1 | ES36: 2 | ET36: 1 | EU36: 4
A37: 山梨県 | B37: 甲府市 | C37: 甲府市 | D37: 羽黒 | E37: 18 | F37: 1 | G37: x | H37: x | I37: x | J37: x | K37: x | L37: 17 | M37: x | N37: x | O37: x | P37: x | Q37: x | R37: x | S37: x | T37: x | U37: x | V37: x | W37: x | X37: x | Y37: x | Z37: x | AA37: x | AB37: x | AC37: 56.0 | AD37: 67.0 | AE37: 50.5 | AF37: x | AG37: x | AH37: x | AI37: x | AJ37: x | AK37: x | AL37: x | AM37: x | AN37: x | AO37: x | AP37: x | AQ37: x | AR37: x | AS37: x | AT37: x | AU37: x | AV37: 67.0 | AW37: 67.0 | AX37: … | AY37: x | AZ37: x | BA37: x | BB37: x | BC37: x | BD37: x | BE37: x | BF37: x | BG37: x | BH37: x | BI37: x | BJ37: x | BK37: x | BL37: x | BM37: x | BN37: x | BO37: 67.0 | BP37: 67.0 | BQ37: … | BR37: 1 | BS37: - | BT37: - | BU37: - | BV37: - | BW37: - | BX37: - | BY37: - | BZ37: - | CA37: - | CB37: - | CC37: 1 | CD37: - | CE37: - | CF37: - | CG37: - | CH37: 1 | CI37: - | CJ37: - | CK37: - | CL37: - | CM37: - | CN37: - | CO37: - | CP37: - | CQ37: 1 | CR37: - | CS37: - | CT37: - | CU37: - | DC37: 4 | DD37: 2 | DE37: 1 | DF37: 1 | DG37: - | DH37: 1 | DI37: - | DJ37: 1 | DK37: 1 | DL37: 1 | DM37: - | DN37: - | DO37: - | DP37: - | DQ37: - | DR37: - | DS37: - | DT37: - | DU37: - | DV37: - | DW37: - | DX37: - | DY37: - | DZ37: - | EA37: 1 | EB37: 60 | EC37: 30 | ED37: 20 | EE37: 10 | EF37: 1 | EG37: 1 | EH37: 1 | EI37: - | EJ37: - | EK37: - | EL37: - | EM37: - | EN37: 3 | EO37: 1 | EP37: - | EQ37: 1 | ER37: - | ES37: 1 | ET37: - | EU37: 1
A38: 山梨県 | B38: 甲府市 | C38: 甲府市 | D38: 下河原 | E38: 21 | F38: 4 | G38: 1 | H38: - | I38: - | J38: - | K38: 3 | L38: 17 | M38: 15 | N38: 1 | O38: - | P38: - | Q38: - | R38: 3 | S38: - | T38: 2 | U38: - | V38: - | W38: - | X38: 2 | Y38: 5 | Z38: 1 | AA38: - | AB38: 1 | AC38: 59.6 | AD38: 54.4 | AE38: 65.6 | AF38: 9 | AG38: 1 | AH38: - | AI38: - | AJ38: - | AK38: 2 | AL38: - | AM38: - | AN38: - | AO38: - | AP38: - | AQ38: 2 | AR38: 2 | AS38: 1 | AT38: - | AU38: 1 | AV38: 60.2 | AW38: 55.0 | AX38: 66.8 | AY38: 5 | AZ38: - | BA38: - | BB38: - | BC38: - | BD38: 1 | BE38: - | BF38: - | BG38: - | BH38: - | BI38: - | BJ38: 1 | BK38: 1 | BL38: 1 | BM38: - | BN38: 1 | BO38: 69.4 | BP38: 64.0 | BQ38: 91.0 | BR38: 4 | BS38: - | BT38: - | BU38: - | BV38: - | BW38: - | BX38: - | BY38: - | BZ38: - | CA38: - | CB38: - | CC38: 1 | CD38: 2 | CE38: 1 | CF38: - | CG38: - | CH38: 3 | CI38: - | CJ38: - | CK38: - | CL38: - | CM38: - | CN38: - | CO38: - | CP38: - | CQ38: 1 | CR38: 1 | CS38: 1 | CT38: - | CU38: - | DC38: 16 | DD38: 11 | DE38: 5 | DF38: 6 | DG38: - | DH38: 3 | DI38: 2 | DJ38: - | DK38: 3 | DL38: 3 | DM38: - | DN38: - | DO38: - | DP38: - | DQ38: - | DR38: - | DS38: - | DT38: - | DU38: - | DV38: - | DW38: - | DX38: - | DY38: - | DZ38: - | EA38: 4 | EB38: 235 | EC38: 148 | ED38: 82 | EE38: 5 | EF38: 8 | EG38: 7 | EH38: 4 | EI38: 3 | EJ38: - | EK38: - | EL38: 1 | EM38: - | EN38: 8 | EO38: 4 | EP38: 1 | EQ38: 3 | ER38: - | ES38: 3 | ET38: 1 | EU38: -
A39: 山梨県 | B39: 甲府市 | C39: 甲府市 | D39: 富竹 | E39: 20 | F39: 12 | G39: - | H39: - | I39: 3 | J39: 1 | K39: 9 | L39: 8 | M39: 37 | N39: - | O39: 1 | P39: 4 | Q39: - | R39: 1 | S39: 2 | T39: 4 | U39: 1 | V39: 3 | W39: 4 | X39: 3 | Y39: 4 | Z39: 5 | AA39: 3 | AB39: 2 | AC39: 59.9 | AD39: 54.9 | AE39: 66.6 | AF39: 17 | AG39: - | AH39: - | AI39: - | AJ39: - | AK39: - | AL39: - | AM39: - | AN39: - | AO39: - | AP39: 2 | AQ39: 2 | AR39: 4 | AS39: 4 | AT39: 3 | AU39: 2 | AV39: 75.5 | AW39: 75.6 | AX39: 75.5 | AY39: 11 | AZ39: - | BA39: - | BB39: - | BC39: - | BD39: - | BE39: - | BF39: - | BG39: - | BH39: - | BI39: 1 | BJ39: 2 | BK39: 3 | BL39: 4 | BM39: 1 | BN39: - | BO39: 73.2 | BP39: 73.5 | BQ39: 72.8 | BR39: 12 | BS39: - | BT39: - | BU39: - | BV39: - | BW39: - | BX39: - | BY39: - | BZ39: - | CA39: 1 | CB39: 2 | CC39: 2 | CD39: 2 | CE39: 3 | CF39: 1 | CG39: 1 | CH39: 11 | CI39: - | CJ39: - | CK39: - | CL39: - | CM39: - | CN39: - | CO39: 1 | CP39: 2 | CQ39: 2 | CR39: 2 | CS39: 2 | CT39: 1 | CU39: 1 | DC39: 43 | DD39: 33 | DE39: 11 | DF39: 18 | DG39: 4 | DH39: 5 | DI39: 1 | DJ39: 4 | DK39: 10 | DL39: 10 | DM39: - | DN39: - | DO39: - | DP39: - | DQ39: - | DR39: - | DS39: - | DT39: - | DU39: - | DV39: - | DW39: - | DX39: - | DY39: - | DZ39: - | EA39: 12 | EB39: 600 | EC39: 495 | ED39: 64 | EE39: 41 | EF39: 24 | EG39: 22 | EH39: 6 | EI39: 14 | EJ39: 2 | EK39: - | EL39: - | EM39: 2 | EN39: 19 | EO39: 11 | EP39: 5 | EQ39: 4 | ER39: 2 | ES39: 5 | ET39: 1 | EU39: 2
A40: 山梨県 | B40: 甲府市 | C40: 甲府市 | D40: 徳行 | E40: 13 | F40: 2 | G40: x | H40: x | I40: x | J40: x | K40: x | L40: 11 | M40: x | N40: x | O40: x | P40: x | Q40: x | R40: x | S40: x | T40: x | U40: x | V40: x | W40: x | X40: x | Y40: x | Z40: x | AA40: x | AB40: x | AC40: 59.0 | AD40: 53.0 | AE40: 65.0 | AF40: x | AG40: x | AH40: x | AI40: x | AJ40: x | AK40: x | AL40: x | AM40: x | AN40: x | AO40: x | AP40: x | AQ40: x | AR40: x | AS40: x | AT40: x | AU40: x | AV40: 65.0 | AW40: 68.0 | AX40: 62.0 | AY40: x | AZ40: x | BA40: x | BB40: x | BC40: x | BD40: x | BE40: x | BF40: x | BG40: x | BH40: x | BI40: x | BJ40: x | BK40: x | BL40: x | BM40: x | BN40: x | BO40: 65.0 | BP40: 68.0 | BQ40: 62.0 | BR40: 2 | BS40: - | BT40: - | BU40: - | BV40: - | BW40: - | BX40: - | BY40: - | BZ40: - | CA40: - | CB40: - | CC40: 2 | CD40: - | CE40: - | CF40: - | CG40: - | CH40: 2 | CI40: - | CJ40: - | CK40: - | CL40: - | CM40: - | CN40: - | CO40: - | CP40: - | CQ40: 2 | CR40: - | CS40: - | CT40: - | CU40: - | DC40: 6 | DD40: 4 | DE40: 2 | DF40: 1 | DG40: 1 | DH40: 1 | DI40: - | DJ40: 1 | DK40: 1 | DL40: - | DM40: - | DN40: - | DO40: - | DP40: 1 | DQ40: - | DR40: - | DS40: - | DT40: - | DU40: - | DV40: - | DW40: - | DX40: - | DY40: - | DZ40: - | EA40: 2 | EB40: 161 | EC40: 161 | ED40: - | EE40: - | EF40: 2 | EG40: 2 | EH40: 1 | EI40: 1 | EJ40: - | EK40: - | EL40: - | EM40: - | EN40: 4 | EO40: 2 | EP40: 1 | EQ40: - | ER40: 1 | ES40: 1 | ET40: - | EU40: 1
A41: 山梨県 | B41: 甲府市 | C41: 甲府市 | D41: 上石田 | E41: 17 | F41: 9 | G41: 1 | H41: - | I41: 1 | J41: 1 | K41: 7 | L41: 8 | M41: 23 | N41: - | O41: - | P41: - | Q41: - | R41: 1 | S41: 1 | T41: 3 | U41: 1 | V41: 1 | W41: 3 | X41: 3 | Y41: 2 | Z41: 4 | AA41: 3 | AB41: 1 | AC41: 65.1 | AD41: 63.6 | AE41: 66.4 | AF41: 13 | AG41: - | AH41: - | AI41: - | AJ41: - | AK41: - | AL41: - | AM41: - | AN41: - | AO41: - | AP41: 3 | AQ41: 3 | AR41: 1 | AS41: 3 | AT41: 2 | AU41: 1 | AV41: 72.0 | AW41: 72.6 | AX41: 71.3 | AY41: 11 | AZ41: - | BA41: - | BB41: - | BC41: - | BD41: - | BE41: - | BF41: - | BG41: - | BH41: - | BI41: 3 | BJ41: 3 | BK41: 1 | BL41: 2 | BM41: 2 | BN41: - | BO41: 70.5 | BP41: 72.6 | BQ41: 67.0 | BR41: 9 | BS41: - | BT41: - | BU41: - | BV41: - | BW41: - | BX41: - | BY41: - | BZ41: - | CA41: 1 | CB41: 1 | CC41: 2 | CD41: 2 | CE41: 1 | CF41: 2 | CG41: - | CH41: 5 | CI41: - | CJ41: - | CK41: - | CL41: - | CM41: - | CN41: - | CO41: 1 | CP41: - | CQ41: - | CR41: 1 | CS41: 1 | CT41: 2 | CU41: - | DC41: 30 | DD41: 19 | DE41: 11 | DF41: 8 | DG41: - | DH41: 3 | DI41: 5 | DJ41: 3 | DK41: 8 | DL41: 6 | DM41: - | DN41: - | DO41: - | DP41: 1 | DQ41: - | DR41: - | DS41: 1 | DT41: - | DU41: - | DV41: - | DW41: - | DX41: - | DY41: - | DZ41: - | EA41: 9 | EB41: 503 | EC41: 407 | ED41: 55 | EE41: 41 | EF41: 15 | EG41: 11 | EH41: 7 | EI41: 4 | EJ41: - | EK41: - | EL41: 4 | EM41: - | EN41: 15 | EO41: 8 | EP41: 4 | EQ41: 4 | ER41: - | ES41: 3 | ET41: 1 | EU41: 3
A42: 山梨県 | B42: 甲府市 | C42: 甲府市 | D42: 酒折 | E42: 10 | F42: 7 | G42: 2 | H42: 1 | I42: 2 | J42: 1 | K42: 3 | L42: 3 | M42: 21 | N42: - | O42: 2 | P42: 1 | Q42: - | R42: 1 | S42: - | T42: - | U42: 3 | V42: 5 | W42: 1 | X42: 2 | Y42: - | Z42: 4 | AA42: 2 | AB42: - | AC42: 57.7 | AD42: 57.5 | AE42: 57.9 | AF42: 12 | AG42: - | AH42: - | AI42: - | AJ42: - | AK42: 1 | AL42: - | AM42: - | AN42: 2 | AO42: 2 | AP42: - | AQ42: 2 | AR42: - | AS42: 3 | AT42: 2 | AU42: - | AV42: 65.3 | AW42: 72.2 | AX42: 60.4 | AY42: 10 | AZ42: - | BA42: - | BB42: - | BC42: - | BD42: 1 | BE42: - | BF42: - | BG42: 1 | BH42: 1 | BI42: - | BJ42: 2 | BK42: - | BL42: 3 | BM42: 2 | BN42: - | BO42: 67.4 | BP42: 72.2 | BQ42: 62.6 | BR42: 7 | BS42: - | BT42: - | BU42: - | BV42: - | BW42: - | BX42: - | BY42: - | BZ42: 1 | CA42: 1 | CB42: 1 | CC42: 1 | CD42: - | CE42: 1 | CF42: 2 | CG42: - | CH42: 4 | CI42: - | CJ42: - | CK42: - | CL42: - | CM42: - | CN42: - | CO42: 1 | CP42: - | CQ42: 1 | CR42: - | CS42: 1 | CT42: 1 | CU42: - | DC42: 24 | DD42: 18 | DE42: 10 | DF42: 8 | DG42: - | DH42: 2 | DI42: - | DJ42: 4 | DK42: 7 | DL42: - | DM42: - | DN42: - | DO42: - | DP42: - | DQ42: - | DR42: 7 | DS42: - | DT42: - | DU42: - | DV42: - | DW42: - | DX42: - | DY42: - | DZ42: - | EA42: 7 | EB42: 370 | EC42: - | ED42: - | EE42: 370 | EF42: 12 | EG42: 12 | EH42: 5 | EI42: 7 | EJ42: - | EK42: - | EL42: - | EM42: - | EN42: 12 | EO42: 6 | EP42: 5 | EQ42: 1 | ER42: - | ES42: 2 | ET42: - | EU42: 4
A43: 山梨県 | B43: 甲府市 | C43: 甲府市 | D43: 西山 | E43: 20 | F43: 15 | G43: 9 | H43: 8 | I43: 1 | J43: - | K43: 5 | L43: 5 | M43: 36 | N43: 1 | O43: 1 | P43: - | Q43: 1 | R43: 1 | S43: 2 | T43: 3 | U43: 5 | V43: 3 | W43: 5 | X43: 3 | Y43: 2 | Z43: 5 | AA43: 4 | AB43: - | AC43: 59.0 | AD43: 60.4 | AE43: 57.4 | AF43: 31 | AG43: 1 | AH43: 1 | AI43: - | AJ43: 1 | AK43: - | AL43: 1 | AM43: 3 | AN43: 4 | AO43: 1 | AP43: 5 | AQ43: 3 | AR43: 2 | AS43: 5 | AT43: 4 | AU43: - | AV43: 60.7 | AW43: 61.1 | AX43: 60.1 | AY43: 27 | AZ43: - | BA43: 1 | BB43: - | BC43: 1 | BD43: - | BE43: 1 | BF43: 1 | BG43: 4 | BH43: 1 | BI43: 5 | BJ43: 3 | BK43: 2 | BL43: 5 | BM43: 3 | BN43: - | BO43: 62.5 | BP43: 63.9 | BQ43: 60.5 | BR43: 15 | BS43: - | BT43: - | BU43: - | BV43: - | BW43: - | BX43: - | BY43: - | BZ43: 2 | CA43: 2 | CB43: 3 | CC43: 2 | CD43: - | CE43: 2 | CF43: 3 | CG43: 1 | CH43: 10 | CI43: - | CJ43: - | CK43: - | CL43: - | CM43: - | CN43: 1 | CO43: 1 | CP43: 3 | CQ43: 2 | CR43: - | CS43: 1 | CT43: 1 | CU43: 1 | DC43: 48 | DD43: 33 | DE43: 27 | DF43: 5 | DG43: 1 | DH43: 5 | DI43: 6 | DJ43: 4 | DK43: 15 | DL43: - | DM43: - | DN43: - | DO43: - | DP43: - | DQ43: - | DR43: 15 | DS43: - | DT43: - | DU43: - | DV43: - | DW43: - | DX43: - | DY43: - | DZ43: - | EA43: 15 | EB43: 1,064 | EC43: - | ED43: 40 | EE43: 1,024 | EF43: 22 | EG43: 18 | EH43: 16 | EI43: 1 | EJ43: 1 | EK43: - | EL43: 2 | EM43: 2 | EN43: 26 | EO43: 15 | EP43: 11 | EQ43: 4 | ER43: - | ES43: 5 | ET43: 4 | EU43: 2
A44: 山梨県 | B44: 甲府市 | C44: 甲府市 | D44: 東光寺東 | E44: 25 | F44: 18 | G44: 6 | H44: 6 | I44: 6 | J44: 4 | K44: 6 | L44: 7 | M44: 50 | N44: 2 | O44: 3 | P44: 2 | Q44: 1 | R44: - | S44: - | T44: - | U44: 10 | V44: 9 | W44: 6 | X44: 5 | Y44: - | Z44: 3 | AA44: 7 | AB44: 2 | AC44: 57.8 | AD44: 54.0 | AE44: 61.6 | AF44: 31 | AG44: - | AH44: - | AI44: - | AJ44: - | AK44: - | AL44: - | AM44: - | AN44: 8 | AO44: 3 | AP44: 5 | AQ44: 3 | AR44: - | AS44: 3 | AT44: 7 | AU44: 2 | AV44: 66.5 | AW44: 67.9 | AX44: 65.9 | AY44: 28 | AZ44: - | BA44: - | BB44: - | BC44: - | BD44: - | BE44: - | BF44: - | BG44: 8 | BH44: 3 | BI44: 4 | BJ44: 3 | BK44: - | BL44: 3 | BM44: 6 | BN44: 1 | BO44: 65.4 | BP44: 67.9 | BQ44: 64.2 | BR44: 18 | BS44: - | BT44: - | BU44: - | BV44: - | BW44: - | BX44: - | BY44: - | BZ44: 2 | CA44: 4 | CB44: 2 | CC44: 3 | CD44: - | CE44: 2 | CF44: 4 | CG44: 1 | CH44: 6 | CI44: - | CJ44: - | CK44: - | CL44: - | CM44: - | CN44: - | CO44: 1 | CP44: - | CQ44: 1 | CR44: - | CS44: 1 | CT44: 3 | CU44: - | DC44: 56 | DD44: 47 | DE44: 28 | DF44: 17 | DG44: 2 | DH44: 3 | DI44: 4 | DJ44: 2 | DK44: 18 | DL44: - | DM44: - | DN44: - | DO44: - | DP44: - | DQ44: - | DR44: 18 | DS44: - | DT44: - | DU44: - | DV44: - | DW44: - | DX44: - | DY44: - | DZ44: - | EA44: 18 | EB44: 1,007 | EC44: - | ED44: 1 | EE44: 1,006 | EF44: 27 | EG44: 24 | EH44: 9 | EI44: 13 | EJ44: 2 | EK44: - | EL44: 3 | EM44: - | EN44: 29 | EO44: 23 | EP44: 19 | EQ44: 4 | ER44: - | ES44: 3 | ET44: 1 | EU44: 2
A45: 山梨県 | B45: 甲府市 | C45: 甲府市 | D45: 善光寺 | E45: 32 | F45: 21 | G45: 5 | H45: 2 | I45: 5 | J45: 3 | K45: 11 | L45: 11 | M45: 49 | N45: - | O45: - | P45: 1 | Q45: 1 | R45: 1 | S45: 2 | T45: 2 | U45: 2 | V45: 5 | W45: 6 | X45: 9 | Y45: 5 | Z45: 7 | AA45: 2 | AB45: 6 | AC45: 66.0 | AD45: 66.5 | AE45: 65.6 | AF45: 39 | AG45: - | AH45: - | AI45: - | AJ45: - | AK45: - | AL45: - | AM45: 1 | AN45: 2 | AO45: 2 | AP45: 5 | AQ45: 9 | AR45: 5 | AS45: 7 | AT45: 2 | AU45: 6 | AV45: 71.2 | AW45: 73.3 | AX45: 69.3 | AY45: 33 | AZ45: - | BA45: - | BB45: - | BC45: - | BD45: - | BE45: - | BF45: 1 | BG45: 1 | BH45: 1 | BI45: 5 | BJ45: 7 | BK45: 4 | BL45: 7 | BM45: 2 | BN45: 5 | BO45: 71.6 | BP45: 73.3 | BQ45: 69.5 | BR45: 21 | BS45: - | BT45: - | BU45: - | BV45: - | BW45: - | BX45: - | BY45: 1 | BZ45: - | CA45: 1 | CB45: 3 | CC45: 4 | CD45: 2 | CE45: 5 | CF45: 2 | CG45: 3 | CH45: 4 | CI45: - | CJ45: - | CK45: - | CL45: - | CM45: 1 | CN45: - | CO45: - | CP45: - | CQ45: 1 | CR45: - | CS45: 1 | CT45: - | CU45: 1 | DC45: 61 | DD45: 52 | DE45: 33 | DF45: 18 | DG45: 1 | DH45: 6 | DI45: 2 | DJ45: 1 | DK45: 21 | DL45: - | DM45: - | DN45: - | DO45: - | DP45: - | DQ45: - | DR45: 21 | DS45: - | DT45: - | DU45: - | DV45: - | DW45: - | DX45: - | DY45: - | DZ45: - | EA45: 21 | EB45: 770 | EC45: - | ED45: - | EE45: 770 | EF45: 27 | EG45: 26 | EH45: 18 | EI45: 8 | EJ45: - | EK45: - | EL45: 1 | EM45: - | EN45: 34 | EO45: 26 | EP45: 15 | EQ45: 10 | ER45: 1 | ES45: 6 | ET45: 1 | EU45: 1
A46: 山梨県 | B46: 甲府市 | C46: 甲府市 | D46: 城東 | E46: 3 | F46: 3 | G46: 1 | H46: 1 | I46: 2 | J46: 2 | K46: - | L46: - | M46: 8 | N46: - | O46: 1 | P46: - | Q46: - | R46: - | S46: - | T46: 1 | U46: 2 | V46: 2 | W46: 1 | X46: - | Y46: 1 | Z46: - | AA46: - | AB46: - | AC46: 53.0 | AD46: 48.5 | AE46: 57.5 | AF46: 5 | AG46: - | AH46: - | AI46: - | AJ46: - | AK46: - | AL46: - | AM46: 1 | AN46: 1 | AO46: 2 | AP46: 1 | AQ46: - | AR46: - | AS46: - | AT46: - | AU46: - | AV46: 55.8 | AW46: 60.5 | AX46: 52.7 | AY46: 5 | AZ46: - | BA46: - | BB46: - | BC46: - | BD46: - | BE46: - | BF46: 1 | BG46: 1 | BH46: 2 | BI46: 1 | BJ46: - | BK46: - | BL46: - | BM46: - | BN46: - | BO46: 55.8 | BP46: 60.5 | BQ46: 52.7 | BR46: 3 | BS46: - | BT46: - | BU46: - | BV46: - | BW46: - | BX46: - | BY46: - | BZ46: 1 | CA46: 1 | CB46: 1 | CC46: - | CD46: - | CE46: - | CF46: - | CG46: - | CH46: 1 | CI46: - | CJ46: - | CK46: - | CL46: - | CM46: - | CN46: - | CO46: - | CP46: 1 | CQ46: - | CR46: - | CS46: - | CT46: - | CU46: - | DC46: 11 | DD46: 8 | DE46: 5 | DF46: 2 | DG46: 1 | DH46: - | DI46: 1 | DJ46: 2 | DK46: 3 | DL46: - | DM46: - | DN46: - | DO46: - | DP46: - | DQ46: - | DR46: 3 | DS46: - | DT46: - | DU46: - | DV46: - | DW46: - | DX46: - | DY46: - | DZ46: - | EA46: 3 | EB46: 193 | EC46: - | ED46: - | EE46: 193 | EF46: 4 | EG46: 3 | EH46: 2 | EI46: 1 | EJ46: - | EK46: - | EL46: 1 | EM46: - | EN46: 7 | EO46: 5 | EP46: 3 | EQ46: 1 | ER46: 1 | ES46: - | ET46: - | EU46: 2
A47: 山梨県 | B47: 甲府市 | C47: 甲府市 | D47: 北原 | E47: 23 | F47: 19 | G47: 8 | H47: 8 | I47: 3 | J47: 2 | K47: 8 | L47: 4 | M47: 46 | N47: - | O47: 2 | P47: 4 | Q47: 2 | R47: 1 | S47: - | T47: - | U47: 2 | V47: 5 | W47: 11 | X47: 6 | Y47: 4 | Z47: 5 | AA47: 2 | AB47: 2 | AC47: 59.3 | AD47: 59.3 | AE47: 59.2 | AF47: 37 | AG47: - | AH47: 1 | AI47: 2 | AJ47: 1 | AK47: 1 | AL47: - | AM47: - | AN47: - | AO47: 3 | AP47: 10 | AQ47: 6 | AR47: 4 | AS47: 5 | AT47: 2 | AU47: 2 | AV47: 63.4 | AW47: 65.2 | AX47: 61.7 | AY47: 31 | AZ47: - | BA47: - | BB47: 1 | BC47: 1 | BD47: - | BE47: - | BF47: - | BG47: - | BH47: 3 | BI47: 10 | BJ47: 6 | BK47: 4 | BL47: 5 | BM47: - | BN47: 1 | BO47: 64.6 | BP47: 66.9 | BQ47: 61.9 | BR47: 19 | BS47: - | BT47: - | BU47: - | BV47: - | BW47: - | BX47: - | BY47: - | BZ47: - | CA47: 2 | CB47: 5 | CC47: 4 | CD47: 3 | CE47: 4 | CF47: - | CG47: 1 | CH47: 5 | CI47: - | CJ47: - | CK47: - | CL47: - | CM47: - | CN47: - | CO47: 2 | CP47: - | CQ47: 2 | CR47: - | CS47: - | CT47: - | CU47: 1 | DC47: 53 | DD47: 42 | DE47: 31 | DF47: 9 | DG47: 2 | DH47: 2 | DI47: 2 | DJ47: 7 | DK47: 18 | DL47: - | DM47: - | DN47: - | DO47: - | DP47: - | DQ47: - | DR47: 18 | DS47: - | DT47: - | DU47: - | DV47: - | DW47: - | DX47: - | DY47: - | DZ47: - | EA47: 19 | EB47: 1,191 | EC47: - | ED47: 10 | EE47: 1,181 | EF47: 27 | EG47: 25 | EH47: 17 | EI47: 7 | EJ47: 1 | EK47: - | EL47: 1 | EM47: 1 | EN47: 26 | EO47: 17 | EP47: 14 | EQ47: 2 | ER47: 1 | ES47: 2 | ET47: 1 | EU47: 6
A48: 山梨県 | B48: 甲府市 | C48: 甲府市 | D48: 金竹 | E48: 8 | F48: 4 | G48: - | H48: - | I48: - | J48: - | K48: 4 | L48: 4 | M48: 8 | N48: - | O48: - | P48: - | Q48: - | R48: - | S48: - | T48: 1 | U48: 2 | V48: 3 | W48: - | X48: 2 | Y48: - | Z48: - | AA48: - | AB48: - | AC48: 56.8 | AD48: 58.0 | AE48: 55.5 | AF48: 4 | AG48: - | AH48: - | AI48: - | AJ48: - | AK48: - | AL48: - | AM48: - | AN48: 1 | AO48: 1 | AP48: - | AQ48: 2 | AR48: - | AS48: - | AT48: - | AU48: - | AV48: 61.0 | AW48: 69.0 | AX48: 58.3 | AY48: 1 | AZ48: - | BA48: - | BB48: - | BC48: - | BD48: - | BE48: - | BF48: - | BG48: - | BH48: - | BI48: - | BJ48: 1 | BK48: - | BL48: - | BM48: - | BN48: - | BO48: 69.0 | BP48: 69.0 | BQ48: … | BR48: 4 | BS48: - | BT48: - | BU48: - | BV48: - | BW48: - | BX48: - | BY48: - | BZ48: 1 | CA48: 2 | CB48: - | CC48: 1 | CD48: - | CE48: - | CF48: - | CG48: - | CH48: 4 | CI48: - | CJ48: - | CK48: - | CL48: - | CM48: - | CN48: 1 | CO48: 2 | CP48: - | CQ48: 1 | CR48: - | CS48: - | CT48: - | CU48: - | DC48: 13 | DD48: 6 | DE48: 1 | DF48: 3 | DG48: 2 | DH48: 3 | DI48: 1 | DJ48: 3 | DK48: 2 | DL48: - | DM48: - | DN48: - | DO48: - | DP48: - | DQ48: - | DR48: 2 | DS48: - | DT48: - | DU48: - | DV48: - | DW48: - | DX48: - | DY48: - | DZ48: - | EA48: 4 | EB48: 261 | EC48: 106 | ED48: 87 | EE48: 68 | EF48: 5 | EG48: 5 | EH48: 1 | EI48: 3 | EJ48: 1 | EK48: - | EL48: - | EM48: - | EN48: 8 | EO48: 1 | EP48: - | EQ48: - | ER48: 1 | ES48: 3 | ET48: 1 | EU48: 3
A49: 山梨県 | B49: 甲府市 | C49: 甲府市 | D49: 長松寺 | E49: 5 | F49: - | G49: - | H49: - | I49: - | J49: - | K49: - | L49: 5 | M49: - | N49: - | O49: - | P49: - | Q49: - | R49: - | S49: - | T49: - | U49: - | V49: - | W49: - | X49: - | Y49: - | Z49: - | AA49: - | AB49: - | AC49: … | AD49: … | AE49: … | AF49: - | AG49: - | AH49: - | AI49: - | AJ49: - | AK49: - | AL49: - | AM49: - | AN49: - | AO49: - | AP49: - | AQ49: - | AR49: - | AS49: - | AT49: - | AU49: - | AV49: … | AW49: … | AX49: … | AY49: - | AZ49: - | BA49: - | BB49: - | BC49: - | BD49: - | BE49: - | BF49: - | BG49: - | BH49: - | BI49: - | BJ49: - | BK49: - | BL49: - | BM49: - | BN49: - | BO49: … | BP49: … | BQ49: … | BR49: - | BS49: - | BT49: - | BU49: - | BV49: - | BW49: - | BX49: - | BY49: - | BZ49: - | CA49: - | CB49: - | CC49: - | CD49: - | CE49: - | CF49: - | CG49: - | CH49: - | CI49: - | CJ49: - | CK49: - | CL49: - | CM49: - | CN49: - | CO49: - | CP49: - | CQ49: - | CR49: - | CS49: - | CT49: - | CU49: - | DC49: - | DD49: - | DE49: - | DF49: - | DG49: - | DH49: - | DI49: - | DJ49: - | DK49: - | DL49: - | DM49: - | DN49: - | DO49: - | DP49: - | DQ49: - | DR49: - | DS49: - | DT49: - | DU49: - | DV49: - | DW49: - | DX49: - | DY49: - | DZ49: - | EA49: - | EB49: - | EC49: - | ED49: - | EE49: - | EF49: - | EG49: - | EH49: - | EI49: - | EJ49: - | EK49: - | EL49: - | EM49: - | EN49: - | EO49: - | EP49: - | EQ49: - | ER49: - | ES49: - | ET49: - | EU49: -
A50: 山梨県 | B50: 甲府市 | C50: 甲府市 | D50: 新田 | E50: 9 | F50: 1 | G50: x | H50: x | I50: x | J50: x | K50: x | L50: 8 | M50: x | N50: x | O50: x | P50: x | Q50: x | R50: x | S50: x | T50: x | U50: x | V50: x | W50: x | X50: x | Y50: x | Z50: x | AA50: x | AB50: x | AC50: 51.5 | AD50: 36.5 | AE50: 66.5 | AF50: x | AG50: x | AH50: x | AI50: x | AJ50: x | AK50: x | AL50: x | AM50: x | AN50: x | AO50: x | AP50: x | AQ50: x | AR50: x | AS50: x | AT50: x | AU50: x | AV50: 66.5 | AW50: … | AX50: 66.5 | AY50: x | AZ50: x | BA50: x | BB50: x | BC50: x | BD50: x | BE50: x | BF50: x | BG50: x | BH50: x | BI50: x | BJ50: x | BK50: x | BL50: x | BM50: x | BN50: x | BO50: 84.0 | BP50: … | BQ50: 84.0 | BR50: 1 | BS50: - | BT50: - | BU50: - | BV50: - | BW50: - | BX50: - | BY50: - | BZ50: - | CA50: - | CB50: - | CC50: - | CD50: - | CE50: - | CF50: 1 | CG50: - | CH50: 1 | CI50: - | CJ50: - | CK50: - | CL50: - | CM50: - | CN50: - | CO50: - | CP50: - | CQ50: - | CR50: - | CS50: - | CT50: 1 | CU50: - | DC50: 4 | DD50: 2 | DE50: 1 | DF50: 1 | DG50: - | DH50: 1 | DI50: 1 | DJ50: - | DK50: 1 | DL50: 1 | DM50: - | DN50: - | DO50: - | DP50: - | DQ50: - | DR50: - | DS50: - | DT50: - | DU50: - | DV50: - | DW50: - | DX50: - | DY50: - | DZ50: - | EA50: 1 | EB50: 80 | EC50: 60 | ED50: 15 | EE50: 5 | EF50: 2 | EG50: 1 | EH50: - | EI50: 1 | EJ50: - | EK50: - | EL50: 1 | EM50: - | EN50: 2 | EO50: 1 | EP50: 1 | EQ50: - | ER50: - | ES50: 1 | ET50: - | EU50: -
A51: 山梨県 | B51: 甲府市 | C51: 甲府市 | D51: 下飯田 | E51: 18 | F51: 4 | G51: 1 | H51: 1 | I51: 2 | J51: 1 | K51: 1 | L51: 14 | M51: 14 | N51: 1 | O51: 1 | P51: - | Q51: - | R51: 1 | S51: 2 | T51: - | U51: 3 | V51: 1 | W51: - | X51: 2 | Y51: 1 | Z51: 1 | AA51: 1 | AB51: - | AC51: 52.0 | AD51: 50.0 | AE51: 54.0 | AF51: 7 | AG51: - | AH51: - | AI51: - | AJ51: - | AK51: - | AL51: 1 | AM51: - | AN51: 2 | AO51: - | AP51: - | AQ51: 2 | AR51: - | AS51: 1 | AT51: 1 | AU51: - | AV51: 62.0 | AW51: 66.0 | AX51: 59.0 | AY51: 5 | AZ51: - | BA51: - | BB51: - | BC51: - | BD51: - | BE51: - | BF51: - | BG51: 1 | BH51: - | BI51: - | BJ51: 2 | BK51: - | BL51: 1 | BM51: 1 | BN51: - | BO51: 67.8 | BP51: 66.0 | BQ51: 70.5 | BR51: 4 | BS51: - | BT51: - | BU51: - | BV51: - | BW51: - | BX51: 1 | BY51: - | BZ51: 1 | CA51: - | CB51: - | CC51: 1 | CD51: - | CE51: - | CF51: 1 | CG51: - | CH51: 4 | CI51: - | CJ51: - | CK51: - | CL51: 1 | CM51: - | CN51: 1 | CO51: - | CP51: - | CQ51: 1 | CR51: - | CS51: - | CT51: 1 | CU51: - | DC51: 17 | DD51: 11 | DE51: 5 | DF51: 5 | DG51: 1 | DH51: 2 | DI51: 2 | DJ51: 2 | DK51: 3 | DL51: 1 | DM51: - | DN51: - | DO51: - | DP51: 1 | DQ51: - | DR51: 1 | DS51: - | DT51: - | DU51: - | DV51: - | DW51: - | DX51: - | DY51: - | DZ51: - | EA51: 4 | EB51: 218 | EC51: 162 | ED51: 33 | EE51: 23 | EF51: 7 | EG51: 6 | EH51: 3 | EI51: 2 | EJ51: 1 | EK51: - | EL51: 1 | EM51: - | EN51: 10 | EO51: 5 | EP51: 2 | EQ51: 3 | ER51: - | ES51: 2 | ET51: 1 | EU51: 2
A52: 山梨県 | B52: 甲府市 | C52: 甲府市 | D52: 中村 | E52: 14 | F52: 5 | G52: 1 | H52: - | I52: - | J52: - | K52: 4 | L52: 9 | M52: 9 | N52: - | O52: - | P52: - | Q52: - | R52: 1 | S52: - | T52: - | U52: - | V52: 1 | W52: 1 | X52: 2 | Y52: 1 | Z52: - | AA52: 2 | AB52: 1 | AC52: 68.0 | AD52: 67.7 | AE52: 68.7 | AF52: 6 | AG52: - | AH52: - | AI52: - | AJ52: - | AK52: 1 | AL52: - | AM52: - | AN52: - | AO52: - | AP52: - | AQ52: 1 | AR52: 1 | AS52: - | AT52: 2 | AU52: 1 | AV52: 71.0 | AW52: 68.8 | AX52: 82.0 | AY52: 5 | AZ52: - | BA52: - | BB52: - | BC52: - | BD52: 1 | BE52: - | BF52: - | BG52: - | BH52: - | BI52: - | BJ52: 1 | BK52: 1 | BL52: - | BM52: 1 | BN52: 1 | BO52: 68.8 | BP52: 68.8 | BQ52: … | BR52: 5 | BS52: - | BT52: - | BU52: - | BV52: - | BW52: - | BX52: - | BY52: - | BZ52: - | CA52: - | CB52: 1 | CC52: 1 | CD52: 1 | CE52: - | CF52: 1 | CG52: 1 | CH52: 5 | CI52: - | CJ52: - | CK52: - | CL52: - | CM52: - | CN52: - | CO52: - | CP52: 1 | CQ52: 1 | CR52: 1 | CS52: - | CT52: 1 | CU52: 1 | DC52: 15 | DD52: 10 | DE52: 5 | DF52: 5 | DG52: - | DH52: 2 | DI52: 1 | DJ52: 2 | DK52: 3 | DL52: - | DM52: - | DN52: - | DO52: - | DP52: - | DQ52: - | DR52: 3 | DS52: - | DT52: - | DU52: - | DV52: - | DW52: - | DX52: - | DY52: - | DZ52: - | EA52: 5 | EB52: 208 | EC52: 50 | ED52: 79 | EE52: 79 | EF52: 8 | EG52: 8 | EH52: 5 | EI52: 3 | EJ52: - | EK52: - | EL52: - | EM52: - | EN52: 7 | EO52: 2 | EP52: - | EQ52: 2 | ER52: - | ES52: 2 | ET52: 1 | EU52: 2
A53: 山梨県 | B53: 甲府市 | C53: 甲府市 | D53: 荒川 | E53: 27 | F53: 3 | G53: - | H53: - | I53: - | J53: - | K53: 3 | L53: 24 | M53: 9 | N53: - | O53: 1 | P53: - | Q53: 1 | R53: 1 | S53: - | T53: 1 | U53: - | V53: 1 | W53: 1 | X53: 1 | Y53: 2 | Z53: - | AA53: - | AB53: - | AC53: 51.8 | AD53: 50.2 | AE53: 53.8 | AF53: 6 | AG53: - | AH53: - | AI53: - | AJ53: 1 | AK53: - | AL53: - | AM53: 1 | AN53: - | AO53: - | AP53: 1 | AQ53: 1 | AR53: 2 | AS53: - | AT53: - | AU53: - | AV53: 58.5 | AW53: 68.0 | AX53: 53.8 | AY53: 2 | AZ53: - | BA53: - | BB53: - | BC53: - | BD53: - | BE53: - | BF53: - | BG53: - | BH53: - | BI53: - | BJ53: 1 | BK53: 1 | BL53: - | BM53: - | BN53: - | BO53: 68.0 | BP53: 68.0 | BQ53: … | BR53: 3 | BS53: - | BT53: - | BU53: - | BV53: - | BW53: - | BX53: - | BY53: - | BZ53: - | CA53: 1 | CB53: - | CC53: 1 | CD53: 1 | CE53: - | CF53: - | CG53: - | CH53: 3 | CI53: - | CJ53: - | CK53: - | CL53: - | CM53: - | CN53: - | CO53: 1 | CP53: - | CQ53: 1 | CR53: 1 | CS53: - | CT53: - | CU53: - | DC53: 9 | DD53: 4 | DE53: 2 | DF53: 2 | DG53: - | DH53: 4 | DI53: 1 | DJ53: - | DK53: 1 | DL53: 1 | DM53: - | DN53: - | DO53: - | DP53: - | DQ53: - | DR53: - | DS53: - | DT53: - | DU53: - | DV53: - | DW53: - | DX53: - | DY53: - | DZ53: - | EA53: 3 | EB53: 114 | EC53: 83 | ED53: 15 | EE53: 16 | EF53: 5 | EG53: 4 | EH53: 2 | EI53: 2 | EJ53: - | EK53: - | EL53: 1 | EM53: - | EN53: 4 | EO53: - | EP53: - | EQ53: - | ER53: - | ES53: 4 | ET53: - | EU53: -
A54: 山梨県 | B54: 甲府市 | C54: 甲府市 | D54: 下石田 | E54: 10 | F54: 2 | G54: x | H54: x | I54: x | J54: x | K54: x | L54: 8 | M54: x | N54: x | O54: x | P54: x | Q54: x | R54: x | S54: x | T54: x | U54: x | V54: x | W54: x | X54: x | Y54: x | Z54: x | AA54: x | AB54: x | AC54: 61.8 | AD54: 58.5 | AE54: 75.0 | AF54: x | AG54: x | AH54: x | AI54: x | AJ54: x | AK54: x | AL54: x | AM54: x | AN54: x | AO54: x | AP54: x | AQ54: x | AR54: x | AS54: x | AT54: x | AU54: x | AV54: 77.5 | AW54: 80.0 | AX54: 75.0 | AY54: x | AZ54: x | BA54: x | BB54: x | BC54: x | BD54: x | BE54: x | BF54: x | BG54: x | BH54: x | BI54: x | BJ54: x | BK54: x | BL54: x | BM54: x | BN54: x | BO54: 77.5 | BP54: 80.0 | BQ54: 75.0 | BR54: 2 | BS54: - | BT54: - | BU54: - | BV54: - | BW54: - | BX54: - | BY54: - | BZ54: - | CA54: - | CB54: - | CC54: 1 | CD54: - | CE54: - | CF54: 1 | CG54: - | CH54: 2 | CI54: - | CJ54: - | CK54: - | CL54: - | CM54: - | CN54: - | CO54: - | CP54: - | CQ54: 1 | CR54: - | CS54: - | CT54: 1 | CU54: - | DC54: 7 | DD54: 6 | DE54: 2 | DF54: 4 | DG54: - | DH54: 1 | DI54: - | DJ54: - | DK54: 1 | DL54: - | DM54: - | DN54: - | DO54: - | DP54: 1 | DQ54: - | DR54: - | DS54: - | DT54: - | DU54: - | DV54: - | DW54: - | DX54: - | DY54: - | DZ54: - | EA54: 2 | EB54: 51 | EC54: 36 | ED54: 15 | EE54: - | EF54: 4 | EG54: 4 | EH54: 1 | EI54: 3 | EJ54: - | EK54: - | EL54: - | EM54: - | EN54: 3 | EO54: 2 | EP54: 1 | EQ54: 1 | ER54: - | ES54: 1 | ET54: - | EU54: -
A55: 山梨県 | B55: 甲府市 | C55: 甲府市 | D55: 上小河原 | E55: 17 | F55: 4 | G55: - | H55: - | I55: - | J55: - | K55: 4 | L55: 13 | M55: 8 | N55: - | O55: - | P55: - | Q55: - | R55: - | S55: - | T55: - | U55: - | V55: - | W55: 3 | X55: - | Y55: 2 | Z55: 1 | AA55: 1 | AB55: 1 | AC55: 73.1 | AD55: 75.0 | AE55: 70.0 | AF55: 4 | AG55: - | AH55: - | AI55: - | AJ55: - | AK55: - | AL55: - | AM55: - | AN55: - | AO55: - | AP55: 1 | AQ55: - | AR55: 1 | AS55: - | AT55: 1 | AU55: 1 | AV55: 77.5 | AW55: 78.7 | AX55: 74.0 | AY55: 4 | AZ55: - | BA55: - | BB55: - | BC55: - | BD55: - | BE55: - | BF55: - | BG55: - | BH55: - | BI55: 1 | BJ55: - | BK55: 1 | BL55: - | BM55: 1 | BN55: 1 | BO55: 77.5 | BP55: 78.7 | BQ55: 74.0 | BR55: 4 | BS55: - | BT55: - | BU55: - | BV55: - | BW55: - | BX55: - | BY55: - | BZ55: - | CA55: - | CB55: 1 | CC55: - | CD55: - | CE55: 1 | CF55: 1 | CG55: 1 | CH55: 3 | CI55: - | CJ55: - | CK55: - | CL55: - | CM55: - | CN55: - | CO55: - | CP55: - | CQ55: - | CR55: - | CS55: 1 | CT55: 1 | CU55: 1 | DC55: 11 | DD55: 9 | DE55: 4 | DF55: 4 | DG55: 1 | DH55: 1 | DI55: - | DJ55: 1 | DK55: 2 | DL55: 1 | DM55: - | DN55: - | DO55: - | DP55: 1 | DQ55: - | DR55: - | DS55: - | DT55: - | DU55: - | DV55: - | DW55: - | DX55: - | DY55: - | DZ55: - | EA55: 4 | EB55: 241 | EC55: 204 | ED55: 27 | EE55: 10 | EF55: 6 | EG55: 6 | EH55: 3 | EI55: 2 | EJ55: 1 | EK55: - | EL55: - | EM55: - | EN55: 5 | EO55: 3 | EP55: 1 | EQ55: 2 | ER55: - | ES55: 1 | ET55: - | EU55: 1
A56: 山梨県 | B56: 甲府市 | C56: 甲府市 | D56: 上条新居 | E56: 18 | F56: - | G56: - | H56: - | I56: - | J56: - | K56: - | L56: 18 | M56: - | N56: - | O56: - | P56: - | Q56: - | R56: - | S56: - | T56: - | U56: - | V56: - | W56: - | X56: - | Y56: - | Z56: - | AA56: - | AB56: - | AC56: … | AD56: … | AE56: … | AF56: - | AG56: - | AH56: - | AI56: - | AJ56: - | AK56: - | AL56: - | AM56: - | AN56: - | AO56: - | AP56: - | AQ56: - | AR56: - | AS56: - | AT56: - | AU56: - | AV56: … | AW56: … | AX56: … | AY56: - | AZ56: - | BA56: - | BB56: - | BC56: - | BD56: - | BE56: - | BF56: - | BG56: - | BH56: - | BI56: - | BJ56: - | BK56: - | BL56: - | BM56: - | BN56: - | BO56: … | BP56: … | BQ56: … | BR56: - | BS56: - | BT56: - | BU56: - | BV56: - | BW56: - | BX56: - | BY56: - | BZ56: - | CA56: - | CB56: - | CC56: - | CD56: - | CE56: - | CF56: - | CG56: - | CH56: - | CI56: - | CJ56: - | CK56: - | CL56: - | CM56: - | CN56: - | CO56: - | CP56: - | CQ56: - | CR56: - | CS56: - | CT56: - | CU56: - | DC56: - | DD56: - | DE56: - | DF56: - | DG56: - | DH56: - | DI56: - | DJ56: - | DK56: - | DL56: - | DM56: - | DN56: - | DO56: - | DP56: - | DQ56: - | DR56: - | DS56: - | DT56: - | DU56: - | DV56: - | DW56: - | DX56: - | DY56: - | DZ56: - | EA56: - | EB56: - | EC56: - | ED56: - | EE56: - | EF56: - | EG56: - | EH56: - | EI56: - | EJ56: - | EK56: - | EL56: - | EM56: - | EN56: - | EO56: - | EP56: - | EQ56: - | ER56: - | ES56: - | ET56: - | EU56: -
A57: 山梨県 | B57: 甲府市 | C57: 甲府市 | D57: 古上条 | E57: 10 | F57: 2 | G57: x | H57: x | I57: x | J57: x | K57: x | L57: 8 | M57: x | N57: x | O57: x | P57: x | Q57: x | R57: x | S57: x | T57: x | U57: x | V57: x | W57: x | X57: x | Y57: x | Z57: x | AA57: x | AB57: x | AC57: 75.3 | AD57: 78.0 | AE57: 72.5 | AF57: x | AG57: x | AH57: x | AI57: x | AJ57: x | AK57: x | AL57: x | AM57: x | AN57: x | AO57: x | AP57: x | AQ57: x | AR57: x | AS57: x | AT57: x | AU57: x | AV57: 75.3 | AW57: 78.0 | AX57: 72.5 | AY57: x | AZ57: x | BA57: x | BB57: x | BC57: x | BD57: x | BE57: x | BF57: x | BG57: x | BH57: x | BI57: x | BJ57: x | BK57: x | BL57: x | BM57: x | BN57: x | BO57: 75.3 | BP57: 78.0 | BQ57: 72.5 | BR57: 2 | BS57: - | BT57: - | BU57: - | BV57: - | BW57: - | BX57: - | BY57: - | BZ57: - | CA57: - | CB57: - | CC57: - | CD57: 1 | CE57: - | CF57: 1 | CG57: - | CH57: 2 | CI57: - | CJ57: - | CK57: - | CL57: - | CM57: - | CN57: - | CO57: - | CP57: - | CQ57: - | CR57: 1 | CS57: - | CT57: 1 | CU57: - | DC57: 4 | DD57: 4 | DE57: 4 | DF57: - | DG57: - | DH57: - | DI57: - | DJ57: - | DK57: 2 | DL57: 2 | DM57: - | DN57: - | DO57: - | DP57: - | DQ57: - | DR57: - | DS57: - | DT57: - | DU57: - | DV57: - | DW57: - | DX57: - | DY57: - | DZ57: - | EA57: 2 | EB57: 95 | EC57: 85 | ED57: 10 | EE57: - | EF57: 2 | EG57: 2 | EH57: 2 | EI57: - | EJ57: - | EK57: - | EL57: - | EM57: - | EN57: 2 | EO57: 2 | EP57: 2 | EQ57: - | ER57: - | ES57: - | ET57: - | EU57: -
A58: 山梨県 | B58: 甲府市 | C58: 甲府市 | D58: 後屋 | E58: 17 | F58: 12 | G58: 3 | H58: 2 | I58: 1 | J58: 1 | K58: 8 | L58: 5 | M58: 36 | N58: 1 | O58: 2 | P58: 3 | Q58: - | R58: - | S58: 1 | T58: 1 | U58: 3 | V58: 4 | W58: 7 | X58: 2 | Y58: 4 | Z58: 4 | AA58: 1 | AB58: 3 | AC58: 59.8 | AD58: 55.7 | AE58: 64.5 | AF58: 24 | AG58: 1 | AH58: 2 | AI58: - | AJ58: - | AK58: - | AL58: - | AM58: - | AN58: 1 | AO58: 1 | AP58: 5 | AQ58: 2 | AR58: 4 | AS58: 4 | AT58: 1 | AU58: 3 | AV58: 65.8 | AW58: 62.7 | AX58: 68.8 | AY58: 17 | AZ58: - | BA58: - | BB58: - | BC58: - | BD58: - | BE58: - | BF58: - | BG58: 1 | BH58: 1 | BI58: 4 | BJ58: 1 | BK58: 4 | BL58: 3 | BM58: 1 | BN58: 2 | BO58: 71.9 | BP58: 70.7 | BQ58: 73.6 | BR58: 12 | BS58: - | BT58: - | BU58: - | BV58: - | BW58: - | BX58: - | BY58: - | BZ58: 1 | CA58: 1 | CB58: 4 | CC58: 1 | CD58: 2 | CE58: 2 | CF58: - | CG58: 1 | CH58: 11 | CI58: - | CJ58: - | CK58: - | CL58: - | CM58: - | CN58: 1 | CO58: 1 | CP58: 4 | CQ58: 1 | CR58: 1 | CS58: 2 | CT58: - | CU58: 1 | DC58: 42 | DD58: 27 | DE58: 17 | DF58: 7 | DG58: 3 | DH58: 6 | DI58: 5 | DJ58: 4 | DK58: 11 | DL58: 7 | DM58: - | DN58: - | DO58: - | DP58: 3 | DQ58: 1 | DR58: - | DS58: - | DT58: - | DU58: - | DV58: - | DW58: - | DX58: - | DY58: - | DZ58: - | EA58: 12 | EB58: 686 | EC58: 523 | ED58: 163 | EE58: - | EF58: 21 | EG58: 17 | EH58: 10 | EI58: 5 | EJ58: 2 | EK58: - | EL58: 3 | EM58: 1 | EN58: 21 | EO58: 10 | EP58: 7 | EQ58: 2 | ER58: 1 | ES58: 6 | ET58: 2 | EU58: 3
A59: 山梨県 | B59: 甲府市 | C59: 甲府市 | D59: 高畑 | E59: 14 | F59: 1 | G59: x | H59: x | I59: x | J59: x | K59: x | L59: 13 | M59: x | N59: x | O59: x | P59: x | Q59: x | R59: x | S59: x | T59: x | U59: x | V59: x | W59: x | X59: x | Y59: x | Z59: x | AA59: x | AB59: x | AC59: 79.5 | AD59: 79.0 | AE59: 80.0 | AF59: x | AG59: x | AH59: x | AI59: x | AJ59: x | AK59: x | AL59: x | AM59: x | AN59: x | AO59: x | AP59: x | AQ59: x | AR59: x | AS59: x | AT59: x | AU59: x | AV59: 79.5 | AW59: 79.0 | AX59: 80.0 | AY59: x | AZ59: x | BA59: x | BB59: x | BC59: x | BD59: x | BE59: x | BF59: x | BG59: x | BH59: x | BI59: x | BJ59: x | BK59: x | BL59: x | BM59: x | BN59: x | BO59: 79.5 | BP59: 79.0 | BQ59: 80.0 | BR59: 1 | BS59: - | BT59: - | BU59: - | BV59: - | BW59: - | BX59: - | BY59: - | BZ59: - | CA59: - | CB59: - | CC59: - | CD59: - | CE59: 1 | CF59: - | CG59: - | CH59: 1 | CI59: - | CJ59: - | CK59: - | CL59: - | CM59: - | CN59: - | CO59: - | CP59: - | CQ59: - | CR59: - | CS59: 1 | CT59: - | CU59: - | DC59: 2 | DD59: 2 | DE59: 2 | DF59: - | DG59: - | DH59: - | DI59: - | DJ59: - | DK59: 1 | DL59: - | DM59: - | DN59: - | DO59: - | DP59: 1 | DQ59: - | DR59: - | DS59: - | DT59: - | DU59: - | DV59: - | DW59: - | DX59: - | DY59: - | DZ59: - | EA59: 1 | EB59: 33 | EC59: 33 | ED59: - | EE59: - | EF59: 1 | EG59: 1 | EH59: 1 | EI59: - | EJ59: - | EK59: - | EL59: - | EM59: - | EN59: 1 | EO59: 1 | EP59: 1 | EQ59: - | ER59: - | ES59: - | ET59: - | EU59: -
A60: 山梨県 | B60: 甲府市 | C60: 山城村 | E60: 139 | F60: 85 | G60: 22 | H60: 16 | I60: 24 | J60: 8 | K60: 39 | L60: 54 | M60: 234 | N60: 6 | O60: 4 | P60: 15 | Q60: 8 | R60: 9 | S60: 11 | T60: 18 | U60: 20 | V60: 28 | W60: 27 | X60: 23 | Y60: 18 | Z60: 19 | AA60: 19 | AB60: 9 | AC60: 57.4 | AD60: 55.9 | AE60: 58.9 | AF60: 146 | AG60: 3 | AH60: - | AI60: 2 | AJ60: 3 | AK60: 2 | AL60: 3 | AM60: 4 | AN60: 5 | AO60: 14 | AP60: 23 | AQ60: 22 | AR60: 18 | AS60: 19 | AT60: 19 | AU60: 9 | AV60: 66.0 | AW60: 67.1 | AX60: 65.1 | AY60: 116 | AZ60: - | BA60: - | BB60: 2 | BC60: 3 | BD60: 2 | BE60: 1 | BF60: 1 | BG60: 3 | BH60: 10 | BI60: 21 | BJ60: 21 | BK60: 17 | BL60: 18 | BM60: 10 | BN60: 7 | BO60: 67.1 | BP60: 67.3 | BQ60: 66.8 | BR60: 85 | BS60: - | BT60: - | BU60: - | BV60: - | BW60: 2 | BX60: 2 | BY60: 9 | BZ60: 6 | CA60: 14 | CB60: 15 | CC60: 11 | CD60: 7 | CE60: 9 | CF60: 4 | CG60: 6 | CH60: 47 | CI60: - | CJ60: - | CK60: - | CL60: - | CM60: 4 | CN60: 2 | CO60: 11 | CP60: 8 | CQ60: 4 | CR60: 4 | CS60: 6 | CT60: 4 | CU60: 4 | DC60: 286 | DD60: 206 | DE60: 116 | DF60: 84 | DG60: 6 | DH60: 26 | DI60: 26 | DJ60: 28 | DK60: 75 | DL60: 15 | DM60: - | DN60: - | DO60: - | DP60: 36 | DQ60: 10 | DR60: 13 | DS60: 1 | DT60: - | DU60: - | DV60: - | DW60: - | DX60: - | DY60: - | DZ60: - | EA60: 85 | EB60: 7,092 | EC60: 4,513 | ED60: 1,846 | EE60: 733 | EF60: 137 | EG60: 117 | EH60: 62 | EI60: 49 | EJ60: 6 | EK60: - | EL60: 16 | EM60: 4 | EN60: 149 | EO60: 89 | EP60: 54 | EQ60: 35 | ER60: - | ES60: 26 | ET60: 10 | EU60: 24
A61: 山梨県 | B61: 甲府市 | C61: 山城村 | D61: 上今井 | E61: 44 | F61: 25 | G61: 3 | H61: 2 | I61: 7 | J61: 2 | K61: 15 | L61: 19 | M61: 63 | N61: 1 | O61: 1 | P61: 3 | Q61: 3 | R61: 1 | S61: 5 | T61: 8 | U61: 1 | V61: 7 | W61: 7 | X61: 10 | Y61: 6 | Z61: 5 | AA61: 3 | AB61: 2 | AC61: 57.5 | AD61: 57.5 | AE61: 57.6 | AF61: 39 | AG61: 1 | AH61: - | AI61: 1 | AJ61: 1 | AK61: - | AL61: 1 | AM61: 1 | AN61: - | AO61: 3 | AP61: 5 | AQ61: 10 | AR61: 6 | AS61: 5 | AT61: 3 | AU61: 2 | AV61: 65.4 | AW61: 68.7 | AX61: 62.2 | AY61: 33 | AZ61: - | BA61: - | BB61: 1 | BC61: 1 | BD61: - | BE61: - | BF61: - | BG61: - | BH61: 3 | BI61: 5 | BJ61: 10 | BK61: 5 | BL61: 5 | BM61: 1 | BN61: 2 | BO61: 67.0 | BP61: 68.7 | BQ61: 64.6 | BR61: 25 | BS61: - | BT61: - | BU61: - | BV61: - | BW61: - | BX61: - | BY61: 4 | BZ61: - | CA61: 3 | CB61: 4 | CC61: 5 | CD61: 4 | CE61: 3 | CF61: - | CG61: 2 | CH61: 17 | CI61: - | CJ61: - | CK61: - | CL61: - | CM61: 3 | CN61: - | CO61: 3 | CP61: 3 | CQ61: 2 | CR61: 3 | CS61: 2 | CT61: - | CU61: 1 | DC61: 78 | DD61: 63 | DE61: 33 | DF61: 28 | DG61: 2 | DH61: 7 | DI61: 5 | DJ61: 3 | DK61: 22 | DL61: 7 | DM61: - | DN61: - | DO61: - | DP61: 13 | DQ61: 1 | DR61: 1 | DS61: - | DT61: - | DU61: - | DV61: - | DW61: - | DX61: - | DY61: - | DZ61: - | EA61: 25 | EB61: 2,374 | EC61: 1,627 | ED61: 644 | EE61: 103 | EF61: 39 | EG61: 36 | EH61: 19 | EI61: 15 | EJ61: 2 | EK61: - | EL61: 3 | EM61: - | EN61: 39 | EO61: 27 | EP61: 14 | EQ61: 13 | ER61: - | ES61: 7 | ET61: 2 | EU61: 3
A62: 山梨県 | B62: 甲府市 | C62: 山城村 | D62: 小瀬 | E62: 28 | F62: 14 | G62: 2 | H62: 2 | I62: 6 | J62: 2 | K62: 6 | L62: 14 | M62: 48 | N62: 4 | O62: 2 | P62: 3 | Q62: 2 | R62: 1 | S62: 2 | T62: 2 | U62: 5 | V62: 5 | W62: 4 | X62: 6 | Y62: 4 | Z62: 4 | AA62: 3 | AB62: 1 | AC62: 54.0 | AD62: 52.7 | AE62: 55.3 | AF62: 31 | AG62: 2 | AH62: - | AI62: - | AJ62: 1 | AK62: 1 | AL62: 2 | AM62: 1 | AN62: - | AO62: 3 | AP62: 3 | AQ62: 6 | AR62: 4 | AS62: 4 | AT62: 3 | AU62: 1 | AV62: 61.9 | AW62: 62.5 | AX62: 61.5 | AY62: 26 | AZ62: - | BA62: - | BB62: - | BC62: 1 | BD62: 1 | BE62: 1 | BF62: - | BG62: - | BH62: 2 | BI62: 3 | BJ62: 6 | BK62: 4 | BL62: 4 | BM62: 3 | BN62: 1 | BO62: 66.8 | BP62: 66.2 | BQ62: 67.5 | BR62: 14 | BS62: - | BT62: - | BU62: - | BV62: - | BW62: - | BX62: 1 | BY62: 1 | BZ62: 1 | CA62: 3 | CB62: 1 | CC62: 3 | CD62: 1 | CE62: 1 | CF62: 2 | CG62: - | CH62: 8 | CI62: - | CJ62: - | CK62: - | CL62: - | CM62: 1 | CN62: 1 | CO62: 2 | CP62: 1 | CQ62: - | CR62: - | CS62: 1 | CT62: 2 | CU62: - | DC62: 56 | DD62: 40 | DE62: 26 | DF62: 13 | DG62: 1 | DH62: 4 | DI62: 9 | DJ62: 3 | DK62: 13 | DL62: 1 | DM62: - | DN62: - | DO62: - | DP62: 5 | DQ62: 6 | DR62: 1 | DS62: - | DT62: - | DU62: - | DV62: - | DW62: - | DX62: - | DY62: - | DZ62: - | EA62: 14 | EB62: 1,087 | EC62: 764 | ED62: 251 | EE62: 72 | EF62: 29 | EG62: 22 | EH62: 13 | EI62: 8 | EJ62: 1 | EK62: - | EL62: 6 | EM62: 1 | EN62: 27 | EO62: 18 | EP62: 13 | EQ62: 5 | ER62: - | ES62: 4 | ET62: 3 | EU62: 2
A63: 山梨県 | B63: 甲府市 | C63: 山城村 | D63: 下鍛冶屋 | E63: 23 | F63: 14 | G63: 4 | H63: 2 | I63: 1 | J63: - | K63: 9 | L63: 9 | M63: 35 | N63: - | O63: - | P63: 3 | Q63: 2 | R63: - | S63: 2 | T63: 1 | U63: 5 | V63: 7 | W63: 2 | X63: 1 | Y63: 2 | Z63: 2 | AA63: 4 | AB63: 4 | AC63: 60.3 | AD63: 59.5 | AE63: 61.3 | AF63: 22 | AG63: - | AH63: - | AI63: 1 | AJ63: 1 | AK63: - | AL63: - | AM63: - | AN63: 1 | AO63: 4 | AP63: 2 | AQ63: 1 | AR63: 2 | AS63: 2 | AT63: 4 | AU63: 4 | AV63: 68.7 | AW63: 71.0 | AX63: 66.8 | AY63: 13 | AZ63: - | BA63: - | BB63: 1 | BC63: 1 | BD63: - | BE63: - | BF63: - | BG63: 1 | BH63: 2 | BI63: 1 | BJ63: 1 | BK63: 2 | BL63: 2 | BM63: - | BN63: 2 | BO63: 63.8 | BP63: 66.8 | BQ63: 59.2 | BR63: 14 | BS63: - | BT63: - | BU63: - | BV63: - | BW63: - | BX63: 1 | BY63: 1 | BZ63: 2 | CA63: 4 | CB63: 1 | CC63: - | CD63: 1 | CE63: 1 | CF63: - | CG63: 3 | CH63: 7 | CI63: - | CJ63: - | CK63: - | CL63: - | CM63: - | CN63: - | CO63: 3 | CP63: - | CQ63: - | CR63: 1 | CS63: 1 | CT63: - | CU63: 2 | DC63: 45 | DD63: 26 | DE63: 13 | DF63: 12 | DG63: 1 | DH63: 5 | DI63: 3 | DJ63: 11 | DK63: 9 | DL63: 2 | DM63: - | DN63: - | DO63: - | DP63: 6 | DQ63: - | DR63: - | DS63: 1 | DT63: - | DU63: - | DV63: - | DW63: - | DX63: - | DY63: - | DZ63: - | EA63: 14 | EB63: 684 | EC63: 414 | ED63: 270 | EE63: - | EF63: 23 | EG63: 17 | EH63: 8 | EI63: 8 | EJ63: 1 | EK63: - | EL63: 3 | EM63: 3 | EN63: 22 | EO63: 9 | EP63: 5 | EQ63: 4 | ER63: - | ES63: 5 | ET63: - | EU63: 8
A64: 山梨県 | B64: 甲府市 | C64: 山城村 | D64: 落合 | E64: 23 | F64: 15 | G64: 7 | H64: 6 | I64: 3 | J64: 1 | K64: 5 | L64: 8 | M64: 38 | N64: - | O64: - | P64: 2 | Q64: 1 | R64: 3 | S64: 1 | T64: 2 | U64: 2 | V64: 4 | W64: 6 | X64: 2 | Y64: 5 | Z64: 6 | AA64: 4 | AB64: - | AC64: 60.9 | AD64: 59.3 | AE64: 62.4 | AF64: 29 | AG64: - | AH64: - | AI64: - | AJ64: - | AK64: 1 | AL64: - | AM64: 1 | AN64: 2 | AO64: 3 | AP64: 5 | AQ64: 2 | AR64: 5 | AS64: 6 | AT64: 4 | AU64: - | AV64: 67.1 | AW64: 66.5 | AX64: 67.6 | AY64: 21 | AZ64: - | BA64: - | BB64: - | BC64: - | BD64: 1 | BE64: - | BF64: - | BG64: 1 | BH64: 2 | BI64: 4 | BJ64: 1 | BK64: 5 | BL64: 5 | BM64: 2 | BN64: - | BO64: 67.8 | BP64: 66.5 | BQ64: 69.8 | BR64: 15 | BS64: - | BT64: - | BU64: - | BV64: - | BW64: 2 | BX64: - | BY64: 1 | BZ64: 1 | CA64: 2 | CB64: 4 | CC64: - | CD64: 1 | CE64: 4 | CF64: - | CG64: - | CH64: 5 | CI64: - | CJ64: - | CK64: - | CL64: - | CM64: - | CN64: - | CO64: 1 | CP64: 2 | CQ64: - | CR64: - | CS64: 2 | CT64: - | CU64: - | DC64: 46 | DD64: 31 | DE64: 21 | DF64: 9 | DG64: 1 | DH64: 5 | DI64: 4 | DJ64: 6 | DK64: 15 | DL64: 3 | DM64: - | DN64: - | DO64: - | DP64: 8 | DQ64: 1 | DR64: 3 | DS64: - | DT64: - | DU64: - | DV64: - | DW64: - | DX64: - | DY64: - | DZ64: - | EA64: 15 | EB64: 1,764 | EC64: 1,257 | ED64: 398 | EE64: 109 | EF64: 20 | EG64: 19 | EH64: 13 | EI64: 5 | EJ64: 1 | EK64: - | EL64: 1 | EM64: - | EN64: 26 | EO64: 12 | EP64: 8 | EQ64: 4 | ER64: - | ES64: 5 | ET64: 3 | EU64: 6
A65: 山梨県 | B65: 甲府市 | C65: 山城村 | D65: 西油川 | E65: 21 | F65: 17 | G65: 6 | H65: 4 | I65: 7 | J65: 3 | K65: 4 | L65: 4 | M65: 50 | N65: 1 | O65: 1 | P65: 4 | Q65: - | R65: 4 | S65: 1 | T65: 5 | U65: 7 | V65: 5 | W65: 8 | X65: 4 | Y65: 1 | Z65: 2 | AA65: 5 | AB65: 2 | AC65: 55.7 | AD65: 51.5 | AE65: 59.6 | AF65: 25 | AG65: - | AH65: - | AI65: - | AJ65: - | AK65: - | AL65: - | AM65: 1 | AN65: 2 | AO65: 1 | AP65: 8 | AQ65: 3 | AR65: 1 | AS65: 2 | AT65: 5 | AU65: 2 | AV65: 68.4 | AW65: 67.2 | AX65: 69.1 | AY65: 23 | AZ65: - | BA65: - | BB65: - | BC65: - | BD65: - | BE65: - | BF65: 1 | BG65: 1 | BH65: 1 | BI65: 8 | BJ65: 3 | BK65: 1 | BL65: 2 | BM65: 4 | BN65: 2 | BO65: 68.6 | BP65: 67.2 | BQ65: 69.4 | BR65: 17 | BS65: - | BT65: - | BU65: - | BV65: - | BW65: - | BX65: - | BY65: 2 | BZ65: 2 | CA65: 2 | CB65: 5 | CC65: 3 | CD65: - | CE65: - | CF65: 2 | CG65: 1 | CH65: 10 | CI65: - | CJ65: - | CK65: - | CL65: - | CM65: - | CN65: 1 | CO65: 2 | CP65: 2 | CQ65: 2 | CR65: - | CS65: - | CT65: 2 | CU65: 1 | DC65: 61 | DD65: 46 | DE65: 23 | DF65: 22 | DG65: 1 | DH65: 5 | DI65: 5 | DJ65: 5 | DK65: 16 | DL65: 2 | DM65: - | DN65: - | DO65: - | DP65: 4 | DQ65: 2 | DR65: 8 | DS65: - | DT65: - | DU65: - | DV65: - | DW65: - | DX65: - | DY65: - | DZ65: - | EA65: 17 | EB65: 1,183 | EC65: 451 | ED65: 283 | EE65: 449 | EF65: 26 | EG65: 23 | EH65: 9 | EI65: 13 | EJ65: 1 | EK65: - | EL65: 3 | EM65: - | EN65: 35 | EO65: 23 | EP65: 14 | EQ65: 9 | ER65: - | ES65: 5 | ET65: 2 | EU65: 5
A66: 山梨県 | B66: 甲府市 | C66: 住吉村 | E66: 123 | F66: 67 | G66: 13 | H66: 9 | I66: 22 | J66: 5 | K66: 32 | L66: 56 | M66: 199 | N66: 7 | O66: 13 | P66: 1 | Q66: 5 | R66: 9 | S66: 3 | T66: 18 | U66: 24 | V66: 19 | W66: 16 | X66: 27 | Y66: 16 | Z66: 20 | AA66: 17 | AB66: 4 | AC66: 57.6 | AD66: 55.7 | AE66: 59.7 | AF66: 113 | AG66: 3 | AH66: 1 | AI66: - | AJ66: 1 | AK66: - | AL66: 2 | AM66: 5 | AN66: 10 | AO66: 4 | AP66: 8 | AQ66: 24 | AR66: 14 | AS66: 20 | AT66: 17 | AU66: 4 | AV66: 66.9 | AW66: 67.0 | AX66: 66.9 | AY66: 81 | AZ66: - | BA66: - | BB66: - | BC66: - | BD66: - | BE66: 1 | BF66: 3 | BG66: 6 | BH66: 4 | BI66: 6 | BJ66: 17 | BK66: 11 | BL66: 15 | BM66: 15 | BN66: 3 | BO66: 70.0 | BP66: 69.6 | BQ66: 70.7 | BR66: 67 | BS66: - | BT66: - | BU66: - | BV66: - | BW66: 1 | BX66: - | BY66: 4 | BZ66: 7 | CA66: 7 | CB66: 4 | CC66: 13 | CD66: 8 | CE66: 10 | CF66: 10 | CG66: 3 | CH66: 41 | CI66: - | CJ66: - | CK66: - | CL66: - | CM66: 2 | CN66: 3 | CO66: 6 | CP66: 2 | CQ66: 6 | CR66: 4 | CS66: 7 | CT66: 8 | CU66: 3 | DC66: 238 | DD66: 162 | DE66: 81 | DF66: 72 | DG66: 9 | DH66: 25 | DI66: 25 | DJ66: 26 | DK66: 58 | DL66: 22 | DM66: - | DN66: - | DO66: - | DP66: 19 | DQ66: - | DR66: 16 | DS66: 1 | DT66: - | DU66: - | DV66: - | DW66: - | DX66: - | DY66: - | DZ66: - | EA66: 67 | EB66: 4,305 | EC66: 2,418 | ED66: 1,134 | EE66: 753 | EF66: 120 | EG66: 98 | EH66: 46 | EI66: 47 | EJ66: 5 | EK66: - | EL66: 13 | EM66: 9 | EN66: 118 | EO66: 64 | EP66: 35 | EQ66: 25 | ER66: 4 | ES66: 25 | ET66: 12 | EU66: 17
A67: 山梨県 | B67: 甲府市 | C67: 住吉村 | D67: 中小河原 | E67: 22 | F67: 8 | G67: 1 | H67: - | I67: 1 | J67: 1 | K67: 6 | L67: 14 | M67: 24 | N67: 3 | O67: - | P67: - | Q67: - | R67: 1 | S67: 1 | T67: 3 | U67: 2 | V67: - | W67: - | X67: 3 | Y67: 5 | Z67: 3 | AA67: 3 | AB67: - | AC67: 58.8 | AD67: 52.5 | AE67: 67.5 | AF67: 18 | AG67: 3 | AH67: - | AI67: - | AJ67: - | AK67: - | AL67: - | AM67: 1 | AN67: 1 | AO67: - | AP67: - | AQ67: 2 | AR67: 5 | AS67: 3 | AT67: 3 | AU67: - | AV67: 62.1 | AW67: 54.4 | AX67: 69.7 | AY67: 9 | AZ67: - | BA67: - | BB67: - | BC67: - | BD67: - | BE67: - | BF67: - | BG67: 1 | BH67: - | BI67: - | BJ67: - | BK67: 3 | BL67: 2 | BM67: 3 | BN67: - | BO67: 74.2 | BP67: 72.6 | BQ67: 76.3 | BR67: 8 | BS67: - | BT67: - | BU67: - | BV67: - | BW67: - | BX67: - | BY67: - | BZ67: - | CA67: - | CB67: - | CC67: 1 | CD67: 2 | CE67: 3 | CF67: 2 | CG67: - | CH67: 7 | CI67: - | CJ67: - | CK67: - | CL67: - | CM67: - | CN67: - | CO67: - | CP67: - | CQ67: 1 | CR67: 2 | CS67: 3 | CT67: 1 | CU67: - | DC67: 31 | DD67: 18 | DE67: 9 | DF67: 7 | DG67: 2 | DH67: 2 | DI67: 6 | DJ67: 5 | DK67: 6 | DL67: 2 | DM67: - | DN67: - | DO67: - | DP67: 4 | DQ67: - | DR67: - | DS67: - | DT67: - | DU67: - | DV67: - | DW67: - | DX67: - | DY67: - | DZ67: - | EA67: 8 | EB67: 327 | EC67: 167 | ED67: 149 | EE67: 11 | EF67: 16 | EG67: 12 | EH67: 5 | EI67: 6 | EJ67: 1 | EK67: - | EL67: 3 | EM67: 1 | EN67: 15 | EO67: 6 | EP67: 4 | EQ67: 1 | ER67: 1 | ES67: 2 | ET67: 3 | EU67: 4
A68: 山梨県 | B68: 甲府市 | C68: 住吉村 | D68: 下小河原 | E68: 11 | F68: 7 | G68: - | H68: - | I68: 3 | J68: - | K68: 4 | L68: 4 | M68: 18 | N68: 1 | O68: 2 | P68: - | Q68: - | R68: 2 | S68: - | T68: 3 | U68: - | V68: 3 | W68: - | X68: 3 | Y68: 1 | Z68: 2 | AA68: 1 | AB68: - | AC68: 53.3 | AD68: 48.5 | AE68: 60.7 | AF68: 7 | AG68: - | AH68: - | AI68: - | AJ68: - | AK68: - | AL68: - | AM68: - | AN68: - | AO68: - | AP68: - | AQ68: 3 | AR68: 1 | AS68: 2 | AT68: 1 | AU68: - | AV68: 72.3 | AW68: 74.3 | AX68: 70.8 | AY68: 3 | AZ68: - | BA68: - | BB68: - | BC68: - | BD68: - | BE68: - | BF68: - | BG68: - | BH68: - | BI68: - | BJ68: 1 | BK68: - | BL68: 1 | BM68: 1 | BN68: - | BO68: 75.0 | BP68: 74.0 | BQ68: 77.0 | BR68: 7 | BS68: - | BT68: - | BU68: - | BV68: - | BW68: 1 | BX68: - | BY68: 2 | BZ68: - | CA68: 1 | CB68: - | CC68: 1 | CD68: - | CE68: - | CF68: 2 | CG68: - | CH68: 2 | CI68: - | CJ68: - | CK68: - | CL68: - | CM68: 1 | CN68: - | CO68: - | CP68: - | CQ68: - | CR68: - | CS68: - | CT68: 1 | CU68: - | DC68: 21 | DD68: 14 | DE68: 3 | DF68: 11 | DG68: - | DH68: 2 | DI68: - | DJ68: 5 | DK68: 6 | DL68: 5 | DM68: - | DN68: - | DO68: - | DP68: 1 | DQ68: - | DR68: - | DS68: - | DT68: - | DU68: - | DV68: - | DW68: - | DX68: - | DY68: - | DZ68: - | EA68: 7 | EB68: 295 | EC68: 264 | ED68: 31 | EE68: - | EF68: 12 | EG68: 10 | EH68: 2 | EI68: 8 | EJ68: - | EK68: - | EL68: - | EM68: 2 | EN68: 9 | EO68: 4 | EP68: 1 | EQ68: 3 | ER68: - | ES68: 2 | ET68: - | EU68: 3
A69: 山梨県 | B69: 甲府市 | C69: 住吉村 | D69: 上 | E69: 55 | F69: 27 | G69: 4 | H69: 2 | I69: 12 | J69: 3 | K69: 11 | L69: 28 | M69: 85 | N69: 1 | O69: 6 | P69: - | Q69: 2 | R69: 6 | S69: 1 | T69: 4 | U69: 13 | V69: 13 | W69: 8 | X69: 8 | Y69: 5 | Z69: 7 | AA69: 8 | AB69: 3 | AC69: 58.0 | AD69: 58.0 | AE69: 58.0 | AF69: 38 | AG69: - | AH69: - | AI69: - | AJ69: 1 | AK69: - | AL69: 1 | AM69: 1 | AN69: 5 | AO69: 2 | AP69: 1 | AQ69: 6 | AR69: 3 | AS69: 7 | AT69: 8 | AU69: 3 | AV69: 69.3 | AW69: 71.7 | AX69: 67.3 | AY69: 27 | AZ69: - | BA69: - | BB69: - | BC69: - | BD69: - | BE69: 1 | BF69: 1 | BG69: 2 | BH69: 2 | BI69: 1 | BJ69: 3 | BK69: 3 | BL69: 5 | BM69: 7 | BN69: 2 | BO69: 71.1 | BP69: 71.5 | BQ69: 70.6 | BR69: 27 | BS69: - | BT69: - | BU69: - | BV69: - | BW69: - | BX69: - | BY69: - | BZ69: 2 | CA69: 4 | CB69: 2 | CC69: 4 | CD69: 4 | CE69: 4 | CF69: 4 | CG69: 3 | CH69: 19 | CI69: - | CJ69: - | CK69: - | CL69: - | CM69: - | CN69: 1 | CO69: 4 | CP69: 1 | CQ69: 3 | CR69: 1 | CS69: 2 | CT69: 4 | CU69: 3 | DC69: 103 | DD69: 68 | DE69: 27 | DF69: 34 | DG69: 7 | DH69: 13 | DI69: 8 | DJ69: 14 | DK69: 22 | DL69: 10 | DM69: - | DN69: - | DO69: - | DP69: 9 | DQ69: - | DR69: 3 | DS69: - | DT69: - | DU69: - | DV69: - | DW69: - | DX69: - | DY69: - | DZ69: - | EA69: 27 | EB69: 1,835 | EC69: 1,292 | ED69: 434 | EE69: 109 | EF69: 51 | EG69: 40 | EH69: 15 | EI69: 21 | EJ69: 4 | EK69: - | EL69: 5 | EM69: 6 | EN69: 52 | EO69: 28 | EP69: 12 | EQ69: 13 | ER69: 3 | ES69: 13 | ET69: 3 | EU69: 8
A70: 山梨県 | B70: 甲府市 | C70: 住吉村 | D70: 上増坪 | E70: 6 | F70: 3 | G70: 1 | H70: 1 | I70: 1 | J70: - | K70: 1 | L70: 3 | M70: 10 | N70: 2 | O70: - | P70: - | Q70: - | R70: - | S70: 1 | T70: 3 | U70: - | V70: - | W70: 2 | X70: - | Y70: - | Z70: 1 | AA70: 1 | AB70: - | AC70: 49.8 | AD70: 50.8 | AE70: 48.8 | AF70: 5 | AG70: - | AH70: - | AI70: - | AJ70: - | AK70: - | AL70: 1 | AM70: - | AN70: - | AO70: - | AP70: 2 | AQ70: - | AR70: - | AS70: 1 | AT70: 1 | AU70: - | AV70: 64.6 | AW70: 72.0 | AX70: 59.7 | AY70: 4 | AZ70: - | BA70: - | BB70: - | BC70: - | BD70: - | BE70: - | BF70: - | BG70: - | BH70: - | BI70: 2 | BJ70: - | BK70: - | BL70: 1 | BM70: 1 | BN70: - | BO70: 70.0 | BP70: 72.0 | BQ70: 68.0 | BR70: 3 | BS70: - | BT70: - | BU70: - | BV70: - | BW70: - | BX70: - | BY70: 1 | BZ70: - | CA70: - | CB70: 1 | CC70: - | CD70: - | CE70: - | CF70: 1 | CG70: - | CH70: 3 | CI70: - | CJ70: - | CK70: - | CL70: - | CM70: 1 | CN70: - | CO70: - | CP70: 1 | CQ70: - | CR70: - | CS70: - | CT70: 1 | CU70: - | DC70: 11 | DD70: 7 | DE70: 4 | DF70: 3 | DG70: - | DH70: 1 | DI70: 2 | DJ70: 1 | DK70: 2 | DL70: - | DM70: - | DN70: - | DO70: - | DP70: - | DQ70: - | DR70: 2 | DS70: - | DT70: - | DU70: - | DV70: - | DW70: - | DX70: - | DY70: - | DZ70: - | EA70: 3 | EB70: 237 | EC70: 46 | ED70: 107 | EE70: 84 | EF70: 5 | EG70: 4 | EH70: 2 | EI70: 2 | EJ70: - | EK70: - | EL70: 1 | EM70: - | EN70: 6 | EO70: 3 | EP70: 2 | EQ70: 1 | ER70: - | ES70: 1 | ET70: 1 | EU70: 1
A71: 山梨県 | B71: 甲府市 | C71: 住吉村 | D71: 中増坪 | E71: 13 | F71: 12 | G71: 1 | H71: 1 | I71: 5 | J71: 1 | K71: 6 | L71: 1 | M71: 35 | N71: - | O71: 4 | P71: 1 | Q71: 2 | R71: - | S71: - | T71: 3 | U71: 5 | V71: 1 | W71: 5 | X71: 7 | Y71: 2 | Z71: 4 | AA71: 1 | AB71: - | AC71: 55.9 | AD71: 56.1 | AE71: 55.6 | AF71: 21 | AG71: - | AH71: 1 | AI71: - | AJ71: - | AK71: - | AL71: - | AM71: 1 | AN71: 1 | AO71: - | AP71: 4 | AQ71: 7 | AR71: 2 | AS71: 4 | AT71: 1 | AU71: - | AV71: 65.7 | AW71: 70.6 | AX71: 61.2 | AY71: 15 | AZ71: - | BA71: - | BB71: - | BC71: - | BD71: - | BE71: - | BF71: - | BG71: - | BH71: - | BI71: 2 | BJ71: 7 | BK71: 2 | BL71: 3 | BM71: 1 | BN71: - | BO71: 70.3 | BP71: 70.6 | BQ71: 69.8 | BR71: 12 | BS71: - | BT71: - | BU71: - | BV71: - | BW71: - | BX71: - | BY71: - | BZ71: 2 | CA71: 1 | CB71: 1 | CC71: 4 | CD71: 1 | CE71: 2 | CF71: 1 | CG71: - | CH71: 7 | CI71: - | CJ71: - | CK71: - | CL71: - | CM71: - | CN71: 1 | CO71: 1 | CP71: - | CQ71: 2 | CR71: - | CS71: 2 | CT71: 1 | CU71: - | DC71: 42 | DD71: 29 | DE71: 15 | DF71: 14 | DG71: - | DH71: 6 | DI71: 6 | DJ71: 1 | DK71: 12 | DL71: 4 | DM71: - | DN71: - | DO71: - | DP71: 3 | DQ71: - | DR71: 5 | DS71: - | DT71: - | DU71: - | DV71: - | DW71: - | DX71: - | DY71: - | DZ71: - | EA71: 12 | EB71: 862 | EC71: 421 | ED71: 272 | EE71: 169 | EF71: 20 | EG71: 18 | EH71: 10 | EI71: 8 | EJ71: - | EK71: - | EL71: 2 | EM71: - | EN71: 22 | EO71: 11 | EP71: 5 | EQ71: 6 | ER71: - | ES71: 6 | ET71: 4 | EU71: 1
A72: 山梨県 | B72: 甲府市 | C72: 住吉村 | D72: 下増坪 | E72: 16 | F72: 10 | G72: 6 | H72: 5 | I72: - | J72: - | K72: 4 | L72: 6 | M72: 27 | N72: - | O72: 1 | P72: - | Q72: 1 | R72: - | S72: - | T72: 2 | U72: 4 | V72: 2 | W72: 1 | X72: 6 | Y72: 3 | Z72: 3 | AA72: 3 | AB72: 1 | AC72: 63.3 | AD72: 58.6 | AE72: 68.4 | AF72: 24 | AG72: - | AH72: - | AI72: - | AJ72: - | AK72: - | AL72: - | AM72: 2 | AN72: 3 | AO72: 2 | AP72: 1 | AQ72: 6 | AR72: 3 | AS72: 3 | AT72: 3 | AU72: 1 | AV72: 66.9 | AW72: 63.9 | AX72: 69.9 | AY72: 23 | AZ72: - | BA72: - | BB72: - | BC72: - | BD72: - | BE72: - | BF72: 2 | BG72: 3 | BH72: 2 | BI72: 1 | BJ72: 6 | BK72: 3 | BL72: 3 | BM72: 2 | BN72: 1 | BO72: 66.3 | BP72: 63.9 | BQ72: 69.0 | BR72: 10 | BS72: - | BT72: - | BU72: - | BV72: - | BW72: - | BX72: - | BY72: 1 | BZ72: 3 | CA72: 1 | CB72: - | CC72: 3 | CD72: 1 | CE72: 1 | CF72: - | CG72: - | CH72: 3 | CI72: - | CJ72: - | CK72: - | CL72: - | CM72: - | CN72: 1 | CO72: 1 | CP72: - | CQ72: - | CR72: 1 | CS72: - | CT72: - | CU72: - | DC72: 30 | DD72: 26 | DE72: 23 | DF72: 3 | DG72: - | DH72: 1 | DI72: 3 | DJ72: - | DK72: 10 | DL72: 1 | DM72: - | DN72: - | DO72: - | DP72: 2 | DQ72: - | DR72: 6 | DS72: 1 | DT72: - | DU72: - | DV72: - | DW72: - | DX72: - | DY72: - | DZ72: - | EA72: 10 | EB72: 749 | EC72: 228 | ED72: 141 | EE72: 380 | EF72: 16 | EG72: 14 | EH72: 12 | EI72: 2 | EJ72: - | EK72: - | EL72: 2 | EM72: - | EN72: 14 | EO72: 12 | EP72: 11 | EQ72: 1 | ER72: - | ES72: 1 | ET72: 1 | EU72: -
A73: 山梨県 | B73: 甲府市 | C73: 朝井村 | E73: 71 | F73: 56 | G73: 17 | H73: 16 | I73: 13 | J73: 5 | K73: 26 | L73: 15 | M73: 154 | N73: 5 | O73: 4 | P73: 9 | Q73: 9 | R73: 4 | S73: 10 | T73: 7 | U73: 20 | V73: 13 | W73: 24 | X73: 12 | Y73: 16 | Z73: 8 | AA73: 10 | AB73: 3 | AC73: 55.2 | AD73: 54.0 | AE73: 56.5 | AF73: 98 | AG73: 4 | AH73: 2 | AI73: - | AJ73: 4 | AK73: 1 | AL73: 3 | AM73: 3 | AN73: 10 | AO73: 6 | AP73: 18 | AQ73: 10 | AR73: 16 | AS73: 8 | AT73: 10 | AU73: 3 | AV73: 61.6 | AW73: 61.7 | AX73: 61.6 | AY73: 78 | AZ73: - | BA73: - | BB73: - | BC73: 2 | BD73: 1 | BE73: 2 | BF73: 1 | BG73: 10 | BH73: 5 | BI73: 17 | BJ73: 9 | BK73: 12 | BL73: 7 | BM73: 10 | BN73: 2 | BO73: 65.3 | BP73: 65.4 | BQ73: 65.2 | BR73: 56 | BS73: - | BT73: - | BU73: 1 | BV73: - | BW73: 1 | BX73: - | BY73: 2 | BZ73: 11 | CA73: 7 | CB73: 10 | CC73: 8 | CD73: 7 | CE73: 5 | CF73: 4 | CG73: - | CH73: 27 | CI73: - | CJ73: - | CK73: - | CL73: - | CM73: 2 | CN73: 2 | CO73: 3 | CP73: 7 | CQ73: 3 | CR73: 4 | CS73: 3 | CT73: 3 | CU73: - | DC73: 174 | DD73: 138 | DE73: 78 | DF73: 54 | DG73: 6 | DH73: 16 | DI73: 9 | DJ73: 11 | DK73: 45 | DL73: 14 | DM73: - | DN73: - | DO73: - | DP73: 16 | DQ73: 13 | DR73: 2 | DS73: - | DT73: - | DU73: - | DV73: - | DW73: - | DX73: - | DY73: - | DZ73: - | EA73: 56 | EB73: 4,995 | EC73: 4,128 | ED73: 644 | EE73: 223 | EF73: 85 | EG73: 78 | EH73: 41 | EI73: 35 | EJ73: 2 | EK73: - | EL73: 4 | EM73: 3 | EN73: 89 | EO73: 60 | EP73: 37 | EQ73: 19 | ER73: 4 | ES73: 16 | ET73: 5 | EU73: 8
A74: 山梨県 | B74: 甲府市 | C74: 朝井村 | D74: 小曲 | E74: 26 | F74: 24 | G74: 9 | H74: 9 | I74: 6 | J74: 2 | K74: 9 | L74: 2 | M74: 70 | N74: 5 | O74: 4 | P74: 4 | Q74: 3 | R74: 2 | S74: 4 | T74: 4 | U74: 13 | V74: 4 | W74: 11 | X74: 2 | Y74: 6 | Z74: 2 | AA74: 5 | AB74: 1 | AC74: 51.2 | AD74: 47.9 | AE74: 54.9 | AF74: 43 | AG74: 4 | AH74: 2 | AI74: - | AJ74: 1 | AK74: 1 | AL74: 1 | AM74: 2 | AN74: 9 | AO74: 1 | AP74: 6 | AQ74: 2 | AR74: 6 | AS74: 2 | AT74: 5 | AU74: 1 | AV74: 56.3 | AW74: 52.8 | AX74: 59.1 | AY74: 35 | AZ74: - | BA74: - | BB74: - | BC74: 1 | BD74: 1 | BE74: 1 | BF74: 1 | BG74: 9 | BH74: 1 | BI74: 6 | BJ74: 2 | BK74: 5 | BL74: 2 | BM74: 5 | BN74: 1 | BO74: 62.7 | BP74: 61.8 | BQ74: 63.4 | BR74: 24 | BS74: - | BT74: - | BU74: 1 | BV74: - | BW74: 1 | BX74: - | BY74: 2 | BZ74: 8 | CA74: 2 | CB74: 6 | CC74: 1 | CD74: 2 | CE74: 1 | CF74: - | CG74: - | CH74: 13 | CI74: - | CJ74: - | CK74: - | CL74: - | CM74: 2 | CN74: 2 | CO74: 1 | CP74: 4 | CQ74: 1 | CR74: 2 | CS74: 1 | CT74: - | CU74: - | DC74: 79 | DD74: 64 | DE74: 35 | DF74: 23 | DG74: 6 | DH74: 4 | DI74: 7 | DJ74: 4 | DK74: 22 | DL74: 9 | DM74: - | DN74: - | DO74: - | DP74: 2 | DQ74: 10 | DR74: 1 | DS74: - | DT74: - | DU74: - | DV74: - | DW74: - | DX74: - | DY74: - | DZ74: - | EA74: 24 | EB74: 2,110 | EC74: 2,025 | ED74: 51 | EE74: 34 | EF74: 39 | EG74: 33 | EH74: 15 | EI74: 16 | EJ74: 2 | EK74: - | EL74: 4 | EM74: 2 | EN74: 40 | EO74: 31 | EP74: 20 | EQ74: 7 | ER74: 4 | ES74: 4 | ET74: 3 | EU74: 2
A75: 山梨県 | B75: 甲府市 | C75: 朝井村 | D75: 下今井 | E75: 15 | F75: 10 | G75: 1 | H75: - | I75: 3 | J75: - | K75: 6 | L75: 5 | M75: 26 | N75: - | O75: - | P75: 1 | Q75: 1 | R75: - | S75: 1 | T75: 2 | U75: 5 | V75: 2 | W75: 4 | X75: 1 | Y75: 3 | Z75: 2 | AA75: 3 | AB75: 1 | AC75: 61.1 | AD75: 62.5 | AE75: 59.6 | AF75: 16 | AG75: - | AH75: - | AI75: - | AJ75: 1 | AK75: - | AL75: 1 | AM75: 1 | AN75: - | AO75: - | AP75: 3 | AQ75: 1 | AR75: 3 | AS75: 2 | AT75: 3 | AU75: 1 | AV75: 67.4 | AW75: 74.3 | AX75: 62.0 | AY75: 12 | AZ75: - | BA75: - | BB75: - | BC75: - | BD75: - | BE75: - | BF75: - | BG75: - | BH75: - | BI75: 3 | BJ75: 1 | BK75: 2 | BL75: 2 | BM75: 3 | BN75: 1 | BO75: 73.8 | BP75: 74.3 | BQ75: 73.2 | BR75: 10 | BS75: - | BT75: - | BU75: - | BV75: - | BW75: - | BX75: - | BY75: - | BZ75: 2 | CA75: 1 | CB75: 2 | CC75: - | CD75: 2 | CE75: 1 | CF75: 2 | CG75: - | CH75: 7 | CI75: - | CJ75: - | CK75: - | CL75: - | CM75: - | CN75: - | CO75: 1 | CP75: 2 | CQ75: - | CR75: 1 | CS75: 1 | CT75: 2 | CU75: - | DC75: 32 | DD75: 23 | DE75: 12 | DF75: 11 | DG75: - | DH75: 7 | DI75: 2 | DJ75: - | DK75: 7 | DL75: 2 | DM75: - | DN75: - | DO75: - | DP75: 3 | DQ75: 1 | DR75: 1 | DS75: - | DT75: - | DU75: - | DV75: - | DW75: - | DX75: - | DY75: - | DZ75: - | EA75: 10 | EB75: 798 | EC75: 533 | ED75: 201 | EE75: 64 | EF75: 14 | EG75: 14 | EH75: 7 | EI75: 7 | EJ75: - | EK75: - | EL75: - | EM75: - | EN75: 18 | EO75: 9 | EP75: 5 | EQ75: 4 | ER75: - | ES75: 7 | ET75: 2 | EU75: -
A76: 山梨県 | B76: 甲府市 | C76: 朝井村 | D76: 東下条 | E76: 19 | F76: 13 | G76: 6 | H76: 6 | I76: 1 | J76: - | K76: 6 | L76: 6 | M76: 35 | N76: - | O76: - | P76: 1 | Q76: 2 | R76: 2 | S76: 5 | T76: 1 | U76: - | V76: 2 | W76: 6 | X76: 8 | Y76: 5 | Z76: 2 | AA76: - | AB76: 1 | AC76: 58.4 | AD76: 58.0 | AE76: 58.9 | AF76: 25 | AG76: - | AH76: - | AI76: - | AJ76: 2 | AK76: - | AL76: 1 | AM76: - | AN76: - | AO76: 2 | AP76: 6 | AQ76: 6 | AR76: 5 | AS76: 2 | AT76: - | AU76: 1 | AV76: 64.0 | AW76: 64.3 | AX76: 63.7 | AY76: 18 | AZ76: - | BA76: - | BB76: - | BC76: 1 | BD76: - | BE76: 1 | BF76: - | BG76: - | BH76: 2 | BI76: 5 | BJ76: 5 | BK76: 3 | BL76: 1 | BM76: - | BN76: - | BO76: 62.6 | BP76: 63.1 | BQ76: 61.7 | BR76: 13 | BS76: - | BT76: - | BU76: - | BV76: - | BW76: - | BX76: - | BY76: - | BZ76: - | CA76: 1 | CB76: 1 | CC76: 6 | CD76: 3 | CE76: 2 | CF76: - | CG76: - | CH76: 5 | CI76: - | CJ76: - | CK76: - | CL76: - | CM76: - | CN76: - | CO76: - | CP76: 1 | CQ76: 2 | CR76: 1 | CS76: 1 | CT76: - | CU76: - | DC76: 36 | DD76: 28 | DE76: 18 | DF76: 10 | DG76: - | DH76: 4 | DI76: - | DJ76: 4 | DK76: 9 | DL76: 1 | DM76: - | DN76: - | DO76: - | DP76: 7 | DQ76: 1 | DR76: - | DS76: - | DT76: - | DU76: - | DV76: - | DW76: - | DX76: - | DY76: - | DZ76: - | EA76: 13 | EB76: 1,230 | EC76: 1,026 | ED76: 142 | EE76: 62 | EF76: 20 | EG76: 19 | EH76: 12 | EI76: 7 | EJ76: - | EK76: - | EL76: - | EM76: 1 | EN76: 16 | EO76: 9 | EP76: 6 | EQ76: 3 | ER76: - | ES76: 4 | ET76: - | EU76: 3
A77: 山梨県 | B77: 甲府市 | C77: 朝井村 | D77: 中 | E77: 11 | F77: 9 | G77: 1 | H77: 1 | I77: 3 | J77: 3 | K77: 5 | L77: 2 | M77: 23 | N77: - | O77: - | P77: 3 | Q77: 3 | R77: - | S77: - | T77: - | U77: 2 | V77: 5 | W77: 3 | X77: 1 | Y77: 2 | Z77: 2 | AA77: 2 | AB77: - | AC77: 55.7 | AD77: 56.7 | AE77: 54.5 | AF77: 14 | AG77: - | AH77: - | AI77: - | AJ77: - | AK77: - | AL77: - | AM77: - | AN77: 1 | AO77: 3 | AP77: 3 | AQ77: 1 | AR77: 2 | AS77: 2 | AT77: 2 | AU77: - | AV77: 67.1 | AW77: 68.0 | AX77: 66.1 | AY77: 13 | AZ77: - | BA77: - | BB77: - | BC77: - | BD77: - | BE77: - | BF77: - | BG77: 1 | BH77: 2 | BI77: 3 | BJ77: 1 | BK77: 2 | BL77: 2 | BM77: 2 | BN77: - | BO77: 67.9 | BP77: 68.0 | BQ77: 67.8 | BR77: 9 | BS77: - | BT77: - | BU77: - | BV77: - | BW77: - | BX77: - | BY77: - | BZ77: 1 | CA77: 3 | CB77: 1 | CC77: 1 | CD77: - | CE77: 1 | CF77: 2 | CG77: - | CH77: 2 | CI77: - | CJ77: - | CK77: - | CL77: - | CM77: - | CN77: - | CO77: 1 | CP77: - | CQ77: - | CR77: - | CS77: - | CT77: 1 | CU77: - | DC77: 27 | DD77: 23 | DE77: 13 | DF77: 10 | DG77: - | DH77: 1 | DI77: - | DJ77: 3 | DK77: 7 | DL77: 2 | DM77: - | DN77: - | DO77: - | DP77: 4 | DQ77: 1 | DR77: - | DS77: - | DT77: - | DU77: - | DV77: - | DW77: - | DX77: - | DY77: - | DZ77: - | EA77: 9 | EB77: 857 | EC77: 544 | ED77: 250 | EE77: 63 | EF77: 12 | EG77: 12 | EH77: 7 | EI77: 5 | EJ77: - | EK77: - | EL77: - | EM77: - | EN77: 15 | EO77: 11 | EP77: 6 | EQ77: 5 | ER77: - | ES77: 1 | ET77: - | EU77: 3
A78: 山梨県 | B78: 甲府市 | C78: 玉諸村 | E78: 186 | F78: 145 | G78: 34 | H78: 33 | I78: 50 | J78: 24 | K78: 61 | L78: 41 | M78: 392 | N78: 6 | O78: 14 | P78: 16 | Q78: 14 | R78: 11 | S78: 20 | T78: 14 | U78: 29 | V78: 56 | W78: 46 | X78: 42 | Y78: 41 | Z78: 29 | AA78: 42 | AB78: 12 | AC78: 59.2 | AD78: 58.9 | AE78: 59.6 | AF78: 269 | AG78: 5 | AH78: 5 | AI78: 2 | AJ78: 1 | AK78: 2 | AL78: 4 | AM78: 5 | AN78: 14 | AO78: 34 | AP78: 41 | AQ78: 36 | AR78: 41 | AS78: 29 | AT78: 40 | AU78: 10 | AV78: 65.8 | AW78: 66.4 | AX78: 65.2 | AY78: 237 | AZ78: - | BA78: 1 | BB78: 2 | BC78: 1 | BD78: 2 | BE78: 4 | BF78: 4 | BG78: 10 | BH78: 31 | BI78: 39 | BJ78: 34 | BK78: 36 | BL78: 27 | BM78: 39 | BN78: 7 | BO78: 67.5 | BP78: 68.3 | BQ78: 66.6 | BR78: 145 | BS78: - | BT78: - | BU78: 2 | BV78: - | BW78: - | BX78: 3 | BY78: 3 | BZ78: 10 | CA78: 19 | CB78: 28 | CC78: 17 | CD78: 24 | CE78: 14 | CF78: 21 | CG78: 4 | CH78: 76 | CI78: - | CJ78: - | CK78: - | CL78: 3 | CM78: 1 | CN78: 3 | CO78: 8 | CP78: 12 | CQ78: 10 | CR78: 14 | CS78: 9 | CT78: 13 | CU78: 3 | DC78: 471 | DD78: 386 | DE78: 237 | DF78: 131 | DG78: 18 | DH78: 31 | DI78: 26 | DJ78: 28 | DK78: 141 | DL78: - | DM78: - | DN78: - | DO78: - | DP78: - | DQ78: 2 | DR78: 138 | DS78: - | DT78: 1 | DU78: - | DV78: - | DW78: - | DX78: - | DY78: - | DZ78: - | EA78: 145 | EB78: 9,535 | EC78: - | ED78: 380 | EE78: 9,155 | EF78: 243 | EG78: 215 | EH78: 120 | EI78: 83 | EJ78: 12 | EK78: - | EL78: 12 | EM78: 16 | EN78: 228 | EO78: 171 | EP78: 117 | EQ78: 48 | ER78: 6 | ES78: 31 | ET78: 14 | EU78: 12
A79: 山梨県 | B79: 甲府市 | C79: 玉諸村 | D79: 蓬沢 | E79: 34 | F79: 29 | G79: 8 | H79: 8 | I79: 10 | J79: 5 | K79: 11 | L79: 5 | M79: 89 | N79: 3 | O79: 5 | P79: 3 | Q79: 2 | R79: 6 | S79: 4 | T79: 5 | U79: 8 | V79: 8 | W79: 7 | X79: 10 | Y79: 9 | Z79: 9 | AA79: 8 | AB79: 2 | AC79: 57.0 | AD79: 56.5 | AE79: 57.7 | AF79: 64 | AG79: 3 | AH79: 4 | AI79: - | AJ79: - | AK79: 1 | AL79: 2 | AM79: 2 | AN79: 4 | AO79: 5 | AP79: 7 | AQ79: 10 | AR79: 9 | AS79: 9 | AT79: 7 | AU79: 1 | AV79: 61.7 | AW79: 61.7 | AX79: 61.7 | AY79: 54 | AZ79: - | BA79: - | BB79: - | BC79: - | BD79: 1 | BE79: 2 | BF79: 2 | BG79: 2 | BH79: 5 | BI79: 7 | BJ79: 10 | BK79: 9 | BL79: 9 | BM79: 6 | BN79: 1 | BO79: 67.1 | BP79: 67.3 | BQ79: 66.8 | BR79: 29 | BS79: - | BT79: - | BU79: - | BV79: - | BW79: - | BX79: - | BY79: 2 | BZ79: 2 | CA79: 3 | CB79: 5 | CC79: 4 | CD79: 5 | CE79: 3 | CF79: 4 | CG79: 1 | CH79: 15 | CI79: - | CJ79: - | CK79: - | CL79: - | CM79: 1 | CN79: 1 | CO79: 1 | CP79: 2 | CQ79: 3 | CR79: 2 | CS79: 2 | CT79: 2 | CU79: 1 | DC79: 109 | DD79: 83 | DE79: 54 | DF79: 27 | DG79: 2 | DH79: 5 | DI79: 12 | DJ79: 9 | DK79: 29 | DL79: - | DM79: - | DN79: - | DO79: - | DP79: - | DQ79: 1 | DR79: 28 | DS79: - | DT79: - | DU79: - | DV79: - | DW79: - | DX79: - | DY79: - | DZ79: - | EA79: 29 | EB79: 2,365 | EC79: - | ED79: 33 | EE79: 2,332 | EF79: 60 | EG79: 51 | EH79: 30 | EI79: 19 | EJ79: 2 | EK79: - | EL79: 4 | EM79: 5 | EN79: 49 | EO79: 32 | EP79: 24 | EQ79: 8 | ER79: - | ES79: 5 | ET79: 8 | EU79: 4
A80: 山梨県 | B80: 甲府市 | C80: 玉諸村 | D80: 西高橋 | E80: 16 | F80: 11 | G80: 1 | H80: 1 | I80: 8 | J80: 4 | K80: 2 | L80: 5 | M80: 29 | N80: 1 | O80: - | P80: 2 | Q80: - | R80: - | S80: 2 | T80: 2 | U80: 2 | V80: 7 | W80: 6 | X80: 1 | Y80: - | Z80: 4 | AA80: - | AB80: 2 | AC80: 57.5 | AD80: 54.9 | AE80: 59.4 | AF80: 15 | AG80: 1 | AH80: - | AI80: - | AJ80: - | AK80: - | AL80: 2 | AM80: - | AN80: - | AO80: 2 | AP80: 4 | AQ80: 1 | AR80: - | AS80: 4 | AT80: - | AU80: 1 | AV80: 61.9 | AW80: 54.0 | AX80: 67.1 | AY80: 12 | AZ80: - | BA80: - | BB80: - | BC80: - | BD80: - | BE80: 2 | BF80: - | BG80: - | BH80: 2 | BI80: 4 | BJ80: 1 | BK80: - | BL80: 3 | BM80: - | BN80: - | BO80: 61.9 | BP80: 57.0 | BQ80: 64.4 | BR80: 11 | BS80: - | BT80: - | BU80: - | BV80: - | BW80: - | BX80: 1 | BY80: - | BZ80: 2 | CA80: 3 | CB80: 4 | CC80: - | CD80: - | CE80: 1 | CF80: - | CG80: - | CH80: 5 | CI80: - | CJ80: - | CK80: - | CL80: 1 | CM80: - | CN80: - | CO80: - | CP80: 3 | CQ80: - | CR80: - | CS80: 1 | CT80: - | CU80: - | DC80: 39 | DD80: 28 | DE80: 12 | DF80: 14 | DG80: 2 | DH80: 5 | DI80: 4 | DJ80: 2 | DK80: 11 | DL80: - | DM80: - | DN80: - | DO80: - | DP80: - | DQ80: - | DR80: 11 | DS80: - | DT80: - | DU80: - | DV80: - | DW80: - | DX80: - | DY80: - | DZ80: - | EA80: 11 | EB80: 835 | EC80: - | ED80: 31 | EE80: 804 | EF80: 16 | EG80: 12 | EH80: 4 | EI80: 7 | EJ80: 1 | EK80: - | EL80: 3 | EM80: 1 | EN80: 23 | EO80: 16 | EP80: 8 | EQ80: 7 | ER80: 1 | ES80: 5 | ET80: 1 | EU80: 1
A81: 山梨県 | B81: 甲府市 | C81: 玉諸村 | D81: 七沢 | E81: 20 | F81: 14 | G81: 6 | H81: 6 | I81: - | J81: - | K81: 8 | L81: 6 | M81: 34 | N81: - | O81: 1 | P81: 1 | Q81: 2 | R81: 1 | S81: 1 | T81: - | U81: 2 | V81: 3 | W81: 4 | X81: 5 | Y81: 6 | Z81: 2 | AA81: 6 | AB81: - | AC81: 62.4 | AD81: 63.5 | AE81: 61.3 | AF81: 29 | AG81: - | AH81: - | AI81: 1 | AJ81: 1 | AK81: 1 | AL81: - | AM81: - | AN81: 2 | AO81: 3 | AP81: 4 | AQ81: 3 | AR81: 6 | AS81: 2 | AT81: 6 | AU81: - | AV81: 65.4 | AW81: 65.6 | AX81: 65.1 | AY81: 28 | AZ81: - | BA81: - | BB81: 1 | BC81: 1 | BD81: 1 | BE81: - | BF81: - | BG81: 2 | BH81: 3 | BI81: 4 | BJ81: 3 | BK81: 5 | BL81: 2 | BM81: 6 | BN81: - | BO81: 65.1 | BP81: 65.1 | BQ81: 65.1 | BR81: 14 | BS81: - | BT81: - | BU81: - | BV81: - | BW81: - | BX81: - | BY81: - | BZ81: 1 | CA81: 1 | CB81: 2 | CC81: 2 | CD81: 5 | CE81: - | CF81: 3 | CG81: - | CH81: 7 | CI81: - | CJ81: - | CK81: - | CL81: - | CM81: - | CN81: - | CO81: 1 | CP81: 2 | CQ81: - | CR81: 4 | CS81: - | CT81: - | CU81: - | DC81: 39 | DD81: 35 | DE81: 28 | DF81: 6 | DG81: 1 | DH81: 1 | DI81: - | DJ81: 3 | DK81: 13 | DL81: - | DM81: - | DN81: - | DO81: - | DP81: - | DQ81: 1 | DR81: 11 | DS81: - | DT81: 1 | DU81: - | DV81: - | DW81: - | DX81: - | DY81: - | DZ81: - | EA81: 14 | EB81: 1,072 | EC81: - | ED81: 150 | EE81: 922 | EF81: 19 | EG81: 18 | EH81: 14 | EI81: 4 | EJ81: - | EK81: - | EL81: - | EM81: 1 | EN81: 20 | EO81: 17 | EP81: 14 | EQ81: 2 | ER81: 1 | ES81: 1 | ET81: - | EU81: 2
A82: 山梨県 | B82: 甲府市 | C82: 玉諸村 | D82: 上阿原 | E82: 34 | F82: 29 | G82: 8 | H82: 8 | I82: 10 | J82: 6 | K82: 11 | L82: 5 | M82: 75 | N82: - | O82: 4 | P82: 4 | Q82: 3 | R82: 1 | S82: 2 | T82: 1 | U82: 4 | V82: 17 | W82: 10 | X82: 4 | Y82: 7 | Z82: 3 | AA82: 11 | AB82: 4 | AC82: 60.2 | AD82: 60.4 | AE82: 60.1 | AF82: 53 | AG82: - | AH82: - | AI82: 1 | AJ82: - | AK82: - | AL82: - | AM82: - | AN82: 3 | AO82: 12 | AP82: 9 | AQ82: 3 | AR82: 7 | AS82: 3 | AT82: 11 | AU82: 4 | AV82: 68.4 | AW82: 68.3 | AX82: 68.5 | AY82: 53 | AZ82: - | BA82: - | BB82: 1 | BC82: - | BD82: - | BE82: - | BF82: - | BG82: 3 | BH82: 12 | BI82: 9 | BJ82: 3 | BK82: 7 | BL82: 3 | BM82: 11 | BN82: 4 | BO82: 68.4 | BP82: 68.3 | BQ82: 68.5 | BR82: 29 | BS82: - | BT82: - | BU82: 1 | BV82: - | BW82: - | BX82: - | BY82: - | BZ82: 1 | CA82: 7 | CB82: 7 | CC82: 1 | CD82: 4 | CE82: 3 | CF82: 4 | CG82: 1 | CH82: 10 | CI82: - | CJ82: - | CK82: - | CL82: - | CM82: - | CN82: 1 | CO82: 4 | CP82: 2 | CQ82: - | CR82: - | CS82: 1 | CT82: 2 | CU82: - | DC82: 92 | DD82: 83 | DE82: 53 | DF82: 28 | DG82: 2 | DH82: 2 | DI82: 3 | DJ82: 4 | DK82: 29 | DL82: - | DM82: - | DN82: - | DO82: - | DP82: - | DQ82: - | DR82: 29 | DS82: - | DT82: - | DU82: - | DV82: - | DW82: - | DX82: - | DY82: - | DZ82: - | EA82: 29 | EB82: 1,849 | EC82: - | ED82: 36 | EE82: 1,813 | EF82: 44 | EG82: 40 | EH82: 24 | EI82: 14 | EJ82: 2 | EK82: - | EL82: 1 | EM82: 3 | EN82: 48 | EO82: 43 | EP82: 29 | EQ82: 14 | ER82: - | ES82: 2 | ET82: 2 | EU82: 1
A83: 山梨県 | B83: 甲府市 | C83: 玉諸村 | D83: 向 | E83: 29 | F83: 23 | G83: 6 | H83: 5 | I83: 9 | J83: 2 | K83: 8 | L83: 6 | M83: 59 | N83: 1 | O83: 1 | P83: 3 | Q83: 4 | R83: 1 | S83: 4 | T83: 1 | U83: 3 | V83: 7 | W83: 10 | X83: 11 | Y83: 6 | Z83: 3 | AA83: 3 | AB83: 1 | AC83: 57.4 | AD83: 56.3 | AE83: 58.5 | AF83: 38 | AG83: - | AH83: - | AI83: - | AJ83: - | AK83: - | AL83: - | AM83: 1 | AN83: - | AO83: 5 | AP83: 10 | AQ83: 9 | AR83: 6 | AS83: 3 | AT83: 3 | AU83: 1 | AV83: 66.5 | AW83: 68.8 | AX83: 64.8 | AY83: 32 | AZ83: - | BA83: - | BB83: - | BC83: - | BD83: - | BE83: - | BF83: - | BG83: - | BH83: 4 | BI83: 8 | BJ83: 8 | BK83: 6 | BL83: 3 | BM83: 3 | BN83: - | BO83: 67.1 | BP83: 69.3 | BQ83: 65.1 | BR83: 23 | BS83: - | BT83: - | BU83: 1 | BV83: - | BW83: - | BX83: - | BY83: - | BZ83: 2 | CA83: 1 | CB83: 4 | CC83: 6 | CD83: 4 | CE83: 2 | CF83: 2 | CG83: 1 | CH83: 15 | CI83: - | CJ83: - | CK83: - | CL83: - | CM83: - | CN83: 1 | CO83: 1 | CP83: 1 | CQ83: 4 | CR83: 4 | CS83: 2 | CT83: 1 | CU83: 1 | DC83: 67 | DD83: 54 | DE83: 32 | DF83: 19 | DG83: 3 | DH83: 5 | DI83: 2 | DJ83: 6 | DK83: 23 | DL83: - | DM83: - | DN83: - | DO83: - | DP83: - | DQ83: - | DR83: 23 | DS83: - | DT83: - | DU83: - | DV83: - | DW83: - | DX83: - | DY83: - | DZ83: - | EA83: 23 | EB83: 1,334 | EC83: - | ED83: 24 | EE83: 1,310 | EF83: 35 | EG83: 30 | EH83: 15 | EI83: 13 | EJ83: 2 | EK83: - | EL83: 1 | EM83: 4 | EN83: 32 | EO83: 24 | EP83: 17 | EQ83: 6 | ER83: 1 | ES83: 5 | ET83: 1 | EU83: 2
A84: 山梨県 | B84: 甲府市 | C84: 玉諸村 | D84: 国玉 | E84: 36 | F84: 23 | G84: 4 | H84: 4 | I84: 9 | J84: 5 | K84: 10 | L84: 13 | M84: 61 | N84: 1 | O84: 2 | P84: 2 | Q84: 3 | R84: 2 | S84: 5 | T84: 2 | U84: 5 | V84: 5 | W84: 8 | X84: 9 | Y84: 5 | Z84: 5 | AA84: 6 | AB84: 1 | AC84: 58.2 | AD84: 58.4 | AE84: 58.0 | AF84: 39 | AG84: 1 | AH84: - | AI84: - | AJ84: - | AK84: - | AL84: - | AM84: 1 | AN84: 2 | AO84: 4 | AP84: 6 | AQ84: 8 | AR84: 5 | AS84: 5 | AT84: 6 | AU84: 1 | AV84: 67.3 | AW84: 69.2 | AX84: 64.8 | AY84: 34 | AZ84: - | BA84: - | BB84: - | BC84: - | BD84: - | BE84: - | BF84: 1 | BG84: 2 | BH84: 3 | BI84: 6 | BJ84: 7 | BK84: 4 | BL84: 5 | BM84: 6 | BN84: - | BO84: 68.5 | BP84: 69.0 | BQ84: 67.6 | BR84: 23 | BS84: - | BT84: - | BU84: - | BV84: - | BW84: - | BX84: 1 | BY84: 1 | BZ84: 2 | CA84: 1 | CB84: 5 | CC84: 4 | CD84: 3 | CE84: 3 | CF84: 3 | CG84: - | CH84: 13 | CI84: - | CJ84: - | CK84: - | CL84: 1 | CM84: - | CN84: - | CO84: - | CP84: 2 | CQ84: 3 | CR84: 2 | CS84: 2 | CT84: 3 | CU84: - | DC84: 71 | DD84: 61 | DE84: 34 | DF84: 22 | DG84: 5 | DH84: 3 | DI84: 3 | DJ84: 4 | DK84: 22 | DL84: - | DM84: - | DN84: - | DO84: - | DP84: - | DQ84: - | DR84: 22 | DS84: - | DT84: - | DU84: - | DV84: - | DW84: - | DX84: - | DY84: - | DZ84: - | EA84: 23 | EB84: 1,416 | EC84: - | ED84: 36 | EE84: 1,380 | EF84: 41 | EG84: 38 | EH84: 21 | EI84: 15 | EJ84: 2 | EK84: - | EL84: 1 | EM84: 2 | EN84: 30 | EO84: 23 | EP84: 13 | EQ84: 7 | ER84: 3 | ES84: 3 | ET84: 2 | EU84: 2
A85: 山梨県 | B85: 甲府市 | C85: 玉諸村 | D85: 里吉 | E85: 17 | F85: 16 | G85: 1 | H85: 1 | I85: 4 | J85: 2 | K85: 11 | L85: 1 | M85: 45 | N85: - | O85: 1 | P85: 1 | Q85: - | R85: - | S85: 2 | T85: 3 | U85: 5 | V85: 9 | W85: 1 | X85: 2 | Y85: 8 | Z85: 3 | AA85: 8 | AB85: 2 | AC85: 64.2 | AD85: 64.2 | AE85: 64.1 | AF85: 31 | AG85: - | AH85: 1 | AI85: - | AJ85: - | AK85: - | AL85: - | AM85: 1 | AN85: 3 | AO85: 3 | AP85: 1 | AQ85: 2 | AR85: 8 | AS85: 3 | AT85: 7 | AU85: 2 | AV85: 69.6 | AW85: 75.3 | AX85: 65.9 | AY85: 24 | AZ85: - | BA85: 1 | BB85: - | BC85: - | BD85: - | BE85: - | BF85: 1 | BG85: 1 | BH85: 2 | BI85: 1 | BJ85: 2 | BK85: 5 | BL85: 2 | BM85: 7 | BN85: 2 | BO85: 70.8 | BP85: 75.3 | BQ85: 66.2 | BR85: 16 | BS85: - | BT85: - | BU85: - | BV85: - | BW85: - | BX85: 1 | BY85: - | BZ85: - | CA85: 3 | CB85: 1 | CC85: - | CD85: 3 | CE85: 2 | CF85: 5 | CG85: 1 | CH85: 11 | CI85: - | CJ85: - | CK85: - | CL85: 1 | CM85: - | CN85: - | CO85: 1 | CP85: - | CQ85: - | CR85: 2 | CS85: 1 | CT85: 5 | CU85: 1 | DC85: 54 | DD85: 42 | DE85: 24 | DF85: 15 | DG85: 3 | DH85: 10 | DI85: 2 | DJ85: - | DK85: 14 | DL85: - | DM85: - | DN85: - | DO85: - | DP85: - | DQ85: - | DR85: 14 | DS85: - | DT85: - | DU85: - | DV85: - | DW85: - | DX85: - | DY85: - | DZ85: - | EA85: 16 | EB85: 664 | EC85: - | ED85: 70 | EE85: 594 | EF85: 28 | EG85: 26 | EH85: 12 | EI85: 11 | EJ85: 3 | EK85: - | EL85: 2 | EM85: - | EN85: 26 | EO85: 16 | EP85: 12 | EQ85: 4 | ER85: - | ES85: 10 | ET85: - | EU85: -
A86: 山梨県 | B86: 甲府市 | C86: 甲運村 | E86: 212 | F86: 184 | G86: 67 | H86: 60 | I86: 49 | J86: 25 | K86: 68 | L86: 28 | M86: 498 | N86: 11 | O86: 13 | P86: 25 | Q86: 13 | R86: 19 | S86: 27 | T86: 20 | U86: 37 | V86: 59 | W86: 64 | X86: 54 | Y86: 60 | Z86: 53 | AA86: 29 | AB86: 14 | AC86: 58.6 | AD86: 58.1 | AE86: 59.1 | AF86: 346 | AG86: 1 | AH86: 2 | AI86: 3 | AJ86: - | AK86: 5 | AL86: 9 | AM86: 13 | AN86: 18 | AO86: 40 | AP86: 53 | AQ86: 50 | AR86: 58 | AS86: 51 | AT86: 29 | AU86: 14 | AV86: 66.1 | AW86: 66.5 | AX86: 65.8 | AY86: 291 | AZ86: - | BA86: - | BB86: 2 | BC86: - | BD86: 2 | BE86: 7 | BF86: 11 | BG86: 14 | BH86: 37 | BI86: 46 | BJ86: 47 | BK86: 55 | BL86: 45 | BM86: 18 | BN86: 7 | BO86: 66.3 | BP86: 67.0 | BQ86: 65.5 | BR86: 184 | BS86: - | BT86: - | BU86: - | BV86: - | BW86: 2 | BX86: 3 | BY86: 5 | BZ86: 10 | CA86: 26 | CB86: 33 | CC86: 27 | CD86: 32 | CE86: 29 | CF86: 10 | CG86: 7 | CH86: 89 | CI86: - | CJ86: - | CK86: - | CL86: 1 | CM86: 2 | CN86: 5 | CO86: 11 | CP86: 14 | CQ86: 15 | CR86: 14 | CS86: 17 | CT86: 5 | CU86: 5 | DC86: 581 | DD86: 440 | DE86: 291 | DF86: 137 | DG86: 12 | DH86: 52 | DI86: 35 | DJ86: 54 | DK86: 182 | DL86: - | DM86: - | DN86: - | DO86: - | DP86: - | DQ86: 1 | DR86: 180 | DS86: 1 | DT86: - | DU86: - | DV86: - | DW86: - | DX86: - | DY86: - | DZ86: - | EA86: 184 | EB86: 11,753 | EC86: - | ED86: 84 | EE86: 11,669 | EF86: 273 | EG86: 242 | EH86: 151 | EI86: 82 | EJ86: 9 | EK86: - | EL86: 18 | EM86: 13 | EN86: 308 | EO86: 198 | EP86: 140 | EQ86: 55 | ER86: 3 | ES86: 52 | ET86: 17 | EU86: 41
A87: 山梨県 | B87: 甲府市 | C87: 甲運村 | D87: 川田 | E87: 33 | F87: 26 | G87: 5 | H87: 3 | I87: 10 | J87: 8 | K87: 11 | L87: 7 | M87: 67 | N87: 1 | O87: 3 | P87: 4 | Q87: 1 | R87: 2 | S87: 5 | T87: - | U87: 9 | V87: 8 | W87: 9 | X87: 6 | Y87: 6 | Z87: 8 | AA87: 4 | AB87: 1 | AC87: 57.2 | AD87: 58.6 | AE87: 56.1 | AF87: 41 | AG87: - | AH87: - | AI87: - | AJ87: - | AK87: 1 | AL87: 1 | AM87: - | AN87: 3 | AO87: 6 | AP87: 8 | AQ87: 4 | AR87: 5 | AS87: 8 | AT87: 4 | AU87: 1 | AV87: 66.6 | AW87: 69.3 | AX87: 64.4 | AY87: 34 | AZ87: - | BA87: - | BB87: - | BC87: - | BD87: - | BE87: - | BF87: - | BG87: 2 | BH87: 6 | BI87: 8 | BJ87: 4 | BK87: 5 | BL87: 5 | BM87: 3 | BN87: 1 | BO87: 67.2 | BP87: 69.3 | BQ87: 64.9 | BR87: 26 | BS87: - | BT87: - | BU87: - | BV87: - | BW87: - | BX87: 1 | BY87: - | BZ87: 2 | CA87: 2 | CB87: 6 | CC87: 4 | CD87: 3 | CE87: 3 | CF87: 4 | CG87: 1 | CH87: 14 | CI87: - | CJ87: - | CK87: - | CL87: 1 | CM87: - | CN87: 1 | CO87: 1 | CP87: 2 | CQ87: 2 | CR87: 2 | CS87: 3 | CT87: 1 | CU87: 1 | DC87: 82 | DD87: 59 | DE87: 34 | DF87: 24 | DG87: 1 | DH87: 7 | DI87: 7 | DJ87: 9 | DK87: 26 | DL87: - | DM87: - | DN87: - | DO87: - | DP87: - | DQ87: - | DR87: 26 | DS87: - | DT87: - | DU87: - | DV87: - | DW87: - | DX87: - | DY87: - | DZ87: - | EA87: 26 | EB87: 1,247 | EC87: - | ED87: 23 | EE87: 1,224 | EF87: 37 | EG87: 32 | EH87: 18 | EI87: 13 | EJ87: 1 | EK87: - | EL87: 4 | EM87: 1 | EN87: 45 | EO87: 27 | EP87: 16 | EQ87: 11 | ER87: - | ES87: 7 | ET87: 3 | EU87: 8
A88: 山梨県 | B88: 甲府市 | C88: 甲運村 | D88: 和戸 | E88: 44 | F88: 39 | G88: 13 | H88: 12 | I88: 9 | J88: 4 | K88: 17 | L88: 5 | M88: 102 | N88: - | O88: 2 | P88: 5 | Q88: 3 | R88: 5 | S88: 6 | T88: 4 | U88: 3 | V88: 17 | W88: 13 | X88: 13 | Y88: 15 | Z88: 9 | AA88: 5 | AB88: 2 | AC88: 59.3 | AD88: 58.5 | AE88: 60.1 | AF88: 67 | AG88: - | AH88: - | AI88: - | AJ88: - | AK88: 1 | AL88: 1 | AM88: 2 | AN88: 1 | AO88: 10 | AP88: 10 | AQ88: 13 | AR88: 14 | AS88: 8 | AT88: 5 | AU88: 2 | AV88: 66.9 | AW88: 69.1 | AX88: 65.2 | AY88: 55 | AZ88: - | BA88: - | BB88: - | BC88: - | BD88: - | BE88: 1 | BF88: 2 | BG88: 1 | BH88: 8 | BI88: 7 | BJ88: 11 | BK88: 12 | BL88: 8 | BM88: 3 | BN88: 2 | BO88: 67.5 | BP88: 69.1 | BQ88: 65.5 | BR88: 39 | BS88: - | BT88: - | BU88: - | BV88: - | BW88: - | BX88: - | BY88: 1 | BZ88: 1 | CA88: 7 | CB88: 9 | CC88: 7 | CD88: 7 | CE88: 6 | CF88: 1 | CG88: - | CH88: 18 | CI88: - | CJ88: - | CK88: - | CL88: - | CM88: - | CN88: - | CO88: 2 | CP88: 7 | CQ88: 2 | CR88: 5 | CS88: 2 | CT88: - | CU88: - | DC88: 112 | DD88: 87 | DE88: 55 | DF88: 27 | DG88: 5 | DH88: 13 | DI88: 5 | DJ88: 7 | DK88: 39 | DL88: - | DM88: - | DN88: - | DO88: - | DP88: - | DQ88: - | DR88: 39 | DS88: - | DT88: - | DU88: - | DV88: - | DW88: - | DX88: - | DY88: - | DZ88: - | EA88: 39 | EB88: 2,077 | EC88: - | ED88: 3 | EE88: 2,074 | EF88: 57 | EG88: 54 | EH88: 30 | EI88: 20 | EJ88: 4 | EK88: - | EL88: 3 | EM88: - | EN88: 55 | EO88: 33 | EP88: 25 | EQ88: 7 | ER88: 1 | ES88: 13 | ET88: 2 | EU88: 7
A89: 山梨県 | B89: 甲府市 | C89: 甲運村 | D89: 横根 | E89: 79 | F89: 70 | G89: 30 | H89: 27 | I89: 19 | J89: 10 | K89: 21 | L89: 9 | M89: 202 | N89: 8 | O89: 8 | P89: 11 | Q89: 4 | R89: 7 | S89: 9 | T89: 10 | U89: 17 | V89: 21 | W89: 23 | X89: 19 | Y89: 23 | Z89: 22 | AA89: 14 | AB89: 6 | AC89: 57.6 | AD89: 56.7 | AE89: 58.4 | AF89: 147 | AG89: 1 | AH89: 2 | AI89: 3 | AJ89: - | AK89: 2 | AL89: 6 | AM89: 8 | AN89: 9 | AO89: 14 | AP89: 21 | AQ89: 17 | AR89: 23 | AS89: 21 | AT89: 14 | AU89: 6 | AV89: 64.5 | AW89: 63.1 | AX89: 65.8 | AY89: 127 | AZ89: - | BA89: - | BB89: 2 | BC89: - | BD89: 2 | BE89: 5 | BF89: 7 | BG89: 9 | BH89: 13 | BI89: 19 | BJ89: 16 | BK89: 23 | BL89: 19 | BM89: 9 | BN89: 3 | BO89: 64.8 | BP89: 64.8 | BQ89: 64.9 | BR89: 70 | BS89: - | BT89: - | BU89: - | BV89: - | BW89: 2 | BX89: - | BY89: 3 | BZ89: 5 | CA89: 10 | CB89: 11 | CC89: 7 | CD89: 14 | CE89: 11 | CF89: 3 | CG89: 4 | CH89: 39 | CI89: - | CJ89: - | CK89: - | CL89: - | CM89: 2 | CN89: 3 | CO89: 6 | CP89: 5 | CQ89: 4 | CR89: 6 | CS89: 7 | CT89: 3 | CU89: 3 | DC89: 233 | DD89: 178 | DE89: 127 | DF89: 48 | DG89: 3 | DH89: 15 | DI89: 19 | DJ89: 21 | DK89: 68 | DL89: - | DM89: - | DN89: - | DO89: - | DP89: - | DQ89: 1 | DR89: 67 | DS89: - | DT89: - | DU89: - | DV89: - | DW89: - | DX89: - | DY89: - | DZ89: - | EA89: 70 | EB89: 5,217 | EC89: - | ED89: 55 | EE89: 5,162 | EF89: 107 | EG89: 90 | EH89: 63 | EI89: 25 | EJ89: 2 | EK89: - | EL89: 10 | EM89: 7 | EN89: 126 | EO89: 88 | EP89: 64 | EQ89: 23 | ER89: 1 | ES89: 15 | ET89: 9 | EU89: 14
A90: 山梨県 | B90: 甲府市 | C90: 甲運村 | D90: 桜井 | E90: 47 | F90: 40 | G90: 16 | H90: 16 | I90: 9 | J90: 2 | K90: 15 | L90: 7 | M90: 102 | N90: 2 | O90: - | P90: 4 | Q90: 4 | R90: 4 | S90: 5 | T90: 4 | U90: 7 | V90: 12 | W90: 14 | X90: 14 | Y90: 15 | Z90: 8 | AA90: 4 | AB90: 5 | AC90: 60.1 | AD90: 58.9 | AE90: 61.3 | AF90: 74 | AG90: - | AH90: - | AI90: - | AJ90: - | AK90: 1 | AL90: 1 | AM90: 2 | AN90: 4 | AO90: 10 | AP90: 10 | AQ90: 14 | AR90: 15 | AS90: 8 | AT90: 4 | AU90: 5 | AV90: 67.3 | AW90: 68.3 | AX90: 66.4 | AY90: 63 | AZ90: - | BA90: - | BB90: - | BC90: - | BD90: - | BE90: 1 | BF90: 1 | BG90: 2 | BH90: 10 | BI90: 10 | BJ90: 14 | BK90: 14 | BL90: 8 | BM90: 2 | BN90: 1 | BO90: 66.8 | BP90: 67.3 | BQ90: 66.4 | BR90: 40 | BS90: - | BT90: - | BU90: - | BV90: - | BW90: - | BX90: 1 | BY90: - | BZ90: 2 | CA90: 6 | CB90: 5 | CC90: 8 | CD90: 8 | CE90: 7 | CF90: 1 | CG90: 2 | CH90: 16 | CI90: - | CJ90: - | CK90: - | CL90: - | CM90: - | CN90: 1 | CO90: 1 | CP90: - | CQ90: 6 | CR90: 1 | CS90: 5 | CT90: 1 | CU90: 1 | DC90: 126 | DD90: 97 | DE90: 63 | DF90: 32 | DG90: 2 | DH90: 10 | DI90: 4 | DJ90: 15 | DK90: 40 | DL90: - | DM90: - | DN90: - | DO90: - | DP90: - | DQ90: - | DR90: 39 | DS90: 1 | DT90: - | DU90: - | DV90: - | DW90: - | DX90: - | DY90: - | DZ90: - | EA90: 40 | EB90: 2,532 | EC90: - | ED90: 3 | EE90: 2,529 | EF90: 59 | EG90: 53 | EH90: 32 | EI90: 20 | EJ90: 1 | EK90: - | EL90: 1 | EM90: 5 | EN90: 67 | EO90: 44 | EP90: 31 | EQ90: 12 | ER90: 1 | ES90: 10 | ET90: 3 | EU90: 10
A91: 山梨県 | B91: 甲府市 | C91: 甲運村 | D91: 横根三ツ石 | E91: 9 | F91: 9 | G91: 3 | H91: 2 | I91: 2 | J91: 1 | K91: 4 | L91: - | M91: 25 | N91: - | O91: - | P91: 1 | Q91: 1 | R91: 1 | S91: 2 | T91: 2 | U91: 1 | V91: 1 | W91: 5 | X91: 2 | Y91: 1 | Z91: 6 | AA91: 2 | AB91: - | AC91: 61.6 | AD91: 61.5 | AE91: 61.6 | AF91: 17 | AG91: - | AH91: - | AI91: - | AJ91: - | AK91: - | AL91: - | AM91: 1 | AN91: 1 | AO91: - | AP91: 4 | AQ91: 2 | AR91: 1 | AS91: 6 | AT91: 2 | AU91: - | AV91: 69.8 | AW91: 71.3 | AX91: 68.6 | AY91: 12 | AZ91: - | BA91: - | BB91: - | BC91: - | BD91: - | BE91: - | BF91: 1 | BG91: - | BH91: - | BI91: 2 | BJ91: 2 | BK91: 1 | BL91: 5 | BM91: 1 | BN91: - | BO91: 70.9 | BP91: 71.3 | BQ91: 70.3 | BR91: 9 | BS91: - | BT91: - | BU91: - | BV91: - | BW91: - | BX91: 1 | BY91: 1 | BZ91: - | CA91: 1 | CB91: 2 | CC91: 1 | CD91: - | CE91: 2 | CF91: 1 | CG91: - | CH91: 2 | CI91: - | CJ91: - | CK91: - | CL91: - | CM91: - | CN91: - | CO91: 1 | CP91: - | CQ91: 1 | CR91: - | CS91: - | CT91: - | CU91: - | DC91: 28 | DD91: 19 | DE91: 12 | DF91: 6 | DG91: 1 | DH91: 7 | DI91: - | DJ91: 2 | DK91: 9 | DL91: - | DM91: - | DN91: - | DO91: - | DP91: - | DQ91: - | DR91: 9 | DS91: - | DT91: - | DU91: - | DV91: - | DW91: - | DX91: - | DY91: - | DZ91: - | EA91: 9 | EB91: 680 | EC91: - | ED91: - | EE91: 680 | EF91: 13 | EG91: 13 | EH91: 8 | EI91: 4 | EJ91: 1 | EK91: - | EL91: - | EM91: - | EN91: 15 | EO91: 6 | EP91: 4 | EQ91: 2 | ER91: - | ES91: 7 | ET91: - | EU91: 2
A92: 山梨県 | B92: 甲府市 | C92: 千代田村 | E92: 117 | F92: 42 | G92: 2 | H92: 2 | I92: 8 | J92: 2 | K92: 32 | L92: 75 | M92: 110 | N92: 3 | O92: 1 | P92: 2 | Q92: 6 | R92: 2 | S92: 2 | T92: 6 | U92: 11 | V92: 17 | W92: 8 | X92: 5 | Y92: 8 | Z92: 14 | AA92: 17 | AB92: 8 | AC92: 62.3 | AD92: 60.2 | AE92: 64.7 | AF92: 58 | AG92: - | AH92: - | AI92: - | AJ92: 1 | AK92: - | AL92: - | AM92: - | AN92: 2 | AO92: 2 | AP92: 5 | AQ92: 3 | AR92: 8 | AS92: 13 | AT92: 17 | AU92: 7 | AV92: 74.6 | AW92: 73.4 | AX92: 75.8 | AY92: 46 | AZ92: - | BA92: - | BB92: - | BC92: 1 | BD92: - | BE92: - | BF92: - | BG92: - | BH92: 2 | BI92: 5 | BJ92: 2 | BK92: 7 | BL92: 9 | BM92: 13 | BN92: 7 | BO92: 75.0 | BP92: 74.2 | BQ92: 76.1 | BR92: 42 | BS92: - | BT92: - | BU92: - | BV92: - | BW92: - | BX92: - | BY92: 2 | BZ92: 2 | CA92: 8 | CB92: 6 | CC92: 3 | CD92: 3 | CE92: 5 | CF92: 8 | CG92: 5 | CH92: 27 | CI92: - | CJ92: - | CK92: - | CL92: - | CM92: - | CN92: 1 | CO92: 3 | CP92: 4 | CQ92: 3 | CR92: 1 | CS92: 3 | CT92: 8 | CU92: 4 | DC92: 136 | DD92: 94 | DE92: 46 | DF92: 45 | DG92: 3 | DH92: 19 | DI92: 10 | DJ92: 13 | DK92: 23 | DL92: 16 | DM92: - | DN92: - | DO92: - | DP92: 5 | DQ92: - | DR92: 2 | DS92: - | DT92: - | DU92: - | DV92: - | DW92: - | DX92: - | DY92: - | DZ92: - | EA92: 42 | EB92: 1,965 | EC92: 1,244 | ED92: 604 | EE92: 117 | EF92: 62 | EG92: 56 | EH92: 27 | EI92: 26 | EJ92: 3 | EK92: 1 | EL92: 4 | EM92: 1 | EN92: 74 | EO92: 38 | EP92: 19 | EQ92: 19 | ER92: - | ES92: 18 | ET92: 6 | EU92: 12
A93: 山梨県 | B93: 甲府市 | C93: 千代田村 | D93: 上野 | E93: 23 | F93: 13 | G93: 1 | H93: 1 | I93: 3 | J93: 2 | K93: 9 | L93: 10 | M93: 29 | N93: - | O93: - | P93: - | Q93: 2 | R93: 1 | S93: 1 | T93: 1 | U93: 2 | V93: 3 | W93: 3 | X93: 1 | Y93: 2 | Z93: 4 | AA93: 9 | AB93: - | AC93: 65.7 | AD93: 65.7 | AE93: 65.8 | AF93: 20 | AG93: - | AH93: - | AI93: - | AJ93: - | AK93: - | AL93: - | AM93: - | AN93: 1 | AO93: - | AP93: 3 | AQ93: 1 | AR93: 2 | AS93: 4 | AT93: 9 | AU93: - | AV93: 74.4 | AW93: 74.8 | AX93: 73.9 | AY93: 16 | AZ93: - | BA93: - | BB93: - | BC93: - | BD93: - | BE93: - | BF93: - | BG93: - | BH93: - | BI93: 3 | BJ93: 1 | BK93: 1 | BL93: 3 | BM93: 8 | BN93: - | BO93: 75.1 | BP93: 74.8 | BQ93: 75.5 | BR93: 13 | BS93: - | BT93: - | BU93: - | BV93: - | BW93: - | BX93: - | BY93: 1 | BZ93: - | CA93: 1 | CB93: 2 | CC93: 1 | CD93: - | CE93: 2 | CF93: 6 | CG93: - | CH93: 11 | CI93: - | CJ93: - | CK93: - | CL93: - | CM93: - | CN93: - | CO93: - | CP93: 2 | CQ93: 1 | CR93: - | CS93: 2 | CT93: 6 | CU93: - | DC93: 36 | DD93: 26 | DE93: 16 | DF93: 10 | DG93: - | DH93: 6 | DI93: - | DJ93: 4 | DK93: 11 | DL93: 6 | DM93: - | DN93: - | DO93: - | DP93: 5 | DQ93: - | DR93: - | DS93: - | DT93: - | DU93: - | DV93: - | DW93: - | DX93: - | DY93: - | DZ93: - | EA93: 13 | EB93: 641 | EC93: 369 | ED93: 254 | EE93: 18 | EF93: 15 | EG93: 15 | EH93: 10 | EI93: 5 | EJ93: - | EK93: - | EL93: - | EM93: - | EN93: 21 | EO93: 11 | EP93: 6 | EQ93: 5 | ER93: - | ES93: 6 | ET93: - | EU93: 4
A94: 山梨県 | B94: 甲府市 | C94: 千代田村 | D94: 平瀬 | E94: 13 | F94: 4 | G94: - | H94: - | I94: 1 | J94: - | K94: 3 | L94: 9 | M94: 9 | N94: - | O94: - | P94: - | Q94: - | R94: - | S94: 1 | T94: - | U94: 1 | V94: 1 | W94: - | X94: - | Y94: 2 | Z94: - | AA94: 1 | AB94: 3 | AC94: 70.6 | AD94: 69.0 | AE94: 72.5 | AF94: 6 | AG94: - | AH94: - | AI94: - | AJ94: - | AK94: - | AL94: - | AM94: - | AN94: - | AO94: - | AP94: - | AQ94: - | AR94: 2 | AS94: - | AT94: 1 | AU94: 3 | AV94: 80.8 | AW94: 82.0 | AX94: 79.7 | AY94: 5 | AZ94: - | BA94: - | BB94: - | BC94: - | BD94: - | BE94: - | BF94: - | BG94: - | BH94: - | BI94: - | BJ94: - | BK94: 2 | BL94: - | BM94: - | BN94: 3 | BO94: 80.6 | BP94: 82.0 | BQ94: 78.5 | BR94: 4 | BS94: - | BT94: - | BU94: - | BV94: - | BW94: - | BX94: - | BY94: - | BZ94: - | CA94: 1 | CB94: - | CC94: - | CD94: 1 | CE94: - | CF94: - | CG94: 2 | CH94: 2 | CI94: - | CJ94: - | CK94: - | CL94: - | CM94: - | CN94: - | CO94: - | CP94: - | CQ94: - | CR94: 1 | CS94: - | CT94: - | CU94: 1 | DC94: 13 | DD94: 8 | DE94: 5 | DF94: 3 | DG94: - | DH94: 2 | DI94: 2 | DJ94: 1 | DK94: 4 | DL94: 3 | DM94: - | DN94: - | DO94: - | DP94: - | DQ94: - | DR94: 1 | DS94: - | DT94: - | DU94: - | DV94: - | DW94: - | DX94: - | DY94: - | DZ94: - | EA94: 4 | EB94: 174 | EC94: 110 | ED94: 41 | EE94: 23 | EF94: 5 | EG94: 5 | EH94: 3 | EI94: 2 | EJ94: - | EK94: - | EL94: - | EM94: - | EN94: 8 | EO94: 3 | EP94: 2 | EQ94: 1 | ER94: - | ES94: 2 | ET94: 2 | EU94: 1
A95: 山梨県 | B95: 甲府市 | C95: 千代田村 | D95: 下帯那 | E95: 40 | F95: 10 | G95: - | H95: - | I95: 2 | J95: - | K95: 8 | L95: 30 | M95: 30 | N95: 1 | O95: - | P95: 2 | Q95: 1 | R95: 1 | S95: - | T95: 1 | U95: 4 | V95: 7 | W95: - | X95: 4 | Y95: 1 | Z95: 2 | AA95: 5 | AB95: 1 | AC95: 59.1 | AD95: 57.2 | AE95: 62.0 | AF95: 10 | AG95: - | AH95: - | AI95: - | AJ95: - | AK95: - | AL95: - | AM95: - | AN95: - | AO95: - | AP95: - | AQ95: 2 | AR95: 1 | AS95: 2 | AT95: 5 | AU95: - | AV95: 77.4 | AW95: 76.2 | AX95: 78.6 | AY95: 7 | AZ95: - | BA95: - | BB95: - | BC95: - | BD95: - | BE95: - | BF95: - | BG95: - | BH95: - | BI95: - | BJ95: 1 | BK95: 1 | BL95: 1 | BM95: 4 | BN95: - | BO95: 78.0 | BP95: 76.2 | BQ95: 82.5 | BR95: 10 | BS95: - | BT95: - | BU95: - | BV95: - | BW95: - | BX95: - | BY95: - | BZ95: 1 | CA95: 4 | CB95: - | CC95: 2 | CD95: 1 | CE95: - | CF95: 1 | CG95: 1 | CH95: 6 | CI95: - | CJ95: - | CK95: - | CL95: - | CM95: - | CN95: - | CO95: 2 | CP95: - | CQ95: 2 | CR95: - | CS95: - | CT95: 1 | CU95: 1 | DC95: 40 | DD95: 28 | DE95: 7 | DF95: 18 | DG95: 3 | DH95: 3 | DI95: 4 | DJ95: 5 | DK95: 3 | DL95: 3 | DM95: - | DN95: - | DO95: - | DP95: - | DQ95: - | DR95: - | DS95: - | DT95: - | DU95: - | DV95: - | DW95: - | DX95: - | DY95: - | DZ95: - | EA95: 10 | EB95: 401 | EC95: 301 | ED95: 94 | EE95: 6 | EF95: 21 | EG95: 17 | EH95: 5 | EI95: 9 | EJ95: 3 | EK95: - | EL95: 3 | EM95: 1 | EN95: 19 | EO95: 11 | EP95: 2 | EQ95: 9 | ER95: - | ES95: 3 | ET95: 1 | EU95: 4
A96: 山梨県 | B96: 甲府市 | C96: 千代田村 | D96: 上帯那 | E96: 41 | F96: 15 | G96: 1 | H96: 1 | I96: 2 | J96: - | K96: 12 | L96: 26 | M96: 42 | N96: 2 | O96: 1 | P96: - | Q96: 3 | R96: - | S96: - | T96: 4 | U96: 4 | V96: 6 | W96: 5 | X96: - | Y96: 3 | Z96: 8 | AA96: 2 | AB96: 4 | AC96: 60.4 | AD96: 56.8 | AE96: 64.0 | AF96: 22 | AG96: - | AH96: - | AI96: - | AJ96: 1 | AK96: - | AL96: - | AM96: - | AN96: 1 | AO96: 2 | AP96: 2 | AQ96: - | AR96: 3 | AS96: 7 | AT96: 2 | AU96: 4 | AV96: 71.9 | AW96: 67.9 | AX96: 75.2 | AY96: 18 | AZ96: - | BA96: - | BB96: - | BC96: 1 | BD96: - | BE96: - | BF96: - | BG96: - | BH96: 2 | BI96: 2 | BJ96: - | BK96: 3 | BL96: 5 | BM96: 1 | BN96: 4 | BO96: 72.2 | BP96: 69.9 | BQ96: 74.4 | BR96: 15 | BS96: - | BT96: - | BU96: - | BV96: - | BW96: - | BX96: - | BY96: 1 | BZ96: 1 | CA96: 2 | CB96: 4 | CC96: - | CD96: 1 | CE96: 3 | CF96: 1 | CG96: 2 | CH96: 8 | CI96: - | CJ96: - | CK96: - | CL96: - | CM96: - | CN96: 1 | CO96: 1 | CP96: 2 | CQ96: - | CR96: - | CS96: 1 | CT96: 1 | CU96: 2 | DC96: 47 | DD96: 32 | DE96: 18 | DF96: 14 | DG96: - | DH96: 8 | DI96: 4 | DJ96: 3 | DK96: 5 | DL96: 4 | DM96: - | DN96: - | DO96: - | DP96: - | DQ96: - | DR96: 1 | DS96: - | DT96: - | DU96: - | DV96: - | DW96: - | DX96: - | DY96: - | DZ96: - | EA96: 15 | EB96: 749 | EC96: 464 | ED96: 215 | EE96: 70 | EF96: 21 | EG96: 19 | EH96: 9 | EI96: 10 | EJ96: - | EK96: 1 | EL96: 1 | EM96: - | EN96: 26 | EO96: 13 | EP96: 9 | EQ96: 4 | ER96: - | ES96: 7 | ET96: 3 | EU96: 3
A97: 山梨県 | B97: 甲府市 | C97: 能泉村 | E97: 8 | F97: - | G97: - | H97: - | I97: - | J97: - | K97: - | L97: 8 | M97: - | N97: - | O97: - | P97: - | Q97: - | R97: - | S97: - | T97: - | U97: - | V97: - | W97: - | X97: - | Y97: - | Z97: - | AA97: - | AB97: - | AC97: - | AD97: - | AE97: - | AF97: - | AG97: - | AH97: - | AI97: - | AJ97: - | AK97: - | AL97: - | AM97: - | AN97: - | AO97: - | AP97: - | AQ97: - | AR97: - | AS97: - | AT97: - | AU97: - | AV97: - | AW97: - | AX97: - | AY97: - | AZ97: - | BA97: - | BB97: - | BC97: - | BD97: - | BE97: - | BF97: - | BG97: - | BH97: - | BI97: - | BJ97: - | BK97: - | BL97: - | BM97: - | BN97: - | BO97: - | BP97: - | BQ97: - | BR97: - | BS97: - | BT97: - | BU97: - | BV97: - | BW97: - | BX97: - | BY97: - | BZ97: - | CA97: - | CB97: - | CC97: - | CD97: - | CE97: - | CF97: - | CG97: - | CH97: - | CI97: - | CJ97: - | CK97: - | CL97: - | CM97: - | CN97: - | CO97: - | CP97: - | CQ97: - | CR97: - | CS97: - | CT97: - | CU97: - | DC97: - | DD97: - | DE97: - | DF97: - | DG97: - | DH97: - | DI97: - | DJ97: - | DK97: - | DL97: - | DM97: - | DN97: - | DO97: - | DP97: - | DQ97: - | DR97: - | DS97: - | DT97: - | DU97: - | DV97: - | DW97: - | DX97: - | DY97: - | DZ97: - | EA97: - | EB97: - | EC97: - | ED97: - | EE97: - | EF97: - | EG97: - | EH97: - | EI97: - | EJ97: - | EK97: - | EL97: - | EM97: - | EN97: - | EO97: - | EP97: - | EQ97: - | ER97: - | ES97: - | ET97: - | EU97: -
A98: 山梨県 | B98: 甲府市 | C98: 能泉村 | D98: 塔岩，竹日向 | E98: 1 | F98: - | G98: - | H98: - | I98: - | J98: - | K98: - | L98: 1 | M98: - | N98: - | O98: - | P98: - | Q98: - | R98: - | S98: - | T98: - | U98: - | V98: - | W98: - | X98: - | Y98: - | Z98: - | AA98: - | AB98: - | AC98: … | AD98: … | AE98: … | AF98: - | AG98: - | AH98: - | AI98: - | AJ98: - | AK98: - | AL98: - | AM98: - | AN98: - | AO98: - | AP98: - | AQ98: - | AR98: - | AS98: - | AT98: - | AU98: - | AV98: … | AW98: … | AX98: … | AY98: - | AZ98: - | BA98: - | BB98: - | BC98: - | BD98: - | BE98: - | BF98: - | BG98: - | BH98: - | BI98: - | BJ98: - | BK98: - | BL98: - | BM98: - | BN98: - | BO98: … | BP98: … | BQ98: … | BR98: - | BS98: - | BT98: - | BU98: - | BV98: - | BW98: - | BX98: - | BY98: - | BZ98: - | CA98: - | CB98: - | CC98: - | CD98: - | CE98: - | CF98: - | CG98: - | CH98: - | CI98: - | CJ98: - | CK98: - | CL98: - | CM98: - | CN98: - | CO98: - | CP98: - | CQ98: - | CR98: - | CS98: - | CT98: - | CU98: - | DC98: - | DD98: - | DE98: - | DF98: - | DG98: - | DH98: - | DI98: - | DJ98: - | DK98: - | DL98: - | DM98: - | DN98: - | DO98: - | DP98: - | DQ98: - | DR98: - | DS98: - | DT98: - | DU98: - | DV98: - | DW98: - | DX98: - | DY98: - | DZ98: - | EA98: - | EB98: - | EC98: - | ED98: - | EE98: - | EF98: - | EG98: - | EH98: - | EI98: - | EJ98: - | EK98: - | EL98: - | EM98: - | EN98: - | EO98: - | EP98: - | EQ98: - | ER98: - | ES98: - | ET98: - | EU98: -
A99: 山梨県 | B99: 甲府市 | C99: 能泉村 | D99: 高成 | E99: 7 | F99: - | G99: - | H99: - | I99: - | J99: - | K99: - | L99: 7 | M99: - | N99: - | O99: - | P99: - | Q99: - | R99: - | S99: - | T99: - | U99: - | V99: - | W99: - | X99: - | Y99: - | Z99: - | AA99: - | AB99: - | AC99: … | AD99: … | AE99: … | AF99: - | AG99: - | AH99: - | AI99: - | AJ99: - | AK99: - | AL99: - | AM99: - | AN99: - | AO99: - | AP99: - | AQ99: - | AR99: - | AS99: - | AT99: - | AU99: - | AV99: … | AW99: … | AX99: … | AY99: - | AZ99: - | BA99: - | BB99: - | BC99: - | BD99: - | BE99: - | BF99: - | BG99: - | BH99: - | BI99: - | BJ99: - | BK99: - | BL99: - | BM99: - | BN99: - | BO99: … | BP99: … | BQ99: … | BR99: - | BS99: - | BT99: - | BU99: - | BV99: - | BW99: - | BX99: - | BY99: - | BZ99: - | CA99: - | CB99: - | CC99: - | CD99: - | CE99: - | CF99: - | CG99: - | CH99: - | CI99: - | CJ99: - | CK99: - | CL99: - | CM99: - | CN99: - | CO99: - | CP99: - | CQ99: - | CR99: - | CS99: - | CT99: - | CU99: - | DC99: - | DD99: - | DE99: - | DF99: - | DG99: - | DH99: - | DI99: - | DJ99: - | DK99: - | DL99: - | DM99: - | DN99: - | DO99: - | DP99: - | DQ99: - | DR99: - | DS99: - | DT99: - | DU99: - | DV99: - | DW99: - | DX99: - | DY99: - | DZ99: - | EA99: - | EB99: - | EC99: - | ED99: - | EE99: - | EF99: - | EG99: - | EH99: - | EI99: - | EJ99: - | EK99: - | EL99: - | EM99: - | EN99: - | EO99: - | EP99: - | EQ99: - | ER99: - | ES99: - | ET99: - | EU99: -
A100: 山梨県 | B100: 甲府市 | C100: 能泉村 | D100: 上川窪 | E100: - | F100: - | G100: - | H100: - | I100: - | J100: - | K100: - | L100: - | M100: - | N100: - | O100: - | P100: - | Q100: - | R100: - | S100: - | T100: - | U100: - | V100: - | W100: - | X100: - | Y100: - | Z100: - | AA100: - | AB100: - | AC100: … | AD100: … | AE100: … | AF100: - | AG100: - | AH100: - | AI100: - | AJ100: - | AK100: - | AL100: - | AM100: - | AN100: - | AO100: - | AP100: - | AQ100: - | AR100: - | AS100: - | AT100: - | AU100: - | AV100: … | AW100: … | AX100: … | AY100: - | AZ100: - | BA100: - | BB100: - | BC100: - | BD100: - | BE100: - | BF100: - | BG100: - | BH100: - | BI100: - | BJ100: - | BK100: - | BL100: - | BM100: - | BN100: - | BO100: … | BP100: … | BQ100: … | BR100: - | BS100: - | BT100: - | BU100: - | BV100: - | BW100: - | BX100: - | BY100: - | BZ100: - | CA100: - | CB100: - | CC100: - | CD100: - | CE100: - | CF100: - | CG100: - | CH100: - | CI100: - | CJ100: - | CK100: - | CL100: - | CM100: - | CN100: - | CO100: - | CP100: - | CQ100: - | CR100: - | CS100: - | CT100: - | CU100: - | DC100: - | DD100: - | DE100: - | DF100: - | DG100: - | DH100: - | DI100: - | DJ100: - | DK100: - | DL100: - | DM100: - | DN100: - | DO100: - | DP100: - | DQ100: - | DR100: - | DS100: - | DT100: - | DU100: - | DV100: - | DW100: - | DX100: - | DY100: - | DZ100: - | EA100: - | EB100: - | EC100: - | ED100: - | EE100: - | EF100: - | EG100: - | EH100: - | EI100: - | EJ100: - | EK100: - | EL100: - | EM100: - | EN100: - | EO100: - | EP100: - | EQ100: - | ER100: - | ES100: - | ET100: - | EU100: -
A101: 山梨県 | B101: 甲府市 | C101: 能泉村 | D101: 下川窪 | E101: - | F101: - | G101: - | H101: - | I101: - | J101: - | K101: - | L101: - | M101: - | N101: - | O101: - | P101: - | Q101: - | R101: - | S101: - | T101: - | U101: - | V101: - | W101: - | X101: - | Y101: - | Z101: - | AA101: - | AB101: - | AC101: … | AD101: … | AE101: … | AF101: - | AG101: - | AH101: - | AI101: - | AJ101: - | AK101: - | AL101: - | AM101: - | AN101: - | AO101: - | AP101: - | AQ101: - | AR101: - | AS101: - | AT101: - | AU101: - | AV101: … | AW101: … | AX101: … | AY101: - | AZ101: - | BA101: - | BB101: - | BC101: - | BD101: - | BE101: - | BF101: - | BG101: - | BH101: - | BI101: - | BJ101: - | BK101: - | BL101: - | BM101: - | BN101: - | BO101: … | BP101: … | BQ101: … | BR101: - | BS101: - | BT101: - | BU101: - | BV101: - | BW101: - | BX101: - | BY101: - | BZ101: - | CA101: - | CB101: - | CC101: - | CD101: - | CE101: - | CF101: - | CG101: - | CH101: - | CI101: - | CJ101: - | CK101: - | CL101: - | CM101: - | CN101: - | CO101: - | CP101: - | CQ101: - | CR101: - | CS101: - | CT101: - | CU101: - | DC101: - | DD101: - | DE101: - | DF101: - | DG101: - | DH101: - | DI101: - | DJ101: - | DK101: - | DL101: - | DM101: - | DN101: - | DO101: - | DP101: - | DQ101: - | DR101: - | DS101: - | DT101: - | DU101: - | DV101: - | DW101: - | DX101: - | DY101: - | DZ101: - | EA101: - | EB101: - | EC101: - | ED101: - | EE101: - | EF101: - | EG101: - | EH101: - | EI101: - | EJ101: - | EK101: - | EL101: - | EM101: - | EN101: - | EO101: - | EP101: - | EQ101: - | ER101: - | ES101: - | ET101: - | EU101: -
A102: 山梨県 | B102: 甲府市 | C102: 宮本村 | E102: 5 | F102: - | G102: - | H102: - | I102: - | J102: - | K102: - | L102: 5 | M102: - | N102: - | O102: - | P102: - | Q102: - | R102: - | S102: - | T102: - | U102: - | V102: - | W102: - | X102: - | Y102: - | Z102: - | AA102: - | AB102: - | AC102: - | AD102: - | AE102: - | AF102: - | AG102: - | AH102: - | AI102: - | AJ102: - | AK102: - | AL102: - | AM102: - | AN102: - | AO102: - | AP102: - | AQ102: - | AR102: - | AS102: - | AT102: - | AU102: - | AV102: - | AW102: - | AX102: - | AY102: - | AZ102: - | BA102: - | BB102: - | BC102: - | BD102: - | BE102: - | BF102: - | BG102: - | BH102: - | BI102: - | BJ102: - | BK102: - | BL102: - | BM102: - | BN102: - | BO102: - | BP102: - | BQ102: - | BR102: - | BS102: - | BT102: - | BU102: - | BV102: - | BW102: - | BX102: - | BY102: - | BZ102: - | CA102: - | CB102: - | CC102: - | CD102: - | CE102: - | CF102: - | CG102: - | CH102: - | CI102: - | CJ102: - | CK102: - | CL102: - | CM102: - | CN102: - | CO102: - | CP102: - | CQ102: - | CR102: - | CS102: - | CT102: - | CU102: - | DC102: - | DD102: - | DE102: - | DF102: - | DG102: - | DH102: - | DI102: - | DJ102: - | DK102: - | DL102: - | DM102: - | DN102: - | DO102: - | DP102: - | DQ102: - | DR102: - | DS102: - | DT102: - | DU102: - | DV102: - | DW102: - | DX102: - | DY102: - | DZ102: - | EA102: - | EB102: - | EC102: - | ED102: - | EE102: - | EF102: - | EG102: - | EH102: - | EI102: - | EJ102: - | EK102: - | EL102: - | EM102: - | EN102: - | EO102: - | EP102: - | EQ102: - | ER102: - | ES102: - | ET102: - | EU102: -
A103: 山梨県 | B103: 甲府市 | C103: 宮本村 | D103: 御岳 | E103: 2 | F103: - | G103: - | H103: - | I103: - | J103: - | K103: - | L103: 2 | M103: - | N103: - | O103: - | P103: - | Q103: - | R103: - | S103: - | T103: - | U103: - | V103: - | W103: - | X103: - | Y103: - | Z103: - | AA103: - | AB103: - | AC103: … | AD103: … | AE103: … | AF103: - | AG103: - | AH103: - | AI103: - | AJ103: - | AK103: - | AL103: - | AM103: - | AN103: - | AO103: - | AP103: - | AQ103: - | AR103: - | AS103: - | AT103: - | AU103: - | AV103: … | AW103: … | AX103: … | AY103: - | AZ103: - | BA103: - | BB103: - | BC103: - | BD103: - | BE103: - | BF103: - | BG103: - | BH103: - | BI103: - | BJ103: - | BK103: - | BL103: - | BM103: - | BN103: - | BO103: … | BP103: … | BQ103: … | BR103: - | BS103: - | BT103: - | BU103: - | BV103: - | BW103: - | BX103: - | BY103: - | BZ103: - | CA103: - | CB103: - | CC103: - | CD103: - | CE103: - | CF103: - | CG103: - | CH103: - | CI103: - | CJ103: - | CK103: - | CL103: - | CM103: - | CN103: - | CO103: - | CP103: - | CQ103: - | CR103: - | CS103: - | CT103: - | CU103: - | DC103: - | DD103: - | DE103: - | DF103: - | DG103: - | DH103: - | DI103: - | DJ103: - | DK103: - | DL103: - | DM103: - | DN103: - | DO103: - | DP103: - | DQ103: - | DR103: - | DS103: - | DT103: - | DU103: - | DV103: - | DW103: - | DX103: - | DY103: - | DZ103: - | EA103: - | EB103: - | EC103: - | ED103: - | EE103: - | EF103: - | EG103: - | EH103: - | EI103: - | EJ103: - | EK103: - | EL103: - | EM103: - | EN103: - | EO103: - | EP103: - | EQ103: - | ER103: - | ES103: - | ET103: - | EU103: -
A104: 山梨県 | B104: 甲府市 | C104: 宮本村 | D104: 高 | E104: - | F104: - | G104: - | H104: - | I104: - | J104: - | K104: - | L104: - | M104: - | N104: - | O104: - | P104: - | Q104: - | R104: - | S104: - | T104: - | U104: - | V104: - | W104: - | X104: - | Y104: - | Z104: - | AA104: - | AB104: - | AC104: … | AD104: … | AE104: … | AF104: - | AG104: - | AH104: - | AI104: - | AJ104: - | AK104: - | AL104: - | AM104: - | AN104: - | AO104: - | AP104: - | AQ104: - | AR104: - | AS104: - | AT104: - | AU104: - | AV104: … | AW104: … | AX104: … | AY104: - | AZ104: - | BA104: - | BB104: - | BC104: - | BD104: - | BE104: - | BF104: - | BG104: - | BH104: - | BI104: - | BJ104: - | BK104: - | BL104: - | BM104: - | BN104: - | BO104: … | BP104: … | BQ104: … | BR104: - | BS104: - | BT104: - | BU104: - | BV104: - | BW104: - | BX104: - | BY104: - | BZ104: - | CA104: - | CB104: - | CC104: - | CD104: - | CE104: - | CF104: - | CG104: - | CH104: - | CI104: - | CJ104: - | CK104: - | CL104: - | CM104: - | CN104: - | CO104: - | CP104: - | CQ104: - | CR104: - | CS104: - | CT104: - | CU104: - | DC104: - | DD104: - | DE104: - | DF104: - | DG104: - | DH104: - | DI104: - | DJ104: - | DK104: - | DL104: - | DM104: - | DN104: - | DO104: - | DP104: - | DQ104: - | DR104: - | DS104: - | DT104: - | DU104: - | DV104: - | DW104: - | DX104: - | DY104: - | DZ104: - | EA104: - | EB104: - | EC104: - | ED104: - | EE104: - | EF104: - | EG104: - | EH104: - | EI104: - | EJ104: - | EK104: - | EL104: - | EM104: - | EN104: - | EO104: - | EP104: - | EQ104: - | ER104: - | ES104: - | ET104: - | EU104: -
A105: 山梨県 | B105: 甲府市 | C105: 宮本村 | D105: 猪狩 | E105: - | F105: - | G105: - | H105: - | I105: - | J105: - | K105: - | L105: - | M105: - | N105: - | O105: - | P105: - | Q105: - | R105: - | S105: - | T105: - | U105: - | V105: - | W105: - | X105: - | Y105: - | Z105: - | AA105: - | AB105: - | AC105: … | AD105: … | AE105: … | AF105: - | AG105: - | AH105: - | AI105: - | AJ105: - | AK105: - | AL105: - | AM105: - | AN105: - | AO105: - | AP105: - | AQ105: - | AR105: - | AS105: - | AT105: - | AU105: - | AV105: … | AW105: … | AX105: … | AY105: - | AZ105: - | BA105: - | BB105: - | BC105: - | BD105: - | BE105: - | BF105: - | BG105: - | BH105: - | BI105: - | BJ105: - | BK105: - | BL105: - | BM105: - | BN105: - | BO105: … | BP105: … | BQ105: … | BR105: - | BS105: - | BT105: - | BU105: - | BV105: - | BW105: - | BX105: - | BY105: - | BZ105: - | CA105: - | CB105: - | CC105: - | CD105: - | CE105: - | CF105: - | CG105: - | CH105: - | CI105: - | CJ105: - | CK105: - | CL105: - | CM105: - | CN105: - | CO105: - | CP105: - | CQ105: - | CR105: - | CS105: - | CT105: - | CU105: - | DC105: - | DD105: - | DE105: - | DF105: - | DG105: - | DH105: - | DI105: - | DJ105: - | DK105: - | DL105: - | DM105: - | DN105: - | DO105: - | DP105: - | DQ105: - | DR105: - | DS105: - | DT105: - | DU105: - | DV105: - | DW105: - | DX105: - | DY105: - | DZ105: - | EA105: - | EB105: - | EC105: - | ED105: - | EE105: - | EF105: - | EG105: - | EH105: - | EI105: - | EJ105: - | EK105: - | EL105: - | EM105: - | EN105: - | EO105: - | EP105: - | EQ105: - | ER105: - | ES105: - | ET105: - | EU105: -
A106: 山梨県 | B106: 甲府市 | C106: 宮本村 | D106: 草鹿沢 | E106: 1 | F106: - | G106: - | H106: - | I106: - | J106: - | K106: - | L106: 1 | M106: - | N106: - | O106: - | P106: - | Q106: - | R106: - | S106: - | T106: - | U106: - | V106: - | W106: - | X106: - | Y106: - | Z106: - | AA106: - | AB106: - | AC106: … | AD106: … | AE106: … | AF106: - | AG106: - | AH106: - | AI106: - | AJ106: - | AK106: - | AL106: - | AM106: - | AN106: - | AO106: - | AP106: - | AQ106: - | AR106: - | AS106: - | AT106: - | AU106: - | AV106: … | AW106: … | AX106: … | AY106: - | AZ106: - | BA106: - | BB106: - | BC106: - | BD106: - | BE106: - | BF106: - | BG106: - | BH106: - | BI106: - | BJ106: - | BK106: - | BL106: - | BM106: - | BN106: - | BO106: … | BP106: … | BQ106: … | BR106: - | BS106: - | BT106: - | BU106: - | BV106: - | BW106: - | BX106: - | BY106: - | BZ106: - | CA106: - | CB106: - | CC106: - | CD106: - | CE106: - | CF106: - | CG106: - | CH106: - | CI106: - | CJ106: - | CK106: - | CL106: - | CM106: - | CN106: - | CO106: - | CP106: - | CQ106: - | CR106: - | CS106: - | CT106: - | CU106: - | DC106: - | DD106: - | DE106: - | DF106: - | DG106: - | DH106: - | DI106: - | DJ106: - | DK106: - | DL106: - | DM106: - | DN106: - | DO106: - | DP106: - | DQ106: - | DR106: - | DS106: - | DT106: - | DU106: - | DV106: - | DW106: - | DX106: - | DY106: - | DZ106: - | EA106: - | EB106: - | EC106: - | ED106: - | EE106: - | EF106: - | EG106: - | EH106: - | EI106: - | EJ106: - | EK106: - | EL106: - | EM106: - | EN106: - | EO106: - | EP106: - | EQ106: - | ER106: - | ES106: - | ET106: - | EU106: -
A107: 山梨県 | B107: 甲府市 | C107: 宮本村 | D107: 黒平 | E107: 2 | F107: - | G107: - | H107: - | I107: - | J107: - | K107: - | L107: 2 | M107: - | N107: - | O107: - | P107: - | Q107: - | R107: - | S107: - | T107: - | U107: - | V107: - | W107: - | X107: - | Y107: - | Z107: - | AA107: - | AB107: - | AC107: … | AD107: … | AE107: … | AF107: - | AG107: - | AH107: - | AI107: - | AJ107: - | AK107: - | AL107: - | AM107: - | AN107: - | AO107: - | AP107: - | AQ107: - | AR107: - | AS107: - | AT107: - | AU107: - | AV107: … | AW107: … | AX107: … | AY107: - | AZ107: - | BA107: - | BB107: - | BC107: - | BD107: - | BE107: - | BF107: - | BG107: - | BH107: - | BI107: - | BJ107: - | BK107: - | BL107: - | BM107: - | BN107: - | BO107: … | BP107: … | BQ107: … | BR107: - | BS107: - | BT107: - | BU107: - | BV107: - | BW107: - | BX107: - | BY107: - | BZ107: - | CA107: - | CB107: - | CC107: - | CD107: - | CE107: - | CF107: - | CG107: - | CH107: - | CI107: - | CJ107: - | CK107: - | CL107: - | CM107: - | CN107: - | CO107: - | CP107: - | CQ107: - | CR107: - | CS107: - | CT107: - | CU107: - | DC107: - | DD107: - | DE107: - | DF107: - | DG107: - | DH107: - | DI107: - | DJ107: - | DK107: - | DL107: - | DM107: - | DN107: - | DO107: - | DP107: - | DQ107: - | DR107: - | DS107: - | DT107: - | DU107: - | DV107: - | DW107: - | DX107: - | DY107: - | DZ107: - | EA107: - | EB107: - | EC107: - | ED107: - | EE107: - | EF107: - | EG107: - | EH107: - | EI107: - | EJ107: - | EK107: - | EL107: - | EM107: - | EN107: - | EO107: - | EP107: - | EQ107: - | ER107: - | ES107: - | ET107: - | EU107: -
A108: 山梨県 | B108: 甲府市 | C108: 大鎌田村 | E108: 109 | F108: 45 | G108: 8 | H108: 6 | I108: 14 | J108: 5 | K108: 23 | L108: 64 | M108: 148 | N108: 7 | O108: 3 | P108: 1 | Q108: 5 | R108: 12 | S108: 7 | T108: 13 | U108: 11 | V108: 11 | W108: 16 | X108: 12 | Y108: 22 | Z108: 13 | AA108: 8 | AB108: 7 | AC108: 58.0 | AD108: 56.5 | AE108: 59.7 | AF108: 88 | AG108: 4 | AH108: - | AI108: - | AJ108: - | AK108: 3 | AL108: 1 | AM108: 1 | AN108: 4 | AO108: 5 | AP108: 11 | AQ108: 11 | AR108: 21 | AS108: 13 | AT108: 8 | AU108: 6 | AV108: 66.9 | AW108: 66.6 | AX108: 67.3 | AY108: 68 | AZ108: - | BA108: - | BB108: - | BC108: - | BD108: 2 | BE108: - | BF108: - | BG108: 4 | BH108: 3 | BI108: 9 | BJ108: 11 | BK108: 18 | BL108: 12 | BM108: 5 | BN108: 4 | BO108: 69.4 | BP108: 69.0 | BQ108: 70.0 | BR108: 45 | BS108: - | BT108: - | BU108: - | BV108: - | BW108: - | BX108: - | BY108: 2 | BZ108: 4 | CA108: 3 | CB108: 9 | CC108: 6 | CD108: 9 | CE108: 7 | CF108: 3 | CG108: 2 | CH108: 34 | CI108: - | CJ108: - | CK108: - | CL108: - | CM108: 1 | CN108: 3 | CO108: 1 | CP108: 6 | CQ108: 5 | CR108: 8 | CS108: 5 | CT108: 3 | CU108: 2 | DC108: 169 | DD108: 116 | DE108: 68 | DF108: 44 | DG108: 4 | DH108: 20 | DI108: 18 | DJ108: 15 | DK108: 39 | DL108: 13 | DM108: - | DN108: - | DO108: - | DP108: 23 | DQ108: 1 | DR108: 1 | DS108: 1 | DT108: - | DU108: - | DV108: - | DW108: - | DX108: - | DY108: - | DZ108: - | EA108: 45 | EB108: 2,645 | EC108: 2,130 | ED108: 412 | EE108: 103 | EF108: 85 | EG108: 68 | EH108: 39 | EI108: 26 | EJ108: 3 | EK108: - | EL108: 10 | EM108: 7 | EN108: 84 | EO108: 48 | EP108: 29 | EQ108: 18 | ER108: 1 | ES108: 20 | ET108: 8 | EU108: 8
A109: 山梨県 | B109: 甲府市 | C109: 大鎌田村 | D109: 窪中島 | E109: 12 | F109: 7 | G109: 1 | H109: 1 | I109: 3 | J109: 2 | K109: 3 | L109: 5 | M109: 27 | N109: 2 | O109: - | P109: - | Q109: - | R109: 1 | S109: - | T109: 4 | U109: 5 | V109: 1 | W109: 3 | X109: - | Y109: 2 | Z109: 5 | AA109: 3 | AB109: 1 | AC109: 59.7 | AD109: 58.7 | AE109: 60.8 | AF109: 17 | AG109: - | AH109: - | AI109: - | AJ109: - | AK109: 1 | AL109: - | AM109: - | AN109: 1 | AO109: 1 | AP109: 3 | AQ109: - | AR109: 2 | AS109: 5 | AT109: 3 | AU109: 1 | AV109: 69.3 | AW109: 66.9 | AX109: 72.0 | AY109: 15 | AZ109: - | BA109: - | BB109: - | BC109: - | BD109: 1 | BE109: - | BF109: - | BG109: 1 | BH109: 1 | BI109: 3 | BJ109: - | BK109: 2 | BL109: 4 | BM109: 2 | BN109: 1 | BO109: 68.0 | BP109: 66.9 | BQ109: 69.7 | BR109: 7 | BS109: - | BT109: - | BU109: - | BV109: - | BW109: - | BX109: - | BY109: 1 | BZ109: 1 | CA109: - | CB109: 2 | CC109: - | CD109: - | CE109: 3 | CF109: - | CG109: - | CH109: 3 | CI109: - | CJ109: - | CK109: - | CL109: - | CM109: - | CN109: 1 | CO109: - | CP109: 1 | CQ109: - | CR109: - | CS109: 1 | CT109: - | CU109: - | DC109: 34 | DD109: 23 | DE109: 15 | DF109: 8 | DG109: - | DH109: 4 | DI109: 5 | DJ109: 2 | DK109: 6 | DL109: - | DM109: - | DN109: - | DO109: - | DP109: 6 | DQ109: - | DR109: - | DS109: - | DT109: - | DU109: - | DV109: - | DW109: - | DX109: - | DY109: - | DZ109: - | EA109: 7 | EB109: 290 | EC109: 256 | ED109: 34 | EE109: - | EF109: 16 | EG109: 13 | EH109: 9 | EI109: 4 | EJ109: - | EK109: - | EL109: 3 | EM109: - | EN109: 18 | EO109: 10 | EP109: 6 | EQ109: 4 | ER109: - | ES109: 4 | ET109: 2 | EU109: 2
A110: 山梨県 | B110: 甲府市 | C110: 大鎌田村 | D110: 円満寺 | E110: 6 | F110: 2 | G110: x | H110: x | I110: x | J110: x | K110: x | L110: 4 | M110: x | N110: x | O110: x | P110: x | Q110: x | R110: x | S110: x | T110: x | U110: x | V110: x | W110: x | X110: x | Y110: x | Z110: x | AA110: x | AB110: x | AC110: 61.0 | AD110: 62.0 | AE110: 59.0 | AF110: x | AG110: x | AH110: x | AI110: x | AJ110: x | AK110: x | AL110: x | AM110: x | AN110: x | AO110: x | AP110: x | AQ110: x | AR110: x | AS110: x | AT110: x | AU110: x | AV110: 61.0 | AW110: 62.0 | AX110: 59.0 | AY110: x | AZ110: x | BA110: x | BB110: x | BC110: x | BD110: x | BE110: x | BF110: x | BG110: x | BH110: x | BI110: x | BJ110: x | BK110: x | BL110: x | BM110: x | BN110: x | BO110: 62.0 | BP110: 62.0 | BQ110: … | BR110: 2 | BS110: - | BT110: - | BU110: - | BV110: - | BW110: - | BX110: - | BY110: - | BZ110: - | CA110: 1 | CB110: - | CC110: 1 | CD110: - | CE110: - | CF110: - | CG110: - | CH110: 1 | CI110: - | CJ110: - | CK110: - | CL110: - | CM110: - | CN110: - | CO110: - | CP110: - | CQ110: 1 | CR110: - | CS110: - | CT110: - | CU110: - | DC110: 5 | DD110: 4 | DE110: 2 | DF110: 2 | DG110: - | DH110: 1 | DI110: - | DJ110: - | DK110: 2 | DL110: - | DM110: - | DN110: - | DO110: - | DP110: 1 | DQ110: - | DR110: 1 | DS110: - | DT110: - | DU110: - | DV110: - | DW110: - | DX110: - | DY110: - | DZ110: - | EA110: 2 | EB110: 114 | EC110: 54 | ED110: 35 | EE110: 25 | EF110: 2 | EG110: 2 | EH110: 2 | EI110: - | EJ110: - | EK110: - | EL110: - | EM110: - | EN110: 3 | EO110: 2 | EP110: - | EQ110: 2 | ER110: - | ES110: 1 | ET110: - | EU110: -
A111: 山梨県 | B111: 甲府市 | C111: 大鎌田村 | D111: 二日市場 | E111: 25 | F111: 9 | G111: - | H111: - | I111: 6 | J111: 1 | K111: 3 | L111: 16 | M111: 29 | N111: 1 | O111: - | P111: 1 | Q111: 1 | R111: 4 | S111: 4 | T111: - | U111: 1 | V111: 3 | W111: 3 | X111: 4 | Y111: 3 | Z111: 3 | AA111: 1 | AB111: - | AC111: 55.3 | AD111: 56.8 | AE111: 53.9 | AF111: 16 | AG111: 1 | AH111: - | AI111: - | AJ111: - | AK111: 2 | AL111: 1 | AM111: - | AN111: - | AO111: - | AP111: 1 | AQ111: 4 | AR111: 3 | AS111: 3 | AT111: 1 | AU111: - | AV111: 62.3 | AW111: 67.8 | AX111: 59.0 | AY111: 11 | AZ111: - | BA111: - | BB111: - | BC111: - | BD111: 1 | BE111: - | BF111: - | BG111: - | BH111: - | BI111: - | BJ111: 4 | BK111: 2 | BL111: 3 | BM111: 1 | BN111: - | BO111: 69.7 | BP111: 67.8 | BQ111: 72.0 | BR111: 9 | BS111: - | BT111: - | BU111: - | BV111: - | BW111: - | BX111: - | BY111: - | BZ111: 1 | CA111: - | CB111: 2 | CC111: 2 | CD111: 1 | CE111: 1 | CF111: 2 | CG111: - | CH111: 9 | CI111: - | CJ111: - | CK111: - | CL111: - | CM111: - | CN111: 1 | CO111: - | CP111: 2 | CQ111: 2 | CR111: 1 | CS111: 1 | CT111: 2 | CU111: - | DC111: 30 | DD111: 23 | DE111: 11 | DF111: 11 | DG111: 1 | DH111: 4 | DI111: 1 | DJ111: 2 | DK111: 8 | DL111: 5 | DM111: - | DN111: - | DO111: - | DP111: 3 | DQ111: - | DR111: - | DS111: - | DT111: - | DU111: - | DV111: - | DW111: - | DX111: - | DY111: - | DZ111: - | EA111: 9 | EB111: 531 | EC111: 455 | ED111: 47 | EE111: 29 | EF111: 15 | EG111: 13 | EH111: 6 | EI111: 6 | EJ111: 1 | EK111: - | EL111: - | EM111: 2 | EN111: 15 | EO111: 10 | EP111: 5 | EQ111: 5 | ER111: - | ES111: 4 | ET111: 1 | EU111: -
A112: 山梨県 | B112: 甲府市 | C112: 大鎌田村 | D112: 中条 | E112: 3 | F112: - | G112: - | H112: - | I112: - | J112: - | K112: - | L112: 3 | M112: - | N112: - | O112: - | P112: - | Q112: - | R112: - | S112: - | T112: - | U112: - | V112: - | W112: - | X112: - | Y112: - | Z112: - | AA112: - | AB112: - | AC112: … | AD112: … | AE112: … | AF112: - | AG112: - | AH112: - | AI112: - | AJ112: - | AK112: - | AL112: - | AM112: - | AN112: - | AO112: - | AP112: - | AQ112: - | AR112: - | AS112: - | AT112: - | AU112: - | AV112: … | AW112: … | AX112: … | AY112: - | AZ112: - | BA112: - | BB112: - | BC112: - | BD112: - | BE112: - | BF112: - | BG112: - | BH112: - | BI112: - | BJ112: - | BK112: - | BL112: - | BM112: - | BN112: - | BO112: … | BP112: … | BQ112: … | BR112: - | BS112: - | BT112: - | BU112: - | BV112: - | BW112: - | BX112: - | BY112: - | BZ112: - | CA112: - | CB112: - | CC112: - | CD112: - | CE112: - | CF112: - | CG112: - | CH112: - | CI112: - | CJ112: - | CK112: - | CL112: - | CM112: - | CN112: - | CO112: - | CP112: - | CQ112: - | CR112: - | CS112: - | CT112: - | CU112: - | DC112: - | DD112: - | DE112: - | DF112: - | DG112: - | DH112: - | DI112: - | DJ112: - | DK112: - | DL112: - | DM112: - | DN112: - | DO112: - | DP112: - | DQ112: - | DR112: - | DS112: - | DT112: - | DU112: - | DV112: - | DW112: - | DX112: - | DY112: - | DZ112: - | EA112: - | EB112: - | EC112: - | ED112: - | EE112: - | EF112: - | EG112: - | EH112: - | EI112: - | EJ112: - | EK112: - | EL112: - | EM112: - | EN112: - | EO112: - | EP112: - | EQ112: - | ER112: - | ES112: - | ET112: - | EU112: -
A113: 山梨県 | B113: 甲府市 | C113: 大鎌田村 | D113: 関口 | E113: 9 | F113: 3 | G113: 2 | H113: 1 | I113: - | J113: - | K113: 1 | L113: 6 | M113: 11 | N113: - | O113: - | P113: - | Q113: 1 | R113: 1 | S113: 1 | T113: 1 | U113: - | V113: 2 | W113: - | X113: 2 | Y113: 1 | Z113: 1 | AA113: - | AB113: 1 | AC113: 58.2 | AD113: 57.6 | AE113: 59.3 | AF113: 7 | AG113: - | AH113: - | AI113: - | AJ113: - | AK113: - | AL113: - | AM113: - | AN113: - | AO113: 2 | AP113: - | AQ113: 2 | AR113: 1 | AS113: 1 | AT113: - | AU113: 1 | AV113: 69.4 | AW113: 72.3 | AX113: 65.7 | AY113: 6 | AZ113: - | BA113: - | BB113: - | BC113: - | BD113: - | BE113: - | BF113: - | BG113: - | BH113: 1 | BI113: - | BJ113: 2 | BK113: 1 | BL113: 1 | BM113: - | BN113: 1 | BO113: 71.2 | BP113: 72.3 | BQ113: 69.0 | BR113: 3 | BS113: - | BT113: - | BU113: - | BV113: - | BW113: - | BX113: - | BY113: 1 | BZ113: - | CA113: - | CB113: - | CC113: 1 | CD113: - | CE113: - | CF113: - | CG113: 1 | CH113: 3 | CI113: - | CJ113: - | CK113: - | CL113: - | CM113: 1 | CN113: - | CO113: - | CP113: - | CQ113: 1 | CR113: - | CS113: - | CT113: - | CU113: 1 | DC113: 11 | DD113: 10 | DE113: 6 | DF113: 4 | DG113: - | DH113: 1 | DI113: - | DJ113: - | DK113: 3 | DL113: 2 | DM113: - | DN113: - | DO113: - | DP113: 1 | DQ113: - | DR113: - | DS113: - | DT113: - | DU113: - | DV113: - | DW113: - | DX113: - | DY113: - | DZ113: - | EA113: 3 | EB113: 121 | EC113: 96 | ED113: 25 | EE113: - | EF113: 7 | EG113: 7 | EH113: 4 | EI113: 3 | EJ113: - | EK113: - | EL113: - | EM113: - | EN113: 4 | EO113: 3 | EP113: 2 | EQ113: 1 | ER113: - | ES113: 1 | ET113: - | EU113: -
A114: 山梨県 | B114: 甲府市 | C114: 大鎌田村 | D114: 古市場 | E114: 6 | F114: 2 | G114: x | H114: x | I114: x | J114: x | K114: x | L114: 4 | M114: x | N114: x | O114: x | P114: x | Q114: x | R114: x | S114: x | T114: x | U114: x | V114: x | W114: x | X114: x | Y114: x | Z114: x | AA114: x | AB114: x | AC114: 56.4 | AD114: 65.5 | AE114: 50.3 | AF114: x | AG114: x | AH114: x | AI114: x | AJ114: x | AK114: x | AL114: x | AM114: x | AN114: x | AO114: x | AP114: x | AQ114: x | AR114: x | AS114: x | AT114: x | AU114: x | AV114: 74.0 | AW114: … | AX114: 74.0 | AY114: x | AZ114: x | BA114: x | BB114: x | BC114: x | BD114: x | BE114: x | BF114: x | BG114: x | BH114: x | BI114: x | BJ114: x | BK114: x | BL114: x | BM114: x | BN114: x | BO114: … | BP114: … | BQ114: … | BR114: 2 | BS114: - | BT114: - | BU114: - | BV114: - | BW114: - | BX114: - | BY114: - | BZ114: - | CA114: 1 | CB114: - | CC114: - | CD114: 1 | CE114: - | CF114: - | CG114: - | CH114: 1 | CI114: - | CJ114: - | CK114: - | CL114: - | CM114: - | CN114: - | CO114: - | CP114: - | CQ114: - | CR114: 1 | CS114: - | CT114: - | CU114: - | DC114: 5 | DD114: 2 | DE114: - | DF114: 1 | DG114: 1 | DH114: 2 | DI114: 1 | DJ114: - | DK114: - | DL114: - | DM114: - | DN114: - | DO114: - | DP114: - | DQ114: - | DR114: - | DS114: - | DT114: - | DU114: - | DV114: - | DW114: - | DX114: - | DY114: - | DZ114: - | EA114: 2 | EB114: 102 | EC114: 40 | ED114: 25 | EE114: 37 | EF114: 2 | EG114: 2 | EH114: - | EI114: 1 | EJ114: 1 | EK114: - | EL114: - | EM114: - | EN114: 3 | EO114: - | EP114: - | EQ114: - | ER114: - | ES114: 2 | ET114: 1 | EU114: -
A115: 山梨県 | B115: 甲府市 | C115: 大鎌田村 | D115: 宮原 | E115: 23 | F115: 12 | G115: 5 | H115: 4 | I115: 4 | J115: 1 | K115: 3 | L115: 11 | M115: 42 | N115: 2 | O115: 1 | P115: - | Q115: 3 | R115: 5 | S115: - | T115: 2 | U115: 4 | V115: 2 | W115: 10 | X115: 2 | Y115: 4 | Z115: - | AA115: 3 | AB115: 4 | AC115: 57.2 | AD115: 52.7 | AE115: 62.7 | AF115: 22 | AG115: 1 | AH115: - | AI115: - | AJ115: - | AK115: - | AL115: - | AM115: - | AN115: 3 | AO115: - | AP115: 7 | AQ115: 1 | AR115: 4 | AS115: - | AT115: 3 | AU115: 3 | AV115: 67.7 | AW115: 65.1 | AX115: 70.9 | AY115: 16 | AZ115: - | BA115: - | BB115: - | BC115: - | BD115: - | BE115: - | BF115: - | BG115: 3 | BH115: - | BI115: 6 | BJ115: 1 | BK115: 4 | BL115: - | BM115: 1 | BN115: 1 | BO115: 65.9 | BP115: 64.9 | BQ115: 67.3 | BR115: 12 | BS115: - | BT115: - | BU115: - | BV115: - | BW115: - | BX115: - | BY115: - | BZ115: 2 | CA115: 1 | CB115: 5 | CC115: 1 | CD115: 2 | CE115: - | CF115: - | CG115: 1 | CH115: 9 | CI115: - | CJ115: - | CK115: - | CL115: - | CM115: - | CN115: 1 | CO115: 1 | CP115: 3 | CQ115: 1 | CR115: 2 | CS115: - | CT115: - | CU115: 1 | DC115: 48 | DD115: 30 | DE115: 16 | DF115: 14 | DG115: - | DH115: 5 | DI115: 4 | DJ115: 9 | DK115: 11 | DL115: 4 | DM115: - | DN115: - | DO115: - | DP115: 5 | DQ115: 1 | DR115: - | DS115: 1 | DT115: - | DU115: - | DV115: - | DW115: - | DX115: - | DY115: - | DZ115: - | EA115: 12 | EB115: 638 | EC115: 536 | ED115: 90 | EE115: 12 | EF115: 24 | EG115: 17 | EH115: 9 | EI115: 8 | EJ115: - | EK115: - | EL115: 3 | EM115: 4 | EN115: 24 | EO115: 13 | EP115: 7 | EQ115: 6 | ER115: - | ES115: 5 | ET115: 1 | EU115: 5
A116: 山梨県 | B116: 甲府市 | C116: 大鎌田村 | D116: 堀之内 | E116: 15 | F116: 7 | G116: - | H116: - | I116: - | J116: - | K116: 7 | L116: 8 | M116: 23 | N116: 2 | O116: 1 | P116: - | Q116: - | R116: - | S116: 2 | T116: 4 | U116: - | V116: - | W116: - | X116: 3 | Y116: 7 | Z116: 3 | AA116: - | AB116: 1 | AC116: 59.0 | AD116: 56.8 | AE116: 62.3 | AF116: 17 | AG116: 2 | AH116: - | AI116: - | AJ116: - | AK116: - | AL116: - | AM116: 1 | AN116: - | AO116: - | AP116: - | AQ116: 3 | AR116: 7 | AS116: 3 | AT116: - | AU116: 1 | AV116: 65.2 | AW116: 63.7 | AX116: 67.4 | AY116: 13 | AZ116: - | BA116: - | BB116: - | BC116: - | BD116: - | BE116: - | BF116: - | BG116: - | BH116: - | BI116: - | BJ116: 3 | BK116: 6 | BL116: 3 | BM116: - | BN116: 1 | BO116: 73.5 | BP116: 75.7 | BQ116: 71.0 | BR116: 7 | BS116: - | BT116: - | BU116: - | BV116: - | BW116: - | BX116: - | BY116: - | BZ116: - | CA116: - | CB116: - | CC116: 1 | CD116: 4 | CE116: 2 | CF116: - | CG116: - | CH116: 5 | CI116: - | CJ116: - | CK116: - | CL116: - | CM116: - | CN116: - | CO116: - | CP116: - | CQ116: - | CR116: 3 | CS116: 2 | CT116: - | CU116: - | DC116: 26 | DD116: 16 | DE116: 13 | DF116: 3 | DG116: - | DH116: 3 | DI116: 5 | DJ116: 2 | DK116: 7 | DL116: 1 | DM116: - | DN116: - | DO116: - | DP116: 6 | DQ116: - | DR116: - | DS116: - | DT116: - | DU116: - | DV116: - | DW116: - | DX116: - | DY116: - | DZ116: - | EA116: 7 | EB116: 605 | EC116: 525 | ED116: 80 | EE116: - | EF116: 14 | EG116: 10 | EH116: 7 | EI116: 3 | EJ116: - | EK116: - | EL116: 3 | EM116: 1 | EN116: 12 | EO116: 6 | EP116: 6 | EQ116: - | ER116: - | ES116: 3 | ET116: 2 | EU116: 1
A117: 山梨県 | B117: 甲府市 | C117: 大鎌田村 | D117: 高室 | E117: 10 | F117: 3 | G117: - | H117: - | I117: - | J117: - | K117: 3 | L117: 7 | M117: 8 | N117: - | O117: - | P117: - | Q117: - | R117: 1 | S117: - | T117: 2 | U117: - | V117: - | W117: - | X117: - | Y117: 3 | Z117: 1 | AA117: 1 | AB117: - | AC117: 63.1 | AD117: 60.3 | AE117: 66.0 | AF117: 5 | AG117: - | AH117: - | AI117: - | AJ117: - | AK117: - | AL117: - | AM117: - | AN117: - | AO117: - | AP117: - | AQ117: - | AR117: 3 | AS117: 1 | AT117: 1 | AU117: - | AV117: 74.4 | AW117: 77.5 | AX117: 72.3 | AY117: 5 | AZ117: - | BA117: - | BB117: - | BC117: - | BD117: - | BE117: - | BF117: - | BG117: - | BH117: - | BI117: - | BJ117: - | BK117: 3 | BL117: 1 | BM117: 1 | BN117: - | BO117: 74.4 | BP117: 77.5 | BQ117: 72.3 | BR117: 3 | BS117: - | BT117: - | BU117: - | BV117: - | BW117: - | BX117: - | BY117: - | BZ117: - | CA117: - | CB117: - | CC117: - | CD117: 1 | CE117: 1 | CF117: 1 | CG117: - | CH117: 3 | CI117: - | CJ117: - | CK117: - | CL117: - | CM117: - | CN117: - | CO117: - | CP117: - | CQ117: - | CR117: 1 | CS117: 1 | CT117: 1 | CU117: - | DC117: 10 | DD117: 8 | DE117: 5 | DF117: 1 | DG117: 2 | DH117: - | DI117: 2 | DJ117: - | DK117: 2 | DL117: 1 | DM117: - | DN117: - | DO117: - | DP117: 1 | DQ117: - | DR117: - | DS117: - | DT117: - | DU117: - | DV117: - | DW117: - | DX117: - | DY117: - | DZ117: - | EA117: 3 | EB117: 244 | EC117: 168 | ED117: 76 | EE117: - | EF117: 5 | EG117: 4 | EH117: 2 | EI117: 1 | EJ117: 1 | EK117: - | EL117: 1 | EM117: - | EN117: 5 | EO117: 4 | EP117: 3 | EQ117: - | ER117: 1 | ES117: - | ET117: 1 | EU117: -
A118: 山梨県 | B118: 甲府市 | C118: 二川村 | E118: 87 | F118: 55 | G118: 13 | H118: 12 | I118: 10 | J118: 3 | K118: 32 | L118: 32 | M118: 153 | N118: - | O118: 3 | P118: 4 | Q118: 8 | R118: 10 | S118: 3 | T118: 12 | U118: 11 | V118: 16 | W118: 23 | X118: 17 | Y118: 15 | Z118: 13 | AA118: 12 | AB118: 6 | AC118: 59.8 | AD118: 58.2 | AE118: 61.4 | AF118: 95 | AG118: - | AH118: - | AI118: 1 | AJ118: 1 | AK118: 4 | AL118: 1 | AM118: 1 | AN118: 3 | AO118: 8 | AP118: 15 | AQ118: 16 | AR118: 15 | AS118: 12 | AT118: 12 | AU118: 6 | AV118: 67.8 | AW118: 67.4 | AX118: 68.2 | AY118: 81 | AZ118: - | BA118: - | BB118: 1 | BC118: 1 | BD118: 2 | BE118: 1 | BF118: 1 | BG118: 3 | BH118: 7 | BI118: 14 | BJ118: 16 | BK118: 11 | BL118: 11 | BM118: 7 | BN118: 6 | BO118: 67.5 | BP118: 66.2 | BQ118: 68.8 | BR118: 55 | BS118: - | BT118: - | BU118: - | BV118: - | BW118: - | BX118: 1 | BY118: 1 | BZ118: 4 | CA118: 5 | CB118: 12 | CC118: 11 | CD118: 7 | CE118: 9 | CF118: 4 | CG118: 1 | CH118: 35 | CI118: - | CJ118: - | CK118: - | CL118: - | CM118: - | CN118: 2 | CO118: 2 | CP118: 7 | CQ118: 8 | CR118: 4 | CS118: 9 | CT118: 3 | CU118: - | DC118: 205 | DD118: 152 | DE118: 81 | DF118: 69 | DG118: 2 | DH118: 17 | DI118: 19 | DJ118: 17 | DK118: 40 | DL118: 21 | DM118: - | DN118: - | DO118: - | DP118: 17 | DQ118: 1 | DR118: 1 | DS118: - | DT118: - | DU118: - | DV118: - | DW118: - | DX118: - | DY118: - | DZ118: - | EA118: 55 | EB118: 4,746 | EC118: 3,756 | ED118: 950 | EE118: 40 | EF118: 99 | EG118: 85 | EH118: 41 | EI118: 42 | EJ118: 2 | EK118: 1 | EL118: 8 | EM118: 5 | EN118: 106 | EO118: 67 | EP118: 40 | EQ118: 27 | ER118: - | ES118: 16 | ET118: 11 | EU118: 12
A119: 山梨県 | B119: 甲府市 | C119: 二川村 | D119: 西下条 | E119: 54 | F119: 37 | G119: 9 | H119: 9 | I119: 7 | J119: 2 | K119: 21 | L119: 17 | M119: 102 | N119: - | O119: 3 | P119: 3 | Q119: 5 | R119: 3 | S119: - | T119: 8 | U119: 7 | V119: 13 | W119: 16 | X119: 6 | Y119: 12 | Z119: 9 | AA119: 11 | AB119: 6 | AC119: 61.6 | AD119: 60.0 | AE119: 63.1 | AF119: 63 | AG119: - | AH119: - | AI119: - | AJ119: - | AK119: 1 | AL119: - | AM119: 1 | AN119: 2 | AO119: 7 | AP119: 9 | AQ119: 5 | AR119: 12 | AS119: 9 | AT119: 11 | AU119: 6 | AV119: 71.1 | AW119: 72.7 | AX119: 69.9 | AY119: 53 | AZ119: - | BA119: - | BB119: - | BC119: - | BD119: - | BE119: - | BF119: 1 | BG119: 2 | BH119: 7 | BI119: 8 | BJ119: 5 | BK119: 9 | BL119: 9 | BM119: 6 | BN119: 6 | BO119: 70.8 | BP119: 71.8 | BQ119: 69.9 | BR119: 37 | BS119: - | BT119: - | BU119: - | BV119: - | BW119: - | BX119: - | BY119: 1 | BZ119: 3 | CA119: 5 | CB119: 7 | CC119: 5 | CD119: 6 | CE119: 6 | CF119: 3 | CG119: 1 | CH119: 20 | CI119: - | CJ119: - | CK119: - | CL119: - | CM119: - | CN119: 1 | CO119: 2 | CP119: 3 | CQ119: 3 | CR119: 3 | CS119: 6 | CT119: 2 | CU119: - | DC119: 135 | DD119: 106 | DE119: 53 | DF119: 51 | DG119: 2 | DH119: 6 | DI119: 12 | DJ119: 11 | DK119: 30 | DL119: 16 | DM119: - | DN119: - | DO119: - | DP119: 12 | DQ119: 1 | DR119: 1 | DS119: - | DT119: - | DU119: - | DV119: - | DW119: - | DX119: - | DY119: - | DZ119: - | EA119: 37 | EB119: 3,162 | EC119: 2,377 | ED119: 745 | EE119: 40 | EF119: 67 | EG119: 56 | EH119: 24 | EI119: 30 | EJ119: 2 | EK119: 1 | EL119: 6 | EM119: 4 | EN119: 68 | EO119: 50 | EP119: 29 | EQ119: 21 | ER119: - | ES119: 5 | ET119: 6 | EU119: 7
A120: 山梨県 | B120: 甲府市 | C120: 二川村 | D120: 大津 | E120: 33 | F120: 18 | G120: 4 | H120: 3 | I120: 3 | J120: 1 | K120: 11 | L120: 15 | M120: 51 | N120: - | O120: - | P120: 1 | Q120: 3 | R120: 7 | S120: 3 | T120: 4 | U120: 4 | V120: 3 | W120: 7 | X120: 11 | Y120: 3 | Z120: 4 | AA120: 1 | AB120: - | AC120: 56.2 | AD120: 54.8 | AE120: 57.7 | AF120: 32 | AG120: - | AH120: - | AI120: 1 | AJ120: 1 | AK120: 3 | AL120: 1 | AM120: - | AN120: 1 | AO120: 1 | AP120: 6 | AQ120: 11 | AR120: 3 | AS120: 3 | AT120: 1 | AU120: - | AV120: 61.4 | AW120: 59.4 | AX120: 63.9 | AY120: 28 | AZ120: - | BA120: - | BB120: 1 | BC120: 1 | BD120: 2 | BE120: 1 | BF120: - | BG120: 1 | BH120: - | BI120: 6 | BJ120: 11 | BK120: 2 | BL120: 2 | BM120: 1 | BN120: - | BO120: 61.3 | BP120: 58.4 | BQ120: 65.8 | BR120: 18 | BS120: - | BT120: - | BU120: - | BV120: - | BW120: - | BX120: 1 | BY120: - | BZ120: 1 | CA120: - | CB120: 5 | CC120: 6 | CD120: 1 | CE120: 3 | CF120: 1 | CG120: - | CH120: 15 | CI120: - | CJ120: - | CK120: - | CL120: - | CM120: - | CN120: 1 | CO120: - | CP120: 4 | CQ120: 5 | CR120: 1 | CS120: 3 | CT120: 1 | CU120: - | DC120: 70 | DD120: 46 | DE120: 28 | DF120: 18 | DG120: - | DH120: 11 | DI120: 7 | DJ120: 6 | DK120: 10 | DL120: 5 | DM120: - | DN120: - | DO120: - | DP120: 5 | DQ120: - | DR120: - | DS120: - | DT120: - | DU120: - | DV120: - | DW120: - | DX120: - | DY120: - | DZ120: - | EA120: 18 | EB120: 1,584 | EC120: 1,379 | ED120: 205 | EE120: - | EF120: 32 | EG120: 29 | EH120: 17 | EI120: 12 | EJ120: - | EK120: - | EL120: 2 | EM120: 1 | EN120: 38 | EO120: 17 | EP120: 11 | EQ120: 6 | ER120: - | ES120: 11 | ET120: 5 | EU120: 5
A121: 山梨県 | B121: 甲府市 | C121: 柏村 | E121: 233 | F121: 165 | G121: 39 | H121: 34 | I121: 44 | J121: 20 | K121: 82 | L121: 68 | M121: 446 | N121: 8 | O121: 14 | P121: 17 | Q121: 10 | R121: 18 | S121: 20 | T121: 37 | U121: 30 | V121: 42 | W121: 41 | X121: 40 | Y121: 50 | Z121: 57 | AA121: 41 | AB121: 21 | AC121: 60.0 | AD121: 59.5 | AE121: 60.6 | AF121: 300 | AG121: 6 | AH121: 4 | AI121: 2 | AJ121: 2 | AK121: 3 | AL121: 1 | AM121: 9 | AN121: 12 | AO121: 22 | AP121: 34 | AQ121: 38 | AR121: 48 | AS121: 57 | AT121: 41 | AU121: 21 | AV121: 68.1 | AW121: 69.8 | AX121: 66.4 | AY121: 269 | AZ121: - | BA121: 1 | BB121: 1 | BC121: 2 | BD121: 2 | BE121: - | BF121: 6 | BG121: 12 | BH121: 21 | BI121: 33 | BJ121: 37 | BK121: 45 | BL121: 55 | BM121: 39 | BN121: 15 | BO121: 69.8 | BP121: 70.9 | BQ121: 68.5 | BR121: 165 | BS121: - | BT121: - | BU121: - | BV121: - | BW121: 1 | BX121: 1 | BY121: 4 | BZ121: 6 | CA121: 13 | CB121: 21 | CC121: 23 | CD121: 24 | CE121: 32 | CF121: 26 | CG121: 14 | CH121: 86 | CI121: - | CJ121: - | CK121: - | CL121: - | CM121: - | CN121: 3 | CO121: 3 | CP121: 6 | CQ121: 12 | CR121: 13 | CS121: 17 | CT121: 21 | CU121: 11 | DC121: 525 | DD121: 430 | DE121: 269 | DF121: 150 | DG121: 11 | DH121: 31 | DI121: 35 | DJ121: 29 | DK121: 164 | DL121: 1 | DM121: - | DN121: - | DO121: - | DP121: 57 | DQ121: 1 | DR121: 103 | DS121: 1 | DT121: - | DU121: - | DV121: 1 | DW121: - | DX121: - | DY121: - | DZ121: - | EA121: 165 | EB121: 13,007 | EC121: 3,192 | ED121: 3,247 | EE121: 6,568 | EF121: 266 | EG121: 241 | EH121: 140 | EI121: 93 | EJ121: 8 | EK121: - | EL121: 15 | EM121: 10 | EN121: 259 | EO121: 189 | EP121: 129 | EQ121: 57 | ER121: 3 | ES121: 31 | ET121: 20 | EU121: 19
A122: 山梨県 | B122: 甲府市 | C122: 柏村 | D122: 下曽根 | E122: 93 | F122: 64 | G122: 12 | H122: 10 | I122: 15 | J122: 5 | K122: 37 | L122: 29 | M122: 165 | N122: 1 | O122: 4 | P122: 7 | Q122: 5 | R122: 5 | S122: 7 | T122: 10 | U122: 8 | V122: 16 | W122: 13 | X122: 19 | Y122: 23 | Z122: 23 | AA122: 15 | AB122: 9 | AC122: 61.9 | AD122: 62.1 | AE122: 61.6 | AF122: 117 | AG122: - | AH122: 2 | AI122: 2 | AJ122: 1 | AK122: 1 | AL122: - | AM122: 2 | AN122: 4 | AO122: 7 | AP122: 10 | AQ122: 18 | AR122: 23 | AS122: 23 | AT122: 15 | AU122: 9 | AV122: 69.3 | AW122: 71.1 | AX122: 67.5 | AY122: 109 | AZ122: - | BA122: 1 | BB122: 1 | BC122: 1 | BD122: 1 | BE122: - | BF122: 1 | BG122: 4 | BH122: 7 | BI122: 9 | BJ122: 18 | BK122: 21 | BL122: 23 | BM122: 15 | BN122: 7 | BO122: 70.0 | BP122: 71.2 | BQ122: 68.7 | BR122: 64 | BS122: - | BT122: - | BU122: - | BV122: - | BW122: - | BX122: 1 | BY122: 1 | BZ122: 2 | CA122: 4 | CB122: 7 | CC122: 9 | CD122: 11 | CE122: 17 | CF122: 8 | CG122: 4 | CH122: 32 | CI122: - | CJ122: - | CK122: - | CL122: - | CM122: - | CN122: - | CO122: 2 | CP122: 3 | CQ122: 5 | CR122: 5 | CS122: 6 | CT122: 7 | CU122: 4 | DC122: 187 | DD122: 163 | DE122: 109 | DF122: 49 | DG122: 5 | DH122: 9 | DI122: 4 | DJ122: 11 | DK122: 64 | DL122: 1 | DM122: - | DN122: - | DO122: - | DP122: 36 | DQ122: - | DR122: 26 | DS122: 1 | DT122: - | DU122: - | DV122: - | DW122: - | DX122: - | DY122: - | DZ122: - | EA122: 64 | EB122: 5,085 | EC122: 2,135 | ED122: 1,178 | EE122: 1,772 | EF122: 95 | EG122: 89 | EH122: 57 | EI122: 30 | EJ122: 2 | EK122: - | EL122: 2 | EM122: 4 | EN122: 92 | EO122: 74 | EP122: 52 | EQ122: 19 | ER122: 3 | ES122: 9 | ET122: 2 | EU122: 7
A123: 山梨県 | B123: 甲府市 | C123: 柏村 | D123: 上曽根 | E123: 83 | F123: 62 | G123: 16 | H123: 14 | I123: 17 | J123: 8 | K123: 29 | L123: 21 | M123: 180 | N123: 5 | O123: 6 | P123: 7 | Q123: 5 | R123: 8 | S123: 10 | T123: 21 | U123: 13 | V123: 15 | W123: 17 | X123: 13 | Y123: 16 | Z123: 23 | AA123: 14 | AB123: 7 | AC123: 57.8 | AD123: 57.4 | AE123: 58.1 | AF123: 111 | AG123: 5 | AH123: 1 | AI123: - | AJ123: 1 | AK123: - | AL123: 1 | AM123: 4 | AN123: 4 | AO123: 8 | AP123: 15 | AQ123: 12 | AR123: 16 | AS123: 23 | AT123: 14 | AU123: 7 | AV123: 67.0 | AW123: 69.4 | AX123: 64.8 | AY123: 96 | AZ123: - | BA123: - | BB123: - | BC123: 1 | BD123: - | BE123: - | BF123: 2 | BG123: 4 | BH123: 7 | BI123: 15 | BJ123: 12 | BK123: 15 | BL123: 22 | BM123: 12 | BN123: 6 | BO123: 70.3 | BP123: 71.4 | BQ123: 69.0 | BR123: 62 | BS123: - | BT123: - | BU123: - | BV123: - | BW123: - | BX123: - | BY123: 2 | BZ123: 2 | CA123: 6 | CB123: 9 | CC123: 10 | CD123: 6 | CE123: 10 | CF123: 10 | CG123: 7 | CH123: 30 | CI123: - | CJ123: - | CK123: - | CL123: - | CM123: - | CN123: 1 | CO123: - | CP123: 2 | CQ123: 3 | CR123: 5 | CS123: 7 | CT123: 8 | CU123: 4 | DC123: 223 | DD123: 173 | DE123: 96 | DF123: 74 | DG123: 3 | DH123: 14 | DI123: 23 | DJ123: 13 | DK123: 61 | DL123: - | DM123: - | DN123: - | DO123: - | DP123: 14 | DQ123: 1 | DR123: 45 | DS123: - | DT123: - | DU123: - | DV123: 1 | DW123: - | DX123: - | DY123: - | DZ123: - | EA123: 62 | EB123: 5,090 | EC123: 555 | ED123: 1,484 | EE123: 3,051 | EF123: 119 | EG123: 102 | EH123: 52 | EI123: 47 | EJ123: 3 | EK123: - | EL123: 11 | EM123: 6 | EN123: 104 | EO123: 71 | EP123: 44 | EQ123: 27 | ER123: - | ES123: 14 | ET123: 12 | EU123: 7
A124: 山梨県 | B124: 甲府市 | C124: 柏村 | D124: 白井 | E124: 57 | F124: 39 | G124: 11 | H124: 10 | I124: 12 | J124: 7 | K124: 16 | L124: 18 | M124: 101 | N124: 2 | O124: 4 | P124: 3 | Q124: - | R124: 5 | S124: 3 | T124: 6 | U124: 9 | V124: 11 | W124: 11 | X124: 8 | Y124: 11 | Z124: 11 | AA124: 12 | AB124: 5 | AC124: 61.1 | AD124: 59.0 | AE124: 63.3 | AF124: 72 | AG124: 1 | AH124: 1 | AI124: - | AJ124: - | AK124: 2 | AL124: - | AM124: 3 | AN124: 4 | AO124: 7 | AP124: 9 | AQ124: 8 | AR124: 9 | AS124: 11 | AT124: 12 | AU124: 5 | AV124: 67.7 | AW124: 68.2 | AX124: 67.3 | AY124: 64 | AZ124: - | BA124: - | BB124: - | BC124: - | BD124: 1 | BE124: - | BF124: 3 | BG124: 4 | BH124: 7 | BI124: 9 | BJ124: 7 | BK124: 9 | BL124: 10 | BM124: 12 | BN124: 2 | BO124: 68.6 | BP124: 69.7 | BQ124: 67.5 | BR124: 39 | BS124: - | BT124: - | BU124: - | BV124: - | BW124: 1 | BX124: - | BY124: 1 | BZ124: 2 | CA124: 3 | CB124: 5 | CC124: 4 | CD124: 7 | CE124: 5 | CF124: 8 | CG124: 3 | CH124: 24 | CI124: - | CJ124: - | CK124: - | CL124: - | CM124: - | CN124: 2 | CO124: 1 | CP124: 1 | CQ124: 4 | CR124: 3 | CS124: 4 | CT124: 6 | CU124: 3 | DC124: 115 | DD124: 94 | DE124: 64 | DF124: 27 | DG124: 3 | DH124: 8 | DI124: 8 | DJ124: 5 | DK124: 39 | DL124: - | DM124: - | DN124: - | DO124: - | DP124: 7 | DQ124: - | DR124: 32 | DS124: - | DT124: - | DU124: - | DV124: - | DW124: - | DX124: - | DY124: - | DZ124: - | EA124: 39 | EB124: 2,832 | EC124: 502 | ED124: 585 | EE124: 1,745 | EF124: 52 | EG124: 50 | EH124: 31 | EI124: 16 | EJ124: 3 | EK124: - | EL124: 2 | EM124: - | EN124: 63 | EO124: 44 | EP124: 33 | EQ124: 11 | ER124: - | ES124: 8 | ET124: 6 | EU124: 5
A125: 山梨県 | B125: 甲府市 | C125: 右左口村 | E125: 327 | F125: 247 | G125: 65 | H125: 52 | I125: 75 | J125: 27 | K125: 107 | L125: 80 | M125: 667 | N125: 6 | O125: 18 | P125: 19 | Q125: 21 | R125: 22 | S125: 36 | T125: 38 | U125: 61 | V125: 63 | W125: 68 | X125: 74 | Y125: 73 | Z125: 85 | AA125: 63 | AB125: 20 | AC125: 60.6 | AD125: 59.9 | AE125: 61.4 | AF125: 447 | AG125: 3 | AH125: 2 | AI125: - | AJ125: 4 | AK125: 9 | AL125: 9 | AM125: 13 | AN125: 18 | AO125: 28 | AP125: 57 | AQ125: 66 | AR125: 72 | AS125: 84 | AT125: 62 | AU125: 20 | AV125: 68.2 | AW125: 69.2 | AX125: 67.4 | AY125: 395 | AZ125: - | BA125: - | BB125: - | BC125: 2 | BD125: 7 | BE125: 5 | BF125: 10 | BG125: 14 | BH125: 26 | BI125: 52 | BJ125: 64 | BK125: 71 | BL125: 76 | BM125: 52 | BN125: 16 | BO125: 69.2 | BP125: 69.9 | BQ125: 68.5 | BR125: 247 | BS125: - | BT125: - | BU125: - | BV125: - | BW125: 5 | BX125: 7 | BY125: 10 | BZ125: 21 | CA125: 33 | CB125: 28 | CC125: 37 | CD125: 41 | CE125: 34 | CF125: 27 | CG125: 4 | CH125: 86 | CI125: - | CJ125: - | CK125: - | CL125: - | CM125: - | CN125: 4 | CO125: 11 | CP125: 12 | CQ125: 13 | CR125: 15 | CS125: 16 | CT125: 12 | CU125: 3 | DC125: 834 | DD125: 661 | DE125: 395 | DF125: 249 | DG125: 17 | DH125: 54 | DI125: 51 | DJ125: 68 | DK125: 237 | DL125: 4 | DM125: - | DN125: - | DO125: - | DP125: 80 | DQ125: - | DR125: 146 | DS125: 1 | DT125: 2 | DU125: - | DV125: - | DW125: 4 | DX125: - | DY125: - | DZ125: - | EA125: 246 | EB125: 20,099 | EC125: 3,849 | ED125: 6,028 | EE125: 10,222 | EF125: 411 | EG125: 364 | EH125: 204 | EI125: 148 | EJ125: 12 | EK125: - | EL125: 23 | EM125: 24 | EN125: 423 | EO125: 297 | EP125: 191 | EQ125: 101 | ER125: 5 | ES125: 54 | ET125: 28 | EU125: 44
A126: 山梨県 | B126: 甲府市 | C126: 右左口村 | D126: 松本 | E126: 21 | F126: 16 | G126: 3 | H126: 3 | I126: 5 | J126: 3 | K126: 8 | L126: 5 | M126: 50 | N126: - | O126: - | P126: 1 | Q126: 2 | R126: 1 | S126: 4 | T126: 2 | U126: 7 | V126: 5 | W126: 4 | X126: 3 | Y126: 6 | Z126: 5 | AA126: 4 | AB126: 6 | AC126: 63.0 | AD126: 65.2 | AE126: 60.5 | AF126: 34 | AG126: - | AH126: - | AI126: - | AJ126: - | AK126: - | AL126: 2 | AM126: 1 | AN126: 2 | AO126: 2 | AP126: 4 | AQ126: 2 | AR126: 6 | AS126: 5 | AT126: 4 | AU126: 6 | AV126: 70.6 | AW126: 74.6 | AX126: 66.1 | AY126: 30 | AZ126: - | BA126: - | BB126: - | BC126: - | BD126: - | BE126: - | BF126: 1 | BG126: 1 | BH126: 1 | BI126: 4 | BJ126: 2 | BK126: 6 | BL126: 5 | BM126: 4 | BN126: 6 | BO126: 73.6 | BP126: 74.6 | BQ126: 72.1 | BR126: 16 | BS126: - | BT126: - | BU126: - | BV126: - | BW126: - | BX126: - | BY126: - | BZ126: - | CA126: 4 | CB126: 2 | CC126: 1 | CD126: 4 | CE126: 3 | CF126: 1 | CG126: 1 | CH126: 8 | CI126: - | CJ126: - | CK126: - | CL126: - | CM126: - | CN126: - | CO126: 1 | CP126: - | CQ126: 1 | CR126: 2 | CS126: 2 | CT126: 1 | CU126: 1 | DC126: 62 | DD126: 49 | DE126: 30 | DF126: 18 | DG126: 1 | DH126: 7 | DI126: 4 | DJ126: 2 | DK126: 16 | DL126: - | DM126: - | DN126: - | DO126: - | DP126: 2 | DQ126: - | DR126: 14 | DS126: - | DT126: - | DU126: - | DV126: - | DW126: - | DX126: - | DY126: - | DZ126: - | EA126: 16 | EB126: 1,351 | EC126: 390 | ED126: 102 | EE126: 859 | EF126: 34 | EG126: 30 | EH126: 18 | EI126: 11 | EJ126: 1 | EK126: - | EL126: 4 | EM126: - | EN126: 28 | EO126: 19 | EP126: 12 | EQ126: 7 | ER126: - | ES126: 7 | ET126: - | EU126: 2
A127: 山梨県 | B127: 甲府市 | C127: 右左口村 | D127: 佐久 | E127: 36 | F127: 26 | G127: 4 | H127: 1 | I127: 13 | J127: 4 | K127: 9 | L127: 10 | M127: 81 | N127: 3 | O127: 4 | P127: 1 | Q127: 2 | R127: 1 | S127: 5 | T127: 6 | U127: 11 | V127: 7 | W127: 5 | X127: 11 | Y127: 4 | Z127: 7 | AA127: 11 | AB127: 3 | AC127: 58.7 | AD127: 54.1 | AE127: 62.8 | AF127: 47 | AG127: 2 | AH127: 1 | AI127: - | AJ127: 1 | AK127: 1 | AL127: 1 | AM127: 1 | AN127: 2 | AO127: - | AP127: 3 | AQ127: 11 | AR127: 4 | AS127: 6 | AT127: 11 | AU127: 3 | AV127: 67.0 | AW127: 64.1 | AX127: 68.7 | AY127: 33 | AZ127: - | BA127: - | BB127: - | BC127: - | BD127: 1 | BE127: 1 | BF127: - | BG127: - | BH127: - | BI127: 3 | BJ127: 10 | BK127: 4 | BL127: 5 | BM127: 7 | BN127: 2 | BO127: 71.3 | BP127: 70.4 | BQ127: 71.9 | BR127: 26 | BS127: - | BT127: - | BU127: - | BV127: - | BW127: - | BX127: 2 | BY127: 1 | BZ127: 7 | CA127: 4 | CB127: 2 | CC127: 5 | CD127: 3 | CE127: - | CF127: 2 | CG127: - | CH127: 10 | CI127: - | CJ127: - | CK127: - | CL127: - | CM127: - | CN127: 2 | CO127: 1 | CP127: 1 | CQ127: 3 | CR127: 1 | CS127: - | CT127: 2 | CU127: - | DC127: 109 | DD127: 73 | DE127: 33 | DF127: 34 | DG127: 6 | DH127: 9 | DI127: 13 | DJ127: 14 | DK127: 25 | DL127: 3 | DM127: - | DN127: - | DO127: - | DP127: 6 | DQ127: - | DR127: 15 | DS127: - | DT127: 1 | DU127: - | DV127: - | DW127: - | DX127: - | DY127: - | DZ127: - | EA127: 26 | EB127: 1,880 | EC127: 501 | ED127: 374 | EE127: 1,005 | EF127: 52 | EG127: 38 | EH127: 14 | EI127: 22 | EJ127: 2 | EK127: - | EL127: 7 | EM127: 7 | EN127: 57 | EO127: 35 | EP127: 19 | EQ127: 12 | ER127: 4 | ES127: 9 | ET127: 6 | EU127: 7
A128: 山梨県 | B128: 甲府市 | C128: 右左口村 | D128: 金沢 | E128: 32 | F128: 26 | G128: 11 | H128: 8 | I128: 7 | J128: 3 | K128: 8 | L128: 6 | M128: 72 | N128: 1 | O128: 2 | P128: 2 | Q128: 3 | R128: 4 | S128: 5 | T128: 3 | U128: 3 | V128: 9 | W128: 12 | X128: 7 | Y128: 10 | Z128: 6 | AA128: 3 | AB128: 2 | AC128: 58.3 | AD128: 56.9 | AE128: 60.0 | AF128: 46 | AG128: - | AH128: - | AI128: - | AJ128: - | AK128: - | AL128: 1 | AM128: 2 | AN128: 2 | AO128: 2 | AP128: 12 | AQ128: 6 | AR128: 10 | AS128: 6 | AT128: 3 | AU128: 2 | AV128: 67.6 | AW128: 67.1 | AX128: 68.0 | AY128: 39 | AZ128: - | BA128: - | BB128: - | BC128: - | BD128: - | BE128: - | BF128: 1 | BG128: 2 | BH128: 2 | BI128: 10 | BJ128: 5 | BK128: 10 | BL128: 5 | BM128: 3 | BN128: 1 | BO128: 68.4 | BP128: 67.3 | BQ128: 69.8 | BR128: 26 | BS128: - | BT128: - | BU128: - | BV128: - | BW128: 2 | BX128: 2 | BY128: - | BZ128: 2 | CA128: 4 | CB128: 7 | CC128: 2 | CD128: 4 | CE128: 1 | CF128: 2 | CG128: - | CH128: 8 | CI128: - | CJ128: - | CK128: - | CL128: - | CM128: - | CN128: - | CO128: 2 | CP128: 4 | CQ128: 1 | CR128: - | CS128: 1 | CT128: - | CU128: - | DC128: 82 | DD128: 66 | DE128: 39 | DF128: 25 | DG128: 2 | DH128: 8 | DI128: 2 | DJ128: 6 | DK128: 23 | DL128: - | DM128: - | DN128: - | DO128: - | DP128: 5 | DQ128: - | DR128: 18 | DS128: - | DT128: - | DU128: - | DV128: - | DW128: - | DX128: - | DY128: - | DZ128: - | EA128: 26 | EB128: 1,917 | EC128: 596 | ED128: 250 | EE128: 1,071 | EF128: 43 | EG128: 39 | EH128: 21 | EI128: 16 | EJ128: 2 | EK128: - | EL128: 1 | EM128: 3 | EN128: 39 | EO128: 27 | EP128: 18 | EQ128: 9 | ER128: - | ES128: 8 | ET128: 1 | EU128: 3
A129: 山梨県 | B129: 甲府市 | C129: 右左口村 | D129: 向山 | E129: 42 | F129: 31 | G129: 8 | H129: 7 | I129: 11 | J129: 3 | K129: 12 | L129: 11 | M129: 90 | N129: - | O129: 4 | P129: - | Q129: 4 | R129: 4 | S129: 3 | T129: 7 | U129: 7 | V129: 10 | W129: 10 | X129: 8 | Y129: 8 | Z129: 16 | AA129: 7 | AB129: 2 | AC129: 60.6 | AD129: 59.8 | AE129: 61.5 | AF129: 61 | AG129: - | AH129: 1 | AI129: - | AJ129: 2 | AK129: 2 | AL129: - | AM129: 2 | AN129: 1 | AO129: 6 | AP129: 7 | AQ129: 7 | AR129: 8 | AS129: 16 | AT129: 7 | AU129: 2 | AV129: 67.1 | AW129: 69.5 | AX129: 65.3 | AY129: 54 | AZ129: - | BA129: - | BB129: - | BC129: 1 | BD129: 1 | BE129: - | BF129: 2 | BG129: 1 | BH129: 6 | BI129: 7 | BJ129: 7 | BK129: 7 | BL129: 14 | BM129: 6 | BN129: 2 | BO129: 68.5 | BP129: 69.3 | BQ129: 67.7 | BR129: 31 | BS129: - | BT129: - | BU129: - | BV129: - | BW129: 1 | BX129: 1 | BY129: 2 | BZ129: 3 | CA129: 3 | CB129: 4 | CC129: 4 | CD129: 3 | CE129: 6 | CF129: 3 | CG129: 1 | CH129: 13 | CI129: - | CJ129: - | CK129: - | CL129: - | CM129: - | CN129: - | CO129: 1 | CP129: 2 | CQ129: 1 | CR129: 3 | CS129: 3 | CT129: 2 | CU129: 1 | DC129: 110 | DD129: 90 | DE129: 54 | DF129: 35 | DG129: 1 | DH129: 8 | DI129: 6 | DJ129: 6 | DK129: 30 | DL129: 1 | DM129: - | DN129: - | DO129: - | DP129: 19 | DQ129: - | DR129: 9 | DS129: - | DT129: - | DU129: - | DV129: - | DW129: 1 | DX129: - | DY129: - | DZ129: - | EA129: 31 | EB129: 2,891 | EC129: 880 | ED129: 1,324 | EE129: 687 | EF129: 53 | EG129: 49 | EH129: 26 | EI129: 22 | EJ129: 1 | EK129: - | EL129: 2 | EM129: 2 | EN129: 57 | EO129: 41 | EP129: 28 | EQ129: 13 | ER129: - | ES129: 8 | ET129: 4 | EU129: 4
A130: 山梨県 | B130: 甲府市 | C130: 右左口村 | D130: 中畑 | E130: 31 | F130: 25 | G130: 6 | H130: 6 | I130: 7 | J130: 2 | K130: 12 | L130: 6 | M130: 63 | N130: - | O130: 1 | P130: 2 | Q130: 2 | R130: 3 | S130: 3 | T130: 3 | U130: 6 | V130: 5 | W130: 8 | X130: 6 | Y130: 6 | Z130: 12 | AA130: 5 | AB130: 1 | AC130: 61.2 | AD130: 62.9 | AE130: 58.7 | AF130: 42 | AG130: - | AH130: - | AI130: - | AJ130: - | AK130: 2 | AL130: - | AM130: 1 | AN130: 3 | AO130: 3 | AP130: 5 | AQ130: 5 | AR130: 6 | AS130: 12 | AT130: 4 | AU130: 1 | AV130: 68.0 | AW130: 69.0 | AX130: 66.6 | AY130: 39 | AZ130: - | BA130: - | BB130: - | BC130: - | BD130: 2 | BE130: - | BF130: 1 | BG130: 3 | BH130: 3 | BI130: 4 | BJ130: 5 | BK130: 6 | BL130: 10 | BM130: 4 | BN130: 1 | BO130: 67.7 | BP130: 69.0 | BQ130: 65.5 | BR130: 25 | BS130: - | BT130: - | BU130: - | BV130: - | BW130: 1 | BX130: - | BY130: 1 | BZ130: 2 | CA130: 4 | CB130: 3 | CC130: 3 | CD130: 3 | CE130: 5 | CF130: 2 | CG130: 1 | CH130: 10 | CI130: - | CJ130: - | CK130: - | CL130: - | CM130: - | CN130: - | CO130: 1 | CP130: 2 | CQ130: 2 | CR130: 2 | CS130: 2 | CT130: - | CU130: 1 | DC130: 82 | DD130: 67 | DE130: 39 | DF130: 26 | DG130: 2 | DH130: 5 | DI130: 3 | DJ130: 7 | DK130: 25 | DL130: - | DM130: - | DN130: - | DO130: - | DP130: 3 | DQ130: - | DR130: 22 | DS130: - | DT130: - | DU130: - | DV130: - | DW130: - | DX130: - | DY130: - | DZ130: - | EA130: 25 | EB130: 1,853 | EC130: 228 | ED130: 319 | EE130: 1,306 | EF130: 43 | EG130: 40 | EH130: 25 | EI130: 13 | EJ130: 2 | EK130: - | EL130: 1 | EM130: 2 | EN130: 39 | EO130: 27 | EP130: 14 | EQ130: 13 | ER130: - | ES130: 5 | ET130: 2 | EU130: 5
A131: 山梨県 | B131: 甲府市 | C131: 右左口村 | D131: 心経寺 | E131: 33 | F131: 25 | G131: 5 | H131: 3 | I131: 8 | J131: 4 | K131: 12 | L131: 8 | M131: 63 | N131: 1 | O131: - | P131: 2 | Q131: 1 | R131: - | S131: 6 | T131: 5 | U131: 3 | V131: 4 | W131: 3 | X131: 7 | Y131: 8 | Z131: 11 | AA131: 12 | AB131: - | AC131: 64.1 | AD131: 63.9 | AE131: 64.4 | AF131: 48 | AG131: 1 | AH131: - | AI131: - | AJ131: - | AK131: - | AL131: 2 | AM131: 2 | AN131: - | AO131: 3 | AP131: 2 | AQ131: 7 | AR131: 8 | AS131: 11 | AT131: 12 | AU131: - | AV131: 70.2 | AW131: 71.4 | AX131: 69.0 | AY131: 42 | AZ131: - | BA131: - | BB131: - | BC131: - | BD131: - | BE131: 1 | BF131: 2 | BG131: - | BH131: 2 | BI131: 2 | BJ131: 7 | BK131: 8 | BL131: 10 | BM131: 10 | BN131: - | BO131: 71.8 | BP131: 73.5 | BQ131: 70.0 | BR131: 25 | BS131: - | BT131: - | BU131: - | BV131: - | BW131: - | BX131: - | BY131: 3 | BZ131: 1 | CA131: 2 | CB131: - | CC131: 5 | CD131: 3 | CE131: 3 | CF131: 8 | CG131: - | CH131: 7 | CI131: - | CJ131: - | CK131: - | CL131: - | CM131: - | CN131: - | CO131: - | CP131: - | CQ131: 2 | CR131: 1 | CS131: 2 | CT131: 2 | CU131: - | DC131: 83 | DD131: 67 | DE131: 42 | DF131: 25 | DG131: - | DH131: 7 | DI131: 6 | DJ131: 3 | DK131: 25 | DL131: - | DM131: - | DN131: - | DO131: - | DP131: 3 | DQ131: - | DR131: 21 | DS131: - | DT131: - | DU131: - | DV131: - | DW131: 1 | DX131: - | DY131: - | DZ131: - | EA131: 25 | EB131: 2,043 | EC131: 225 | ED131: 423 | EE131: 1,395 | EF131: 40 | EG131: 37 | EH131: 21 | EI131: 16 | EJ131: - | EK131: - | EL131: 2 | EM131: 1 | EN131: 43 | EO131: 30 | EP131: 21 | EQ131: 9 | ER131: - | ES131: 7 | ET131: 4 | EU131: 2
A132: 山梨県 | B132: 甲府市 | C132: 右左口村 | D132: 宿 | E132: 72 | F132: 49 | G132: 11 | H132: 9 | I132: 12 | J132: 5 | K132: 26 | L132: 23 | M132: 121 | N132: - | O132: 3 | P132: 6 | Q132: 4 | R132: 1 | S132: 4 | T132: 6 | U132: 8 | V132: 10 | W132: 15 | X132: 18 | Y132: 16 | Z132: 18 | AA132: 7 | AB132: 5 | AC132: 61.8 | AD132: 61.4 | AE132: 62.4 | AF132: 85 | AG132: - | AH132: - | AI132: - | AJ132: - | AK132: 1 | AL132: - | AM132: 1 | AN132: 2 | AO132: 6 | AP132: 14 | AQ132: 16 | AR132: 15 | AS132: 18 | AT132: 7 | AU132: 5 | AV132: 69.7 | AW132: 70.5 | AX132: 69.0 | AY132: 78 | AZ132: - | BA132: - | BB132: - | BC132: - | BD132: 1 | BE132: - | BF132: - | BG132: 2 | BH132: 6 | BI132: 13 | BJ132: 16 | BK132: 15 | BL132: 17 | BM132: 5 | BN132: 3 | BO132: 69.2 | BP132: 70.2 | BQ132: 68.1 | BR132: 49 | BS132: - | BT132: - | BU132: - | BV132: - | BW132: - | BX132: 1 | BY132: - | BZ132: 2 | CA132: 5 | CB132: 5 | CC132: 12 | CD132: 10 | CE132: 11 | CF132: 3 | CG132: - | CH132: 9 | CI132: - | CJ132: - | CK132: - | CL132: - | CM132: - | CN132: - | CO132: 1 | CP132: - | CQ132: 2 | CR132: 2 | CS132: 4 | CT132: - | CU132: - | DC132: 144 | DD132: 118 | DE132: 78 | DF132: 37 | DG132: 3 | DH132: 6 | DI132: 7 | DJ132: 13 | DK132: 45 | DL132: - | DM132: - | DN132: - | DO132: - | DP132: 21 | DQ132: - | DR132: 23 | DS132: - | DT132: 1 | DU132: - | DV132: - | DW132: - | DX132: - | DY132: - | DZ132: - | EA132: 49 | EB132: 4,221 | EC132: 545 | ED132: 1,789 | EE132: 1,887 | EF132: 69 | EG132: 65 | EH132: 41 | EI132: 21 | EJ132: 3 | EK132: - | EL132: 2 | EM132: 2 | EN132: 75 | EO132: 53 | EP132: 37 | EQ132: 16 | ER132: - | ES132: 6 | ET132: 5 | EU132: 11
A133: 山梨県 | B133: 甲府市 | C133: 右左口村 | D133: 七覚 | E133: 37 | F133: 28 | G133: 10 | H133: 9 | I133: 8 | J133: 2 | K133: 10 | L133: 9 | M133: 78 | N133: 1 | O133: 4 | P133: 2 | Q133: 2 | R133: 7 | S133: 2 | T133: 6 | U133: 7 | V133: 8 | W133: 6 | X133: 6 | Y133: 7 | Z133: 10 | AA133: 10 | AB133: - | AC133: 58.4 | AD133: 56.4 | AE133: 60.7 | AF133: 51 | AG133: - | AH133: - | AI133: - | AJ133: 1 | AK133: 3 | AL133: 1 | AM133: 3 | AN133: 2 | AO133: 4 | AP133: 6 | AQ133: 4 | AR133: 7 | AS133: 10 | AT133: 10 | AU133: - | AV133: 67.0 | AW133: 67.2 | AX133: 66.9 | AY133: 48 | AZ133: - | BA133: - | BB133: - | BC133: 1 | BD133: 2 | BE133: 1 | BF133: 3 | BG133: 2 | BH133: 4 | BI133: 5 | BJ133: 4 | BK133: 7 | BL133: 10 | BM133: 9 | BN133: - | BO133: 67.4 | BP133: 67.2 | BQ133: 67.5 | BR133: 28 | BS133: - | BT133: - | BU133: - | BV133: - | BW133: 1 | BX133: 1 | BY133: 3 | BZ133: 2 | CA133: 4 | CB133: 3 | CC133: 2 | CD133: 5 | CE133: 4 | CF133: 3 | CG133: - | CH133: 13 | CI133: - | CJ133: - | CK133: - | CL133: - | CM133: - | CN133: 1 | CO133: 4 | CP133: 2 | CQ133: - | CR133: 3 | CS133: 1 | CT133: 2 | CU133: - | DC133: 94 | DD133: 78 | DE133: 48 | DF133: 28 | DG133: 2 | DH133: 2 | DI133: 5 | DJ133: 9 | DK133: 28 | DL133: - | DM133: - | DN133: - | DO133: - | DP133: 18 | DQ133: - | DR133: 8 | DS133: 1 | DT133: - | DU133: - | DV133: - | DW133: 1 | DX133: - | DY133: - | DZ133: - | EA133: 28 | EB133: 1,986 | EC133: 337 | ED133: 1,016 | EE133: 633 | EF133: 46 | EG133: 41 | EH133: 24 | EI133: 16 | EJ133: 1 | EK133: - | EL133: 2 | EM133: 3 | EN133: 48 | EO133: 37 | EP133: 24 | EQ133: 12 | ER133: 1 | ES133: 2 | ET133: 3 | EU133: 6
A134: 山梨県 | B134: 甲府市 | C134: 右左口村 | D134: 善藤 | E134: 23 | F134: 21 | G134: 7 | H134: 6 | I134: 4 | J134: 1 | K134: 10 | L134: 2 | M134: 49 | N134: - | O134: - | P134: 3 | Q134: 1 | R134: 1 | S134: 4 | T134: - | U134: 9 | V134: 5 | W134: 5 | X134: 8 | Y134: 8 | Z134: - | AA134: 4 | AB134: 1 | AC134: 59.4 | AD134: 59.8 | AE134: 59.1 | AF134: 33 | AG134: - | AH134: - | AI134: - | AJ134: - | AK134: - | AL134: 2 | AM134: - | AN134: 4 | AO134: 2 | AP134: 4 | AQ134: 8 | AR134: 8 | AS134: - | AT134: 4 | AU134: 1 | AV134: 65.9 | AW134: 67.6 | AX134: 64.6 | AY134: 32 | AZ134: - | BA134: - | BB134: - | BC134: - | BD134: - | BE134: 2 | BF134: - | BG134: 3 | BH134: 2 | BI134: 4 | BJ134: 8 | BK134: 8 | BL134: - | BM134: 4 | BN134: 1 | BO134: 66.3 | BP134: 67.6 | BQ134: 65.3 | BR134: 21 | BS134: - | BT134: - | BU134: - | BV134: - | BW134: - | BX134: - | BY134: - | BZ134: 2 | CA134: 3 | CB134: 2 | CC134: 3 | CD134: 6 | CE134: 1 | CF134: 3 | CG134: 1 | CH134: 8 | CI134: - | CJ134: - | CK134: - | CL134: - | CM134: - | CN134: 1 | CO134: - | CP134: 1 | CQ134: 1 | CR134: 1 | CS134: 1 | CT134: 3 | CU134: - | DC134: 68 | DD134: 53 | DE134: 32 | DF134: 21 | DG134: - | DH134: 2 | DI134: 5 | DJ134: 8 | DK134: 20 | DL134: - | DM134: - | DN134: - | DO134: - | DP134: 3 | DQ134: - | DR134: 16 | DS134: - | DT134: - | DU134: - | DV134: - | DW134: 1 | DX134: - | DY134: - | DZ134: - | EA134: 20 | EB134: 1,957 | EC134: 147 | ED134: 431 | EE134: 1,379 | EF134: 31 | EG134: 25 | EH134: 14 | EI134: 11 | EJ134: - | EK134: - | EL134: 2 | EM134: 4 | EN134: 37 | EO134: 28 | EP134: 18 | EQ134: 10 | ER134: - | ES134: 2 | ET134: 3 | EU134: 4
A135: 山梨県 | B135: 甲府市 | C135: 上九一色村2-1 | E135: 73 | F135: 3 | G135: - | H135: - | I135: - | J135: - | K135: 3 | L135: 70 | M135: 8 | N135: - | O135: - | P135: - | Q135: - | R135: 1 | S135: - | T135: - | U135: - | V135: - | W135: 2 | X135: 2 | Y135: 3 | Z135: - | AA135: - | AB135: - | AC135: 63.3 | AD135: 68.0 | AE135: 60.4 | AF135: 4 | AG135: - | AH135: - | AI135: - | AJ135: - | AK135: - | AL135: - | AM135: - | AN135: - | AO135: - | AP135: - | AQ135: 2 | AR135: 2 | AS135: - | AT135: - | AU135: - | AV135: 69.0 | AW135: 71.0 | AX135: 67.0 | AY135: 2 | AZ135: - | BA135: - | BB135: - | BC135: - | BD135: - | BE135: - | BF135: - | BG135: - | BH135: - | BI135: - | BJ135: - | BK135: 2 | BL135: - | BM135: - | BN135: - | BO135: 71.0 | BP135: 71.0 | BQ135: - | BR135: 3 | BS135: - | BT135: - | BU135: - | BV135: - | BW135: - | BX135: - | BY135: - | BZ135: - | CA135: - | CB135: 1 | CC135: - | CD135: 2 | CE135: - | CF135: - | CG135: - | CH135: 2 | CI135: - | CJ135: - | CK135: - | CL135: - | CM135: - | CN135: - | CO135: - | CP135: 1 | CQ135: - | CR135: 1 | CS135: - | CT135: - | CU135: - | DC135: 8 | DD135: 6 | DE135: 2 | DF135: 4 | DG135: - | DH135: 1 | DI135: - | DJ135: 1 | DK135: 3 | DL135: 1 | DM135: - | DN135: - | DO135: - | DP135: 1 | DQ135: - | DR135: - | DS135: - | DT135: 1 | DU135: - | DV135: - | DW135: - | DX135: - | DY135: - | DZ135: - | EA135: 3 | EB135: 165 | EC135: 70 | ED135: 85 | EE135: 10 | EF135: 3 | EG135: 3 | EH135: 2 | EI135: 1 | EJ135: - | EK135: - | EL135: - | EM135: - | EN135: 5 | EO135: 3 | EP135: - | EQ135: 3 | ER135: - | ES135: 1 | ET135: - | EU135: 1
A136: 山梨県 | B136: 甲府市 | C136: 上九一色村2-1 | D136: 梯 | E136: 13 | F136: - | G136: - | H136: - | I136: - | J136: - | K136: - | L136: 13 | M136: - | N136: - | O136: - | P136: - | Q136: - | R136: - | S136: - | T136: - | U136: - | V136: - | W136: - | X136: - | Y136: - | Z136: - | AA136: - | AB136: - | AC136: … | AD136: … | AE136: … | AF136: - | AG136: - | AH136: - | AI136: - | AJ136: - | AK136: - | AL136: - | AM136: - | AN136: - | AO136: - | AP136: - | AQ136: - | AR136: - | AS136: - | AT136: - | AU136: - | AV136: … | AW136: … | AX136: … | AY136: - | AZ136: - | BA136: - | BB136: - | BC136: - | BD136: - | BE136: - | BF136: - | BG136: - | BH136: - | BI136: - | BJ136: - | BK136: - | BL136: - | BM136: - | BN136: - | BO136: … | BP136: … | BQ136: … | BR136: - | BS136: - | BT136: - | BU136: - | BV136: - | BW136: - | BX136: - | BY136: - | BZ136: - | CA136: - | CB136: - | CC136: - | CD136: - | CE136: - | CF136: - | CG136: - | CH136: - | CI136: - | CJ136: - | CK136: - | CL136: - | CM136: - | CN136: - | CO136: - | CP136: - | CQ136: - | CR136: - | CS136: - | CT136: - | CU136: - | DC136: - | DD136: - | DE136: - | DF136: - | DG136: - | DH136: - | DI136: - | DJ136: - | DK136: - | DL136: - | DM136: - | DN136: - | DO136: - | DP136: - | DQ136: - | DR136: - | DS136: - | DT136: - | DU136: - | DV136: - | DW136: - | DX136: - | DY136: - | DZ136: - | EA136: - | EB136: - | EC136: - | ED136: - | EE136: - | EF136: - | EG136: - | EH136: - | EI136: - | EJ136: - | EK136: - | EL136: - | EM136: - | EN136: - | EO136: - | EP136: - | EQ136: - | ER136: - | ES136: - | ET136: - | EU136: -
A137: 山梨県 | B137: 甲府市 | C137: 上九一色村2-1 | D137: 飯田 | E137: 21 | F137: - | G137: - | H137: - | I137: - | J137: - | K137: - | L137: 21 | M137: - | N137: - | O137: - | P137: - | Q137: - | R137: - | S137: - | T137: - | U137: - | V137: - | W137: - | X137: - | Y137: - | Z137: - | AA137: - | AB137: - | AC137: … | AD137: … | AE137: … | AF137: - | AG137: - | AH137: - | AI137: - | AJ137: - | AK137: - | AL137: - | AM137: - | AN137: - | AO137: - | AP137: - | AQ137: - | AR137: - | AS137: - | AT137: - | AU137: - | AV137: … | AW137: … | AX137: … | AY137: - | AZ137: - | BA137: - | BB137: - | BC137: - | BD137: - | BE137: - | BF137: - | BG137: - | BH137: - | BI137: - | BJ137: - | BK137: - | BL137: - | BM137: - | BN137: - | BO137: … | BP137: … | BQ137: … | BR137: - | BS137: - | BT137: - | BU137: - | BV137: - | BW137: - | BX137: - | BY137: - | BZ137: - | CA137: - | CB137: - | CC137: - | CD137: - | CE137: - | CF137: - | CG137: - | CH137: - | CI137: - | CJ137: - | CK137: - | CL137: - | CM137: - | CN137: - | CO137: - | CP137: - | CQ137: - | CR137: - | CS137: - | CT137: - | CU137: - | DC137: - | DD137: - | DE137: - | DF137: - | DG137: - | DH137: - | DI137: - | DJ137: - | DK137: - | DL137: - | DM137: - | DN137: - | DO137: - | DP137: - | DQ137: - | DR137: - | DS137: - | DT137: - | DU137: - | DV137: - | DW137: - | DX137: - | DY137: - | DZ137: - | EA137: - | EB137: - | EC137: - | ED137: - | EE137: - | EF137: - | EG137: - | EH137: - | EI137: - | EJ137: - | EK137: - | EL137: - | EM137: - | EN137: - | EO137: - | EP137: - | EQ137: - | ER137: - | ES137: - | ET137: - | EU137: -
A138: 山梨県 | B138: 甲府市 | C138: 上九一色村2-1 | D138: 本郷 | E138: 20 | F138: 2 | G138: x | H138: x | I138: x | J138: x | K138: x | L138: 18 | M138: x | N138: x | O138: x | P138: x | Q138: x | R138: x | S138: x | T138: x | U138: x | V138: x | W138: x | X138: x | Y138: x | Z138: x | AA138: x | AB138: x | AC138: 58.8 | AD138: 66.0 | AE138: 54.0 | AF138: x | AG138: x | AH138: x | AI138: x | AJ138: x | AK138: x | AL138: x | AM138: x | AN138: x | AO138: x | AP138: x | AQ138: x | AR138: x | AS138: x | AT138: x | AU138: x | AV138: 67.5 | AW138: 70.0 | AX138: 65.0 | AY138: x | AZ138: x | BA138: x | BB138: x | BC138: x | BD138: x | BE138: x | BF138: x | BG138: x | BH138: x | BI138: x | BJ138: x | BK138: x | BL138: x | BM138: x | BN138: x | BO138: 70.0 | BP138: 70.0 | BQ138: … | BR138: 2 | BS138: - | BT138: - | BU138: - | BV138: - | BW138: - | BX138: - | BY138: - | BZ138: - | CA138: - | CB138: 1 | CC138: - | CD138: 1 | CE138: - | CF138: - | CG138: - | CH138: 2 | CI138: - | CJ138: - | CK138: - | CL138: - | CM138: - | CN138: - | CO138: - | CP138: 1 | CQ138: - | CR138: 1 | CS138: - | CT138: - | CU138: - | DC138: 5 | DD138: 4 | DE138: 1 | DF138: 3 | DG138: - | DH138: - | DI138: - | DJ138: 1 | DK138: 2 | DL138: 1 | DM138: - | DN138: - | DO138: - | DP138: - | DQ138: - | DR138: - | DS138: - | DT138: 1 | DU138: - | DV138: - | DW138: - | DX138: - | DY138: - | DZ138: - | EA138: 2 | EB138: 90 | EC138: 45 | ED138: 35 | EE138: 10 | EF138: 2 | EG138: 2 | EH138: 1 | EI138: 1 | EJ138: - | EK138: - | EL138: - | EM138: - | EN138: 3 | EO138: 2 | EP138: - | EQ138: 2 | ER138: - | ES138: - | ET138: - | EU138: 1
A139: 山梨県 | B139: 甲府市 | C139: 上九一色村2-1 | D139: 平川 | E139: 11 | F139: 1 | G139: x | H139: x | I139: x | J139: x | K139: x | L139: 10 | M139: x | N139: x | O139: x | P139: x | Q139: x | R139: x | S139: x | T139: x | U139: x | V139: x | W139: x | X139: x | Y139: x | Z139: x | AA139: x | AB139: x | AC139: 70.7 | AD139: 72.0 | AE139: 70.0 | AF139: x | AG139: x | AH139: x | AI139: x | AJ139: x | AK139: x | AL139: x | AM139: x | AN139: x | AO139: x | AP139: x | AQ139: x | AR139: x | AS139: x | AT139: x | AU139: x | AV139: 70.5 | AW139: 72.0 | AX139: 69.0 | AY139: x | AZ139: x | BA139: x | BB139: x | BC139: x | BD139: x | BE139: x | BF139: x | BG139: x | BH139: x | BI139: x | BJ139: x | BK139: x | BL139: x | BM139: x | BN139: x | BO139: 72.0 | BP139: 72.0 | BQ139: … | BR139: 1 | BS139: - | BT139: - | BU139: - | BV139: - | BW139: - | BX139: - | BY139: - | BZ139: - | CA139: - | CB139: - | CC139: - | CD139: 1 | CE139: - | CF139: - | CG139: - | CH139: - | CI139: - | CJ139: - | CK139: - | CL139: - | CM139: - | CN139: - | CO139: - | CP139: - | CQ139: - | CR139: - | CS139: - | CT139: - | CU139: - | DC139: 3 | DD139: 2 | DE139: 1 | DF139: 1 | DG139: - | DH139: 1 | DI139: - | DJ139: - | DK139: 1 | DL139: - | DM139: - | DN139: - | DO139: - | DP139: 1 | DQ139: - | DR139: - | DS139: - | DT139: - | DU139: - | DV139: - | DW139: - | DX139: - | DY139: - | DZ139: - | EA139: 1 | EB139: 75 | EC139: 25 | ED139: 50 | EE139: - | EF139: 1 | EG139: 1 | EH139: 1 | EI139: - | EJ139: - | EK139: - | EL139: - | EM139: - | EN139: 2 | EO139: 1 | EP139: - | EQ139: 1 | ER139: - | ES139: 1 | ET139: - | EU139: -
A140: 山梨県 | B140: 甲府市 | C140: 上九一色村2-1 | D140: 入野 | E140: 8 | F140: - | G140: - | H140: - | I140: - | J140: - | K140: - | L140: 8 | M140: - | N140: - | O140: - | P140: - | Q140: - | R140: - | S140: - | T140: - | U140: - | V140: - | W140: - | X140: - | Y140: - | Z140: - | AA140: - | AB140: - | AC140: … | AD140: … | AE140: … | AF140: - | AG140: - | AH140: - | AI140: - | AJ140: - | AK140: - | AL140: - | AM140: - | AN140: - | AO140: - | AP140: - | AQ140: - | AR140: - | AS140: - | AT140: - | AU140: - | AV140: … | AW140: … | AX140: … | AY140: - | AZ140: - | BA140: - | BB140: - | BC140: - | BD140: - | BE140: - | BF140: - | BG140: - | BH140: - | BI140: - | BJ140: - | BK140: - | BL140: - | BM140: - | BN140: - | BO140: … | BP140: … | BQ140: … | BR140: - | BS140: - | BT140: - | BU140: - | BV140: - | BW140: - | BX140: - | BY140: - | BZ140: - | CA140: - | CB140: - | CC140: - | CD140: - | CE140: - | CF140: - | CG140: - | CH140: - | CI140: - | CJ140: - | CK140: - | CL140: - | CM140: - | CN140: - | CO140: - | CP140: - | CQ140: - | CR140: - | CS140: - | CT140: - | CU140: - | DC140: - | DD140: - | DE140: - | DF140: - | DG140: - | DH140: - | DI140: - | DJ140: - | DK140: - | DL140: - | DM140: - | DN140: - | DO140: - | DP140: - | DQ140: - | DR140: - | DS140: - | DT140: - | DU140: - | DV140: - | DW140: - | DX140: - | DY140: - | DZ140: - | EA140: - | EB140: - | EC140: - | ED140: - | EE140: - | EF140: - | EG140: - | EH140: - | EI140: - | EJ140: - | EK140: - | EL140: - | EM140: - | EN140: - | EO140: - | EP140: - | EQ140: - | ER140: - | ES140: - | ET140: - | EU140: -
A141: 山梨県 | B141: 富士吉田市 | E141: 733 | F141: 118 | G141: 10 | H141: 9 | I141: 26 | J141: 8 | K141: 82 | L141: 615 | M141: 378 | N141: 18 | O141: 25 | P141: 20 | Q141: 13 | R141: 22 | S141: 20 | T141: 28 | U141: 35 | V141: 35 | W141: 34 | X141: 41 | Y141: 26 | Z141: 31 | AA141: 26 | AB141: 4 | AC141: 53.3 | AD141: 51.6 | AE141: 55.5 | AF141: 144 | AG141: 4 | AH141: - | AI141: 1 | AJ141: 2 | AK141: 1 | AL141: 3 | AM141: 4 | AN141: 11 | AO141: 3 | AP141: 12 | AQ141: 26 | AR141: 19 | AS141: 29 | AT141: 25 | AU141: 4 | AV141: 67.6 | AW141: 66.6 | AX141: 68.8 | AY141: 107 | AZ141: - | BA141: - | BB141: 1 | BC141: 1 | BD141: 1 | BE141: 2 | BF141: 4 | BG141: 7 | BH141: 3 | BI141: 10 | BJ141: 20 | BK141: 16 | BL141: 21 | BM141: 20 | BN141: 1 | BO141: 68.8 | BP141: 69.2 | BQ141: 67.8 | BR141: 118 | BS141: - | BT141: - | BU141: - | BV141: - | BW141: 1 | BX141: 1 | BY141: 4 | BZ141: 13 | CA141: 15 | CB141: 17 | CC141: 22 | CD141: 14 | CE141: 15 | CF141: 15 | CG141: 1 | CH141: 73 | CI141: - | CJ141: - | CK141: - | CL141: - | CM141: 2 | CN141: 6 | CO141: 7 | CP141: 6 | CQ141: 13 | CR141: 12 | CS141: 13 | CT141: 13 | CU141: 1 | DC141: 457 | DD141: 329 | DE141: 107 | DF141: 174 | DG141: 48 | DH141: 54 | DI141: 37 | DJ141: 37 | DK141: 78 | DL141: 64 | DM141: - | DN141: 2 | DO141: - | DP141: 2 | DQ141: - | DR141: - | DS141: 7 | DT141: 3 | DU141: - | DV141: - | DW141: - | DX141: - | DY141: - | DZ141: - | EA141: 117 | EB141: 6,995 | EC141: 4,474 | ED141: 2,454 | EE141: 67 | EF141: 237 | EG141: 203 | EH141: 74 | EI141: 100 | EJ141: 29 | EK141: - | EL141: 26 | EM141: 8 | EN141: 220 | EO141: 126 | EP141: 33 | EQ141: 74 | ER141: 19 | ES141: 54 | ET141: 11 | EU141: 29
A142: 山梨県 | B142: 富士吉田市 | C142: 下吉田町 | E142: 178 | F142: 25 | G142: 1 | H142: 1 | I142: 4 | J142: 2 | K142: 20 | L142: 153 | M142: 84 | N142: 2 | O142: 8 | P142: 5 | Q142: 2 | R142: 7 | S142: 3 | T142: 1 | U142: 11 | V142: 9 | W142: 6 | X142: 12 | Y142: 5 | Z142: 4 | AA142: 7 | AB142: 2 | AC142: 53.5 | AD142: 52.3 | AE142: 55.0 | AF142: 32 | AG142: - | AH142: - | AI142: - | AJ142: - | AK142: - | AL142: - | AM142: - | AN142: 4 | AO142: - | AP142: 2 | AQ142: 9 | AR142: 4 | AS142: 4 | AT142: 7 | AU142: 2 | AV142: 71.2 | AW142: 72.1 | AX142: 70.3 | AY142: 22 | AZ142: - | BA142: - | BB142: - | BC142: - | BD142: - | BE142: - | BF142: - | BG142: 1 | BH142: - | BI142: 2 | BJ142: 7 | BK142: 4 | BL142: 3 | BM142: 5 | BN142: - | BO142: 71.2 | BP142: 72.1 | BQ142: 68.8 | BR142: 25 | BS142: - | BT142: - | BU142: - | BV142: - | BW142: - | BX142: - | BY142: - | BZ142: 3 | CA142: 2 | CB142: 5 | CC142: 5 | CD142: 3 | CE142: 2 | CF142: 5 | CG142: - | CH142: 12 | CI142: - | CJ142: - | CK142: - | CL142: - | CM142: - | CN142: 1 | CO142: 1 | CP142: 1 | CQ142: 2 | CR142: 1 | CS142: 1 | CT142: 5 | CU142: - | DC142: 93 | DD142: 73 | DE142: 22 | DF142: 39 | DG142: 12 | DH142: 9 | DI142: 5 | DJ142: 6 | DK142: 15 | DL142: 11 | DM142: - | DN142: - | DO142: - | DP142: - | DQ142: - | DR142: - | DS142: 1 | DT142: 3 | DU142: - | DV142: - | DW142: - | DX142: - | DY142: - | DZ142: - | EA142: 24 | EB142: 1,074 | EC142: 900 | ED142: 164 | EE142: 10 | EF142: 49 | EG142: 44 | EH142: 16 | EI142: 21 | EJ142: 7 | EK142: - | EL142: 4 | EM142: 1 | EN142: 44 | EO142: 29 | EP142: 6 | EQ142: 18 | ER142: 5 | ES142: 9 | ET142: 1 | EU142: 5
A143: 山梨県 | B143: 富士吉田市 | C143: 下吉田町 | D143: 下吉田横町 | E143: 37 | F143: 7 | G143: - | H143: - | I143: 1 | J143: - | K143: 6 | L143: 30 | M143: 27 | N143: 2 | O143: 4 | P143: - | Q143: - | R143: 2 | S143: 1 | T143: - | U143: 6 | V143: 2 | W143: - | X143: 4 | Y143: 2 | Z143: 1 | AA143: 2 | AB143: 1 | AC143: 51.6 | AD143: 49.9 | AE143: 53.5 | AF143: 11 | AG143: - | AH143: - | AI143: - | AJ143: - | AK143: - | AL143: - | AM143: - | AN143: 3 | AO143: - | AP143: - | AQ143: 3 | AR143: 1 | AS143: 1 | AT143: 2 | AU143: 1 | AV143: 69.1 | AW143: 76.3 | AX143: 65.0 | AY143: 6 | AZ143: - | BA143: - | BB143: - | BC143: - | BD143: - | BE143: - | BF143: - | BG143: - | BH143: - | BI143: - | BJ143: 2 | BK143: 1 | BL143: 1 | BM143: 2 | BN143: - | BO143: 74.5 | BP143: 76.3 | BQ143: 71.0 | BR143: 7 | BS143: - | BT143: - | BU143: - | BV143: - | BW143: - | BX143: - | BY143: - | BZ143: - | CA143: 2 | CB143: - | CC143: 2 | CD143: 1 | CE143: - | CF143: 2 | CG143: - | CH143: 4 | CI143: - | CJ143: - | CK143: - | CL143: - | CM143: - | CN143: - | CO143: 1 | CP143: - | CQ143: 1 | CR143: - | CS143: - | CT143: 2 | CU143: - | DC143: 28 | DD143: 18 | DE143: 6 | DF143: 7 | DG143: 5 | DH143: 5 | DI143: 5 | DJ143: - | DK143: 3 | DL143: 2 | DM143: - | DN143: - | DO143: - | DP143: - | DQ143: - | DR143: - | DS143: - | DT143: 1 | DU143: - | DV143: - | DW143: - | DX143: - | DY143: - | DZ143: - | EA143: 6 | EB143: 239 | EC143: 184 | ED143: 55 | EE143: - | EF143: 14 | EG143: 10 | EH143: 4 | EI143: 3 | EJ143: 3 | EK143: - | EL143: 4 | EM143: - | EN143: 14 | EO143: 8 | EP143: 2 | EQ143: 4 | ER143: 2 | ES143: 5 | ET143: 1 | EU143: -
A144: 山梨県 | B144: 富士吉田市 | C144: 下吉田町 | D144: 西町 | E144: 1 | F144: - | G144: - | H144: - | I144: - | J144: - | K144: - | L144: 1 | M144: - | N144: - | O144: - | P144: - | Q144: - | R144: - | S144: - | T144: - | U144: - | V144: - | W144: - | X144: - | Y144: - | Z144: - | AA144: - | AB144: - | AC144: … | AD144: … | AE144: … | AF144: - | AG144: - | AH144: - | AI144: - | AJ144: - | AK144: - | AL144: - | AM144: - | AN144: - | AO144: - | AP144: - | AQ144: - | AR144: - | AS144: - | AT144: - | AU144: - | AV144: … | AW144: … | AX144: … | AY144: - | AZ144: - | BA144: - | BB144: - | BC144: - | BD144: - | BE144: - | BF144: - | BG144: - | BH144: - | BI144: - | BJ144: - | BK144: - | BL144: - | BM144: - | BN144: - | BO144: … | BP144: … | BQ144: … | BR144: - | BS144: - | BT144: - | BU144: - | BV144: - | BW144: - | BX144: - | BY144: - | BZ144: - | CA144: - | CB144: - | CC144: - | CD144: - | CE144: - | CF144: - | CG144: - | CH144: - | CI144: - | CJ144: - | CK144: - | CL144: - | CM144: - | CN144: - | CO144: - | CP144: - | CQ144: - | CR144: - | CS144: - | CT144: - | CU144: - | DC144: - | DD144: - | DE144: - | DF144: - | DG144: - | DH144: - | DI144: - | DJ144: - | DK144: - | DL144: - | DM144: - | DN144: - | DO144: - | DP144: - | DQ144: - | DR144: - | DS144: - | DT144: - | DU144: - | DV144: - | DW144: - | DX144: - | DY144: - | DZ144: - | EA144: - | EB144: - | EC144: - | ED144: - | EE144: - | EF144: - | EG144: - | EH144: - | EI144: - | EJ144: - | EK144: - | EL144: - | EM144: - | EN144: - | EO144: - | EP144: - | EQ144: - | ER144: - | ES144: - | ET144: - | EU144: -
A145: 山梨県 | B145: 富士吉田市 | C145: 下吉田町 | D145: 本町，泉町 | E145: 6 | F145: - | G145: - | H145: - | I145: - | J145: - | K145: - | L145: 6 | M145: - | N145: - | O145: - | P145: - | Q145: - | R145: - | S145: - | T145: - | U145: - | V145: - | W145: - | X145: - | Y145: - | Z145: - | AA145: - | AB145: - | AC145: … | AD145: … | AE145: … | AF145: - | AG145: - | AH145: - | AI145: - | AJ145: - | AK145: - | AL145: - | AM145: - | AN145: - | AO145: - | AP145: - | AQ145: - | AR145: - | AS145: - | AT145: - | AU145: - | AV145: … | AW145: … | AX145: … | AY145: - | AZ145: - | BA145: - | BB145: - | BC145: - | BD145: - | BE145: - | BF145: - | BG145: - | BH145: - | BI145: - | BJ145: - | BK145: - | BL145: - | BM145: - | BN145: - | BO145: … | BP145: … | BQ145: … | BR145: - | BS145: - | BT145: - | BU145: - | BV145: - | BW145: - | BX145: - | BY145: - | BZ145: - | CA145: - | CB145: - | CC145: - | CD145: - | CE145: - | CF145: - | CG145: - | CH145: - | CI145: - | CJ145: - | CK145: - | CL145: - | CM145: - | CN145: - | CO145: - | CP145: - | CQ145: - | CR145: - | CS145: - | CT145: - | CU145: - | DC145: - | DD145: - | DE145: - | DF145: - | DG145: - | DH145: - | DI145: - | DJ145: - | DK145: - | DL145: - | DM145: - | DN145: - | DO145: - | DP145: - | DQ145: - | DR145: - | DS145: - | DT145: - | DU145: - | DV145: - | DW145: - | DX145: - | DY145: - | DZ145: - | EA145: - | EB145: - | EC145: - | ED145: - | EE145: - | EF145: - | EG145: - | EH145: - | EI145: - | EJ145: - | EK145: - | EL145: - | EM145: - | EN145: - | EO145: - | EP145: - | EQ145: - | ER145: - | ES145: - | ET145: - | EU145: -
A146: 山梨県 | B146: 富士吉田市 | C146: 下吉田町 | D146: しんや | E146: 1 | F146: - | G146: - | H146: - | I146: - | J146: - | K146: - | L146: 1 | M146: - | N146: - | O146: - | P146: - | Q146: - | R146: - | S146: - | T146: - | U146: - | V146: - | W146: - | X146: - | Y146: - | Z146: - | AA146: - | AB146: - | AC146: … | AD146: … | AE146: … | AF146: - | AG146: - | AH146: - | AI146: - | AJ146: - | AK146: - | AL146: - | AM146: - | AN146: - | AO146: - | AP146: - | AQ146: - | AR146: - | AS146: - | AT146: - | AU146: - | AV146: … | AW146: … | AX146: … | AY146: - | AZ146: - | BA146: - | BB146: - | BC146: - | BD146: - | BE146: - | BF146: - | BG146: - | BH146: - | BI146: - | BJ146: - | BK146: - | BL146: - | BM146: - | BN146: - | BO146: … | BP146: … | BQ146: … | BR146: - | BS146: - | BT146: - | BU146: - | BV146: - | BW146: - | BX146: - | BY146: - | BZ146: - | CA146: - | CB146: - | CC146: - | CD146: - | CE146: - | CF146: - | CG146: - | CH146: - | CI146: - | CJ146: - | CK146: - | CL146: - | CM146: - | CN146: - | CO146: - | CP146: - | CQ146: - | CR146: - | CS146: - | CT146: - | CU146: - | DC146: - | DD146: - | DE146: - | DF146: - | DG146: - | DH146: - | DI146: - | DJ146: - | DK146: - | DL146: - | DM146: - | DN146: - | DO146: - | DP146: - | DQ146: - | DR146: - | DS146: - | DT146: - | DU146: - | DV146: - | DW146: - | DX146: - | DY146: - | DZ146: - | EA146: - | EB146: - | EC146: - | ED146: - | EE146: - | EF146: - | EG146: - | EH146: - | EI146: - | EJ146: - | EK146: - | EL146: - | EM146: - | EN146: - | EO146: - | EP146: - | EQ146: - | ER146: - | ES146: - | ET146: - | EU146: -
A147: 山梨県 | B147: 富士吉田市 | C147: 下吉田町 | D147: 中央東 | E147: 9 | F147: 2 | G147: x | H147: x | I147: x | J147: x | K147: x | L147: 7 | M147: x | N147: x | O147: x | P147: x | Q147: x | R147: x | S147: x | T147: x | U147: x | V147: x | W147: x | X147: x | Y147: x | Z147: x | AA147: x | AB147: x | AC147: 43.5 | AD147: 46.5 | AE147: 37.5 | AF147: x | AG147: x | AH147: x | AI147: x | AJ147: x | AK147: x | AL147: x | AM147: x | AN147: x | AO147: x | AP147: x | AQ147: x | AR147: x | AS147: x | AT147: x | AU147: x | AV147: 68.5 | AW147: 68.5 | AX147: … | AY147: x | AZ147: x | BA147: x | BB147: x | BC147: x | BD147: x | BE147: x | BF147: x | BG147: x | BH147: x | BI147: x | BJ147: x | BK147: x | BL147: x | BM147: x | BN147: x | BO147: 68.5 | BP147: 68.5 | BQ147: … | BR147: 2 | BS147: - | BT147: - | BU147: - | BV147: - | BW147: - | BX147: - | BY147: - | BZ147: 1 | CA147: - | CB147: - | CC147: - | CD147: - | CE147: - | CF147: 1 | CG147: - | CH147: 2 | CI147: - | CJ147: - | CK147: - | CL147: - | CM147: - | CN147: 1 | CO147: - | CP147: - | CQ147: - | CR147: - | CS147: - | CT147: 1 | CU147: - | DC147: 6 | DD147: 6 | DE147: 2 | DF147: 4 | DG147: - | DH147: - | DI147: - | DJ147: - | DK147: 2 | DL147: 2 | DM147: - | DN147: - | DO147: - | DP147: - | DQ147: - | DR147: - | DS147: - | DT147: - | DU147: - | DV147: - | DW147: - | DX147: - | DY147: - | DZ147: - | EA147: 2 | EB147: 100 | EC147: 95 | ED147: 5 | EE147: - | EF147: 4 | EG147: 4 | EH147: 2 | EI147: 2 | EJ147: - | EK147: - | EL147: - | EM147: - | EN147: 2 | EO147: 2 | EP147: - | EQ147: 2 | ER147: - | ES147: - | ET147: - | EU147: -
